Workbook

Sheet Notes
A1: NHS England - CCG allocations 2019/20 to 2023/24
A2: Technical Guidance Documentation
A3: Minimum allocation for specialised services
A6: P - Minimum growth (Specialised services)
A7: Description of worksheets in this document
A9: This workbook performs the calculations necessary to set the
A10: minimum recurrent revenue allocation for specialised services.
A11: This calculation feeds in to the total place based pace of change in workbook Q
A13: Please note that CCG specialised service allocations are notional, in the sense that the
A14: specialised services budget is actually managed at a national level; the resources are not
A15: tied to a CCG’s registered population in the way that they are for primary medical care and
A16: CCG commissioned services.
A18: Please refer to the Technical Guide published alongside this spreadsheet for further information
A20: Pace of change parameters | H20: inputs
A21: A series of parameters and switches to tune pace of change policy
A23: Rows 8-13 provide basic information on national population growth and GDP
A24: deflators to inform setting growth limits.
A26: Rows 14-19 set the parameters for per capita growth rates. The minimum growth
A27: is set to the reference growth. The recommended earliest point for the end of
A28: transition ensures that pace of change preserves the order of the initial DfTs.
A29: These parameters are set so that all CCGs see the same per capita growth.
A31: Rows 21-24 set the minimum programme growth and the parameters for the
A32: introduction of capped growth. These are set at values that ensure they are not
A33: operative.
A35: Rows 26-28 provide switches for turning on and off different parts of the pace of
A36: change policy.
A38: VBA code | H38: calculations
A39: User defined Visual Basic functions used to set per capita growth
A40: Calculations are performed using this VBA code (comments describe process)
A42: Specialised 2019-20 | H42: outputs
A43: Shows the calculation of the minimum allocation for 2016-17
A44: Baselines, target values and populations are brought in from workbook M.
A46: Columns L-N apply a minimum per capita growth
A48: Columns O-R apply enhanced per capita growth to those CCGs that are furthest
A49: below target. This adjustment is not used in this instance.
A51: Columns S-U apply a minimum programme [total allocation] growth. This
A52: adjustment is not used in this instance.
A54: Columns V-Y limit the programme [total allocation] growth for those furthest over
A55: target. This adjustment is not used in this instance.
A57: Columns Z-AD ensure that no CCG with a DfT above a threshold value falls below
A58: that threshold value. This adjustment is not used in this instance.
A60: Specialised 2020-21 | H60: outputs
A61: Shows the calculation of the minimum allocation for 2020-21
A62: Baselines, target values and populations are brought in from workbook M.
A64: Specialised 2021-22 | H64: outputs
A65: Shows the calculation of the minimum allocation for 2021-22
A66: Baselines, target values and populations are brought in from workbook M.
A68: Specialised 2022-23 | H68: outputs
A69: Shows the calculation of the minimum allocation for 2022-23
A70: Baselines, target values and populations are brought in from workbook M.
A72: Specialised 2023-24 | H72: outputs
A73: Shows the calculation of the minimum allocation for 2023-24
A74: Baselines, target values and populations are brought in from workbook M.
A78: See also Technical Guidance Documentation
A79: www.england.nhs.uk/allocations
A81: For queries please contact
A82: england.revenue-allocations@nhs.net

Sheet Pace of change parameters 2018
A1: NHS England - 2019-20 to 2023-24 Allocations
A2: Minimum allocations for specialist services
A3: Pace of change parameters
B5: Specialised
B7: GDP deflator and Population Growth | D7: 2018-19 | E7: 2019-20 | F7: 2020-21 | G7: 2021-22 | H7: 2022-23 | I7: 2023-24
B8: GDP deflator | E8: 0.01789380137 | F8: 0.01942659196 | G8: 0.01925030241 | H8: 0.01940538178 | I8: 0.01895821993
B9: Popn growth | E9: 0.006220598103 | F9: 0.005977095412 | G9: 0.005599747363 | H9: 0.005346112538 | I9: 0.005056217038
B10: Reference growth | E10: 0.01160103787 | F10: 0.01336958526 | G10: 0.01357454105 | H10: 0.01398450649 | I10: 0.01383206497
B11: Quanta
B12: Quanta £000 | D12: 16201612 | E12: 17521036.37 | F12: 18710917.91 | G12: 20011778.35 | H12: 21500480.38 | I12: 23151907.55
E13: 0.08143784531 | F13: 0.0679115958 | G13: 0.06952413773 | H13: 0.07439129164 | I13: 0.0768088498
B14: Per Capita
B15: Maximum per cap growth | E15: 0.07459682 | F15: 0.0614422 | G15: 0.06345896 | H15: 0.068584911 | I15: 0.07131366
A16: Each year same per capita growth applied to all CCGs | B16: Start of transition | E16: -10 | F16: -10 | G16: -10 | H16: -10 | I16: -10
B17: End of transition | E17: -10 | F17: -10 | G17: -10 | H17: -10 | I17: -10
B18: Start of second transition | E18: 10 | F18: 10 | G18: 10 | H18: 10 | I18: 10
B19: End of second transition | E19: 10 | F19: 10 | G19: 10 | H19: 10 | I19: 10
B20: Default per cap growth | E20: 0.07459682 | F20: 0.0614422 | G20: 0.06345896 | H20: 0.068584911 | I20: 0.07131366
B21: Floor per cap growth
B22: Programme
B23: Default programme growth | E23: 0 | F23: 0 | G23: 0 | H23: 0 | I23: 0
B24: Switches
B25: Per capita switch | E25: 1 | F25: 1 | G25: 1 | H25: 1 | I25: 1
B26: PoC switch | E26: 1 | F26: 1 | G26: 1 | H26: 1 | I26: 1
B27: Performance
B28: Balance | E28: 0.3717550747 | F28: -0.0882306844 | G28: 0.3456559256 | H28: 0.3847558238 | I28: -0.4467138983
B29: Balance / Quanta | E29: 2.121764186e-08 | F29: -4.715465314e-09 | G29: 1.727262413e-08 | H29: 1.789521987e-08 | I29: -1.929490679e-08
B30: Minimum opening DfT | E30: -0.1322658333 | F30: -0.1342656695 | G30: -0.1361223878 | H30: -0.1377748092 | I30: -0.1424769199
B31: Minimum closing DfT | E31: -0.137747324 | F31: -0.13950608 | G31: -0.1410267235 | H31: -0.1424400664 | I31: -0.146845179
B32: Maximum closing DfT | E32: 0.1404891711 | F32: 0.1407438328 | G32: 0.1414099486 | H32: 0.1418955256 | I32: 0.1422689142
B33: Number <-5% | E33: 35 | F33: 37 | G33: 40 | H33: 41 | I33: 42
B34: Number <-2.5% | E34: 73 | F34: 72 | G34: 72 | H34: 72 | I34: 73
B35: Target min DfT | E35: -0.1322658333 | F35: -0.1342656695 | G35: -0.1361223878 | H35: -0.1377748092 | I35: -0.1424769199

Sheet VBA Code
A1: NHS England - 2019-20 to 2023-24 Allocations
A2: Minimum allocations for specialist services
A3: User defined Visual Basic functions used to set per capita growth
A5: # These functions are shown in the order they are used in the minimum allocation calculations
A7: # Function MinGrowthPerhead sets minimum per capita growth
A8: # Inputs are taken from the minimum allocation worksheet and the pace of change parameters
A9: # X is the opening DfT per capita, taken from the minimum allocation worksheet
A10: # minval is 0
A11: # maxval is 1
A12: # RampStart is start of the second transition ( 5% over opening target)
A13: # RampEnd is the end of the second transition (10% over opening target)
A14: # HigherRate is the default per cap growth taken from the pace of change parameters
A15: # LowerRate is the floor per cap growth taken from the pace of change parameters
B17: Function MinGrowthPerHead(X, minval, maxval, RampStart, RampEnd, HigherRate, LowerRate)
C18: Dim a, b As Double
A19: # a is the transition ranging from minval = 0 (where opening DfT per capita >= 10%) to maxval = 1 (where opening DfT per capita <= 5%)
C20: a = MinMaxRamp(X, minval, maxval, RampStart, RampEnd)
C21: b = 1 - a
A22: # minimum growth per head is weighted average of the growth rates
C23: MinGrowthPerHead = a * HigherRate + b * LowerRate
B24: End Function
A26: # Function MinMaxRamp sets transition
A27: # X is opening DfT per capita, from the minimum allocation worksheet
A28: # minval is 0
A29: # maxval is 1
A30: # RampStart is start of the second transition ( 5% over opening target)
A31: # RampEnd is the end of the second transition (10% over opening target)
B33: Function MinMaxRamp(X, minval, maxval, RampStart, RampEnd)
C34: If X < RampStart Then
C35: MinMaxRamp = maxval
C36: ElseIf X > RampEnd Then
C37: MinMaxRamp = minval
C38: Else
C39: MinMaxRamp = (X - RampEnd) / (RampStart - RampEnd)
C40: End If
B41: End Function
A43: # Function NewMinGrowthPerHead sets higher per capita growth to ensure CCGs are within target minimum closing DfT
A44: # Inputs are taken from the minimum allocation sheet and the pace of change parameters
A45: # X is opening DfT per capita, from the minimum allocation worksheet
A46: # minDfT is the Target minimum closing DfT (increasing from -4.99% in 2019-20 to -3.50% in 2023/24), taken from the pace of change parameters worksheet
A47: # QuantumGrowth is quantum growth taken from the pace of change parameters worksheet
A48: # DefaultGrowth is the default per cap growth taken from pace of change parameters worksheet
A49: # RampEnd is end of first transition (-2.5% in 2019-20 and 0% thereafter)
A50: # ClosingTargetPerHead is closing target per capita
A51: # BaselinePerHead is baseline allocation per capita
A52: # Transition (in range 0 to 1) relates to first transition
A53: # lowestOpenDfT is the minimum CCG opening DfT per capita
B55: Function NewMinGrowthPerHead(X As Double, minDfT As Double, QuantumGrowth As Double, DefaultGrowth As Double, RampEnd As Double, ClosingTargetPerHead As Double, BaselinePerHead As Double, Transition As Double, lowestOpenDfT As Double) As Double
C56: Dim GrowthDiff As Double
C57: Dim gmax As Double
C58: Dim adjlowestopenDfT As Double
C60: GrowthDiff = DefaultGrowth - QuantumGrowth
A61: # where opening DfT per capita is below minimum closing DfT, apply sufficient per capita growth to move closing DfT to minimum closing DfT
C62: If X < minDfT Then
C63: NewMinGrowthPerHead = (ClosingTargetPerHead * (1 + minDfT) / BaselinePerHead) - 1
A64: # where opening DfT per capita is between minimum closing DfT and end of first transition
A65: # apply per capita growth based on opening DfT per capita position on first transition
C66: ElseIf X < RampEnd Then
A67: # set adjusted lowest opening DfT as start of first transition
C68: If lowestOpenDfT < minDfT Then
C69: adjlowestopenDfT = minDfT
C70: Else
C71: adjlowestopenDfT = lowestOpenDfT
C72: End If
A73: # per capita growth rate to apply to start of first transition
A74: # default per cap growth applied to end of first transition
A75: # per capita growth rate weighted average of two rates based on transition position
C76: gmax = ((1 + minDfT) * (1 + QuantumGrowth) / (1 + adjlowestopenDfT)) - 1
C77: NewMinGrowthPerHead = (1 - Transition) * DefaultGrowth + Transition * gmax
C78: Else
C79: NewMinGrowthPerHead = 0
C80: End If
B82: End Function

Sheet Specialised 2019-20
A1: NHS England - 2019-20 to 2023-24 Allocations | E1: 2018-19 | J1: 2019-20 | L1: 0.08143784531 | P1: -0.1322658333 | Q1: 10 | R1: 0.07459682 | T1: -10 | U1: 0.07459682 | X1: 1.07459682 | AF1: -0.137747324
A2: Minimum allocations for specialist services | P2: -0.1322658333 | Q2: 10 | R2: 0 | S2: 1 | T2: -10 | U2: 0.07459682 | AF2: 0.1404891711
A3: 2019-20 minimum allocation calculations | U3: 0 | AF3: 35
L4: 294.7316685 | X4: 0.3717550747 | AF4: 73
B5: England | E5: 16201612 | F5: 59079904.56 | G5: 274.2321966 | J5: 16201612 | K5: 59447416.9 | L5: 272.5368543 | M5: 0.006220598103 | X5: 17521036 | AC5: 17521036.37 | AE5: -2.121764187e-08
E6: Baseline | J6: Opening Target | O6: Distance from Target | Q6: Minimum per capita growth | T6: Per capita pace of change | AC6: Closing target
A7: CCG | B7: Clinical Commissioning Group | E7: Baseline £000 | F7: Estimated Population | G7: Allocation per capita £ | H7: Closing DfT | J7: Opening Target £000 | K7: Estimated Population | L7: Opening Target per capita £ | M7: population growth rate % | O7: DFT (total allocation) | P7: DFT (per capita) | Q7: Apply minimum per capita growth [programme] | R7: Apply minimum per capita growth [per capita] | S7: Allocation after min per capita growth £000 | T7: First Transition position | U7: Growth on per capita parameters [programme] | V7: Growth on per capita parameters [per capita] | W7: Allocation after per capita p-o-c | X7: Minimum allocation £000 | Y7: Minimum allocation per head £ | Z7: Growth after rounding | AA7: Per capita growth after rounding | AC7: Target allocations from the fair shares formula £000 | AD7: Target per head | AE7: DFT (total allocation) | AF7: DFT (per capita)
A9: 00C | B9: NHS Darlington CCG | E9: 27327.79978 | F9: 108354.6675 | G9: =E9/F9*1000 -> 252.2069461 | H9: -0.02816068266 | J9: 28114.46832 | K9: 108392.1875 | L9: =J9/K9*1000 -> 259.3772574 | M9: =K9/F9-1 -> 0.0003462704506 | O9: =E9/J9-1 -> -0.02798091482 | P9: =G9/L9-1 -> -0.02764433334 | Q9: =(1+M9)*(1+R9)-1 -> 0.07496892113 | R9: =MinGrowthPerHead(P9,0,1,$Q$1,$Q$2,$R$1,$R$2) -> 0.07459682 | S9: =(1+IF($S$2=1,Q9,0))*$E9 -> 29376.53544 | T9: =MinMaxRamp(P9,0,1,$P$2,$T$2) -> 0 | U9: =(1+M9)*(1+V9)-1 -> 0.07496892113 | V9: =MAX(R9,NewMinGrowthPerHead(P9,$P$2,$L$1,$U$1,$T$2,AD9,G9,T9, $P$1)) -> 0.07459682 | W9: =(1+IF($S$2=1,U9,0))*$E9 -> 29376.53544 | X9: =IF(ROUND(W9,0)/E9>$X$1,ROUND(W9,0),ROUNDUP(W9,0)) -> 29377 | Y9: =X9/K9*1000 -> 271.0250681 | Z9: =X9/E9-1 -> 0.07498592053 | AA9: =Y9/G9-1 -> 0.07461381353 | AC9: 30404.05004 | AD9: =AC9/K9*1000 -> 280.5003824 | AE9: =X9/AC9-1 -> -0.03378004054 | AF9: =Y9/AD9-1 -> -0.03378004054
A10: 00D | B10: NHS Durham Dales, Easington and Sedgefield CCG | E10: 69244.10198 | F10: 292189.8361 | G10: =E10/F10*1000 -> 236.9832672 | H10: -0.07557962576 | J10: 74902.76719 | K10: 293122.5 | L10: =J10/K10*1000 -> 255.5340078 | M10: =K10/F10-1 -> 0.00319197941 | O10: =E10/J10-1 -> -0.07554681121 | P10: =G10/L10-1 -> -0.07259597566 | Q10: =(1+M10)*(1+R10)-1 -> 0.07802691092 | R10: =MinGrowthPerHead(P10,0,1,$Q$1,$Q$2,$R$1,$R$2) -> 0.07459682 | S10: =(1+IF($S$2=1,Q10,0))*$E10 -> 74647.00536 | T10: =MinMaxRamp(P10,0,1,$P$2,$T$2) -> 0 | U10: =(1+M10)*(1+V10)-1 -> 0.07802691092 | V10: 0.07459682 | W10: =(1+IF($S$2=1,U10,0))*$E10 -> 74647.00536 | X10: 74647 | Y10: 254.661447 | Z10: 0.07802683352 | AA10: 0.07459674284 | AC10: 81002.68716 | AD10: 276.3441468 | AE10: =X10/AC10-1 -> -0.07846267062 | AF10: -0.07846267062
A11: 00J | B11: NHS North Durham CCG | E11: 59996.27786 | F11: 259367.9209 | G11: 231.3172641 | H11: -0.06659980441 | J11: 64293.06823 | K11: 260056.4375 | L11: 247.2273667 | M11: 0.002654594289 | O11: -0.06683131615 | P11: -0.06435413189 | Q11: 0.07744943858 | R11: 0.07459682 | S11: 64642.95589 | T11: 0 | U11: 0.07744943858 | V11: 0.07459682 | W11: 64642.95589 | X11: 64643 | Y11: 248.572966 | Z11: 0.07745017374 | AA11: 0.07459755321 | AC11: 69528.95717 | AD11: 267.3610307 | AE11: -0.07027226308 | AF11: -0.07027226308
A12: 00K | B12: NHS Hartlepool and Stockton-on-Tees CCG | E12: 72983.73384 | F12: 297298.9188 | G12: 245.4894022 | H12: -0.06950563227 | J12: 78439.62794 | K12: 298132.2188 | L12: 263.1034924 | M12: 0.002802902699 | O12: -0.06955532859 | P12: -0.0669473827 | Q12: 0.07760881033 | R12: 0.07459682 | S12: 78647.9146 | T12: 0 | U12: 0.07760881033 | V12: 0.07459682 | W12: 78647.9146 | X12: 78648 | Y12: 263.8024174 | Z12: 0.07760998049 | AA12: 0.07459798689 | AC12: 84827.58222 | AD12: 284.5300739 | AE12: -0.07284873693 | AF12: -0.07284873693
A13: 00L | B13: NHS Northumberland CCG | E13: 84248.62874 | F13: 325418 | G13: 258.893573 | H13: -0.04079298139 | J13: 87938.46715 | K13: 325474.5938 | L13: 270.1853504 | M13: 0.0001739109392 | O13: -0.04195932142 | P13: -0.04179270766 | Q13: 0.07478370414 | R13: 0.07459682 | S13: 90549.05327 | T13: 0 | U13: 0.07478370414 | V13: 0.07459682 | W13: 90549.05327 | X13: 90549 | Y13: 278.2060466 | Z13: 0.07478307183 | AA13: 0.0745961878 | AC13: 95099.98644 | AD13: 292.1886632 | AE13: -0.0478547538 | AF13: -0.0478547538
A14: 00M | B14: NHS South Tees CCG | E14: 91863.29061 | F14: 296987.7526 | G14: 309.3167641 | H14: -0.03580401084 | J14: 95133.61676 | K14: 297279.8125 | L14: 320.0137136 | M14: 0.0009834071497 | O14: -0.03437613606 | P14: -0.03342653465 | Q14: 0.0756535862 | R14: 0.07459682 | S14: 98813.07798 | T14: 0 | U14: 0.0756535862 | V14: 0.07459682 | W14: 98813.07798 | X14: 98813 | Y14: 332.3905487 | Z14: 0.07565273728 | AA14: 0.07459597192 | AC14: 102881.0935 | AD14: 346.0749409 | AE14: -0.03954170187 | AF14: -0.03954170187
A15: 00N | B15: NHS South Tyneside CCG | E15: 42939.82695 | F15: 157204.2485 | G15: 273.1467333 | H15: -0.056306475 | J15: 45514.63086 | K15: 157356.1406 | L15: 289.2459785 | M15: 0.0009662085552 | O15: -0.05657090616 | P15: -0.0556593569 | Q15: 0.07563510464 | R15: 0.07459682 | S15: 46187.58526 | T15: 0 | U15: 0.07563510464 | V15: 0.07459682 | W15: 46187.58526 | X15: 46188 | Y15: 293.5252467 | Z15: 0.07564476336 | AA15: 0.0746064694 | AC15: 49221.24433 | AD15: 312.8015477 | AE15: -0.06162469827 | AF15: -0.06162469827
A16: 00P | B16: NHS Sunderland CCG | E16: 74267.115 | F16: 284072.0813 | G16: 261.4375713 | H16: -0.03906935358 | J16: 77192.02483 | K16: 284309.3125 | L16: 271.5071981 | M16: 0.0008351092479 | O16: -0.03789134749 | P16: -0.03708788166 | Q16: 0.07549422574 | R16: 0.07459682 | S16: 79873.85334 | T16: 0 | U16: 0.07549422574 | V16: 0.07459682 | W16: 79873.85334 | X16: 79874 | Y16: 280.9404986 | Z16: 0.07549620048 | AA16: 0.07459879309 | AC16: 83478.37701 | AD16: 293.6181593 | AE16: -0.04317737287 | AF16: -0.04317737287
A17: 00Q | B17: NHS Blackburn with Darwen CCG | E17: 47831.93741 | F17: 175120.7517 | G17: 273.1368895 | H17: -0.09509211545 | J17: 52787.33502 | K17: 175157.5156 | L17: 301.3706539 | M17: 0.0002099346631 | O17: -0.093874745 | P17: -0.0936845179 | Q17: 0.07482241512 | R17: 0.07459682 | S17: 51410.83849 | T17: 0 | U17: 0.07482241512 | V17: 0.07459682 | W17: 51410.83849 | X17: 51411 | Y17: 293.512955 | Z17: 0.07482579183 | AA17: 0.074600196 | AC17: 57086.22185 | AD17: 325.9136306 | AE17: -0.0994149142 | AF17: -0.0994149142
A18: 00R | B18: NHS Blackpool CCG | E18: 60779.86743 | F18: 173468.5012 | G18: 350.3798501 | H18: -0.02663608448 | J18: 62217.46595 | K18: 173096.5469 | L18: 359.4379384 | M18: -0.002144218094 | O18: -0.02310602818 | P18: -0.02520070191 | Q18: 0.07229265005 | R18: 0.07459682 | S18: 65173.80512 | T18: 0 | U18: 0.07229265005 | V18: 0.07459682 | W18: 65173.80512 | X18: 65174 | Y18: 376.5181985 | Z18: 0.0722958564 | AA18: 0.07460003324 | AC18: 67284.32232 | AD18: 388.7097896 | AE18: -0.03136425022 | AF18: -0.03136425022
A19: 00T | B19: NHS Bolton CCG | E19: 90573.45452 | F19: 309358.2469 | G19: 292.7785356 | H19: 0.02553516508 | J19: 88212.75664 | K19: 310601.6875 | L19: 284.0060444 | M19: 0.00401941944 | O19: 0.02676141146 | P19: 0.03088839624 | Q19: 0.07891607535 | R19: 0.07459682 | S19: 97721.15608 | T19: 0 | U19: 0.07891607535 | V19: 0.07459682 | W19: 97721.15608 | X19: 97721 | Y19: 314.6183808 | Z19: 0.07891435213 | AA19: 0.07459510368 | AC19: 95396.61347 | AD19: 307.1348847 | AE19: 0.02436550362 | AF19: 0.02436550362
A20: 00V | B20: NHS Bury CCG | E20: 62396.16715 | F20: 204179.5007 | G20: 305.59467 | H20: 0.07682209775 | J20: 57871.78832 | K20: 204868.2812 | L20: 282.4829103 | M20: 0.003373406807 | O20: 0.07817935076 | P20: 0.08181648832 | Q20: 0.07822187223 | R20: 0.07459682 | S20: 67276.91217 | T20: 0 | U20: 0.07822187223 | V20: 0.07459682 | W20: 67276.91217 | X20: 67277 | Y20: 328.3914893 | Z20: 0.07822327989 | AA20: 0.07459822293 | AC20: 62584.74206 | AD20: 305.4877098 | AE20: 0.07497447119 | AF20: 0.07497447119
A21: 00X | B21: NHS Chorley and South Ribble CCG | E21: 48825.42696 | F21: 183604.5844 | G21: 265.927058 | H21: -0.02597302762 | J21: 50249.94045 | K21: 184909.5625 | L21: 271.7541471 | M21: 0.007107546655 | O21: -0.02834856076 | P21: -0.02144250283 | Q21: 0.08223456703 | R21: 0.07459682 | S21: 52840.5648 | T21: 0 | U21: 0.08223456703 | V21: 0.07459682 | W21: 52840.5648 | X21: 52841 | Y21: 285.7667245 | Z21: 0.08224348038 | AA21: 0.07460567044 | AC21: 54342.18732 | AD21: 293.8852193 | AE21: -0.0276247129 | AF21: -0.0276247129
A22: 00Y | B22: NHS Oldham CCG | E22: 73806.35043 | F22: 255302.415 | G22: 289.0938201 | H22: 0.05492693935 | J22: 69917.10618 | K22: 256758.2344 | L22: 272.3071622 | M22: 0.005702332803 | O22: 0.0556265049 | P22: 0.06164603855 | Q22: 0.0807245287 | R22: 0.07459682 | S22: 79764.33329 | T22: 0 | U22: 0.0807245287 | V22: 0.07459682 | W22: 79764.33329 | X22: 79764 | Y22: 310.6580017 | Z22: 0.08072001299 | AA22: 0.0745923299 | AC22: 75611.00466 | AD22: 294.4832708 | AE22: 0.05492580553 | AF22: 0.05492580553
A23: 01A | B23: NHS East Lancashire CCG | E23: 104876.317 | F23: 382164.0862 | G23: 274.4274536 | H23: -0.06739054504 | J23: 112353.2379 | K23: 382499.5625 | L23: 293.7342911 | M23: 0.0008778330288 | O23: -0.06654833404 | P23: -0.06572891934 | Q23: 0.07554013658 | R23: 0.07459682 | S23: 112798.6884 | T23: 0 | U23: 0.07554013658 | V23: 0.07459682 | W23: 112798.6884 | X23: 112799 | Y23: 294.8996837 | Z23: 0.07554310806 | AA23: 0.07459978887 | AC23: 121503.0435 | AD23: 317.6553789 | AE23: -0.07163642332 | AF23: -0.07163642332
A24: 01C | B24: NHS Eastern Cheshire CCG | E24: 55920.52502 | F24: 208597.4119 | G24: 268.0787096 | H24: 0.0614381963 | J24: 52703.96969 | K24: 209256.7656 | L24: 251.8626795 | M24: 0.003160890982 | O24: 0.06103060821 | P24: 0.06438441029 | Q24: 0.0779935034 | R24: 0.07459682 | S24: 60281.96268 | T24: 0 | U24: 0.0779935034 | V24: 0.07459682 | W24: 60281.96268 | X24: 60282 | Y24: 288.0767072 | Z24: 0.07799417085 | AA24: 0.07459748535 | AC24: 56996.06742 | AD24: 272.3738334 | AE24: 0.0576519175 | AF24: 0.0576519175
A25: 01D | B25: NHS Heywood, Middleton and Rochdale CCG | E25: 76746.47214 | F25: 233537.334 | G25: 328.626138 | H25: 0.0484843545 | J25: 73158.70022 | K25: 234477.7031 | L25: 312.0070661 | M25: 0.004026633021 | O25: 0.04904094682 | P25: 0.05326504974 | Q25: 0.07892382704 | R25: 0.07459682 | S25: 82803.59744 | T25: 0 | U25: 0.07892382704 | V25: 0.07459682 | W25: 82803.59744 | X25: 82804 | Y25: 353.1423197 | Z25: 0.07892907241 | AA25: 0.07460204434 | AC25: 79116.58713 | AD25: 337.4162493 | AE25: 0.04660732985 | AF25: 0.04660732985
A26: 01E | B26: NHS Greater Preston CCG | E26: 60368.87398 | F26: 209211.5839 | G26: 288.5541653 | H26: 0.0113954922 | J26: 59596.88679 | K26: 209249.0156 | L26: 284.8132241 | M26: 0.0001789179211 | O26: 0.01295348183 | P26: 0.01313471736 | Q26: 0.07478908463 | R26: 0.07459682 | S26: 64883.8068 | T26: 0 | U26: 0.07478908463 | V26: 0.07459682 | W26: 64883.8068 | X26: 64884 | Y26: 310.0803118 | Z26: 0.07479228494 | AA26: 0.07460001974 | AC26: 64450.32883 | AD26: 308.0077994 | AE26: 0.006728765778 | AF26: 0.006728765778
A27: 01F | B27: NHS Halton CCG | E27: 37187.8108 | F27: 131379.166 | G27: 283.0571386 | H27: 0.0195999839 | J27: 36471.15161 | K27: 131605.6875 | L27: 277.1244336 | M27: 0.001724181172 | O27: 0.01965002918 | P27: 0.02140809056 | Q27: 0.0764496196 | R27: 0.07459682 | S27: 40030.80479 | T27: 0 | U27: 0.0764496196 | V27: 0.07459682 | W27: 40030.80479 | X27: 40031 | Y27: 304.1737843 | Z27: 0.0764548689 | AA27: 0.07460206026 | AC27: 39441.28361 | AD27: 299.6928504 | AE27: 0.0149517545 | AF27: 0.0149517545
A28: 01G | B28: NHS Salford CCG | E28: 87761.30102 | F28: 272953.1648 | G28: 321.5251272 | H28: 0.01224533984 | J28: 86714.81994 | K28: 275610.5 | L28: 314.6281435 | M28: 0.009735498788 | O28: 0.01206807649 | P28: 0.02192106402 | Q28: 0.08505855604 | R28: 0.07459682 | S28: 95226.15056 | T28: 0 | U28: 0.08505855604 | V28: 0.07459682 | W28: 95226.15056 | X28: 95226 | Y28: 345.5093329 | Z28: 0.08505684045 | AA28: 0.07459512095 | AC28: 93776.68803 | AD28: 340.2507816 | AE28: 0.01545492805 | AF28: 0.01545492805
A29: 01H | B29: NHS Cumbria CCG | E29: 85638.60127 | F29: 324183.1635 | G29: 264.1673317 | H29: 0.002842647408 | J29: 85360.24361 | K29: 323764.0625 | L29: 263.6495322 | M29: -0.001292790618 | O29: 0.003260975395 | P29: 0.001963969019 | Q29: 0.07320759131 | R29: 0.07459682 | S29: 91907.99699 | T29: 0 | U29: 0.07320759131 | V29: 0.07459682 | W29: 91907.99699 | X29: 91908 | Y29: 283.8733839 | Z29: 0.07320762645 | AA29: 0.07459685518 | AC29: 92311.79793 | AD29: 285.120582 | AE29: -0.00437428301 | AF29: -0.00437428301
A30: 01J | B30: NHS Knowsley CCG | E30: 52753.08099 | F30: 165151.5828 | G30: 319.4221945 | H30: -0.0082165306 | J30: 53129.00799 | K30: 165618.9688 | L30: 320.7905978 | M30: 0.002830042428 | O30: -0.007075739228 | P30: -0.004265721442 | Q30: 0.07763797459 | R30: 0.07459682 | S30: 56848.72335 | T30: 0 | U30: 0.07763797459 | V30: 0.07459682 | W30: 56848.72335 | X30: 56849 | Y30: 343.2517448 | Z30: 0.07764321889 | AA30: 0.0746020495 | AC30: 57455.71993 | AD30: 346.9150929 | AE30: -0.01055978285 | AF30: -0.01055978285
A31: 01K | B31: NHS Morecambe Bay CCG | E31: 87083.15069 | F31: 345955.6711 | G31: 251.7176562 | H31: -0.03745079236 | J31: 90365.93961 | K31: 346843 | L31: 260.5384557 | M31: 0.002564862875 | O31: -0.03632772399 | P31: -0.03385603674 | Q31: 0.07735301349 | R31: 0.07459682 | S31: 93819.29482 | T31: 0 | U31: 0.07735301349 | V31: 0.07459682 | W31: 93819.29482 | X31: 93819 | Y31: 270.4941429 | Z31: 0.07734962794 | AA31: 0.07459344311 | AC31: 97725.14702 | AD31: 281.7561462 | AE31: -0.03997074587 | AF31: -0.03997074587
A32: 01R | B32: NHS South Cheshire CCG | E32: 47024.51265 | F32: 185925.4155 | G32: 252.9213799 | H32: 0.06185721808 | J32: 44276.71249 | K32: 186311.0625 | L32: 237.6494014 | M32: 0.002074202559 | O32: 0.06205971504 | P32: 0.06426264202 | Q32: 0.07682575147 | R32: 0.07459682 | S32: 50637.20617 | T32: 0 | U32: 0.07682575147 | V32: 0.07459682 | W32: 50637.20617 | X32: 50637 | Y32: 271.7874039 | Z32: 0.07682136721 | AA32: 0.07459244482 | AC32: 47882.51255 | AD32: 257.0030566 | AE32: 0.05752595896 | AF32: 0.05752595896
A33: 01T | B33: NHS South Sefton CCG | E33: 51863.76648 | F33: 155093.0837 | G33: 334.4041219 | H33: 0.01696320424 | J33: 50910.082 | K33: 155182.25 | L33: 328.0663993 | M33: 0.0005749209289 | O33: 0.0187327234 | P33: 0.01931841416 | Q33: 0.0752146282 | R33: 0.07459682 | S33: 55764.6804 | T33: 0 | U33: 0.0752146282 | V33: 0.07459682 | W33: 55764.6804 | X33: 55765 | Y33: 359.3516655 | Z33: 0.07522079057 | AA33: 0.07460297883 | AC33: 55056.08938 | AD33: 354.78342 | AE33: 0.01287615279 | AF33: 0.01287615279
A34: 01V | B34: NHS Southport and Formby CCG | E34: 36316.73196 | F34: 125038.3317 | G34: 290.4447898 | H34: -0.01153415044 | J34: 36707.43849 | K34: 125268.4766 | L34: 293.0301341 | M34: 0.001840594755 | O34: -0.01064379717 | P34: -0.008822793333 | Q34: 0.07657471727 | R34: 0.07459682 | S34: 39097.67544 | T34: 0 | U34: 0.07657471727 | V34: 0.07459682 | W34: 39097.67544 | X34: 39098 | Y34: 312.1136384 | Z34: 0.07658365412 | AA34: 0.07460574043 | AC34: 39696.81319 | AD34: 316.8938769 | AE34: -0.0150846665 | AF34: -0.0150846665
A35: 01W | B35: NHS Stockport CCG | E35: 90541.76824 | F35: 312021.7475 | G35: 290.1777487 | H35: 0.1109160939 | J35: 81396.98621 | K35: 313465.75 | L35: 259.6678783 | M35: 0.004627890507 | O35: 0.1123479193 | P35: 0.1174957436 | Q35: 0.07956993642 | R35: 0.07459682 | S35: 97746.17099 | T35: 0 | U35: 0.07956993642 | V35: 0.07459682 | W35: 97746.17099 | X35: 97746 | Y35: 311.8235405 | Z35: 0.07956804795 | AA35: 0.07459494022 | AC35: 88025.78138 | AD35: 280.8146708 | AE35: 0.1104246786 | AF35: 0.1104246786
A36: 01X | B36: NHS St Helens CCG | E36: 54399.78805 | F36: 197589.5005 | G36: 275.3172001 | H36: 0.01590733331 | J36: 53494.00513 | K36: 198154.4375 | L36: 269.9611768 | M36: 0.002859144895 | O36: 0.01693241915 | P36: 0.01983997628 | Q36: 0.07766924801 | R36: 0.07459682 | S36: 58624.97868 | T36: 0 | U36: 0.07766924801 | V36: 0.07459682 | W36: 58624.97868 | X36: 58625 | Y36: 295.8550953 | Z36: 0.07766963996 | AA36: 0.07459721083 | AC36: 57850.44165 | AD36: 291.9462333 | AE36: 0.01338897909 | AF36: 0.01338897909
A37: 01Y | B37: NHS Tameside and Glossop CCG | E37: 73251.56779 | F37: 247904.7488 | G37: 295.4827132 | H37: 0.05247010603 | J37: 69523.12344 | K37: 248556.2812 | L37: 279.7077712 | M37: 0.002628156475 | O37: 0.05362883838 | P37: 0.05639793984 | Q37: 0.07742102859 | R37: 0.07459682 | S37: 78922.77951 | T37: 0 | U37: 0.07742102859 | V37: 0.07459682 | W37: 78922.77951 | X37: 78923 | Y37: 317.5256711 | Z37: 0.07742403858 | AA37: 0.0745998221 | AC37: 75184.93681 | AD37: 302.4865694 | AE37: 0.04971824607 | AF37: 0.04971824607
A38: 02A | B38: NHS Trafford CCG | E38: 73341.4908 | F38: 242027.0015 | G38: 303.0302006 | H38: 0.1403111869 | J38: 64304.40083 | K38: 243556.875 | L38: 264.0221132 | M38: 0.006321086184 | O38: 0.1405361041 | P38: 0.1477455311 | Q38: 0.08138943911 | R38: 0.07459682 | S38: 79310.7136 | T38: 0 | U38: 0.08138943911 | V38: 0.07459682 | W38: 79310.7136 | X38: 79311 | Y38: 325.6364658 | Z38: 0.08139334416 | AA38: 0.07460070052 | AC38: 69541.21268 | AD38: 285.5235052 | AE38: 0.1404891711 | AF38: 0.1404891711
A39: 02D | B39: NHS Vale Royal CCG | E39: 23220.35563 | F39: 107018.25 | G39: 216.9756619 | H39: 0.000158543592 | J39: 23180.79844 | K39: 107292.4375 | L39: 216.0524915 | M39: 0.002562063013 | O39: 0.001706463412 | P39: 0.004272898491 | Q39: 0.07735000477 | R39: 0.07459682 | S39: 25016.45024 | T39: 0 | U39: 0.07735000477 | V39: 0.07459682 | W39: 25016.45024 | X39: 25016 | Y39: 233.1571598 | Z39: 0.0773306147 | AA39: 0.07457747949 | AC39: 25068.59272 | AD39: 233.6473409 | AE39: -0.002097952588 | AF39: -0.002097952588
A40: 02E | B40: NHS Warrington CCG | E40: 55571.22475 | F40: 218209.0056 | G40: 254.6697126 | H40: 0.04607729356 | J40: 53185.05848 | K40: 219281.6562 | L40: 242.5422144 | M40: 0.004915702868 | O40: 0.04486535015 | P40: 0.05000159774 | Q40: 0.07987921867 | R40: 0.07459682 | S40: 60010.21076 | T40: 0 | U40: 0.07987921867 | V40: 0.07459682 | W40: 60010.21076 | X40: 60010 | Y40: 273.6663022 | Z40: 0.07987542599 | AA40: 0.07459304588 | AC40: 57516.33504 | AD40: 262.2943297 | AE40: 0.04335576935 | AF40: 0.04335576935
A41: 02F | B41: NHS West Cheshire CCG | E41: 68714.06426 | F41: 263907.4162 | G41: 260.3718579 | H41: 0.03651821754 | J41: 66326.2649 | K41: 264776.8438 | L41: 250.4987368 | M41: 0.003294441527 | O41: 0.03600081143 | P41: 0.03941385553 | Q41: 0.07813701639 | R41: 0.07459682 | S41: 74083.17623 | T41: 0 | U41: 0.07813701639 | V41: =MAX(R41,NewMinGrowthPerHead(P41,$P$2,$L$1,$U$1,$T$2,AD41,G41,T41, $P$1)) -> 0.07459682 | W41: 74083.17623 | X41: =IF(ROUND(W41,0)/E41>$X$1,ROUND(W41,0),ROUNDUP(W41,0)) -> 74083 | Y41: =X41/K41*1000 -> 279.7941049 | Z41: =X41/E41-1 -> 0.07813445177 | AA41: =Y41/G41-1 -> 0.0745942638 | AC41: 71727.73301 | AD41: =AC41/K41*1000 -> 270.8988142 | AE41: 0.03283621127 | AF41: 0.03283621127
A42: 02G | B42: NHS West Lancashire CCG | E42: 34568.35267 | F42: 113598.5002 | G42: 304.3028965 | H42: 0.02330666819 | J42: 33723.23491 | K42: 113720.625 | L42: 296.5445794 | M42: 0.001075056058 | O42: 0.02506040012 | P42: 0.02616239751 | Q42: 0.07575207182 | R42: 0.07459682 | S42: 37186.977 | T42: 0 | U42: 0.07575207182 | V42: 0.07459682 | W42: 37186.977 | X42: 37187 | Y42: 327.0031272 | Z42: 0.07575273719 | AA42: 0.07459748466 | AC42: 36469.58249 | AD42: 320.6945309 | AE42: 0.01967166768 | AF42: 0.01967166768
A43: 02H | B43: NHS Wigan Borough CCG | E43: 94087.82527 | F43: 327903.6691 | G43: 286.937397 | H43: 0.03420515163 | J43: 90962.96575 | K43: 328789.4375 | L43: 276.6602432 | M43: 0.002701306866 | O43: 0.03435309635 | P43: 0.03714720147 | Q43: 0.07749963577 | R43: 0.07459682 | S43: 101379.5975 | T43: 0 | U43: 0.07749963577 | V43: 0.07459682 | W43: 101379.5975 | X43: 101380 | Y43: 308.3432387 | Z43: 0.07750391409 | AA43: 0.0746010868 | AC43: 98370.79368 | AD43: 299.1908573 | AE43: 0.03059044466 | AF43: 0.03059044466
A44: 02M | B44: NHS Fylde & Wyre CCG | E44: 45031.31769 | F44: 177596.6686 | G44: 253.5594729 | H44: -0.04265870669 | J44: 47059.12659 | K44: 178249.3125 | L44: 264.0073386 | M44: 0.003674865553 | O44: -0.04309066175 | P44: -0.03957414859 | Q44: 0.07854581884 | R44: 0.07459682 | S44: 48568.33941 | T44: 0 | U44: 0.07854581884 | V44: 0.07459682 | W44: 48568.33941 | X44: 48568 | Y44: 272.4722992 | Z44: 0.07853828167 | AA44: 0.07458931043 | AC44: 50891.52047 | AD44: 285.5075274 | AE44: -0.04565633812 | AF44: -0.04565633812
A45: 02N | B45: NHS Airedale, Wharfedale and Craven CCG | E45: 35723.67899 | F45: 159178.1672 | G45: 224.4257464 | H45: -0.02786943585 | J45: 36774.5942 | K45: 159702.5 | L45: 230.2693709 | M45: 0.003293999251 | O45: -0.02857720771 | P45: -0.02537734176 | Q45: 0.07813654112 | R45: 0.07459682 | S45: 38515.0037 | T45: 0 | U45: 0.07813654112 | V45: 0.07459682 | W45: 38515.0037 | X45: 38515 | Y45: 241.1671702 | Z45: 0.07813643757 | AA45: 0.07459671679 | AC45: 39769.43792 | AD45: 249.0220123 | AE45: -0.03154276207 | AF45: -0.03154276207
A46: 02P | B46: NHS Barnsley CCG | E46: 69555.40324 | F46: 260349.6661 | G46: 267.1614844 | H46: -0.05112291926 | J46: 73443.99919 | K46: 262230.9375 | L46: 280.0737392 | M46: 0.007225941372 | O46: -0.05294640799 | P46: -0.04610305426 | Q46: 0.08236179362 | R46: 0.07459682 | S46: 75284.11101 | T46: 0 | U46: 0.08236179362 | V46: 0.07459682 | W46: 75284.11101 | X46: 75284 | Y46: 287.0904582 | Z46: 0.08236019764 | AA46: 0.07459523547 | AC46: 79425.12023 | AD46: 302.882341 | AE46: -0.05213867124 | AF46: -0.05213867124
A47: 02Q | B47: NHS Bassetlaw CCG | E47: 27996.61486 | F47: 117382.667 | G47: 238.5072309 | H47: -0.07397809237 | J47: 30263.50742 | K47: 117732.3672 | L47: 257.0534182 | M47: 0.002979146788 | O47: -0.07490515005 | P47: -0.0721491567 | Q47: 0.07779820166 | R47: 0.07459682 | S47: 30174.70115 | T47: 0 | U47: 0.07779820166 | V47: 0.07459682 | W47: 30174.70115 | X47: 30175 | Y47: 256.3016503 | Z47: 0.07780887635 | AA47: 0.07460746298 | AC47: 32728.10226 | AD47: 277.9872947 | AE47: -0.07800948055 | AF47: -0.07800948055
A48: 02R | B48: NHS Bradford Districts CCG | E48: 71187.96594 | F48: 333179.2496 | G48: 213.6626636 | H48: -0.08501312338 | J48: 77793.14915 | K48: 334130.3125 | L48: 232.8227827 | M48: 0.002854508098 | O48: -0.08490700369 | P48: -0.08229486332 | Q48: 0.07766426532 | R48: 0.07459682 | S48: 76716.72702 | T48: 0 | U48: 0.07766426532 | V48: 0.07459682 | W48: 76716.72702 | X48: 76717 | Y48: 229.6020359 | Z48: 0.07766809996 | AA48: 0.07460064372 | AC48: 84128.45559 | AD48: 251.7833685 | AE48: -0.0880968935 | AF48: -0.0880968935
A49: 02T | B49: NHS Calderdale CCG | E49: 54090.34985 | F49: 220614.665 | G49: 245.1802098 | H49: -0.05765666568 | J49: 57438.34497 | K49: 221396.0625 | L49: 259.4370664 | M49: 0.003541910781 | O49: -0.0582885025 | P49: -0.0549530444 | Q49: 0.07840294606 | R49: 0.07459682 | S49: 58331.19264 | T49: 0 | U49: 0.07840294606 | V49: 0.07459682 | W49: 58331.19264 | X49: 58331 | Y49: 263.4690037 | Z49: 0.07839938468 | AA49: 0.07459327118 | AC49: 62116.00002 | AD49: 280.5650621 | AE49: -0.06093438116 | AF49: -0.06093438116
A50: 02W | B50: NHS Bradford City CCG | E50: 32355.58149 | F50: 140422.67 | G50: 230.415655 | H50: -0.1237815001 | J50: 36859.53608 | K50: 140352.5781 | L50: 262.6210118 | M50: -0.000499149514 | O50: -0.122192384 | P50: -0.1226305413 | Q50: 0.07406043552 | R50: 0.07459682 | S50: 34751.84995 | T50: 0 | U50: 0.07406043552 | V50: 0.07459682 | W50: 34751.84995 | X50: 34752 | Y50: 247.6049992 | Z50: 0.07406507307 | AA50: 0.07460145987 | AC50: 39861.29728 | AD50: 284.0083012 | AE50: -0.1281768941 | AF50: -0.1281768941
A51: 02X | B51: NHS Doncaster CCG | E51: 81010.70797 | F51: 320731.4169 | G51: 252.5811433 | H51: -0.0770862214 | J51: 87753.46625 | K51: 321430.5625 | L51: 273.0090928 | M51: 0.002179847664 | O51: -0.07683751504 | P51: -0.07482516146 | Q51: 0.07693927737 | R51: 0.07459682 | S51: 87243.6133 | T51: 0 | U51: 0.07693927737 | V51: 0.07459682 | W51: 87243.6133 | X51: 87244 | Y51: 271.4240965 | Z51: 0.07694405082 | AA51: 0.07460158307 | AC51: 94899.91946 | AD51: 295.242365 | AE51: -0.0806736139 | AF51: -0.0806736139
A52: 02Y | B52: NHS East Riding of Yorkshire CCG | E52: 78569.61453 | F52: 304284.9979 | G52: 258.2106087 | H52: -0.0314816597 | J52: 81214.70425 | K52: 304863.6562 | L52: 266.3968059 | M52: 0.001901698504 | O52: -0.03256909864 | P52: -0.03072933674 | Q52: 0.07664037916 | R52: 0.07459682 | S52: 84591.21958 | T52: 0 | U52: 0.07664037916 | V52: 0.07459682 | W52: 84591.21958 | X52: 84591 | Y52: 277.4715787 | Z52: 0.07663758441 | AA52: 0.07459403055 | AC52: 87828.65477 | AD52: 288.0915877 | AE52: -0.03686330819 | AF52: -0.03686330819
A53: 03A | B53: NHS Greater Huddersfield CCG | E53: 48722.29725 | F53: 248802.7496 | G53: 195.8270048 | H53: -0.07856227213 | J53: 52889.25065 | K53: 249965.9375 | L53: 211.5858312 | M53: 0.004675140721 | O53: -0.07878639502 | P53: -0.07447959178 | Q53: 0.07962071135 | R53: 0.07459682 | S53: 52601.60122 | T53: 0 | U53: 0.07962071135 | V53: 0.07459682 | W53: 52601.60122 | X53: 52602 | Y53: 210.436672 | Z53: 0.07962889613 | AA53: 0.07460496669 | AC53: 57196.43726 | AD53: 228.8169253 | AE53: -0.08032733294 | AF53: -0.08032733294
A54: 03D | B54: NHS Hambleton, Richmondshire and Whitby CCG | E54: 39649.0335 | F54: 144071.9993 | G54: 275.2029104 | H54: 0.061020028 | J54: 37379.38234 | K54: 144023.375 | L54: 259.5369144 | M54: -0.0003374997767 | O54: 0.06071933281 | P54: 0.06036134028 | Q54: 0.07423414381 | R54: 0.07459682 | S54: 42592.34555 | T54: 0 | U54: 0.07423414381 | V54: 0.07459682 | W54: 42592.34555 | X54: 42593 | Y54: 295.7367163 | Z54: 0.0742506498 | AA54: 0.07461333156 | AC54: 40423.4787 | AD54: 280.6730414 | AE54: 0.05366983177 | AF54: 0.05366983177
A55: 03E | B55: NHS Harrogate and Rural District CCG | E55: 37248.32824 | F55: 163132.0811 | G55: 228.3323305 | H55: -0.01114828705 | J55: 37734.35359 | K55: 163245.0625 | L55: 231.1515767 | M55: 0.0006925764974 | O55: -0.01288018224 | P55: -0.01219652625 | Q55: 0.0753410605 | R55: 0.07459682 | S55: 40054.65679 | T55: 0 | U55: 0.0753410605 | V55: 0.07459682 | W55: 40054.65679 | X55: 40055 | Y55: 245.3672986 | Z55: 0.07535027457 | AA55: 0.07460602769 | AC55: 40807.35804 | AD55: 249.9760631 | AE55: -0.01843682309 | AF55: -0.01843682309
A56: 03F | B56: NHS Hull CCG | E56: 89762.24646 | F56: 299081.3347 | G56: 300.126541 | H56: -0.0492794367 | J56: 94297.31718 | K56: 299668.0312 | L56: 314.6725955 | M56: 0.001961662249 | O56: -0.04809331659 | P56: -0.04622599719 | Q56: 0.07670481601 | R56: 0.07459682 | S56: 96647.44305 | T56: 0 | U56: 0.07670481601 | V56: 0.07459682 | W56: 96647.44305 | X56: 96647 | Y56: 322.5135481 | Z56: 0.07669988015 | AA56: 0.0745918938 | AC56: 101976.6875 | AD56: 340.2988537 | AE56: -0.05226378346 | AF56: -0.05226378346
A57: 03H | B57: NHS North East Lincolnshire CCG | E57: 45126.95726 | F57: 169648.7517 | G57: 266.0022948 | H57: -0.0677712385 | J57: 48350.69468 | K57: 169562.0781 | L57: 285.1504017 | M57: -0.0005109002165 | O57: -0.06667406633 | P57: -0.06715090275 | Q57: 0.07404780825 | R57: 0.07459682 | S57: 48468.50954 | T57: 0 | U57: 0.07404780825 | V57: 0.07459682 | W57: 48468.50954 | X57: 48469 | Y57: 285.8481126 | Z57: 0.07405867679 | AA57: 0.0746076941 | AC57: 52288.27108 | AD57: 308.3724359 | AE57: -0.07304259631 | AF57: -0.07304259631
A58: 03J | B58: NHS North Kirklees CCG | E58: 43655.05462 | F58: 193733.751 | G58: 225.3353089 | H58: -0.05942836008 | J58: 46430.22909 | K58: 194611.9688 | L58: 238.5784872 | M58: 0.004533116838 | O58: -0.05977085443 | P58: -0.05550868586 | Q58: 0.07946809294 | R58: 0.07459682 | S58: 47124.23856 | T58: 0 | U58: 0.07946809294 | V58: 0.07459682 | W58: 47124.23856 | X58: 47124 | Y58: 242.1433805 | Z58: 0.07946262825 | AA58: 0.07459137997 | AC58: 50211.4069 | AD58: 258.0078051 | AE58: -0.0614881576 | AF58: -0.0614881576
A59: 03K | B59: NHS North Lincolnshire CCG | E59: 42202.45573 | F59: 177178.165 | G59: 238.1921932 | H59: -0.1132094009 | J59: 47657.05406 | K59: 177652.9844 | L59: 268.2592371 | M59: 0.002679897581 | O59: -0.1144552143 | P59: -0.1120820449 | Q59: 0.07747662942 | R59: 0.07459682 | S59: 45472.15975 | T59: 0 | U59: 0.07747662942 | V59: 0.07459682 | W59: 45472.15975 | X59: 45472 | Y59: 255.9596742 | Z59: 0.07747284411 | AA59: 0.07459304481 | AC59: 51538.14186 | AD59: 290.1056914 | AE59: -0.11770199 | AF59: -0.11770199
A60: 03L | B60: NHS Rotherham CCG | E60: 68209.49158 | F60: 263162.8309 | G60: 259.1912062 | H60: -0.06770242033 | J60: 73136.97467 | K60: 263993.0938 | L60: 277.0412424 | M60: 0.003154939527 | O60: -0.06737335133 | P60: -0.06443097065 | Q60: 0.07798710798 | R60: 0.07459682 | S60: 73528.95257 | T60: 0 | U60: 0.07798710798 | V60: 0.07459682 | W60: 73528.95257 | X60: 73529 | Y60: 278.5262257 | Z60: 0.07798780338 | AA60: 0.07459751321 | AC60: 79093.0923 | AD60: 299.6028842 | AE60: -0.07034865042 | AF60: -0.07034865042
A61: 03M | B61: NHS Scarborough and Ryedale CCG | E61: 29585.616 | F61: 120479.5811 | G61: 245.5653957 | H61: 0.01116784814 | J61: 29242.94516 | K61: 120626.7188 | L61: 242.4251067 | M61: 0.001221266658 | O61: 0.01171806866 | P61: 0.01295364621 | Q61: 0.07590918927 | R61: 0.07459682 | S61: 31831.43612 | T61: 0 | U61: 0.07590918927 | V61: 0.07459682 | W61: 31831.43612 | X61: 31831 | Y61: 263.8801779 | Z61: 0.07589444822 | AA61: 0.07458209693 | AC61: 31624.4276 | AD61: 262.167685 | AE61: 0.006532051713 | AF61: 0.006532051713
A62: 03N | B62: NHS Sheffield CCG | E62: 197328.0771 | F62: 601173.1586 | G62: 328.2383358 | H62: 0.05261373149 | J62: 187398.2659 | K62: 604647.125 | L62: 309.9299709 | M62: 0.005778645272 | O62: 0.05298774328 | P62: 0.05907258592 | Q62: 0.08080653383 | R62: 0.07459682 | S62: 213273.475 | T62: 0 | U62: 0.08080653383 | V62: 0.07459682 | W62: 213273.475 | X62: 213273 | Y62: 352.7230862 | Z62: 0.08080412666 | AA62: 0.07459442666 | AC62: 202659.5769 | AD62: 335.1699999 | AE62: 0.05237069629 | AF62: 0.05237069629
A63: 03Q | B63: NHS Vale of York CCG | E63: 78854.45952 | F63: 357151.7429 | G63: 220.7869934 | H63: -0.02605116849 | J63: 81048.18556 | K63: 358916.4375 | L63: 225.813524 | M63: 0.004941021891 | O63: -0.02706693583 | P63: -0.02225965226 | Q63: 0.07990642641 | R63: 0.07459682 | S63: 85155.43759 | T63: 0 | U63: 0.07990642641 | V63: 0.07459682 | W63: 85155.43759 | X63: 85155 | Y63: 237.2557819 | Z63: 0.07990087711 | AA63: 0.07459129799 | AC63: 87648.57515 | AD63: 244.2032908 | AE63: -0.02844969414 | AF63: -0.02844969414
A64: 03R | B64: NHS Wakefield CCG | E64: 90615.80945 | F64: 373747.3367 | G64: 242.452054 | H64: -0.03356269502 | J64: 93815.83525 | K64: 375745.5312 | L64: 249.6791777 | M64: 0.005346378112 | O64: -0.03410965531 | P64: -0.02894564032 | Q64: 0.08034202092 | R64: 0.07459682 | S64: 97896.06671 | T64: 0 | U64: 0.08034202092 | V64: 0.07459682 | W64: 97896.06671 | X64: 97896 | Y64: 260.5380287 | Z64: 0.08034128474 | AA64: 0.07459608774 | AC64: 101455.9947 | AD64: 270.0125119 | AE64: -0.03508905257 | AF64: -0.03508905257
A65: 03T | B65: NHS Lincolnshire East CCG | E65: 59402.32598 | F65: 250451.3348 | G65: 237.1811115 | H65: -0.09952104645 | J65: 65984.28652 | K65: 251486.8125 | L65: 262.3767261 | M65: 0.004134446565 | O65: -0.09975042377 | P65: -0.09602839 | Q65: 0.07903968313 | R65: 0.07459682 | S65: 64097.467 | T65: 0 | U65: 0.07903968313 | V65: 0.07459682 | W65: 64097.467 | X65: 64097 | Y65: 254.8722112 | Z65: 0.07903182149 | AA65: 0.07458899073 | AC65: 71357.90464 | AD65: 283.7441213 | AE65: -0.1017533331 | AF65: -0.1017533331
A66: 03V | B66: NHS Corby CCG | E66: 16895.91479 | F66: 78638.08618 | G66: 214.8566377 | H66: -0.06003853174 | J66: 18078.05177 | K66: 79913.375 | L66: 226.2206016 | M66: 0.01621719043 | O66: -0.0653907286 | P66: -0.05023399208 | Q66: 0.09202376126 | R66: 0.07459682 | S66: 18450.74042 | T66: 0 | U66: 0.09202376126 | V66: 0.07459682 | W66: 18450.74042 | X66: 18451 | Y66: 230.8875079 | Z66: 0.09203912485 | AA66: 0.07461193841 | AC66: 19550.28935 | AD66: 244.6435199 | AE66: -0.05622880201 | AF66: -0.05622880201
A67: 03W | B67: NHS East Leicestershire and Rutland CCG | E67: 81181.23663 | F67: 331537.5828 | G67: 244.8628476 | H67: -0.01720843169 | J67: 82725.00223 | K67: 333199 | L67: 248.2750615 | M67: 0.005011248335 | O67: -0.01866141507 | P67: -0.01374368372 | Q67: 0.07998189153 | R67: 0.07459682 | S67: 87674.26549 | T67: 0 | U67: 0.07998189153 | V67: 0.07459682 | W67: 87674.26549 | X67: 87674 | Y67: 263.1280406 | Z67: 0.07997862121 | AA67: 0.07459356599 | AC67: 89461.94816 | AD67: 268.4940476 | AE67: -0.01998557153 | AF67: -0.01998557153
A68: 04C | B68: NHS Leicester City CCG | E68: 102966.3221 | F68: 406178.9177 | G68: 253.4999174 | H68: -0.07563944489 | J68: 111508.3977 | K68: 409607.5625 | L68: 272.2322729 | M68: 0.008441217998 | O68: -0.07660477438 | P68: -0.06881019398 | Q68: 0.08366772602 | R68: 0.07459682 | S68: 111581.2801 | T68: 0 | U68: 0.08366772602 | V68: 0.07459682 | W68: 111581.2801 | X68: 111581 | Y68: 272.4095212 | Z68: 0.08366500549 | AA68: 0.07459412224 | AC68: 120589.4014 | AD68: 294.4022827 | AE68: -0.07470309405 | AF68: -0.07470309405
A69: 04D | B69: NHS Lincolnshire West CCG | E69: 63962.98106 | F69: 237516.3375 | G69: 269.29929 | H69: -0.04006519229 | J69: 66694.98438 | K69: 238697.6562 | L69: 279.4119784 | M69: 0.004973631447 | O69: -0.04096265029 | P69: -0.03619275196 | Q69: 0.07994146854 | R69: 0.07459682 | S69: 69076.2757 | T69: 0 | U69: 0.07994146854 | V69: 0.07459682 | W69: 69076.2757 | X69: 69076 | Y69: 289.3870057 | Z69: 0.07993715824 | AA69: 0.07459253104 | AC69: 72126.4802 | AD69: 302.1666879 | AE69: -0.04229348493 | AF69: -0.04229348493
A70: 04E | B70: NHS Mansfield and Ashfield CCG | E70: 49813.14355 | F70: 193960.417 | G70: 256.821182 | H70: -0.0596731259 | J70: 53069.83385 | K70: 195172.625 | L70: 271.912282 | M70: 0.006249770064 | O70: -0.06136612945 | P70: -0.05549988359 | Q70: 0.08131280304 | R70: 0.07459682 | S70: 53863.58988 | T70: 0 | U70: 0.08131280304 | V70: 0.07459682 | W70: 53863.58988 | X70: 53864 | Y70: 275.9813268 | Z70: 0.08132103611 | AA70: 0.07460500194 | AC70: 57391.72677 | AD70: 294.0562324 | AE70: -0.06146751398 | AF70: -0.06146751398
A71: 04F | B71: NHS Milton Keynes CCG | E71: 70535.31366 | F71: 294316.6709 | G71: 239.6578945 | H71: -0.02846902593 | J71: 72871.80393 | K71: 297252.1875 | L71: 245.1514471 | M71: 0.009974007224 | O71: -0.03206302226 | P71: -0.02240881185 | Q71: 0.08531485645 | R71: 0.07459682 | S71: 76553.02382 | T71: 0 | U71: 0.08531485645 | V71: 0.07459682 | W71: 76553.02382 | X71: 76553 | Y71: 257.5355312 | Z71: 0.08531451881 | AA71: 0.0745964857 | AC71: 78806.32662 | AD71: 265.1160528 | AE71: -0.02859321986 | AF71: -0.02859321986
A72: 04G | B72: NHS Nene CCG | E72: 172296.866 | F72: 685994.9172 | G72: 251.1634732 | H72: -0.02814527058 | J72: 177701.5971 | K72: 691032.875 | L72: 257.153608 | M72: 0.007344016168 | O72: -0.03041464528 | P72: -0.02329399475 | Q72: 0.08248867642 | R72: 0.07459682 | S72: 186509.4065 | T72: 0 | U72: 0.08248867642 | V72: 0.07459682 | W72: 186509.4065 | X72: 186509 | Y72: 269.8988814 | Z72: 0.08248631727 | AA72: 0.07459447805 | AC72: 192173.2323 | AD72: 278.0956438 | AE72: -0.02947461616 | AF72: -0.02947461616
A73: 04H | B73: NHS Newark & Sherwood CCG | E73: 30385.66266 | F73: 135028.0862 | G73: 225.0321657 | H73: -0.03883724404 | J73: 31703.71088 | K73: 136000.9688 | L73: 233.1138607 | M73: 0.007205038565 | O73: -0.04157394151 | P73: -0.0346684448 | Q73: 0.08233933153 | R73: 0.07459682 | S73: 32887.59781 | T73: 0 | U73: 0.08233933153 | V73: =MAX(R73,NewMinGrowthPerHead(P73,$P$2,$L$1,$U$1,$T$2,AD73,G73,T73, $P$1)) -> 0.07459682 | W73: 32887.59781 | X73: =IF(ROUND(W73,0)/E73>$X$1,ROUND(W73,0),ROUNDUP(W73,0)) -> 32888 | Y73: =X73/K73*1000 -> 241.8218069 | Z73: =X73/E73-1 -> 0.08235256775 | AA73: =Y73/G73-1 -> 0.07460996153 | AC73: 34285.59278 | AD73: =AC73/K73*1000 -> 252.0981512 | AE73: -0.04076326726 | AF73: -0.04076326726
A74: 04K | B74: NHS Nottingham City CCG | E74: 121528.2905 | F74: 379334.0833 | G74: =E74/F74*1000 -> 320.3727158 | H74: 0.008388601979 | J74: 120558.4461 | K74: 381504.375 | L74: =J74/K74*1000 -> 316.0080303 | M74: =K74/F74-1 -> 0.005721319974 | O74: =E74/J74-1 -> 0.008044599216 | P74: =G74/L74-1 -> 0.01381194492 | Q74: =(1+M74)*(1+R74)-1 -> 0.08074493225 | R74: =MinGrowthPerHead(P74,0,1,$Q$1,$Q$2,$R$1,$R$2) -> 0.07459682 | S74: =(1+IF($S$2=1,Q74,0))*$E74 -> 131341.084 | T74: =MinMaxRamp(P74,0,1,$P$2,$T$2) -> 0 | U74: =(1+M74)*(1+V74)-1 -> 0.08074493225 | V74: 0.07459682 | W74: =(1+IF($S$2=1,U74,0))*$E74 -> 131341.084 | X74: 131341 | Y74: 344.2712813 | Z74: 0.08074424074 | AA74: 0.07459613242 | AC74: 130376.4662 | AD74: 341.7430433 | AE74: =X74/AC74-1 -> 0.007398067066 | AF74: 0.007398067066
A75: 04L | B75: NHS Nottingham North and East CCG | E75: 42310.93282 | F75: 152471.7529 | G75: 277.5001402 | H75: 0.04929987501 | J75: 40377.55449 | K75: 153479.5469 | L75: 263.0810119 | M75: 0.006609709182 | O75: 0.04788250171 | P75: 0.0548087003 | Q75: 0.08169959247 | R75: 0.07459682 | S75: 45767.71878 | T75: 0 | U75: 0.08169959247 | V75: 0.07459682 | W75: 45767.71878 | X75: 45768 | Y75: 298.2026005 | Z75: 0.08170623891 | AA75: 0.0746034228 | AC75: 43665.81553 | AD75: 284.5057626 | AE75: 0.04814256747 | AF75: 0.04814256747
A76: 04M | B76: NHS Nottingham West CCG | E76: 26442.69873 | F76: 94123.33276 | G76: 280.9367024 | H76: 0.01484598025 | J76: 26060.92796 | K76: 94623.32812 | L76: 275.4175791 | M76: 0.005312129805 | O76: 0.01464916229 | P76: 0.02003911034 | Q76: 0.0803052178 | R76: 0.07459682 | S76: 28566.18541 | T76: 0 | U76: 0.0803052178 | V76: 0.07459682 | W76: 28566.18541 | X76: 28566 | Y76: 301.8917276 | Z76: 0.08029820621 | AA76: 0.07458984546 | AC76: 28183.27378 | AD76: 297.8469933 | AE76: 0.01357990634 | AF76: 0.01357990634
A77: 04N | B77: NHS Rushcliffe CCG | E77: 32540.9451 | F77: 127118.4194 | G77: 255.9892205 | H77: 0.02971397335 | J77: 31677.50351 | K77: 128001.9531 | L77: 247.4767199 | M77: 0.006950477321 | O77: 0.02725724875 | P77: 0.03439717696 | Q77: 0.08206578083 | R77: 0.07459682 | S77: 35211.44317 | T77: 0 | U77: 0.08206578083 | V77: 0.07459682 | W77: 35211.44317 | X77: 35211 | Y77: 275.0817401 | Z77: 0.08205216206 | AA77: 0.07458329524 | AC77: 34257.25114 | AD77: 267.6306908 | AE77: 0.02784078791 | AF77: 0.02784078791
A78: 04Q | B78: NHS South West Lincolnshire CCG | E78: 30663.45264 | F78: 133650.3335 | G78: 229.4304237 | H78: -0.04832792509 | J78: 32321.67008 | K78: 134597.2812 | L78: 240.1361289 | M78: 0.007085262933 | O78: -0.05130358167 | P78: -0.04458181811 | Q78: 0.08221062102 | R78: 0.07459682 | S78: 33184.31412 | T78: 0 | U78: 0.08221062102 | V78: 0.07459682 | W78: 33184.31412 | X78: 33184 | Y78: 246.5428699 | Z78: 0.08220037674 | AA78: 0.0745866478 | AC78: 34953.87725 | AD78: 259.6922978 | AE78: -0.0506346474 | AF78: -0.0506346474
A79: 04V | B79: NHS West Leicestershire CCG | E79: 91826.02776 | F79: 392938.0018 | G79: 233.6908808 | H79: -0.04235542126 | J79: 96130.12374 | K79: 396364.25 | L79: 242.5297532 | M79: 0.00871956429 | O79: -0.04477364452 | P79: -0.03644448691 | Q79: 0.08396683606 | R79: 0.07459682 | S79: 99536.36877 | T79: 0 | U79: 0.08396683606 | V79: 0.07459682 | W79: 99536.36877 | X79: 99536 | Y79: 251.122547 | Z79: 0.08396282006 | AA79: 0.07459283871 | AC79: 103958.7539 | AD79: 262.2808538 | AE79: -0.04254335229 | AF79: -0.04254335229
A80: 04Y | B80: NHS Cannock Chase CCG | E80: 34968.93648 | F80: 133195.4146 | G80: 262.5385911 | H80: 0.02270328178 | J80: 34224.95112 | K80: 133391.125 | L80: 256.5759238 | M80: 0.00146934825 | O80: 0.0217380984 | P80: 0.02323938748 | Q80: 0.07617577696 | R80: 0.07459682 | S80: 37632.72238 | T80: 0 | U80: 0.07617577696 | V80: 0.07459682 | W80: 37632.72238 | X80: 37633 | Y80: 282.1252164 | Z80: 0.07618371587 | AA80: 0.07460474726 | AC80: 37012.1574 | AD80: 277.4709142 | AE80: 0.01677401817 | AF80: 0.01677401817
A81: 05A | B81: NHS Coventry and Rugby CCG | E81: 142887.2237 | F81: 514597.9202 | G81: 277.6677054 | H81: 0.02037796651 | J81: 140202.5426 | K81: 521674.4062 | L81: 268.7548803 | M81: 0.01375148586 | O81: 0.01914859105 | P81: 0.03316339849 | Q81: 0.08937412297 | R81: 0.07459682 | S81: 155657.644 | T81: 0 | U81: 0.08937412297 | V81: 0.07459682 | W81: 155657.644 | X81: 155658 | Y81: 298.3815156 | Z81: 0.08937661414 | AA81: 0.07459927737 | AC81: 151620.3356 | AD81: 290.6416986 | AE81: 0.02663009829 | AF81: 0.02663009829
A82: 05C | B82: NHS Dudley CCG | E82: 80227.72023 | F82: 319480.2455 | G82: 251.1195023 | H82: -0.04524586065 | J82: 83888.91051 | K82: 320331.8125 | L82: 261.881297 | M82: 0.002665476377 | O82: -0.0436433166 | P82: -0.04109417045 | Q82: 0.07746113244 | R82: 0.07459682 | S82: 86442.25029 | T82: 0 | U82: 0.07746113244 | V82: 0.07459682 | W82: 86442.25029 | X82: 86442 | Y82: 269.8514372 | Z82: 0.07745801264 | AA82: 0.0745937085 | AC82: 90720.64263 | AD82: 283.2083455 | AE82: -0.04716283423 | AF82: -0.04716283423
A83: 05D | B83: NHS East Staffordshire CCG | E83: 29738.32705 | F83: 142069.916 | G83: 209.3217754 | H83: -0.06518743658 | J83: 31862.99815 | K83: 142623.875 | L83: 223.4057808 | M83: 0.003899199774 | O83: -0.06668145566 | P83: -0.0630422602 | Q83: 0.07878688768 | R83: 0.07459682 | S83: 32081.31729 | T83: 0 | U83: 0.07878688768 | V83: 0.07459682 | W83: 32081.31729 | X83: 32081 | Y83: 224.9342896 | Z83: 0.0787762184 | AA83: 0.07458619216 | AC83: 34457.85207 | AD83: 241.5994662 | AE83: -0.06897853243 | AF83: -0.06897853243
A84: 05F | B84: NHS Herefordshire CCG | E84: 45286.99386 | F84: 187473.5002 | G84: 241.5647747 | H84: -0.02412590554 | J84: 46483.95493 | K84: 188340.4375 | L84: 246.8081499 | M84: 0.004624318929 | O84: -0.02574998355 | P84: -0.02124474076 | Q84: 0.07956609842 | R84: 0.07459682 | S84: 48890.30327 | T84: 0 | U84: 0.07956609842 | V84: 0.07459682 | W84: 48890.30327 | X84: 48890 | Y84: 259.5831286 | Z84: 0.07955940184 | AA84: 0.07459015425 | AC84: 50269.50806 | AD84: 266.9076738 | AE84: -0.02744224315 | AF84: -0.02744224315
A85: 05G | B85: NHS North Staffordshire CCG | E85: 69145.30381 | F85: 218066.2522 | G85: 317.083928 | H85: 0.05372829332 | J85: 65596.73819 | K85: 218799.0938 | L85: 299.8035187 | M85: 0.00336063717 | O85: 0.05409667799 | P85: 0.05763911447 | Q85: 0.07820815002 | R85: 0.07459682 | S85: 74553.03011 | T85: 0 | U85: 0.07820815002 | V85: 0.07459682 | W85: 74553.03011 | X85: 74553 | Y85: 340.7372431 | Z85: 0.07820771461 | AA85: 0.07459638605 | AC85: 70938.79521 | AD85: 324.2188713 | AE85: 0.05094821223 | AF85: 0.05094821223
A86: 05H | B86: NHS Warwickshire North CCG | E86: 52723.46633 | F86: 191658.7515 | G86: 275.0903151 | H86: -0.01410680253 | J86: 53459.42733 | K86: 192349.4375 | L86: 277.9286908 | M86: 0.003603728136 | O86: -0.01376672068 | P86: -0.01021260406 | Q86: 0.0784693748 | R86: 0.07459682 | S86: 56860.64377 | T86: 0 | U86: 0.0784693748 | V86: 0.07459682 | W86: 56860.64377 | X86: 56861 | Y86: 295.6130298 | Z86: 0.07847613136 | AA86: 0.07460355231 | AC86: 57813.04791 | AD86: 300.5626045 | AE86: -0.01646769962 | AF86: -0.01646769962
A87: 05J | B87: NHS Redditch and Bromsgrove CCG | E87: 46547.75814 | F87: 177842.7515 | G87: 261.7354812 | H87: 0.01913961796 | J87: 45731.08794 | K87: 178487.7656 | L87: 256.214132 | M87: 0.00362687911 | O87: 0.0178580969 | P87: 0.02154974516 | Q87: 0.07849425276 | R87: 0.07459682 | S87: 50201.48963 | T87: 0 | U87: 0.07849425276 | V87: 0.07459682 | W87: 50201.48963 | X87: 50201 | Y87: 281.2573726 | Z87: 0.0784837339 | AA87: 0.07458633915 | AC87: 49455.3292 | AD87: 277.0796588 | AE87: 0.01507766321 | AF87: 0.01507766321
A88: 05L | B88: NHS Sandwell and West Birmingham CCG | E88: 162636.9867 | F88: 571256.6579 | G88: 284.7003784 | H88: -0.03076276786 | J88: 167977.5142 | K88: 575628.9375 | L88: 291.8156181 | M88: 0.007653791937 | O88: -0.03179310947 | P88: -0.02438265537 | Q88: 0.08282156048 | R88: 0.07459682 | S88: 176106.8357 | T88: 0 | U88: 0.08282156048 | V88: 0.07459682 | W88: 176106.8357 | X88: 176107 | Y88: 305.9384067 | Z88: 0.08282257056 | AA88: 0.07459782241 | AC88: 181657.241 | AD88: 315.5804533 | AE88: -0.03055337059 | AF88: -0.03055337059
A89: 05N | B89: NHS Shropshire CCG | E89: 75248.20651 | F89: 310001.5817 | G89: 242.7349116 | H89: -0.01243985245 | J89: 76422.1422 | K89: 311223.875 | L89: 245.5535977 | M89: 0.003942861609 | O89: -0.01536119835 | P89: -0.01147890382 | Q89: 0.07883380655 | R89: 0.07459682 | S89: 81180.30907 | T89: 0 | U89: 0.07883380655 | V89: 0.07459682 | W89: 81180.30907 | X89: 81180 | Y89: 260.841171 | Z89: 0.07882969924 | AA89: 0.07459272882 | AC89: 82645.79679 | AD89: 265.5509536 | AE89: -0.01773589036 | AF89: -0.01773589036
A90: 05Q | B90: NHS South East Staffordshire and Seisdon Peninsula CCG | E90: 53929.64841 | F90: 217891.4995 | G90: 247.5068947 | H90: 0.01686520124 | J90: 53057.95093 | K90: 218123.3281 | L90: 243.2474847 | M90: 0.00106396376 | O90: 0.01642915844 | P90: 0.01751060223 | Q90: 0.07574015207 | R90: 0.07459682 | S90: 58014.28818 | T90: 0 | U90: 0.07574015207 | V90: 0.07459682 | W90: 58014.28818 | X90: 58014 | Y90: 265.9688008 | Z90: 0.07573480836 | AA90: 0.07459148196 | AC90: 57378.87613 | AD90: 263.0570358 | AE90: 0.01106894928 | AF90: 0.01106894928
A91: 05R | B91: NHS South Warwickshire CCG | E91: 73839.94896 | F91: 287548.6646 | G91: 256.7911385 | H91: 0.07271392079 | J91: 68828.65079 | K91: 288329.125 | L91: 238.7155678 | M91: 0.002714185403 | O91: 0.07280831616 | P91: 0.07572011683 | Q91: 0.077513475 | R91: 0.07459682 | S91: 79563.54 | T91: 0 | U91: 0.077513475 | V91: 0.07459682 | W91: 79563.54 | X91: 79564 | Y91: 275.9485362 | Z91: 0.07751970473 | AA91: 0.07460303286 | AC91: 74433.90781 | AD91: 258.1560493 | AE91: 0.0689214411 | AF91: 0.0689214411
A92: 05T | B92: NHS South Worcestershire CCG | E92: 78487.1757 | F92: 311742.3354 | G92: 251.7693838 | H92: -0.01202449375 | J92: 79683.1781 | K92: 313593.1875 | L92: 254.0972868 | M92: 0.005937121271 | O92: -0.01500947162 | P92: -0.009161463407 | Q92: 0.08097683164 | R92: 0.07459682 | S92: 84842.81851 | T92: 0 | U92: 0.08097683164 | V92: 0.07459682 | W92: 84842.81851 | X92: 84843 | Y92: 270.5511579 | Z92: 0.08097914402 | AA92: 0.07459911874 | AC92: 86172.40443 | AD92: 274.7904223 | AE92: -0.01542726394 | AF92: -0.01542726394
A93: 05V | B93: NHS Stafford and Surrounds CCG | E93: 43946.12267 | F93: 149033.4121 | G93: 294.8742973 | H93: 0.0765143822 | J93: 40834.56903 | K93: 149500.5 | L93: 273.1400164 | M93: 0.003134115257 | O93: 0.07619900783 | P93: 0.07957193955 | Q93: 0.07796473029 | R93: 0.07459682 | S93: 47372.37027 | T93: 0 | U93: 0.07796473029 | V93: 0.07459682 | W93: 47372.37027 | X93: 47372 | Y93: 316.8685055 | Z93: 0.07795630471 | AA93: 0.07458842075 | AC93: 44160.04834 | AD93: 295.3839508 | AE93: 0.07273433295 | AF93: 0.07273433295
A94: 05W | B94: NHS Stoke on Trent CCG | E94: 93987.21715 | F94: 291168.8324 | G94: 322.7928497 | H94: 0.01160282265 | J94: 92874.91218 | K94: 292240 | L94: 317.8035593 | M94: 0.003678853927 | O94: 0.01197637714 | P94: 0.0156992904 | Q94: 0.07855010473 | R94: 0.07459682 | S94: 101369.9229 | T94: 0 | U94: 0.07855010473 | V94: 0.07459682 | W94: 101369.9229 | X94: 101370 | Y94: 346.8724336 | Z94: 0.07855092502 | AA94: 0.07459763728 | AC94: 100438.4449 | AD94: 343.6847964 | AE94: 0.009274885646 | AF94: 0.009274885646
A95: 05X | B95: NHS Telford and Wrekin CCG | E95: 48758.10113 | F95: 186593.4155 | G95: 261.3066543 | H95: 0.01817249438 | J95: 48035.76501 | K95: 187726.6094 | L95: 255.8814926 | M95: 0.006073064499 | O95: 0.01503746481 | P95: 0.0212018528 | Q95: 0.0811229158 | R95: 0.07459682 | S95: 52713.50047 | T95: 0 | U95: 0.0811229158 | V95: 0.07459682 | W95: 52713.50047 | X95: 52714 | Y95: 280.8019608 | Z95: 0.08113316096 | AA95: 0.07460700332 | AC95: 51947.69421 | AD95: 276.71993 | AE95: 0.01475148811 | AF95: 0.01475148811
A96: 05Y | B96: NHS Walsall CCG | E96: 73642.97749 | F96: 285891.3344 | G96: 257.5907999 | H96: -0.04470529928 | J96: 77062.50034 | K96: 287643.6875 | L96: 267.9095829 | M96: 0.006129437793 | O96: -0.04437337011 | P96: -0.03851591613 | Q96: 0.08118349436 | R96: 0.07459682 | S96: 79621.57174 | T96: 0 | U96: 0.08118349436 | V96: 0.07459682 | W96: 79621.57174 | X96: 79622 | Y96: 276.8077433 | Z96: 0.08118930973 | AA96: 0.07460259995 | AC96: 83338.30432 | AD96: 289.7275621 | AE96: -0.04459299181 | AF96: -0.04459299181
A97: 06A | B97: NHS Wolverhampton CCG | E97: 86606.0003 | F97: 280643.164 | G97: 308.5982893 | H97: 0.03843771535 | J97: 83368.50191 | K97: 282238.0625 | L97: 295.3836246 | M97: 0.005683012106 | O97: 0.03883359211 | P97: 0.04473729599 | Q97: 0.08070376674 | R97: 0.07459682 | S97: 93595.43075 | T97: 0 | U97: 0.08070376674 | V97: 0.07459682 | W97: 93595.43075 | X97: 93595 | Y97: 331.6172141 | Z97: 0.08069879307 | AA97: 0.07459187444 | AC97: 90157.85307 | AD97: 319.4390305 | AE97: 0.03812365553 | AF97: 0.03812365553
A98: 06D | B98: NHS Wyre Forest CCG | E98: 27461.21546 | F98: 116333.3347 | G98: 236.0562905 | H98: -0.06500906531 | J98: 29394.312 | K98: 116725.7969 | L98: 251.8236138 | M98: 0.003373600174 | O98: -0.06576430626 | P98: -0.06261256856 | Q98: 0.07822208002 | R98: 0.07459682 | S98: 29609.28885 | T98: 0 | U98: 0.07822208002 | V98: 0.07459682 | W98: 29609.28885 | X98: 29609 | Y98: 253.6628645 | Z98: 0.07821156148 | AA98: 0.07458633683 | AC98: 31788.12143 | AD98: 272.3315863 | AE98: -0.06855143778 | AF98: -0.06855143778
A99: 06F | B99: NHS Bedfordshire CCG | E99: 118910.9026 | F99: 480292.0828 | G99: 247.580393 | H99: -0.002202235713 | J99: 119428.2464 | K99: 486320.9688 | L99: 245.5749476 | M99: 0.01255254084 | O99: -0.004331837725 | P99: 0.00816632755 | Q99: 0.08808574047 | R99: 0.07459682 | S99: 129385.2575 | T99: 0 | U99: 0.08808574047 | V99: 0.07459682 | W99: 129385.2575 | X99: 129385 | Y99: 266.0485735 | Z99: 0.08808357476 | AA99: 0.07459468113 | AC99: 129154.2255 | AD99: 265.5740422 | AE99: 0.00178681372 | AF99: 0.00178681372
A100: 06H | B100: NHS Cambridgeshire and Peterborough CCG | E100: 231455.2549 | F100: 967901.8398 | G100: 239.1309174 | H100: -0.01112884366 | J100: 234429.4108 | K100: 973472.4375 | L100: 240.8177179 | M100: 0.005755333329 | O100: -0.01268678666 | P100: -0.007004470021 | Q100: 0.08078148289 | R100: 0.07459682 | S100: 250152.5536 | T100: 0 | U100: 0.08078148289 | V100: 0.07459682 | W100: 250152.5536 | X100: 250153 | Y100: 256.969782 | Z100: 0.08078341151 | AA100: 0.07459873758 | AC100: 253520.8369 | AD100: 260.4293939 | AE100: -0.01328426079 | AF100: -0.01328426079
A101: 06K | B101: NHS East and North Hertfordshire CCG | E101: 151382.3278 | F101: 598378.249 | G101: 252.9876848 | H101: 0.01273251263 | J101: 149141.5098 | K101: 603318.875 | L101: 247.2017966 | M101: 0.008256693758 | O101: 0.01502477784 | P101: 0.02340552658 | Q101: 0.08346943686 | R101: 0.07459682 | S101: 164018.1255 | T101: 0 | U101: 0.08346943686 | V101: 0.07459682 | W101: 164018.1255 | X101: 164018 | Y101: 271.8595535 | Z101: 0.08346860783 | AA101: 0.07459599777 | AC101: 161287.273 | AD101: 267.3333782 | AE101: 0.01693082754 | AF101: 0.01693082754
A102: 06L | B102: NHS Ipswich and East Suffolk CCG | E102: 97180.31134 | F102: 407773.1641 | G102: 238.3195362 | H102: 0.00317167801 | J102: 97032.6021 | K102: 409731.9062 | L102: 236.8197366 | M102: 0.004803509304 | O102: 0.00152226407 | P102: 0.006333085584 | Q102: 0.07975865582 | R102: 0.07459682 | S102: 104931.2823 | T102: 0 | U102: 0.07975865582 | V102: 0.07459682 | W102: 104931.2823 | X102: 104931 | Y102: 256.0967267 | Z102: 0.07975575045 | AA102: 0.07459392852 | AC102: 104934.7281 | AD102: 256.1058256 | AE102: -3.552813485e-05 | AF102: -3.552813485e-05
A103: 06M | B103: NHS Great Yarmouth and Waveney CCG | E103: 58665.60135 | F103: 239834.4198 | G103: 244.6087655 | H103: -0.06019963082 | J103: 62454.68625 | K103: 240583.375 | L103: 259.5968497 | M103: 0.003122801318 | O103: -0.06066934495 | P103: -0.05773600194 | Q103: 0.07795257237 | R103: 0.07459682 | S103: 63238.73588 | T103: 0 | U103: 0.07795257237 | V103: 0.07459682 | W103: 63238.73588 | X103: 63239 | Y103: 262.8568994 | Z103: 0.07795707445 | AA103: 0.07460130807 | AC103: 67540.86133 | AD103: 280.7378578 | AE103: -0.06369272237 | AF103: -0.06369272237
A104: 06N | B104: NHS Herts Valleys CCG | E104: 176181.4147 | F104: 646355.7542 | G104: 272.5765394 | H104: 0.00496870286 | J104: 174741.6371 | K104: 651355.75 | L104: 268.2737307 | M104: 0.007735671503 | O104: 0.00823946502 | P104: 0.01603887432 | Q104: 0.082909548 | R104: 0.07459682 | S104: 190788.5362 | T104: 0 | U104: 0.082909548 | V104: 0.07459682 | W104: 190788.5362 | X104: 190789 | Y104: 292.9105946 | Z104: 0.08291218073 | AA104: 0.07459943252 | AC104: 188972.2195 | AD104: 290.1213653 | AE104: 0.009614008333 | AF104: 0.009614008333
A105: 06P | B105: NHS Luton CCG | E105: 62099.56214 | F105: 234034.252 | G105: 265.3439042 | H105: -0.05060543421 | J105: 65262.81445 | K105: 236174.5938 | L105: 276.3329172 | M105: 0.009145421147 | O105: -0.04846944371 | P105: -0.03976729604 | Q105: 0.08442446048 | R105: 0.07459682 | S105: 67342.28417 | T105: 0 | U105: 0.08442446048 | V105: =MAX(R105,NewMinGrowthPerHead(P105,$P$2,$L$1,$U$1,$T$2,AD105,G105,T105, $P$1)) -> 0.07459682 | W105: 67342.28417 | X105: =IF(ROUND(W105,0)/E105>$X$1,ROUND(W105,0),ROUNDUP(W105,0)) -> 67342 | Y105: =X105/K105*1000 -> 285.1365125 | Z105: =X105/E105-1 -> 0.08441988445 | AA105: =Y105/G105-1 -> 0.07459228544 | AC105: 70577.67744 | AD105: =AC105/K105*1000 -> 298.8368745 | AE105: -0.04584562082 | AF105: -0.04584562082
A106: 06Q | B106: NHS Mid Essex CCG | E106: 97118.47136 | F106: 391510.002 | G106: 248.0612778 | H106: -0.008534431076 | J106: 97814.68173 | K106: 393605.25 | L106: 248.5095962 | M106: 0.005351710139 | O106: -0.007117646979 | P106: -0.001804028424 | Q106: 0.0803477507 | R106: 0.07459682 | S106: 104921.7221 | T106: 0 | U106: 0.0803477507 | V106: 0.07459682 | W106: 104921.7221 | X106: 104922 | Y106: 266.5665664 | Z106: 0.08035061231 | AA106: 0.07459966638 | AC106: 105780.4987 | AD106: 268.7476822 | AE106: -0.008115849933 | AF106: -0.008115849933
A107: 06T | B107: NHS North East Essex CCG | E107: 89812.51135 | F107: 351813.5821 | G107: 255.2843776 | H107: -0.02515243935 | J107: 92193.55592 | K107: 355431.3125 | L107: 259.3850139 | M107: 0.01028308903 | O107: -0.0258265835 | P107: -0.01580907153 | Q107: 0.08564699477 | R107: 0.07459682 | S107: 97504.68304 | T107: 0 | U107: 0.08564699477 | V107: 0.07459682 | W107: 97504.68304 | X107: 97505 | Y107: 274.3286722 | Z107: 0.0856505239 | AA107: 0.07460031321 | AC107: 99701.60046 | AD107: 280.5087705 | AE107: -0.02203174728 | AF107: -0.02203174728
A108: 06V | B108: NHS North Norfolk CCG | E108: 46678.48818 | F108: 173764.1685 | G108: 268.6312638 | H108: -0.01787689131 | J108: 47590.56412 | K108: 174474.5469 | L108: 272.7650822 | M108: 0.00408817551 | O108: -0.01916505843 | P108: -0.01515523304 | Q108: 0.0789899604 | R108: 0.07459682 | S108: 50365.62011 | T108: 0 | U108: 0.0789899604 | V108: 0.07459682 | W108: 50365.62011 | X108: 50366 | Y108: 288.6724792 | Z108: 0.07899809888 | AA108: 0.07460492535 | AC108: 51466.23712 | AD108: 294.9784828 | AE108: -0.02137784259 | AF108: -0.02137784259
A109: 06W | B109: NHS Norwich CCG | E109: 53570.76962 | F109: 235861.9206 | G109: 227.1276749 | H109: -0.04131607988 | J109: 55901.68743 | K109: 237093.5156 | L109: 235.779065 | M109: 0.005221678224 | O109: -0.0416967343 | P109: -0.03669278301 | Q109: 0.08020801882 | R109: 0.07459682 | S109: 57867.57492 | T109: 0 | U109: 0.08020801882 | V109: 0.07459682 | W109: 57867.57492 | X109: 57868 | Y109: 244.0724701 | Z109: 0.08021595374 | AA109: 0.07460471371 | AC109: 60454.2004 | AD109: 254.980404 | AE109: -0.04277949896 | AF109: -0.04277949896
A110: 06Y | B110: NHS South Norfolk CCG | E110: 54778.17426 | F110: 228211.083 | G110: 240.0329271 | H110: -0.01424857248 | J110: 55782.29566 | K110: 230298.2812 | L110: 242.2175943 | M110: 0.009145910946 | O110: -0.01800071846 | P110: -0.009019440481 | Q110: 0.08442498682 | R110: 0.07459682 | S110: 59402.8209 | T110: 0 | U110: 0.08442498682 | V110: 0.07459682 | W110: 59402.8209 | X110: 59403 | Y110: 257.9393979 | Z110: 0.08442825634 | AA110: 0.07460005989 | AC110: 60325.08563 | AD110: 261.9432733 | AE110: -0.0152852767 | AF110: -0.0152852767
A111: 07G | B111: NHS Thurrock CCG | E111: 44101.62424 | F111: 176522.333 | G111: 249.8359471 | H111: -0.03110032935 | J111: 45520.38437 | K111: 178554.9375 | L111: 254.937696 | M111: 0.01151471577 | O111: -0.0311675779 | P111: -0.02001174793 | Q111: 0.08697049695 | R111: 0.07459682 | S111: 47937.16442 | T111: 0 | U111: 0.08697049695 | V111: 0.07459682 | W111: 47937.16442 | X111: 47937 | Y111: 268.4719934 | Z111: 0.08696676872 | AA111: 0.07459313421 | AC111: 49227.46639 | AD111: 275.6992726 | AE111: -0.02621435725 | AF111: -0.02621435725
A112: 07H | B112: NHS West Essex CCG | E112: 84541.7968 | F112: 313283.4155 | G112: 269.8572366 | H112: 0.02788142281 | J112: 82084.47215 | K112: 316014.2812 | L112: 259.7492488 | M112: 0.008716917613 | O112: 0.02993653473 | P112: 0.03891440665 | Q112: 0.08396399195 | R112: 0.07459682 | S112: 91640.26355 | T112: 0 | U112: 0.08396399195 | V112: 0.07459682 | W112: 91640.26355 | X112: 91640 | Y112: 289.9868944 | Z112: 0.08396087459 | AA112: 0.07459372958 | AC112: 88769.25469 | AD112: 280.9026679 | AE112: 0.0323394098 | AF112: 0.0323394098
A113: 07J | B113: NHS West Norfolk CCG | E113: 40031.17274 | F113: 175842.082 | G113: 227.6541103 | H113: -0.1355755778 | J113: 46374.54921 | K113: 176762.8125 | L113: 262.3546693 | M113: 0.005236121286 | O113: -0.1367857279 | P113: -0.1322658333 | Q113: 0.08022353928 | R113: 0.07459682 | S113: 43242.6151 | T113: 0 | U113: 0.08022353928 | V113: 0.07459682 | W113: 43242.6151 | X113: 43243 | Y113: 244.6385605 | Z113: 0.08023315436 | AA113: 0.07460638499 | AC113: 50151.19257 | AD113: 283.7202682 | AE113: -0.137747324 | AF113: -0.137747324
A114: 07K | B114: NHS West Suffolk CCG | E114: 62727.62581 | F114: 250879.6626 | G114: 250.0307325 | H114: -0.01536711135 | J114: 63820.59424 | K114: 252258.1562 | L114: 252.9971486 | M114: 0.005494640889 | O114: -0.0171256386 | P114: -0.01172509695 | Q114: 0.08050134363 | R114: 0.07459682 | S114: 67777.28397 | T114: 0 | U114: 0.08050134363 | V114: 0.07459682 | W114: 67777.28397 | X114: 67777 | Y114: 268.6811043 | Z114: 0.08049681664 | AA114: 0.07459231775 | AC114: 69018.00592 | AD114: 273.6006912 | AE114: -0.01798090084 | AF114: -0.01798090084
A115: 07L | B115: NHS Barking and Dagenham CCG | E115: 68089.87428 | F115: 224031.6644 | G115: 303.9296898 | H115: -0.05193066498 | J115: 71927.11229 | K115: 227890.2969 | L115: 315.6216534 | M115: 0.01722360293 | O115: -0.0533489791 | P115: -0.03704423781 | Q115: 0.09310524893 | R115: 0.07459682 | S115: 74429.39897 | T115: 0 | U115: 0.09310524893 | V115: 0.07459682 | W115: 74429.39897 | X115: 74429 | Y115: 326.6001274 | Z115: 0.09309938946 | AA115: 0.07459105974 | AC115: 77784.70133 | AD115: 341.3252008 | AE115: -0.04314089111 | AF115: -0.04314089111
A116: 07M | B116: NHS Barnet CCG | E116: 130845.3127 | F116: 423732.5726 | G116: 308.7921986 | H116: 0.03052230108 | J116: 126871.2924 | K116: 428645.75 | L116: 295.9816875 | M116: 0.01159499577 | O116: 0.03132324288 | P116: 0.04328143152 | Q116: 0.08705676559 | R116: 0.07459682 | S116: 142236.2825 | T116: 0 | U116: 0.08705676559 | V116: 0.07459682 | W116: 142236.2825 | X116: 142236 | Y116: 331.8264558 | Z116: 0.0870546069 | AA116: 0.07459468605 | AC116: 137203.4171 | AD116: 320.0857984 | AE116: 0.03667971972 | AF116: 0.03667971972
A117: 07N | B117: NHS Bexley CCG | E117: 76203.64344 | F117: 241442.5046 | G117: 315.6181782 | H117: 0.04452360668 | J117: 72634.44895 | K117: 243943.6875 | L117: 297.7508854 | M117: 0.01035933116 | O117: 0.04913914198 | P117: 0.06000752178 | Q117: 0.08572892432 | R117: 0.07459682 | S117: 82736.49983 | T117: 0 | U117: 0.08572892432 | V117: 0.07459682 | W117: 82736.49983 | X117: 82736 | Y117: 339.1602416 | Z117: 0.08572236524 | AA117: 0.07459032817 | AC117: 78549.64196 | AD117: 321.999076 | AE117: 0.05329569853 | AF117: 0.05329569853
A118: 07P | B118: NHS Brent CCG | E118: 116190.7487 | F118: 381905.0813 | G118: 304.2398605 | H118: -0.01462896764 | J118: 117720.0152 | K118: 383764.3438 | L118: 306.7507888 | M118: 0.00486838888 | O118: -0.01299070939 | P118: -0.008185564338 | Q118: 0.07982837521 | R118: 0.07459682 | S118: 125466.0673 | T118: 0 | U118: 0.07982837521 | V118: 0.07459682 | W118: 125466.0673 | X118: 125466 | Y118: 326.9350111 | Z118: 0.07982779571 | AA118: 0.07459624331 | AC118: 127306.8795 | AD118: 331.7319121 | AE118: -0.01446017333 | AF118: -0.01446017333
A119: 07Q | B119: NHS Bromley CCG | E119: 113115.8329 | F119: 349360.7507 | G119: 323.7794535 | H119: 0.0649791709 | J119: 105864.2651 | K119: 353043.375 | L119: 299.8619223 | M119: 0.01054103605 | O119: 0.06849873126 | P119: 0.07976181491 | Q119: 0.08592418382 | R119: 0.07459682 | S119: 122835.2186 | T119: 0 | U119: 0.08592418382 | V119: 0.07459682 | W119: 122835.2186 | X119: 122835 | Y119: 347.931752 | Z119: 0.08592225169 | AA119: 0.07459490803 | AC119: 114485.6227 | AD119: 324.2820312 | AE119: 0.07292948293 | AF119: 0.07292948293
A120: 07R | B120: NHS Camden CCG | E120: 98207.74965 | F120: 284025.7501 | G120: 345.7705846 | H120: -0.01356237716 | J120: 99637.8235 | K120: 287746.6562 | L120: 346.2692661 | M120: 0.01310059439 | O120: -0.01435272061 | P120: -0.001440155391 | Q120: 0.08867467707 | R120: 0.07459682 | S120: 106916.2901 | T120: 0 | U120: 0.08867467707 | V120: 0.07459682 | W120: 106916.2901 | X120: 106916 | Y120: 371.5629623 | Z120: 0.08867172273 | AA120: 0.07459390387 | AC120: 107752.1132 | AD120: 374.4686891 | AE120: -0.007759598648 | AF120: -0.007759598648
A121: 07T | B121: NHS City and Hackney CCG | E121: 106301.7146 | F121: 319028.9971 | G121: 333.2039267 | H121: -0.008352504775 | J121: 107230.9521 | K121: 323519.0625 | L121: 331.4517274 | M121: 0.01407416064 | O121: -0.008665758515 | P121: 0.005286438843 | Q121: 0.08972086826 | R121: 0.07459682 | S121: 115839.1967 | T121: 0 | U121: 0.08972086826 | V121: 0.07459682 | W121: 115839.1967 | X121: 115839 | Y121: 358.059272 | Z121: 0.08971901774 | AA121: 0.07459499516 | AC121: 115963.6098 | AD121: 358.4444419 | AE121: -0.001074559606 | AF121: -0.001074559606
A122: 07V | B122: NHS Croydon CCG | E122: 132085.7092 | F122: 412238.4162 | G122: 320.4109662 | H122: -0.0116125058 | J122: 133532.1036 | K122: 415648.125 | L122: 321.2623744 | M122: 0.008271205854 | O122: -0.0108318097 | P122: -0.00265019597 | Q122: 0.08348503151 | R122: 0.07459682 | S122: 143112.8888 | T122: 0 | U122: 0.08348503151 | V122: 0.07459682 | W122: 143112.8888 | X122: 143113 | Y122: 344.3128728 | Z122: 0.08348587321 | AA122: 0.07459765479 | AC122: 144406.6704 | AD122: 347.42529 | AE122: -0.008958522146 | AF122: -0.008958522146
A123: 07W | B123: NHS Ealing CCG | E123: 126182.5628 | F123: 437491.4159 | G123: 288.4229455 | H123: 0.002865075819 | J123: 125441.3558 | K123: 438184.875 | L123: 286.274956 | M123: 0.001585080557 | O123: 0.005908792886 | P123: 0.007503239355 | Q123: 0.07630014253 | R123: 0.07459682 | S123: 135810.3103 | T123: 0 | U123: 0.07630014253 | V123: 0.07459682 | W123: 135810.3103 | X123: 135810 | Y123: 309.9376719 | Z123: 0.07629768324 | AA123: 0.07459436461 | AC123: 135657.0295 | AD123: 309.5885716 | AE123: 0.001127626556 | AF123: 0.001127626556
A124: 07X | B124: NHS Enfield CCG | E124: 116721.4822 | F124: 339923.5801 | G124: 343.3756558 | H124: 0.05410822996 | J124: 110501.376 | K124: 343347.5625 | L124: 321.8353298 | M124: 0.01007280054 | O124: 0.05628985317 | P124: 0.06692965017 | Q124: 0.08542101943 | R124: 0.07459682 | S124: 126691.9502 | T124: 0 | U124: 0.08542101943 | V124: 0.07459682 | W124: 126691.9502 | X124: 126692 | Y124: 368.9905327 | Z124: 0.08542144583 | AA124: 0.07459724214 | AC124: 119500.37 | AD124: 348.0449056 | AE124: 0.06018081817 | AF124: 0.06018081817
A125: 07Y | B125: NHS Hounslow CCG | E125: 84754.1081 | F125: 316827.4174 | G125: 267.5087554 | H125: -0.00189129826 | J125: 84787.84902 | K125: 318917.875 | L125: 265.8610748 | M125: 0.006598095574 | O125: -0.0003979452604 | P125: 0.006197524633 | Q125: 0.08168711252 | R125: 0.07459682 | S125: 91677.42646 | T125: 0 | U125: 0.08168711252 | V125: 0.07459682 | W125: 91677.42646 | X125: 91677 | Y125: 287.4627206 | Z125: 0.08168208074 | AA125: 0.0745918212 | AC125: 91692.78875 | AD125: 287.5122279 | AE125: -0.0001721918893 | AF125: -0.0001721918893
A126: 08A | B126: NHS Greenwich CCG | E126: 105367.0306 | F126: 296353.2482 | G126: 355.5453881 | H126: 0.01162345497 | J126: 104164.1009 | K126: 300540.5 | L126: 346.5892315 | M126: 0.01412925913 | O126: 0.01154840979 | P126: 0.0258408394 | Q126: 0.08978007694 | R126: 0.07459682 | S126: 114826.8908 | T126: 0 | U126: 0.08978007694 | V126: 0.07459682 | W126: 114826.8908 | X126: 114827 | Y126: 382.0683069 | Z126: 0.08978111365 | AA126: 0.07459784227 | AC126: 112647.0009 | AD126: 374.8147117 | AE126: 0.01935248273 | AF126: 0.01935248273
A127: 08C | B127: NHS Hammersmith and Fulham CCG | E127: 67217.76985 | F127: 239940.2433 | G127: 280.143793 | H127: 0.005512354355 | J127: 66603.34248 | K127: 239545.8438 | L127: 278.0400671 | M127: -0.001643740669 | O127: 0.009225173226 | P127: 0.007566268764 | Q127: 0.0728304615 | R127: 0.07459682 | S127: 72113.27105 | T127: 0 | U127: 0.0728304615 | V127: 0.07459682 | W127: 72113.27105 | X127: 72114 | Y127: 301.0446722 | Z127: 0.07284130607 | AA127: 0.07460768243 | AC127: 72027.37518 | AD127: 300.6830511 | AE127: 0.001202665199 | AF127: 0.001202665199
A128: 08D | B128: NHS Haringey CCG | E128: 108559.9933 | F128: 318493.8382 | G128: 340.8542971 | H128: 0.004503800198 | J128: 108030.6964 | K128: 321680.5625 | L128: 335.8322169 | M128: 0.01000560733 | O128: 0.004899504876 | P128: 0.01495413473 | Q128: 0.08534881382 | R128: 0.07459682 | S128: 117825.46 | T128: 0 | U128: 0.08534881382 | V128: 0.07459682 | W128: 117825.46 | X128: 117825 | Y128: 366.2795137 | Z128: 0.08534457645 | AA128: 0.07459262461 | AC128: 116828.4836 | AD128: 363.181669 | AE128: 0.008529738656 | AF128: 0.008529738656
A129: 08E | B129: NHS Harrow CCG | E129: 76135.97074 | F129: 267267.6649 | G129: 284.8678712 | H129: -0.006754790402 | J129: 76335.94821 | K129: 268365.625 | L129: 284.4475637 | M129: 0.004108091727 | O129: -0.002619702429 | P129: 0.00147762732 | Q129: 0.07901136231 | R129: 0.07459682 | S129: 82151.57751 | T129: 0 | U129: 0.07901136231 | V129: 0.07459682 | W129: 82151.57751 | X129: 82152 | Y129: 306.1196828 | Z129: 0.07901691146 | AA129: 0.07460234646 | AC129: 82552.58335 | AD129: 307.6123604 | AE129: -0.004852462939 | AF129: -0.004852462939
A130: 08F | B130: NHS Havering CCG | E130: 81261.40066 | F130: 278062.1665 | G130: 292.2418453 | H130: -0.03526803502 | J130: 84041.14659 | K130: 281514.6562 | L130: 298.532047 | M130: 0.01241625134 | O130: -0.03307601153 | P130: -0.02107044027 | Q130: 0.0879392842 | R130: 0.07459682 | S130: 88407.47007 | T130: 0 | U130: 0.0879392842 | V130: 0.07459682 | W130: 88407.47007 | X130: 88407 | Y130: 314.0404879 | Z130: 0.08793349958 | AA130: 0.07459110632 | AC130: 90885.27649 | AD130: 322.8438537 | AE130: -0.02726818451 | AF130: -0.02726818451
A131: 08G | B131: NHS Hillingdon CCG | E131: 84510.50135 | F131: 312904.0027 | G131: 270.0844368 | H131: -0.01869344678 | J131: 85977.83041 | K131: 316898.25 | L131: 271.3105245 | M131: 0.01276508859 | O131: -0.01706636532 | P131: -0.004519130391 | Q131: 0.08831414361 | R131: 0.07459682 | S131: 91973.9739 | T131: 0 | U131: 0.08831414361 | V131: 0.07459682 | W131: 91973.9739 | X131: 91974 | Y131: 290.2319593 | Z131: 0.08831445248 | AA131: 0.07459712498 | AC131: 92979.67966 | AD131: 293.405469 | AE131: -0.01081612309 | AF131: -0.01081612309
A132: 08H | B132: NHS Islington CCG | E132: 97142.13871 | F132: 252448.0015 | G132: 384.8005853 | H132: -0.0001816965702 | J132: 97079.65648 | K132: 255947.1875 | L132: 379.2956564 | M132: 0.01386101698 | O132: 0.0006436181629 | P132: 0.01451355635 | Q132: 0.08949182477 | R132: 0.07459682 | S132: 105835.566 | T132: 0 | U132: 0.08949182477 | V132: 0.07459682 | W132: 105835.566 | X132: 105836 | Y132: 413.507181 | Z132: 0.08949629281 | AA132: 0.07460122695 | AC132: 104985.6145 | AD132: 410.1846774 | AE132: 0.00810001901 | AF132: 0.00810001901
A133: 08J | B133: NHS Kingston CCG | E133: 49940.25382 | F133: 209554.5002 | G133: 238.3163033 | H133: -0.003632364492 | J133: 50149.86257 | K133: 212189.8125 | L133: 236.3443465 | M133: 0.01257578493 | O133: -0.004179647523 | P133: 0.008343575055 | Q133: 0.08811071849 | R133: 0.07459682 | S133: 54340.52547 | T133: 0 | U133: 0.08811071849 | V133: 0.07459682 | W133: 54340.52547 | X133: 54341 | Y133: 256.096178 | Z133: 0.0881202205 | AA133: 0.074606204 | AC133: 54233.95932 | AD133: 255.5917208 | AE133: 0.001973683668 | AF133: 0.001973683668
A134: 08K | B134: NHS Lambeth CCG | E134: 154019.6518 | F134: 413713.3293 | G134: 372.2859306 | H134: 0.04128362649 | J134: 147678.5715 | K134: 416706.75 | L134: 354.3944789 | M134: 0.007235494827 | O134: 0.04293839113 | P134: 0.05048456646 | Q134: 0.08237205973 | R134: 0.07459682 | S134: 166706.5678 | T134: 0 | U134: 0.08237205973 | V134: 0.07459682 | W134: 166706.5678 | X134: 166707 | Y134: 400.0583144 | Z134: 0.08237486614 | AA134: 0.07459960625 | AC134: 159705.1962 | AD134: 383.2556017 | AE134: 0.04384205379 | AF134: 0.04384205379
A135: 08L | B135: NHS Lewisham CCG | E135: 115442.8142 | F135: 330341.7554 | G135: 349.4647961 | H135: 0.03518160885 | J135: 111445.902 | K135: 334478.8438 | L135: 333.192679 | M135: 0.01252366167 | O135: 0.03586414668 | P135: 0.04883695879 | Q135: 0.088054707 | R135: 0.07459682 | S135: 125608.0974 | T135: 0 | U135: 0.088054707 | V135: 0.07459682 | W135: 125608.0974 | X135: 125608 | Y135: 375.5334675 | Z135: 0.08805386367 | AA135: 0.0745959871 | AC135: 120521.8161 | AD135: 360.3271728 | AE135: 0.04220135436 | AF135: 0.04220135436
A136: 08M | B136: NHS Newham CCG | E136: 119880.4495 | F136: 400514.6649 | G136: 299.316005 | H136: 0.01961433873 | J136: 117832.8865 | K136: 405949.8125 | L136: 290.2646655 | M136: 0.01357040837 | O136: 0.01737683761 | P136: 0.03118305676 | Q136: 0.08917953768 | R136: 0.07459682 | S136: 130571.3325 | T136: 0 | U136: 0.08917953768 | V136: 0.07459682 | W136: 130571.3325 | X136: 130571 | Y136: 321.6432081 | Z136: 0.08917676399 | AA136: 0.07459408345 | AC136: 127428.9429 | AD136: 313.9031944 | AE136: 0.02465732687 | AF136: 0.02465732687
A137: 08N | B137: NHS Redbridge CCG | E137: 90136.60462 | F137: 320670.8375 | G137: 281.0876266 | H137: -0.01303502264 | J137: 91301.252 | K137: 324502.875 | L137: 281.3572977 | M137: 0.01195006539 | O137: -0.01275609424 | P137: -0.0009584650125 | Q137: 0.08743832226 | R137: 0.07459682 | S137: 98017.99811 | T137: 0 | U137: 0.08743832226 | V137: =MAX(R137,NewMinGrowthPerHead(P137,$P$2,$L$1,$U$1,$T$2,AD137,G137,T137, $P$1)) -> 0.07459682 | W137: 98017.99811 | X137: =IF(ROUND(W137,0)/E137>$X$1,ROUND(W137,0),ROUNDUP(W137,0)) -> 98018 | Y137: =X137/K137*1000 -> 302.0558755 | Z137: =X137/E137-1 -> 0.08743834326 | AA137: =Y137/G137-1 -> 0.07459684075 | AC137: 98736.62924 | AD137: =AC137/K137*1000 -> 304.2704298 | AE137: -0.007278243558 | AF137: -0.007278243558
A138: 08P | B138: NHS Richmond CCG | E138: 51203.05297 | F138: 217734.1711 | G138: =E138/F138*1000 -> 235.1631473 | H138: -0.02435277758 | J138: 52425.50861 | K138: 219498.4375 | L138: =J138/K138*1000 -> 238.8422861 | M138: =K138/F138-1 -> 0.008102845539 | O138: =E138/J138-1 -> -0.02331795479 | P138: =G138/L138-1 -> -0.01540405103 | Q138: =(1+M138)*(1+R138)-1 -> 0.08330411205 | R138: =MinGrowthPerHead(P138,0,1,$Q$1,$Q$2,$R$1,$R$2) -> 0.07459682 | S138: =(1+IF($S$2=1,Q138,0))*$E138 -> 55468.47783 | T138: =MinMaxRamp(P138,0,1,$P$2,$T$2) -> 0 | U138: =(1+M138)*(1+V138)-1 -> 0.08330411205 | V138: 0.07459682 | W138: =(1+IF($S$2=1,U138,0))*$E138 -> 55468.47783 | X138: 55468 | Y138: 252.7033934 | Z138: 0.08329478001 | AA138: 0.07458756296 | AC138: 56694.92907 | AD138: 258.2930872 | AE138: =X138/AC138-1 -> -0.02164089605 | AF138: -0.02164089605
A139: 08Q | B139: NHS Southwark CCG | E139: 124866.0584 | F139: 330855.1648 | G139: 377.4039873 | H139: 0.07833252181 | J139: 115745.6997 | K139: 334416.6875 | L139: 346.1122127 | M139: 0.01076459756 | O139: 0.07879652363 | P139: 0.09040933406 | Q139: 0.08616442231 | R139: 0.07459682 | S139: 135625.0702 | T139: 0 | U139: 0.08616442231 | V139: 0.07459682 | W139: 135625.0702 | X139: 135625 | Y139: 405.5569147 | Z139: 0.08616385998 | AA139: 0.07459626366 | AC139: 125171.7801 | AD139: 374.2988455 | AE139: 0.08351099541 | AF139: 0.08351099541
A140: 08R | B140: NHS Merton CCG | E140: 61308.57194 | F140: 225435.2542 | G140: 271.9564523 | H140: -0.0491900394 | J140: 64331.8161 | K140: 226818.9688 | L140: 283.6262613 | M140: 0.006137968992 | O140: -0.04699454075 | P140: -0.04114502279 | Q140: 0.08119266196 | R140: 0.07459682 | S140: 66286.3781 | T140: 0 | U140: 0.08119266196 | V140: 0.07459682 | W140: 66286.3781 | X140: 66286 | Y140: 292.2418719 | Z140: 0.08118649481 | AA140: 0.07459069048 | AC140: 69570.86058 | AD140: 306.7241729 | AE140: -0.04721604067 | AF140: -0.04721604067
A141: 08T | B141: NHS Sutton CCG | E141: 55651.36902 | F141: 196403.9951 | G141: 283.3515122 | H141: -0.009084942842 | J141: 56067.04693 | K141: 198247.3125 | L141: 282.8136544 | M141: 0.009385335475 | O141: -0.007413943444 | P141: 0.001901809684 | Q141: 0.08468227166 | R141: 0.07459682 | S141: 60364.05336 | T141: 0 | U141: 0.08468227166 | V141: 0.07459682 | W141: 60364.05336 | X141: 60364 | Y141: 304.4883648 | Z141: 0.08468131275 | AA141: 0.07459587001 | AC141: 60633.02642 | AD141: 305.8453891 | AE141: -0.004436961846 | AF141: -0.004436961846
A142: 08V | B142: NHS Tower Hamlets CCG | E142: 104982.2466 | F142: 324833.7494 | G142: 323.1876207 | H142: 0.05934795216 | J142: 99489.38562 | K142: 331104.6875 | L142: 300.4771282 | M142: 0.01930506951 | O142: 0.05521052237 | P142: 0.07558143485 | Q142: 0.0953419863 | R142: 0.07459682 | S142: 114991.4625 | T142: 0 | U142: 0.0953419863 | V142: 0.07459682 | W142: 114991.4625 | X142: 114991 | Y142: 347.2949926 | Z142: 0.09533758092 | AA142: 0.07459249805 | AC142: 107591.5868 | AD142: 324.947338 | AE142: 0.06877315784 | AF142: 0.06877315784
A143: 08W | B143: NHS Waltham Forest CCG | E143: 103633.2793 | F143: 311576.3333 | G143: 332.6095989 | H143: 0.05024786227 | J143: 98637.54111 | K143: 314321.0938 | L143: 313.8113956 | M143: 0.008809271256 | O143: 0.05064743193 | P143: 0.05990287016 | Q143: 0.08406323488 | R143: 0.07459682 | S143: 112345.028 | T143: 0 | U143: 0.08406323488 | V143: 0.07459682 | W143: 112345.028 | X143: 112345 | Y143: 357.4211284 | Z143: 0.08406296513 | AA143: 0.0745965526 | AC143: 106670.3699 | AD143: 339.3675195 | AE143: 0.05319781003 | AF143: 0.05319781003
A144: 08X | B144: NHS Wandsworth CCG | E144: 111243.4911 | F144: 403858.7606 | G144: 275.4514744 | H144: -0.03579774308 | J144: 115179.1879 | K144: 406574.1875 | L144: 283.2919341 | M144: 0.006723704343 | O144: -0.03417020842 | P144: -0.02767625445 | Q144: 0.08182209131 | R144: 0.07459682 | S144: 120345.6661 | T144: 0 | U144: 0.08182209131 | V144: 0.07459682 | W144: 120345.6661 | X144: 120346 | Y144: 296.0000996 | Z144: 0.0818250924 | AA144: 0.07459980105 | AC144: 124559.1328 | AD144: 306.3626188 | AE144: -0.03382435888 | AF144: -0.03382435888
A145: 08Y | B145: NHS West London CCG | E145: 81762.50962 | F145: 250220.5861 | G145: 326.7617222 | H145: 0.006346902297 | J145: 81057.49012 | K145: 250446.0938 | L145: 323.6524432 | M145: 0.0009012355617 | O145: 0.008697771175 | P145: 0.009606845477 | Q145: 0.07556528487 | R145: 0.07459682 | S145: 87940.91695 | T145: 0 | U145: 0.07556528487 | V145: 0.07459682 | W145: 87940.91695 | X145: 87941 | Y145: 351.1374391 | Z145: 0.07556630056 | AA145: 0.07459783478 | AC145: 87658.63746 | AD145: 350.0100008 | AE145: 0.003221160458 | AF145: 0.003221160458
A146: 09A | B146: NHS Central London (Westminster) CCG | E146: 65291.62416 | F146: 229468.5806 | G146: 284.5340482 | H146: -0.006488905346 | J146: 65689.2445 | K146: 231308.875 | L146: 283.9892957 | M146: 0.008019810139 | O146: -0.006053050961 | P146: 0.001918214858 | Q146: 0.08321488247 | R146: 0.07459682 | S146: 70724.85899 | T146: 0 | U146: 0.08321488247 | V146: 0.07459682 | W146: 70724.85899 | X146: 70725 | Y146: 305.759993 | Z146: 0.08321704223 | AA146: 0.07459896257 | AC146: 71038.83503 | AD146: 307.116772 | AE146: -0.004417795307 | AF146: -0.004417795307
A147: 09C | B147: NHS Ashford CCG | E147: 31952.64049 | F147: 133545.9155 | G147: 239.2633304 | H147: -0.08901002006 | J147: 35118.62959 | K147: 134913.2812 | L147: 260.3052069 | M147: 0.01023891879 | O147: -0.09015127098 | P147: -0.08083540373 | Q147: 0.08559952958 | R147: 0.07459682 | S147: 34687.77149 | T147: 0 | U147: 0.08559952958 | V147: 0.07459682 | W147: 34687.77149 | X147: 34688 | Y147: 257.1133077 | Z147: 0.0856066811 | AA147: 0.07460389905 | AC147: 37978.61511 | AD147: 281.5039021 | AE147: -0.08664389423 | AF147: -0.08664389423
A148: 09D | B148: NHS Brighton and Hove CCG | E148: 88611.19523 | F148: 317709.1667 | G148: 278.906637 | H148: 0.07140321212 | J148: 82692.10432 | K148: 319712.5625 | L148: 258.645152 | M148: 0.006305753888 | O148: 0.07157988014 | P148: 0.07833699913 | Q148: 0.08137296308 | R148: 0.07459682 | S148: 95821.75075 | T148: 0 | U148: 0.08137296308 | V148: 0.07459682 | W148: 95821.75075 | X148: 95822 | Y148: 299.7129648 | Z148: 0.08137577594 | AA148: 0.07459961524 | AC148: 89426.37112 | AD148: 279.7086559 | AE148: 0.07151837657 | AF148: 0.07151837657
A149: 09E | B149: NHS Canterbury and Coastal CCG | E149: 57741.24043 | F149: 225725.2512 | G149: 255.8031949 | H149: -0.04721950478 | J149: 60589.0924 | K149: 227708.875 | L149: 266.0813831 | M149: 0.008787779695 | O149: -0.04700271711 | P149: -0.03862798694 | Q149: 0.08404014011 | R149: 0.07459682 | S149: 62593.82236 | T149: 0 | U149: 0.08404014011 | V149: 0.07459682 | W149: 62593.82236 | X149: 62594 | Y149: 274.8860799 | Z149: 0.08404321657 | AA149: 0.07459986965 | AC149: 65523.33753 | AD149: 287.7504776 | AE149: -0.04470678143 | AF149: -0.04470678143
A150: 09F | B150: NHS Eastbourne, Hailsham and Seaford CCG | E150: 59502.78654 | F150: 196420.0802 | G150: 302.9363722 | H150: 0.04059755104 | J150: 57296.75857 | K150: 198129.1094 | L150: 289.1889978 | M150: 0.008700888075 | O150: 0.03850179351 | P150: 0.04753768138 | Q150: 0.08394676666 | R150: 0.07459682 | S150: 64497.85308 | T150: 0 | U150: 0.08394676666 | V150: 0.07459682 | W150: 64497.85308 | X150: 64498 | Y150: 325.5352038 | Z150: 0.08394923585 | AA150: 0.07459926789 | AC150: 61962.88313 | AD150: 312.7399266 | AE150: 0.04091347495 | AF150: 0.04091347495
A151: 09G | B151: NHS Coastal West Sussex CCG | E151: 138448.9771 | F151: 515159.1699 | G151: 268.7499033 | H151: -0.03391083991 | J151: 143350.1235 | K151: 519346.125 | L151: 276.0203967 | M151: 0.008127497912 | O151: -0.03419003921 | P151: -0.02634042077 | Q151: 0.08333060341 | R151: 0.07459682 | S151: 149986.0139 | T151: 0 | U151: 0.08333060341 | V151: 0.07459682 | W151: 149986.0139 | X151: 149986 | Y151: 288.7977647 | Z151: 0.08333050291 | AA151: 0.07459672031 | AC151: 155024.2486 | AD151: 298.4989031 | AE151: -0.03249974552 | AF151: -0.03249974552
A152: 09H | B152: NHS Crawley CCG | E152: 38179.72685 | F152: 133480.7476 | G152: 286.0317128 | H152: 0.05860269863 | J152: 36034.48237 | K152: 134315.8281 | L152: 268.2817273 | M152: 0.006256187365 | O152: 0.05953310106 | P152: 0.06616173866 | Q152: 0.08131969905 | R152: 0.07459682 | S152: 41284.49075 | T152: 0 | U152: 0.08131969905 | V152: 0.07459682 | W152: 41284.49075 | X152: 41284 | Y152: 307.3651153 | Z152: 0.08130684537 | AA152: 0.07458404624 | AC152: 38969.05297 | AD152: 290.1300131 | AE152: 0.05940475456 | AF152: 0.05940475456
A153: 09J | B153: NHS Dartford, Gravesham and Swanley CCG | E153: 77231.27805 | F153: 269110.2473 | G153: 286.9875035 | H153: -0.07959320316 | J153: 83731.53971 | K153: 271700.1875 | L153: 308.1762309 | M153: 0.009624086081 | O153: -0.07763217635 | P153: -0.06875522902 | Q153: 0.0849388323 | R153: 0.07459682 | S153: 83791.21263 | T153: 0 | U153: 0.0849388323 | V153: 0.07459682 | W153: 83791.21263 | X153: 83791 | Y153: 308.3950761 | Z153: 0.08493607919 | AA153: 0.07459409313 | AC153: 90550.45589 | AD153: 333.2734391 | AE153: -0.07464850199 | AF153: -0.07464850199
A154: 09L | B154: NHS East Surrey CCG | E154: 51035.88353 | F154: 182620.4157 | G154: 279.464283 | H154: 0.02865296944 | J154: 49532.42508 | K154: 183940.0312 | L154: 269.2857272 | M154: 0.007226002276 | O154: 0.03035301527 | P154: 0.0377983485 | Q154: 0.08236185907 | R154: 0.07459682 | S154: 55239.29378 | T154: 0 | U154: 0.08236185907 | V154: 0.07459682 | W154: 55239.29378 | X154: 55239 | Y154: 300.3098326 | Z154: 0.08235610271 | AA154: 0.07459110494 | AC154: 53566.23905 | AD154: 291.2157766 | AE154: 0.03122789614 | AF154: 0.03122789614
A155: 09N | B155: NHS Guildford and Waverley CCG | E155: 50478.55125 | F155: 225634.0859 | G155: 223.7186418 | H155: 0.07243957406 | J155: 46880.39457 | K155: 226834.0312 | L155: 206.6726686 | M155: 0.005318103014 | O155: 0.07675184293 | P155: 0.08247812015 | Q155: 0.08031163659 | R155: 0.07459682 | S155: 54532.56631 | T155: 0 | U155: 0.08031163659 | V155: 0.07459682 | W155: 54532.56631 | X155: 54533 | Y155: 240.409253 | Z155: 0.08032022817 | AA155: 0.07460536613 | AC155: 50698.23289 | AD155: 223.5036454 | AE155: 0.07563906856 | AF155: 0.07563906856
A156: 09P | B156: NHS Hastings and Rother CCG | E156: 49020.36218 | F156: 188683.9995 | G156: 259.8013733 | H156: -0.04423350563 | J156: 51318.02493 | K156: 189923.25 | L156: 270.2040163 | M156: 0.00656786209 | O156: -0.04477301588 | P156: -0.03849921678 | Q156: 0.08165462372 | R156: 0.07459682 | S156: 53023.10141 | T156: 0 | U156: 0.08165462372 | V156: 0.07459682 | W156: 53023.10141 | X156: 53023 | Y156: 279.1811956 | Z156: 0.08165255493 | AA156: 0.07459476471 | AC156: 55497.2543 | AD156: 292.2088491 | AE156: -0.04458336428 | AF156: -0.04458336428
A157: 09W | B157: NHS Medway CCG | E157: 79992.32731 | F157: 299528.0034 | G157: 267.0612644 | H157: -0.05140374198 | J157: 84146.10243 | K157: 302095.9375 | L157: 278.540993 | M157: 0.008573268785 | O157: -0.04936384455 | P157: -0.04121378527 | Q157: 0.08380962737 | R157: 0.07459682 | S157: 86696.45445 | T157: 0 | U157: 0.08380962737 | V157: 0.07459682 | W157: 86696.45445 | X157: 86696 | Y157: 286.9816811 | Z157: 0.0838039462 | AA157: 0.07459118712 | AC157: 90998.7797 | AD157: 301.2247713 | AE157: -0.04728392745 | AF157: -0.04728392745
A158: 09X | B158: NHS Horsham and Mid Sussex CCG | E158: 62790.7853 | F158: 240990.5884 | G158: 260.5528528 | H158: 0.05233144194 | J158: 59699.26117 | K158: 242897.75 | L158: 245.7793914 | M158: 0.007913842752 | O158: 0.05178496473 | P158: 0.06010862555 | Q158: 0.08310101026 | R158: 0.07459682 | S158: 68008.763 | T158: 0 | U158: 0.08310101026 | V158: 0.07459682 | W158: 68008.763 | X158: 68009 | Y158: 279.9902428 | Z158: 0.08310478475 | AA158: 0.07460056486 | AC158: 64561.04036 | AD158: 265.7951355 | AE158: 0.05340619692 | AF158: 0.05340619692
A159: 09Y | B159: NHS North West Surrey CCG | E159: 94231.28757 | F159: 372157.2458 | G159: 253.202883 | H159: 0.06352058102 | J159: 88300.13961 | K159: 374092.875 | L159: 236.0380149 | M159: 0.005201105805 | O159: 0.06717031239 | P159: 0.07272077809 | Q159: 0.08018591176 | R159: 0.07459682 | S159: 101787.3093 | T159: 0 | U159: 0.08018591176 | V159: 0.07459682 | W159: 101787.3093 | X159: 101787 | Y159: 272.0901862 | Z159: 0.08018262964 | AA159: 0.07459355486 | AC159: 95491.11272 | AD159: 255.2604423 | AE159: 0.06593165692 | AF159: 0.06593165692
A160: 10A | B160: NHS South Kent Coast CCG | E160: 59230.0181 | F160: 206477.2515 | G160: 286.859776 | H160: -0.04970746838 | J160: 62332.34156 | K160: 207538.2344 | L160: 300.3414853 | M160: 0.005138497838 | O160: -0.04977068708 | P160: -0.04488793581 | Q160: 0.08011863344 | R160: 0.07459682 | S160: 63975.4462 | T160: 0 | U160: 0.08011863344 | V160: 0.07459682 | W160: 63975.4462 | X160: 63975 | Y160: 308.256453 | Z160: 0.08011110002 | AA160: 0.07458932509 | AC160: 67408.55315 | AD160: 324.8006487 | AE160: -0.05093646121 | AF160: -0.05093646121
A161: 10C | B161: NHS Surrey Heath CCG | E161: 26552.37653 | F161: 96804.16748 | G161: 274.2896016 | H161: -0.02252175041 | J161: 27078.02108 | K161: 97135.19531 | L161: 278.7663215 | M161: 0.003419561788 | O161: -0.01941222189 | P161: -0.01605904139 | Q161: 0.07827147022 | R161: 0.07459682 | S161: 28630.67008 | T161: 0 | U161: 0.07827147022 | V161: 0.07459682 | W161: 28630.67008 | X161: 28631 | Y161: 294.7541301 | Z161: 0.07828389548 | AA161: 0.07460920291 | AC161: 29283.19678 | AD161: 301.4684501 | AE161: -0.02227204843 | AF161: -0.02227204843
A162: 10D | B162: NHS Swale CCG | E162: 31756.38332 | F162: 113167.082 | G162: 280.615023 | H162: -0.03763983056 | J162: 32992.89448 | K162: 114335.75 | L162: 288.5614908 | M162: 0.010326925 | O162: -0.0374781047 | P162: -0.02753821327 | Q162: 0.08569410077 | R162: 0.07459682 | S162: 34477.71804 | T162: 0 | U162: 0.08569410077 | V162: 0.07459682 | W162: 34477.71804 | X162: 34478 | Y162: 301.5504774 | Z162: 0.08570297974 | AA162: 0.07460560822 | AC162: 35679.76471 | AD162: 312.0613169 | AE162: -0.03368196857 | AF162: -0.03368196857
A163: 10E | B163: NHS Thanet CCG | E163: 44000.1324 | F163: 145493.915 | G163: 302.4190557 | H163: -0.08420857477 | J163: 48063.35416 | K163: 146794.5625 | L163: 327.4191724 | M163: 0.008939531668 | O163: -0.08453887232 | P163: -0.07635507858 | Q163: 0.0842032123 | R163: 0.07459682 | S163: 47705.08489 | T163: 0 | U163: 0.0842032123 | V163: 0.07459682 | W163: 47705.08489 | X163: 47705 | Y163: 324.9779773 | Z163: 0.08420128298 | AA163: 0.07459490777 | AC163: 51977.53016 | AD163: 354.0834843 | AE163: -0.08219956103 | AF163: -0.08219956103
A164: 10J | B164: NHS North Hampshire CCG | E164: 52479.63813 | F164: 226201.3323 | G164: 232.0041071 | H164: 0.008183419874 | J164: 52068.64918 | K164: 227382.6875 | L164: 228.9912647 | M164: 0.005222582965 | O164: 0.007893213124 | P164: 0.01315701905 | Q164: 0.08020899105 | R164: 0.07459682 | S164: 56688.97695 | T164: 0 | U164: 0.08020899105 | V164: 0.07459682 | W164: 56688.97695 | X164: 56689 | Y164: 249.3109771 | Z164: 0.08020943019 | AA164: 0.07459725686 | AC164: 56309.00778 | AD164: 247.6398199 | AE164: 0.006748338027 | AF164: 0.006748338027
A165: 10K | B165: NHS Fareham and Gosport CCG | E165: 53463.41776 | F165: 204854.0034 | G165: 260.9830263 | H165: 0.0967098815 | J165: 48756.86064 | K165: 205878.6875 | L165: 236.8232537 | M165: 0.005002021268 | O165: 0.09653117658 | P165: 0.1020160488 | Q165: 0.07997197615 | R165: 0.07459682 | S165: 57738.99293 | T165: 0 | U165: 0.07997197615 | V165: 0.07459682 | W165: 57738.99293 | X165: 57739 | Y165: 280.4515645 | Z165: 0.0799721084 | AA165: 0.07459695159 | AC165: 52727.51431 | AD165: 256.1096292 | AE165: 0.09504498279 | AF165: 0.09504498279
A166: 10L | B166: NHS Isle of Wight CCG | E166: 34177.65267 | F166: 144499.1648 | G166: 236.524915 | H166: -0.006062069791 | J166: 34404.78353 | K166: 145043.375 | L166: 237.2034127 | M166: 0.003766182357 | O166: -0.006601723382 | P166: -0.002860404319 | Q166: 0.07864394758 | R166: 0.07459682 | S166: 36865.51819 | T166: 0 | U166: 0.07864394758 | V166: 0.07459682 | W166: 36865.51819 | X166: 36866 | Y166: 254.1722433 | Z166: 0.07865804467 | AA166: 0.0746108642 | AC166: 37206.63497 | AD166: 256.5207475 | AE166: -0.00915522118 | AF166: -0.00915522118
A167: 10Q | B167: NHS Oxfordshire CCG | E167: 215481.0131 | F167: 745291.4208 | G167: 289.1231632 | H167: 0.09007071939 | J167: 197839.6243 | K167: 747848.3125 | L167: 264.5451237 | M167: 0.003430727372 | O167: 0.08917014896 | P167: 0.0929067948 | Q167: 0.07828346872 | R167: 0.07459682 | S167: 232349.6142 | T167: 0 | U167: 0.07828346872 | V167: 0.07459682 | W167: 232349.6142 | X167: 232350 | Y167: 310.6913476 | Z167: 0.07828525902 | AA167: 0.07459860418 | AC167: 213951.257 | AD167: 286.0891085 | AE167: 0.08599502162 | AF167: 0.08599502162
A168: 10R | B168: NHS Portsmouth CCG | E168: 58935.80906 | F168: 230173.1748 | G168: 256.0498595 | H168: 0.02093570044 | J168: 57662.37113 | K168: 231311.25 | L168: 249.2847673 | M168: 0.004944430185 | O168: 0.02208438369 | P168: 0.02713800856 | Q168: 0.07991008895 | R168: 0.07459682 | S168: 63645.3748 | T168: 0 | U168: 0.07991008895 | V168: 0.07459682 | W168: 63645.3748 | X168: 63645 | Y168: 275.1487444 | Z168: 0.07990372943 | AA168: 0.07459049177 | AC168: 62358.27039 | AD168: 269.5859816 | AE168: 0.02063446598 | AF168: 0.02063446598
A169: 10V | B169: NHS South Eastern Hampshire CCG | E169: 56892.75992 | F169: 215319.8374 | G169: 264.2244236 | H169: 0.08102540465 | J169: 52576.86189 | K169: 216374.5938 | L169: 242.989997 | M169: 0.004898556308 | O169: 0.08208740264 | P169: 0.08738806871 | Q169: 0.07986079303 | R169: 0.07459682 | S169: 61436.26085 | T169: 0 | U169: 0.07986079303 | V169: =MAX(R169,NewMinGrowthPerHead(P169,$P$2,$L$1,$U$1,$T$2,AD169,G169,T169, $P$1)) -> 0.07459682 | W169: 61436.26085 | X169: =IF(ROUND(W169,0)/E169>$X$1,ROUND(W169,0),ROUNDUP(W169,0)) -> 61436 | Y169: =X169/K169*1000 -> 283.9335198 | Z169: =X169/E169-1 -> 0.07985620816 | AA169: =Y169/G169-1 -> 0.07459225748 | AC169: 56858.60823 | AD169: =AC169/K169*1000 -> 262.7785788 | AE169: 0.0805048155 | AF169: 0.0805048155
A170: 10X | B170: NHS Southampton CCG | E170: 84633.76638 | F170: 286630.2473 | G170: 295.2715814 | H170: 0.1073347162 | J170: 76427.62623 | K170: 288342.1875 | L170: 265.0587723 | M170: 0.005972643372 | O170: 0.1073713859 | P170: 0.1139853203 | Q170: 0.08101500357 | R170: 0.07459682 | S170: 91490.37127 | T170: 0 | U170: 0.08101500357 | V170: 0.07459682 | W170: 91490.37127 | X170: 91490 | Y170: 317.2966148 | Z170: 0.08101061679 | AA170: 0.07459245926 | AC170: 82651.72743 | AD170: 286.6445876 | AE170: 0.1069339122 | AF170: 0.1069339122
A171: 11A | B171: NHS West Hampshire CCG | E171: 158215.8693 | F171: 563241.3382 | G171: 280.9024454 | H171: 0.07742335787 | J171: 147054.6798 | K171: 566415.25 | L171: 259.6234473 | M171: 0.005635083203 | O171: 0.07589822684 | P171: 0.08196100286 | Q171: 0.08065226249 | R171: 0.07459682 | S171: 170976.3371 | T171: 0 | U171: 0.08065226249 | V171: 0.07459682 | W171: 170976.3371 | X171: 170976 | Y171: 301.8562795 | Z171: 0.08065013193 | AA171: 0.07459470138 | AC171: 159030.4961 | AD171: 280.7666215 | AE171: 0.07511454849 | AF171: 0.07511454849
A172: 11E | B172: NHS Bath and North East Somerset CCG | E172: 46653.41906 | F172: 207664.9996 | G172: 224.6571119 | H172: -0.04634464497 | J172: 48877.71887 | K172: 209078.4688 | L172: 233.7769124 | M172: 0.006806487183 | O172: -0.04550743918 | P172: -0.0390106978 | Q172: 0.08191104948 | R172: 0.07459682 | S172: 50474.84957 | T172: 0 | U172: 0.08191104948 | V172: 0.07459682 | W172: 50474.84957 | X172: 50475 | Y172: 241.4165375 | Z172: 0.08191427385 | AA172: 0.07460002257 | AC172: 52858.21498 | AD172: 252.8152004 | AE172: -0.04508693651 | AF172: -0.04508693651
A173: 11J | B173: NHS Dorset CCG | E173: 194433.8186 | F173: 801319.5815 | G173: 242.6420408 | H173: -0.01009144553 | J173: 196450.0243 | K173: 804863.5625 | L173: 244.0786656 | M173: 0.004422681086 | O173: -0.01026319895 | P173: -0.005885908723 | Q173: 0.07934941903 | R173: 0.07459682 | S173: 209862.0292 | T173: 0 | U173: 0.07934941903 | V173: 0.07459682 | W173: 209862.0292 | X173: 209862 | Y173: 260.7423292 | Z173: 0.07934926892 | AA173: 0.07459667055 | AC173: 212448.491 | AD173: 263.9559062 | AE173: -0.0121746735 | AF173: -0.0121746735
A174: 11M | B174: NHS Gloucestershire CCG | E174: 158274.9457 | F174: 647166.6637 | G174: 244.5659744 | H174: -0.01105827086 | J174: 160477.9008 | K174: 651781.125 | L174: 246.2144033 | M174: 0.007130251925 | O174: -0.01372746706 | P174: -0.006695095431 | Q174: 0.08225896604 | R174: 0.07459682 | S174: 171294.4791 | T174: 0 | U174: 0.08225896604 | V174: 0.07459682 | W174: 171294.4791 | X174: 171294 | Y174: 262.8090833 | Z174: 0.08225593935 | AA174: 0.07459381473 | AC174: 173546.8752 | AD174: 266.2655738 | AE174: -0.01298136437 | AF174: -0.01298136437
A175: 11N | B175: NHS Kernow CCG | E175: 149648.6804 | F175: 575386.8376 | G175: 260.0836005 | H175: 0.0333807192 | J175: 145346.226 | K175: 579195.75 | L175: 250.9449111 | M175: 0.006619742053 | O175: 0.029601418 | P175: 0.0364171138 | Q175: 0.08171037376 | R175: 0.07459682 | S175: 161876.53 | T175: 0 | U175: 0.08171037376 | V175: 0.07459682 | W175: 161876.53 | X175: 161877 | Y175: 279.4858215 | Z175: 0.08171351456 | AA175: 0.07459994014 | AC175: 157182.9095 | AD175: 271.3813239 | AE175: 0.02986387363 | AF175: 0.02986387363
A176: 11X | B176: NHS Somerset CCG | E176: 136343.6105 | F176: 575240.8369 | G176: 237.0200476 | H176: -0.06019042978 | J176: 145566.476 | K176: 578764.8125 | L176: 251.5123118 | M176: 0.006126087301 | O176: -0.06335844437 | P176: -0.05762049643 | Q176: 0.08117989393 | R176: 0.07459682 | S176: 147411.9704 | T176: 0 | U176: 0.08117989393 | V176: 0.07459682 | W176: 147411.9704 | X176: 147412 | Y176: 254.7010406 | Z176: 0.0811801112 | AA176: 0.07459703595 | AC176: 157421.0962 | AD176: 271.9949326 | AE176: -0.06358166984 | AF176: -0.06358166984
A177: 12D | B177: NHS Swindon CCG | E177: 55843.47128 | F177: 237659.9145 | G177: 234.9721929 | H177: -0.04555941922 | J177: 58652.26054 | K177: 239149.6562 | L177: 245.2533759 | M177: 0.006268376171 | O177: -0.04788884926 | P177: -0.04192065841 | Q177: 0.0813327971 | R177: 0.07459682 | S177: 60385.377 | T177: 0 | U177: 0.0813327971 | V177: 0.07459682 | W177: 60385.377 | X177: 60385 | Y177: 252.4987949 | Z177: 0.08132604609 | AA177: 0.07459011104 | AC177: 63428.77427 | AD177: 265.2262824 | AE177: -0.04798727866 | AF177: -0.04798727866
A178: 12F | B178: NHS Wirral CCG | E178: 97015.30502 | F178: 336408.4187 | G178: 288.3854851 | H178: 0.005269044494 | J178: 96375.96958 | K178: 336757.8125 | L178: 286.1877765 | M178: 0.001038600045 | O178: 0.006633764033 | P178: 0.007679253906 | Q178: 0.07571289631 | R178: 0.07459682 | S178: 104360.6148 | T178: 0 | U178: 0.07571289631 | V178: 0.07459682 | W178: 104360.6148 | X178: 104361 | Y178: 309.8992692 | Z178: 0.07571686732 | AA178: 0.07460078689 | AC178: 104224.6209 | AD178: 309.4942924 | AE178: 0.001308511518 | AF178: 0.001308511518
A179: 13T | B179: NHS Newcastle Gateshead CCG | E179: 145711.4277 | F179: 525567.0029 | G179: 277.2461491 | H179: -0.01982020037 | J179: 148595.0277 | K179: 527745.75 | L179: 281.5655601 | M179: 0.004145517238 | O179: -0.01940576379 | P179: -0.01534069348 | Q179: 0.07905157964 | R179: 0.07459682 | S179: 157230.1462 | T179: 0 | U179: 0.07905157964 | V179: 0.07459682 | W179: 157230.1462 | X179: 157230 | Y179: 297.9275532 | Z179: 0.07905057633 | AA179: 0.07459582083 | AC179: 160696.2865 | AD179: 304.4956526 | AE179: -0.02157042097 | AF179: -0.02157042097
A180: 14L | B180: NHS Manchester CCG | E180: 234591.6526 | F180: 641324.168 | G180: 365.7926277 | H180: 0.051601451 | J180: 223248.8056 | K180: 647873.9375 | L180: 344.5867979 | M180: 0.01021288431 | O180: 0.05080809723 | P180: 0.06153987875 | Q180: 0.085571553 | R180: 0.07459682 | S180: 254666.0246 | T180: 0 | U180: 0.085571553 | V180: 0.07459682 | W180: 254666.0246 | X180: 254666 | Y180: 393.0795565 | Z180: 0.08557144798 | AA180: 0.07459671604 | AC180: 241429.7073 | AD180: 372.6492043 | AE180: 0.05482462317 | AF180: 0.05482462317
A181: 14Y | B181: NHS Buckinghamshire CCG | E181: 146993.2009 | F181: 559494.6709 | G181: 262.7249348 | H181: 0.08164507035 | J181: 135790.0564 | K181: 563792.625 | L181: 240.851069 | M181: 0.007681849936 | O181: 0.08250342327 | P181: 0.09081905212 | Q181: 0.08285171151 | R181: 0.07459682 | S181: 159171.8392 | T181: 0 | U181: 0.08285171151 | V181: 0.07459682 | W181: 159171.8392 | X181: 159172 | Y181: 282.3236647 | Z181: 0.08285280535 | AA181: 0.0745979055 | AC181: 146848.506 | AD181: 260.4654611 | AE181: 0.08391977752 | AF181: 0.08391977752
A182: 15A | B182: NHS Berkshire West CCG | E182: 116686.0187 | F182: 544245.2573 | G182: 214.3996978 | H182: -0.006504876584 | J182: 117501.0751 | K182: 547396.375 | L182: 214.6544634 | M182: 0.005789885412 | O182: -0.006936586834 | P182: -0.001186863465 | Q182: 0.08081861245 | R182: 0.07459682 | S182: 126116.4208 | T182: 0 | U182: 0.08081861245 | V182: 0.07459682 | W182: 126116.4208 | X182: 126116 | Y182: 230.3924647 | Z182: 0.08081500593 | AA182: 0.07459323424 | AC182: 127070.1095 | AD182: 232.1354603 | AE182: -0.007508528162 | AF182: -0.007508528162
A183: 15C | B183: NHS Bristol, North Somerset and South Gloucestershire CCG | E183: 303740.5729 | F183: 1008377.16 | G183: 301.217228 | H183: 0.04592500151 | J183: 290422.1869 | K183: 1017741.5 | L183: 285.3594816 | M183: 0.009286545214 | O183: 0.04585870709 | P183: 0.05557112126 | Q183: 0.08457611196 | R183: 0.07459682 | S183: 329429.7696 | T183: 0 | U183: 0.08457611196 | V183: 0.07459682 | W183: 329429.7696 | X183: 329430 | Y183: 323.6873017 | Z183: 0.08457687054 | AA183: 0.07459757161 | AC183: 314073.544 | AD183: 308.598543 | AE183: 0.04889445888 | AF183: 0.04889445888
A184: 15D | B184: NHS East Berkshire CCG | E184: 109841.6105 | F184: 460081.7478 | G184: 238.7436821 | H184: 0.002140972871 | J184: 109499.06 | K184: 462630.3438 | L184: 236.68802 | M184: 0.005539441544 | O184: 0.003128341677 | P184: 0.008685112487 | Q184: 0.08054948627 | R184: 0.07459682 | S184: 118689.2958 | T184: 0 | U184: 0.08054948627 | V184: 0.07459682 | W184: 118689.2958 | X184: 118689 | Y184: 256.5525621 | Z184: 0.08054679315 | AA184: 0.07459414172 | AC184: 118416.4276 | AD184: 255.9633823 | AE184: 0.00230181274 | AF184: 0.00230181274
A185: 15E | B185: NHS Birmingham and Solihull CCG | E185: 425432.5623 | F185: 1310470.411 | G185: 324.6411051 | H185: 0.04374418588 | J185: 407924.8671 | K185: 1320167.625 | L185: 308.9947514 | M185: 0.00739979646 | O185: 0.04291892111 | P185: 0.05063630885 | Q185: 0.08254861774 | R185: 0.07459682 | S185: 460551.4323 | T185: 0 | U185: 0.08254861774 | V185: 0.07459682 | W185: 460551.4323 | X185: 460551 | Y185: 348.8579717 | Z185: 0.08254760165 | AA185: 0.07459581137 | AC185: 441145.3894 | AD185: 334.1586182 | AE185: 0.04398914987 | AF185: 0.04398914987
A186: 15F | B186: NHS Leeds CCG | E186: 241630.3783 | F186: 879777.0082 | G186: 274.6495715 | H186: 0.0163758264 | J186: 237610.9196 | K186: 884667.0625 | L186: 268.5879578 | M186: 0.005558288373 | O186: 0.0169161363 | P186: 0.02256844944 | Q186: 0.08056973901 | R186: 0.07459682 | S186: 261098.4748 | T186: 0 | U186: 0.08056973901 | V186: 0.07459682 | W186: 261098.4748 | X186: 261098 | Y186: 295.1370194 | Z186: 0.08056777391 | AA186: 0.07459486576 | AC186: 256961.4409 | AD186: 290.4611823 | AE186: 0.01609797588 | AF186: 0.01609797588
A187: 15M | B187: NHS Derby and Derbyshire CCG | E187: 246267.9665 | F187: 1049689.499 | G187: 234.6102982 | H187: -0.02272024287 | J187: 252325.7258 | K187: 1053807.5 | L187: 239.4419529 | M187: 0.003923065569 | O187: -0.02400769598 | P187: -0.02017881418 | Q187: 0.07881253378 | R187: 0.07459682 | S187: 265676.9689 | T187: 0 | U187: 0.07881253378 | V187: 0.07459682 | W187: 265676.9689 | X187: 265677 | Y187: 252.1115099 | Z187: 0.07881266012 | AA187: 0.07459694584 | AC187: 272874.5892 | AD187: 258.9415896 | AE187: -0.02637691262 | AF187: -0.02637691262
A188: 99A | B188: NHS Liverpool CCG | E188: 185401.3652 | F188: 532851.0004 | G188: 347.9422297 | H188: 0.02678524448 | J188: 180526.7729 | K188: 536622.875 | L188: 336.4127422 | M188: 0.007078666703 | O188: 0.02700204623 | P188: 0.03427185141 | Q188: 0.08220353273 | R188: 0.07459682 | S188: 200642.0124 | T188: 0 | U188: 0.08220353273 | V188: 0.07459682 | W188: 200642.0124 | X188: 200642 | Y188: 373.8975906 | Z188: 0.08220346607 | AA188: 0.07459675381 | AC188: 195228.4843 | AD188: 363.8094711 | AE188: 0.02772912832 | AF188: 0.02772912832
A189: 99C | B189: NHS North Tyneside CCG | E189: 59630.11485 | F189: 219095.5853 | G189: 272.1648397 | H189: -0.05467821586 | J189: 63135.6352 | K189: 219720.4375 | L189: 287.3453008 | M189: 0.002851961494 | O189: -0.05552364112 | P189: -0.05283003091 | Q189: 0.07766152875 | R189: 0.07459682 | S189: 64261.08073 | T189: 0 | U189: 0.07766152875 | V189: 0.07459682 | W189: 64261.08073 | X189: 64261 | Y189: 292.4671038 | Z189: 0.07766017494 | AA189: 0.07459547004 | AC189: 68277.26529 | AD189: 310.7460829 | AE189: -0.05882287867 | AF189: -0.05882287867
A190: 99D | B190: NHS South Lincolnshire CCG | E190: 35182.63728 | F190: 167158.003 | G190: 210.4753386 | H190: -0.06857275873 | J190: 37826.94864 | K190: 168384.8125 | L190: 224.6458459 | M190: 0.007339220901 | O190: -0.06990548951 | P190: -0.06307932044 | Q190: 0.08248352344 | R190: 0.07459682 | S190: 38084.62516 | T190: 0 | U190: 0.08248352344 | V190: 0.07459682 | W190: 38084.62516 | X190: 38085 | Y190: 226.1783556 | Z190: 0.08249417745 | AA190: 0.07460739638 | AC190: 40907.49383 | AD190: 242.9405195 | AE190: -0.06899698725 | AF190: -0.06899698725
A191: 99E | B191: NHS Basildon and Brentwood CCG | E191: 76200.65017 | F191: 279038.8335 | G191: 273.0826001 | H191: -0.0252272427 | J191: 77976.132 | K191: 281462.125 | L191: 277.03952 | M191: 0.008684423862 | O191: -0.02276955503 | P191: -0.01428287164 | Q191: 0.08392907427 | R191: 0.07459682 | S191: 82596.1002 | T191: 0 | U191: 0.08392907427 | V191: 0.07459682 | W191: 82596.1002 | X191: 82596 | Y191: 293.4533376 | Z191: 0.08392775937 | AA191: 0.07459551642 | AC191: 84326.34017 | AD191: 299.6010215 | AE191: -0.02051956921 | AF191: -0.02051956921
A192: 99F | B192: NHS Castle Point and Rochford CCG | E192: 45470.5518 | F192: 185222.1655 | G192: 245.4919565 | H192: 0.02417836711 | J192: 44252.96803 | K192: 186162.3125 | L192: 237.7117443 | M192: 0.00507578005 | O192: 0.02751417196 | P192: 0.0327296079 | Q192: 0.0800512371 | R192: 0.07459682 | S192: 49110.52572 | T192: 0 | U192: 0.0800512371 | V192: 0.07459682 | W192: 49110.52572 | X192: 49111 | Y192: 263.8074234 | Z192: 0.08006166752 | AA192: 0.07460719774 | AC192: 47856.83439 | AD192: 257.0704766 | AE192: 0.02620661445 | AF192: 0.02620661445
A193: 99G | B193: NHS Southend CCG | E193: 48301.26482 | F193: 188323.4146 | G193: 256.4804006 | H193: -0.0294650302 | J193: 49730.78471 | K193: 189659.2812 | L193: 262.2111841 | M193: 0.007093470777 | O193: -0.02874517044 | P193: -0.02185560269 | Q193: 0.08221944114 | R193: 0.07459682 | S193: 52272.56782 | T193: 0 | U193: 0.08221944114 | V193: 0.07459682 | W193: 52272.56782 | X193: 52273 | Y193: 275.6153016 | Z193: 0.08222838864 | AA193: 0.07460570448 | AC193: 53780.75266 | AD193: 283.5650979 | AE193: -0.02803517214 | AF193: -0.02803517214
A194: 99H | B194: NHS Surrey Downs CCG | E194: 75878.99102 | F194: 307646.083 | G194: 246.6437742 | H194: -0.03099218196 | J194: 78061.67885 | K194: 309493.5 | L194: 252.2239687 | M194: 0.006005007358 | O194: -0.02796106699 | P194: -0.02212396604 | Q194: 0.08104978181 | R194: 0.07459682 | S194: 82028.96668 | T194: 0 | U194: 0.08104978181 | V194: 0.07459682 | W194: 82028.96668 | X194: 82029 | Y194: 265.042723 | Z194: 0.08105022089 | AA194: 0.07459725646 | AC194: 84418.85377 | AD194: 272.7645452 | AE194: -0.02830947908 | AF194: -0.02830947908
A195: 99J | B195: NHS West Kent CCG | E195: 134560.5549 | F195: 492969.2539 | G195: 272.9593253 | H195: -0.01732286634 | J195: 136627.4188 | K195: 496486.1875 | L195: 275.1887611 | M195: 0.007134184467 | O195: -0.01512773861 | P195: -0.00810147822 | Q195: 0.08226319194 | R195: 0.07459682 | S195: 145629.9357 | T195: 0 | U195: 0.08226319194 | V195: 0.07459682 | W195: 145629.9357 | X195: 145630 | Y195: 293.3213525 | Z195: 0.0822636698 | AA195: 0.07459729447 | AC195: 147754.0614 | AD195: 297.5995408 | AE195: -0.01437565504 | AF195: -0.01437565504
A196: 99K | B196: NHS High Weald Lewes Havens CCG | E196: 46101.31043 | F196: 170506.7529 | G196: 270.3782087 | H196: 0.0447733806 | J196: 44128.43584 | K196: 171932.0312 | L196: 256.6620979 | M196: 0.008359072564 | O196: 0.04470755784 | P196: 0.05344034412 | Q196: 0.08357945279 | R196: 0.07459682 | S196: 49954.43273 | T196: 0 | U196: 0.08357945279 | V196: 0.07459682 | W196: 49954.43273 | X196: 49954 | Y196: 290.5450464 | Z196: 0.08357006626 | AA196: 0.07458751127 | AC196: 47722.16057 | AD196: 277.5641061 | AE196: 0.04676735938 | AF196: 0.04676735938
A197: 99M | B197: NHS North East Hampshire and Farnham CCG | E197: 50620.77199 | F197: 227496.5793 | G197: 222.5122335 | H197: -0.07190319928 | J197: 54380.91553 | K197: 227991 | L197: 238.5222028 | M197: 0.002173310279 | O197: -0.06914454269 | P197: -0.06712150495 | Q197: 0.07693225231 | R197: 0.07459682 | S197: 54515.142 | T197: 0 | U197: 0.07693225231 | V197: 0.07459682 | W197: 54515.142 | X197: 54515 | Y197: 239.1103158 | Z197: 0.07692944719 | AA197: 0.07459402096 | AC197: 58809.58012 | AD197: 257.946937 | AE197: -0.07302517902 | AF197: -0.07302517902
A198: 99N | B198: NHS Wiltshire CCG | E198: 119426.8144 | F198: 490466.5025 | G198: 243.496373 | H198: -0.009766665619 | J198: 120956.4075 | K198: 495483.4688 | L198: 244.1179477 | M198: 0.01022896822 | O198: -0.01264582078 | P198: -0.002546206257 | Q198: 0.08558883672 | R198: 0.07459682 | S198: 129648.4166 | T198: 0 | U198: 0.08558883672 | V198: 0.07459682 | W198: 129648.4166 | X198: 129648 | Y198: 261.6595874 | Z198: 0.08558534872 | AA198: 0.07459336731 | AC198: 130806.8367 | AD198: 263.9983873 | AE198: -0.008859144693 | AF198: -0.008859144693
A199: 99P | B199: NHS Northern, Eastern and Western Devon CCG | E199: 252430.17 | F199: 931441.8411 | G199: 271.0101252 | H199: 0.003131660891 | J199: 252046.9315 | K199: 936391.5 | L199: 269.1683248 | M199: 0.005313975233 | O199: 0.001520504705 | P199: 0.006842559863 | Q199: 0.08030720089 | R199: 0.07459682 | S199: 272702.1304 | T199: 0 | U199: 0.08030720089 | V199: 0.07459682 | W199: 272702.1304 | X199: 272702 | Y199: 291.2264795 | Z199: 0.08030668442 | AA199: 0.07459630626 | AC199: 272573.0905 | AD199: 291.0888132 | AE199: 0.0004729356509 | AF199: 0.0004729356509
A200: 99Q | B200: NHS South Devon and Torbay CCG | E200: 83146.68808 | F200: 293831.3333 | G200: 282.9742055 | H200: 0.02423697161 | J200: 81297.61156 | K200: 295595.9375 | L200: 275.0295293 | M200: 0.0060055006 | O200: 0.02274453683 | P200: 0.02888662976 | Q200: 0.08105031185 | R200: 0.07459682 | S200: 89885.75308 | T200: 0 | U200: 0.08105031185 | V200: 0.07459682 | W200: 89885.75308 | X200: 89886 | Y200: 304.0840167 | Z200: 0.08105328159 | AA200: 0.07459977201 | AC200: 87918.31387 | AD200: 297.4273416 | AE200: 0.02238084469 | AF200: 0.02238084469

Sheet Specialised 2020-21
A1: NHS England - 2019-20 to 2023-24 Allocations | E1: 2019-20 | J1: 2020-21 | L1: 0.0679115958 | P1: -0.1342656695 | Q1: 10 | R1: 0.0614422 | T1: -10 | U1: 0.0614422 | X1: 1.0614422 | AF1: -0.13950608
A2: Minimum allocations for specialist services | P2: -0.1342656695 | Q2: 10 | R2: 0 | S2: 1 | T2: -10 | U2: 0.0614422 | AF2: 0.1407438328
A3: 2019-20 minimum allocation calculations | U3: 0 | AF3: 37
L4: 312.8772692 | X4: -0.0882306844 | AF4: 72
B5: England | E5: 17521036 | F5: 59447416.9 | G5: 294.7316623 | J5: 17521036.37 | K5: 59802739.78 | L5: 292.9804961 | M5: 0.005977095412 | X5: 18710918 | AC5: 18710917.91 | AE5: 4.715465352e-09
E6: Baseline | J6: Opening Target | O6: Distance from Target | Q6: Minimum per capita growth | T6: Per capita pace of change | AC6: Closing target
A7: CCG | B7: Clinical Commissioning Group | E7: Baseline £000 | F7: Estimated Population | G7: Allocation per capita £ | H7: Closing DfT | J7: Opening Target £000 | K7: Estimated Population | L7: Opening Target per capita £ | M7: population growth rate % | O7: DFT (total allocation) | P7: DFT (per capita) | Q7: Apply minimum per capita growth [programme] | R7: Apply minimum per capita growth [per capita] | S7: Allocation after min per capita growth £000 | T7: First Transition position | U7: Growth on per capita parameters [programme] | V7: Growth on per capita parameters [per capita] | W7: Allocation after per capita p-o-c | X7: Minimum allocation £000 | Y7: Minimum allocation per head £ | Z7: Growth after rounding | AA7: Per capita growth after rounding | AC7: Target allocations from the fair shares formula £000 | AD7: Target per head | AE7: DFT (total allocation) | AF7: DFT (per capita)
A9: 00C | B9: NHS Darlington CCG | E9: 29377 | F9: 108392.1875 | G9: =E9/F9*1000 -> 271.0250681 | H9: -0.03378004054 | J9: 30405.44438 | K9: 108449.6406 | L9: =J9/K9*1000 -> 280.3646393 | M9: =K9/F9-1 -> 0.0005300485794 | O9: =E9/J9-1 -> -0.03382434948 | P9: =G9/L9-1 -> -0.03331222945 | Q9: =(1+M9)*(1+R9)-1 -> 0.06200481593 | R9: =MinGrowthPerHead(P9,0,1,$Q$1,$Q$2,$R$1,$R$2) -> 0.0614422 | S9: =(1+IF($S$2=1,Q9,0))*$E9 -> 31198.51548 | T9: =MinMaxRamp(P9,0,1,$P$2,$T$2) -> 0 | U9: =(1+M9)*(1+V9)-1 -> 0.06200481593 | V9: =MAX(R9,NewMinGrowthPerHead(P9,$P$2,$L$1,$U$1,$T$2,AD9,G9,T9, $P$1)) -> 0.0614422 | W9: =(1+IF($S$2=1,U9,0))*$E9 -> 31198.51548 | X9: =IF(ROUND(W9,0)/E9>$X$1,ROUND(W9,0),ROUNDUP(W9,0)) -> 31199 | Y9: =X9/K9*1000 -> 287.6819123 | Z9: =X9/E9-1 -> 0.06202130919 | AA9: =Y9/G9-1 -> 0.06145868452 | AC9: 32470.32663 | AD9: =AC9/K9*1000 -> 299.4046494 | AE9: =X9/AC9-1 -> -0.0391534905 | AF9: =Y9/AD9-1 -> -0.0391534905
A10: 00D | B10: NHS Durham Dales, Easington and Sedgefield CCG | E10: 74647 | F10: 293122.5 | G10: =E10/F10*1000 -> 254.661447 | H10: -0.07846267062 | J10: 81010.74975 | K10: 294087.8125 | L10: =J10/K10*1000 -> 275.4644916 | M10: =K10/F10-1 -> 0.003293205059 | O10: =E10/J10-1 -> -0.07855438655 | P10: =G10/L10-1 -> -0.0755198772 | Q10: =(1+M10)*(1+R10)-1 -> 0.06493774682 | R10: =MinGrowthPerHead(P10,0,1,$Q$1,$Q$2,$R$1,$R$2) -> 0.0614422 | S10: =(1+IF($S$2=1,Q10,0))*$E10 -> 79494.40799 | T10: =MinMaxRamp(P10,0,1,$P$2,$T$2) -> 0 | U10: =(1+M10)*(1+V10)-1 -> 0.06493774682 | V10: 0.0614422 | W10: =(1+IF($S$2=1,U10,0))*$E10 -> 79494.40799 | X10: =IF(ROUND(W10,0)/E10>$X$1,ROUND(W10,0),ROUNDUP(W10,0)) -> 79494 | Y10: 270.3070193 | Z10: 0.06493228127 | AA10: 0.06143675239 | AC10: 86512.31904 | AD10: 294.1717248 | AE10: =X10/AC10-1 -> -0.08112508277 | AF10: -0.08112508277
A11: 00J | B11: NHS North Durham CCG | E11: 64643 | F11: 260056.4375 | G11: 248.572966 | H11: -0.07027226308 | J11: 69550.61506 | K11: 260704.7812 | L11: 266.779208 | M11: 0.00249308864 | O11: -0.07056177796 | P11: -0.06824460609 | Q11: 0.06408846949 | R11: 0.0614422 | S11: 68785.87093 | T11: 0 | U11: 0.06408846949 | V11: 0.0614422 | W11: 68785.87093 | X11: 68786 | Y11: 263.846331 | Z11: 0.0640904661 | AA11: 0.06144419164 | AC11: 74273.90831 | AD11: 284.8966097 | AE11: -0.07388743151 | AF11: -0.07388743151
A12: 00K | B12: NHS Hartlepool and Stockton-on-Tees CCG | E12: 78648 | F12: 298132.2188 | G12: 263.8024174 | H12: -0.07284873693 | J12: 84842.55205 | K12: 298891.875 | L12: 283.8570036 | M12: 0.002548051509 | O12: -0.07301232576 | P12: -0.07065031342 | Q12: 0.0641468094 | R12: 0.0614422 | S12: 83693.01827 | T12: 0 | U12: 0.0641468094 | V12: 0.0614422 | W12: 83693.01827 | X12: 83693 | Y12: 280.0109571 | Z12: 0.06414657715 | AA12: 0.06144196834 | AC12: 90604.34515 | AD12: 303.1341857 | AE12: -0.07628050441 | AF12: -0.07628050441
A13: 00L | B13: NHS Northumberland CCG | E13: 90549 | F13: 325474.5938 | G13: 278.2060466 | H13: -0.0478547538 | J13: 95193.41752 | K13: 325564.0625 | L13: 292.3953485 | M13: 0.0002748870472 | O13: -0.04878927184 | P13: -0.04852779633 | Q13: 0.06173397671 | R13: 0.0614422 | S13: 96138.94986 | T13: 0 | U13: 0.06173397671 | V13: 0.0614422 | W13: 96138.94986 | X13: 96139 | Y13: 295.2997922 | Z13: 0.06173453048 | AA13: 0.06144275361 | AC13: 101658.1544 | AD13: 312.2523833 | AE13: -0.05429131042 | AF13: -0.05429131042
A14: 00M | B14: NHS South Tees CCG | E14: 98813 | F14: 297279.8125 | G14: 332.3905487 | H14: -0.03954170187 | J14: 102725.2703 | K14: 297414.375 | L14: 345.394436 | M14: 0.0004526459394 | O14: -0.03808478968 | P14: -0.03764938266 | Q14: 0.0619226575 | R14: 0.0614422 | S14: 104931.7636 | T14: 0 | U14: 0.0619226575 | V14: 0.0614422 | W14: 104931.7636 | X14: 104932 | Y14: 352.8141503 | Z14: 0.06192505035 | AA14: 0.06144459176 | AC14: 109701.5074 | AD14: 368.8507233 | AE14: -0.04347713596 | AF14: -0.04347713596
A15: 00N | B15: NHS South Tyneside CCG | E15: 46188 | F15: 157356.1406 | G15: 293.5252467 | H15: -0.06162469827 | J15: 49233.45099 | K15: 157527.4219 | L15: 312.5389244 | M15: 0.001088494223 | O15: -0.06185735373 | P15: -0.06083619087 | Q15: 0.0625975737 | R15: 0.0614422 | S15: 49079.25673 | T15: 0 | U15: 0.0625975737 | V15: 0.0614422 | W15: 49079.25673 | X15: 49079 | Y15: 311.5584539 | Z15: 0.06259201524 | AA15: 0.06143664758 | AC15: 52576.97322 | AD15: 333.7639415 | AE15: -0.06653051712 | AF15: -0.06653051712
A16: 00P | B16: NHS Sunderland CCG | E16: 79874 | F16: 284309.3125 | G16: 280.9404986 | H16: -0.04317737287 | J16: 83381.26001 | K16: 284521.125 | L16: 293.0582396 | M16: 0.0007450072533 | O16: -0.04206292891 | P16: -0.04134925884 | Q16: 0.06223298214 | R16: 0.0614422 | S16: 84844.79722 | T16: 0 | U16: 0.06223298214 | V16: 0.0614422 | W16: 84844.79722 | X16: 84845 | Y16: 298.2028136 | Z16: 0.06223552095 | AA16: 0.06144473692 | AC16: 89043.81444 | AD16: 312.9602923 | AE16: -0.04715447631 | AF16: -0.04715447631
A17: 00Q | B17: NHS Blackburn with Darwen CCG | E17: 51411 | F17: 175157.5156 | G17: 293.512955 | H17: -0.0994149142 | J17: 57021.63224 | K17: 175171.625 | L17: 325.5186577 | M17: 8.055249556e-05 | O17: -0.09839480247 | P17: -0.09832217592 | Q17: 0.06152770182 | R17: 0.0614422 | S17: 54574.20068 | T17: 0 | U17: 0.06152770182 | V17: 0.0614422 | W17: 54574.20068 | X17: 54574 | Y17: 311.5458911 | Z17: 0.06152379841 | AA17: 0.06143829691 | AC17: 60894.06228 | AD17: 347.6251492 | AE17: -0.103787825 | AF17: -0.103787825
A18: 00R | B18: NHS Blackpool CCG | E18: 65174 | F18: 173096.5469 | G18: 376.5181985 | H18: -0.03136425022 | J18: 67029.10565 | K18: 172778.25 | L18: 387.9487473 | M18: -0.00183884012 | O18: -0.02767612115 | P18: -0.02946406931 | Q18: 0.0594903775 | R18: 0.0614422 | S18: 69051.22586 | T18: 0 | U18: 0.0594903775 | V18: 0.0614422 | W18: 69051.22586 | X18: 69052 | Y18: 399.6567855 | Z18: 0.0595022555 | AA18: 0.06145409988 | AC18: 71581.15918 | AD18: 414.2949658 | AE18: -0.03533274967 | AF18: -0.03533274967
A19: 00T | B19: NHS Bolton CCG | E19: 97721 | F19: 310601.6875 | G19: 314.6183808 | H19: 0.02436550362 | J19: 95287.4401 | K19: 311766.75 | L19: 305.6369549 | M19: 0.003750985738 | O19: 0.02553914656 | P19: 0.02938592927 | Q19: 0.06542365455 | R19: 0.0614422 | S19: 104114.2649 | T19: 0 | U19: 0.06542365455 | V19: 0.0614422 | W19: 104114.2649 | X19: 104114 | Y19: 333.9483765 | Z19: 0.0654209433 | AA19: 0.06143949888 | AC19: 101758.5622 | AD19: 326.3932482 | AE19: 0.02314731783 | AF19: 0.02314731783
A20: 00V | B20: NHS Bury CCG | E20: 67277 | F20: 204868.2812 | G20: 328.3914893 | H20: 0.07497447119 | J20: 62491.51823 | K20: 205557.6562 | L20: 304.0096846 | M20: 0.003364966972 | O20: 0.07657810054 | P20: 0.08020075029 | Q20: 0.06501391795 | R20: 0.0614422 | S20: 71650.94136 | T20: 0 | U20: 0.06501391795 | V20: 0.0614422 | W20: 71650.94136 | X20: 71651 | Y20: 348.5688702 | Z20: 0.0650147896 | AA20: 0.06144306873 | AC20: 66735.41696 | AD20: 324.6554674 | AE20: 0.07365778567 | AF20: 0.07365778567
A21: 00X | B21: NHS Chorley and South Ribble CCG | E21: 52841 | F21: 184909.5625 | G21: 285.7667245 | H21: -0.0276247129 | J21: 54450.57177 | K21: 186178.5312 | L21: 292.464289 | M21: 0.006862645354 | O21: -0.02956023628 | P21: -0.02290045235 | Q21: 0.06872650138 | R21: 0.0614422 | S21: 56472.57706 | T21: 0 | U21: 0.06872650138 | V21: 0.0614422 | W21: 56472.57706 | X21: 56473 | Y21: 303.3271324 | Z21: 0.0687345054 | AA21: 0.06145014947 | AC21: 58148.39699 | AD21: 312.3260056 | AE21: -0.02881243637 | AF21: -0.02881243637
A22: 00Y | B22: NHS Oldham CCG | E22: 79764 | F22: 256758.2344 | G22: 310.6580017 | H22: 0.05492580553 | J22: 75565.8303 | K22: 258134.7344 | L22: 292.7379397 | M22: 0.005361074411 | O22: 0.05555645568 | P22: 0.06121537238 | Q22: 0.06713267062 | R22: 0.0614422 | S22: 85118.77034 | T22: 0 | U22: 0.06713267062 | V22: 0.0614422 | W22: 85118.77034 | X22: 85119 | Y22: 329.7464024 | Z22: 0.06713554987 | AA22: 0.0614450639 | AC22: 80697.62642 | AD22: 312.6182403 | AE22: 0.05478938817 | AF22: 0.05478938817
A23: 01A | B23: NHS East Lancashire CCG | E23: 112799 | F23: 382499.5625 | G23: 294.8996837 | H23: -0.07163642332 | J23: 121392.7619 | K23: 382833.375 | L23: 317.0903319 | M23: 0.0008727134165 | O23: -0.07079303401 | P23: -0.06998210263 | Q23: 0.06236853485 | R23: 0.0614422 | S23: 119834.1084 | T23: 0 | U23: 0.06236853485 | V23: 0.0614422 | W23: 119834.1084 | X23: 119834 | Y23: 313.018686 | Z23: 0.06236757418 | AA23: 0.06144124017 | AC23: 129636.7381 | AD23: 338.6244423 | AE23: -0.07561697593 | AF23: -0.07561697593
A24: 01C | B24: NHS Eastern Cheshire CCG | E24: 60282 | F24: 209256.7656 | G24: 288.0767072 | H24: 0.0576519175 | J24: 57001.84214 | K24: 209983.75 | L24: 271.4583492 | M24: 0.003474126023 | O24: 0.05754476934 | P24: 0.06121881315 | Q24: 0.06512978397 | R24: 0.0614422 | S24: 64208.15364 | T24: 0 | U24: 0.06512978397 | V24: 0.0614422 | W24: 64208.15364 | X24: 64208 | Y24: 305.7760422 | Z24: 0.06512723533 | AA24: 0.06143966018 | AC24: 60872.92821 | AD24: 289.8935189 | AE24: 0.05478743825 | AF24: 0.05478743825
A25: 01D | B25: NHS Heywood, Middleton and Rochdale CCG | E25: 82804 | F25: 234477.7031 | G25: 353.1423197 | H25: 0.04660732985 | J25: 79071.60696 | K25: 235364.3906 | L25: 335.9539935 | M25: 0.003781542928 | O25: 0.04720269613 | P25: 0.05116273807 | Q25: 0.06545608924 | R25: 0.0614422 | S25: 88224.02601 | T25: 0 | U25: 0.06545608924 | V25: 0.0614422 | W25: 88224.02601 | X25: 88224 | Y25: 374.8400502 | Z25: 0.06545577508 | AA25: 0.06144188702 | AC25: 84441.48598 | AD25: 358.7691653 | AE25: 0.04479449859 | AF25: 0.04479449859
A26: 01E | B26: NHS Greater Preston CCG | E26: 64884 | F26: 209249.0156 | G26: 310.0803118 | H26: 0.006728765778 | J26: 64341.92288 | K26: 209231.7188 | L26: 307.5151476 | M26: -8.266167919e-05 | O26: 0.008424944425 | P26: 0.008341586326 | Q26: 0.06135445941 | R26: 0.0614422 | S26: 68864.92274 | T26: 0 | U26: 0.06135445941 | V26: 0.0614422 | W26: 68864.92274 | X26: 68865 | Y26: 329.1326975 | Z26: 0.06135565008 | AA26: 0.06144339078 | AC26: 68711.48553 | AD26: 328.398992 | AE26: 0.002234189294 | AF26: 0.002234189294
A27: 01F | B27: NHS Halton CCG | E27: 40031 | F27: 131605.6875 | G27: 304.1737843 | H27: 0.0149517545 | J27: 39427.59437 | K27: 131833.6406 | L27: 299.0708152 | M27: 0.001732091746 | O27: 0.01530414527 | P27: 0.0170627452 | Q27: 0.06328071527 | R27: 0.0614422 | S27: 42564.19031 | T27: 0 | U27: 0.06328071527 | V27: 0.0614422 | W27: 42564.19031 | X27: 42564 | Y27: 322.8614472 | Z27: 0.06327596113 | AA27: 0.06143745408 | AC27: 42105.18522 | AD27: 319.3811915 | AE27: 0.01089687119 | AF27: 0.01089687119
A28: 01G | B28: NHS Salford CCG | E28: 95226 | F28: 275610.5 | G28: 345.5093329 | H28: 0.01545492805 | J28: 93790.79153 | K28: 278114.5 | L28: 337.2380496 | M28: 0.009085285212 | O28: 0.01530223217 | P28: 0.02452654253 | Q28: 0.07108570512 | R28: 0.0614422 | S28: 101995.2074 | T28: 0 | U28: 0.07108570512 | V28: 0.0614422 | W28: 101995.2074 | X28: 101995 | Y28: 366.7374409 | Z28: 0.07108352761 | AA28: 0.06144004209 | AC28: 100160.2739 | AD28: 360.1404237 | AE28: 0.01831790263 | AF28: 0.01831790263
A29: 01H | B29: NHS Cumbria CCG | E29: 91908 | F29: 323764.0625 | G29: 283.8733839 | H29: -0.00437428301 | J29: 92255.25816 | K29: 323354.9062 | L29: 285.3065049 | M29: -0.001263748196 | O29: -0.003764101509 | P29: -0.005023092829 | Q29: 0.06010080433 | R29: 0.0614422 | S29: 97431.74472 | T29: 0 | U29: 0.06010080433 | V29: 0.0614422 | W29: 97431.74472 | X29: 97432 | Y29: 301.3159786 | Z29: 0.06010358184 | AA29: 0.06144498102 | AC29: 98520.45996 | AD29: 304.682125 | AE29: -0.01104806006 | AF29: -0.01104806006
A30: 01J | B30: NHS Knowsley CCG | E30: 56849 | F30: 165618.9688 | G30: 343.2517448 | H30: -0.01055978285 | J30: 57392.27717 | K30: 166135.6719 | L30: 345.4542695 | M30: 0.00311983059 | O30: -0.009466032654 | P30: -0.006375734483 | Q30: 0.06475371985 | R30: 0.0614422 | S30: 60530.18422 | T30: 0 | U30: 0.06475371985 | V30: 0.0614422 | W30: 60530.18422 | X30: 60530 | Y30: 364.3407783 | Z30: 0.06475047934 | AA30: 0.06143896957 | AC30: 61289.8783 | AD30: 368.9146202 | AE30: -0.01239810422 | AF30: -0.01239810422
A31: 01K | B31: NHS Morecambe Bay CCG | E31: 93819 | F31: 346843 | G31: 270.4941429 | H31: -0.03997074587 | J31: 97642.32058 | K31: 347573.9375 | L31: 280.9253228 | M31: 0.00210740162 | O31: -0.03915638793 | P31: -0.03713150455 | Q31: 0.06367908501 | R31: 0.0614422 | S31: 99793.30808 | T31: 0 | U31: 0.06367908501 | V31: 0.0614422 | W31: 99793.30808 | X31: 99793 | Y31: 287.1130117 | Z31: 0.06367580128 | AA31: 0.06143892317 | AC31: 104273.3664 | AD31: 300.0034098 | AE31: -0.042967505 | AF31: -0.042967505
A32: 01R | B32: NHS South Cheshire CCG | E32: 50637 | F32: 186311.0625 | G32: 271.7874039 | H32: 0.05752595896 | J32: 47854.34192 | K32: 186706.9688 | L32: 256.3072082 | M32: 0.002124974463 | O32: 0.05814849744 | P32: 0.06039703598 | Q32: 0.06369773757 | R32: 0.0614422 | S32: 53862.46234 | T32: 0 | U32: 0.06369773757 | V32: 0.0614422 | W32: 53862.46234 | X32: 53862 | Y32: 288.4841437 | Z32: 0.06368860714 | AA32: 0.06143308894 | AC32: 51104.20665 | AD32: 273.7134398 | AE32: 0.05396411635 | AF32: 0.05396411635
A33: 01T | B33: NHS South Sefton CCG | E33: 55765 | F33: 155182.25 | G33: 359.3516655 | H33: 0.01287615279 | J33: 54965.56461 | K33: 155277.4375 | L33: 353.982945 | M33: 0.0006133916733 | O33: 0.01454429497 | P33: 0.01516660799 | Q33: 0.06209327981 | R33: 0.0614422 | S33: 59227.63175 | T33: 0 | U33: 0.06209327981 | V33: 0.0614422 | W33: 59227.63175 | X33: 59228 | Y33: 381.433394 | Z33: 0.06209988344 | AA33: 0.06144879958 | AC33: 58698.36382 | AD33: 378.0224917 | AE33: 0.009023014334 | AF33: 0.009023014334
A34: 01V | B34: NHS Southport and Formby CCG | E34: 39098 | F34: 125268.4766 | G34: 312.1136384 | H34: -0.0150846665 | J34: 39667.05084 | K34: 125542.4844 | L34: 315.9651575 | M34: 0.002187364451 | O34: -0.01434568068 | P34: -0.01218969546 | Q34: 0.06376396094 | R34: 0.0614422 | S34: 41591.04334 | T34: 0 | U34: 0.06376396094 | V34: 0.0614422 | W34: 41591.04334 | X34: 41591 | Y34: 331.2902418 | Z34: 0.06376285232 | AA34: 0.0614410938 | AC34: 42360.90357 | AD34: 337.4228555 | AE34: -0.0181748618 | AF34: -0.0181748618
A35: 01W | B35: NHS Stockport CCG | E35: 97746 | F35: 313465.75 | G35: 311.8235405 | H35: 0.1104246786 | J35: 87922.07511 | K35: 314968.75 | L35: 279.1453918 | M35: 0.004794782205 | O35: 0.1117344521 | P35: 0.1170649766 | Q35: 0.06653158417 | R35: 0.0614422 | S35: 104249.1962 | T35: 0 | U35: 0.06653158417 | V35: 0.0614422 | W35: 104249.1962 | X35: 104249 | Y35: 330.9820419 | Z35: 0.06652957666 | AA35: 0.06144020207 | AC35: 93893.00354 | AD35: 298.1026008 | AE35: 0.1102957204 | AF35: 0.1102957204
A36: 01X | B36: NHS St Helens CCG | E36: 58625 | F36: 198154.4375 | G36: 295.8550953 | H36: 0.01338897909 | J36: 57787.32394 | K36: 198715.8594 | L36: 290.8037845 | M36: 0.002833254113 | O36: 0.01449584439 | P36: 0.01737016891 | Q36: 0.06444953548 | R36: 0.0614422 | S36: 62403.35402 | T36: 0 | U36: 0.06444953548 | V36: 0.0614422 | W36: 62403.35402 | X36: 62403 | Y36: 314.0313018 | Z36: 0.0644434968 | AA36: 0.06143617838 | AC36: 61711.75333 | AD36: 310.5527336 | AE36: 0.01120121585 | AF36: 0.01120121585
A37: 01Y | B37: NHS Tameside and Glossop CCG | E37: 78923 | F37: 248556.2812 | G37: 317.5256711 | H37: 0.04971824607 | J37: 75084.22107 | K37: 249223.8125 | L37: 301.2722593 | M37: 0.002685634202 | O37: 0.05112630695 | P37: 0.05394924771 | Q37: 0.06429284548 | R37: 0.0614422 | S37: 83997.18424 | T37: 0 | U37: 0.06429284548 | V37: 0.0614422 | W37: 83997.18424 | X37: 83997 | Y37: 337.0344076 | Z37: 0.064290511 | AA37: 0.06143987178 | AC37: 80183.31034 | AD37: 321.7321392 | AE37: 0.04756213787 | AF37: 0.04756213787
A38: 02A | B38: NHS Trafford CCG | E38: 79311 | F38: 243556.875 | G38: 325.6364658 | H38: 0.1404891711 | J38: 69551.84403 | K38: 245133.5625 | L38: 283.7304012 | M38: 0.006473590614 | O38: 0.1403148414 | P38: 0.1476967729 | Q38: 0.06831354226 | R38: 0.0614422 | S38: 84729.01535 | T38: 0 | U38: 0.06831354226 | V38: 0.0614422 | W38: 84729.01535 | X38: 84729 | Y38: 345.6442241 | Z38: 0.06831334872 | AA38: 0.0614420077 | AC38: 74275.22075 | AD38: 302.9989855 | AE38: 0.1407438328 | AF38: 0.1407438328
A39: 02D | B39: NHS Vale Royal CCG | E39: 25016 | F39: 107292.4375 | G39: 233.1571598 | H39: -0.002097952588 | J39: 25029.87282 | K39: 107566.4219 | L39: 232.6922509 | M39: 0.00255362243 | O39: -0.0005542507136 | P39: 0.00199795637 | Q39: 0.06415272261 | R39: 0.0614422 | S39: 26620.84451 | T39: 0 | U39: 0.06415272261 | V39: 0.0614422 | W39: 26620.84451 | X39: 26621 | Y39: 247.4842942 | Z39: 0.06415893828 | AA39: 0.06144839984 | AC39: 26729.69143 | AD39: 248.494753 | AE39: -0.004066318209 | AF39: -0.004066318209
A40: 02E | B40: NHS Warrington CCG | E40: 60010 | F40: 219281.6562 | G40: 273.6663022 | H40: 0.04335576935 | J40: 57583.3416 | K40: 220369.6406 | L40: 261.3034238 | M40: 0.004961584081 | O40: 0.04214167392 | P40: 0.04731234746 | Q40: 0.06670863472 | R40: 0.0614422 | S40: 64013.18517 | T40: 0 | U40: 0.06670863472 | V40: 0.0614422 | W40: 64013.18517 | X40: 64013 | Y40: 290.4801216 | Z40: 0.06670554908 | AA40: 0.06143912959 | AC40: 61493.91821 | AD40: 279.0489563 | AE40: 0.04096473048 | AF40: 0.04096473048
A41: 02F | B41: NHS West Cheshire CCG | E41: 74083 | F41: 264776.8438 | G41: 279.7941049 | H41: 0.03283621127 | J41: 71737.00329 | K41: 265597.6875 | L41: 270.0964905 | M41: 0.003100134205 | O41: 0.03270274197 | P41: 0.03590425906 | Q41: 0.06473281327 | R41: 0.0614422 | S41: 78878.60101 | T41: 0 | U41: 0.06473281327 | V41: =MAX(R41,NewMinGrowthPerHead(P41,$P$2,$L$1,$U$1,$T$2,AD41,G41,T41, $P$1)) -> 0.0614422 | W41: 78878.60101 | X41: 78879 | Y41: =X41/K41*1000 -> 296.9867725 | Z41: =X41/E41-1 -> 0.06473819905 | AA41: =Y41/G41-1 -> 0.06144756913 | AC41: 76608.77766 | AD41: =AC41/K41*1000 -> 288.4391742 | AE41: 0.02963397154 | AF41: 0.02963397154
A42: 02G | B42: NHS West Lancashire CCG | E42: 37187 | F42: 113720.625 | G42: 327.0031272 | H42: 0.01967166768 | J42: 36420.42746 | K42: 113877.375 | L42: 319.8214523 | M42: 0.001378377933 | O42: 0.02104787317 | P42: 0.02245526303 | Q42: 0.06290526851 | R42: 0.0614422 | S42: 39526.25822 | T42: 0 | U42: 0.06290526851 | V42: 0.0614422 | W42: 39526.25822 | X42: 39526 | Y42: 347.0926512 | Z42: 0.06289832468 | AA42: 0.06143526574 | AC42: 38893.79681 | AD42: 341.5410375 | AE42: 0.01625460205 | AF42: 0.01625460205
A43: 02H | B43: NHS Wigan Borough CCG | E43: 101380 | F43: 328789.4375 | G43: 308.3432387 | H43: 0.03059044466 | J43: 98293.49688 | K43: 329583.8125 | L43: 298.235208 | M43: 0.002416059975 | O43: 0.03140088832 | P43: 0.03389281472 | Q43: 0.06400670801 | R43: 0.0614422 | S43: 107869.0001 | T43: 0 | U43: 0.06400670801 | V43: 0.0614422 | W43: 107869.0001 | X43: 107869 | Y43: 327.2885254 | Z43: 0.06400670744 | AA43: 0.06144219942 | AC43: 104968.7651 | AD43: 318.4888369 | AE43: 0.02762950374 | AF43: 0.02762950374
A44: 02M | B44: NHS Fylde & Wyre CCG | E44: 48568 | F44: 178249.3125 | G44: 272.4722992 | H44: -0.04565633812 | J44: 50955.32562 | K44: 178955.0312 | L44: 284.7381561 | M44: 0.003959166743 | O44: -0.04685134657 | P44: -0.04307767212 | Q44: 0.06564462666 | R44: 0.0614422 | S44: 51756.22823 | T44: 0 | U44: 0.06564462666 | V44: 0.0614422 | W44: 51756.22823 | X44: 51756 | Y44: 289.2123213 | Z44: 0.06563992752 | AA44: 0.0614375194 | AC44: 54415.7831 | AD44: 304.0751786 | AE44: -0.04887889039 | AF44: -0.04887889039
A45: 02N | B45: NHS Airedale, Wharfedale and Craven CCG | E45: 38515 | F45: 159702.5 | G45: 241.1671702 | H45: -0.03154276207 | J45: 39794.92504 | K45: 160223.2188 | L45: 248.3717737 | M45: 0.003260554782 | O45: -0.03216302168 | P45: -0.02900733619 | Q45: 0.06490309044 | R45: 0.0614422 | S45: 41014.74253 | T45: 0 | U45: 0.06490309044 | V45: 0.0614422 | W45: 41014.74253 | X45: 41015 | Y45: 255.9866187 | Z45: 0.06490977541 | AA45: 0.06144886325 | AC45: 42497.4619 | AD45: 265.2390973 | AE45: -0.03488353973 | AF45: -0.03488353973
A46: 02P | B46: NHS Barnsley CCG | E46: 75284 | F46: 262230.9375 | G46: 287.0904582 | H46: -0.05213867124 | J46: 79558.69599 | K46: 264060.1562 | L46: 301.2900436 | M46: 0.006975602373 | O46: -0.05373009121 | P46: -0.04712928859 | Q46: 0.06884639873 | R46: 0.0614422 | S46: 80467.03228 | T46: 0 | U46: 0.06884639873 | V46: 0.0614422 | W46: 80467.03228 | X46: 80467 | Y46: 304.7298053 | Z46: 0.06884596993 | AA46: 0.06144177417 | AC46: 84961.654 | AD46: 321.7511313 | AE46: -0.05290214803 | AF46: -0.05290214803
A47: 02Q | B47: NHS Bassetlaw CCG | E47: 30175 | F47: 117732.3672 | G47: 256.3016503 | H47: -0.07800948055 | J47: 32769.26859 | K47: 118099.2578 | L47: 277.4722653 | M47: 0.00311631061 | O47: -0.07916772953 | P47: -0.07629813016 | Q47: 0.06474998359 | R47: 0.0614422 | S47: 32128.83075 | T47: 0 | U47: 0.06474998359 | V47: 0.0614422 | W47: 32128.83075 | X47: 32129 | Y47: 272.0508206 | Z47: 0.06475559238 | AA47: 0.06144779136 | AC47: 34994.68192 | AD47: 296.3158496 | AE47: -0.08188906883 | AF47: -0.08188906883
A48: 02R | B48: NHS Bradford Districts CCG | E48: 76717 | F48: 334130.3125 | G48: 229.6020359 | H48: -0.0880968935 | J48: 84122.48276 | K48: 334984.2188 | L48: 251.1237188 | M48: 0.00255560845 | O48: -0.0880321469 | P48: -0.08570151415 | Q48: 0.06415483066 | R48: 0.0614422 | S48: 81638.76614 | T48: 0 | U48: 0.06415483066 | V48: 0.0614422 | W48: 81638.76614 | X48: 81639 | Y48: 243.7099882 | Z48: 0.06415787896 | AA48: 0.06144524053 | AC48: 89835.37481 | AD48: 268.1779313 | AE48: -0.09123772038 | AF48: -0.09123772038
A49: 02T | B49: NHS Calderdale CCG | E49: 58331 | F49: 221396.0625 | G49: 263.4690037 | H49: -0.06093438116 | J49: 62145.7001 | K49: 222195.1562 | L49: 279.6897158 | M49: 0.003609340387 | O49: -0.06138317041 | P49: -0.05799538278 | Q49: 0.0652733062 | R49: 0.0614422 | S49: 62138.45722 | T49: 0 | U49: 0.0652733062 | V49: 0.0614422 | W49: 62138.45722 | X49: 62138 | Y49: 279.6550611 | Z49: 0.06526546776 | AA49: 0.06143438975 | AC49: 66366.11377 | AD49: 298.6838907 | AE49: -0.06370892501 | AF49: -0.06370892501
A50: 02W | B50: NHS Bradford City CCG | E50: 34752 | F50: 140352.5781 | G50: 247.6049992 | H50: -0.1281768941 | J50: 39801.51096 | K50: 140252.5469 | L50: 283.7845861 | M50: -0.0007127140188 | O50: -0.1268673183 | P50: -0.1274896122 | Q50: 0.06068569526 | R50: 0.0614422 | S50: 36860.94928 | T50: 0 | U50: 0.06068569526 | V50: 0.0614422 | W50: 36860.94928 | X50: 36861 | Y50: 262.8187567 | Z50: 0.0606871547 | AA50: 0.06144366047 | AC50: 42504.49509 | AD50: 303.0568502 | AE50: -0.1327740766 | AF50: -0.1327740766
A51: 02X | B51: NHS Doncaster CCG | E51: 87244 | F51: 321430.5625 | G51: 271.4240965 | H51: -0.0806736139 | J51: 94896.74801 | K51: 322119.4688 | L51: 294.6010944 | M51: 0.002143250613 | O51: -0.08064289 | P51: -0.07867247731 | Q51: 0.06371713665 | R51: 0.0614422 | S51: 92802.93787 | T51: 0 | U51: 0.06371713665 | V51: 0.0614422 | W51: 92802.93787 | X51: 92803 | Y51: 288.101183 | Z51: 0.06371784879 | AA51: 0.06144291062 | AC51: 101341.3376 | AD51: 314.6079248 | AE51: -0.08425325545 | AF51: -0.08425325545
A52: 02Y | B52: NHS East Riding of Yorkshire CCG | E52: 84591 | F52: 304863.6562 | G52: 277.4715787 | H52: -0.03686330819 | J52: 87916.82725 | K52: 305466.3438 | L52: 287.8118295 | M52: 0.001976908325 | O52: -0.0378292456 | P52: -0.03592712222 | Q52: 0.06354057392 | R52: 0.0614422 | S52: 89965.96069 | T52: 0 | U52: 0.06354057392 | V52: 0.0614422 | W52: 89965.96069 | X52: 89966 | Y52: 294.5201717 | Z52: 0.06354103864 | AA52: 0.06144266381 | AC52: 93887.39929 | AD52: 307.3575901 | AE52: -0.04176704559 | AF52: -0.04176704559
A53: 03A | B53: NHS Greater Huddersfield CCG | E53: 52602 | F53: 249965.9375 | G53: 210.436672 | H53: -0.08032733294 | J53: 57208.43118 | K53: 251006.7812 | L53: 227.915879 | M53: 0.004163942337 | O53: -0.08052014514 | P53: -0.07669148404 | Q53: 0.06586198412 | R53: 0.0614422 | S53: 56066.47209 | T53: 0 | U53: 0.06586198412 | V53: 0.0614422 | W53: 56066.47209 | X53: 56066 | Y53: 223.3644833 | Z53: 0.06585300939 | AA53: 0.06143326249 | AC53: 61093.54704 | AD53: 243.39401 | AE53: -0.0822926034 | AF53: -0.0822926034
A54: 03D | B54: NHS Hambleton, Richmondshire and Whitby CCG | E54: 42593 | F54: 144023.375 | G54: 295.7367163 | H54: 0.05366983177 | J54: 40437.88108 | K54: 144107.0938 | L54: 280.6099271 | M54: 0.0005812858503 | O54: 0.05329455609 | P54: 0.05390682132 | Q54: 0.06205920133 | R54: 0.0614422 | S54: 45236.28756 | T54: 0 | U54: 0.06205920133 | V54: 0.0614422 | W54: 45236.28756 | X54: 45236 | Y54: 313.9054353 | Z54: 0.06205244993 | AA54: 0.06143545252 | AC54: 43184.08211 | AD54: 299.6665951 | AE54: 0.04751560729 | AF54: 0.04751560729
A55: 03E | B55: NHS Harrogate and Rural District CCG | E55: 40055 | F55: 163245.0625 | G55: 245.3672986 | H55: -0.01843682309 | J55: 40870.46665 | K55: 163361.4375 | L55: 250.1842986 | M55: 0.0007128852672 | O55: -0.01995246739 | P55: -0.01925380594 | Q55: 0.06219888651 | R55: 0.0614422 | S55: 42546.3764 | T55: 0 | U55: 0.06219888651 | V55: 0.0614422 | W55: 42546.3764 | X55: 42546 | Y55: 260.4409012 | Z55: 0.06218948945 | AA55: 0.06143280964 | AC55: 43646.04526 | AD55: 267.1747135 | AE55: -0.02520377866 | AF55: -0.02520377866
A56: 03F | B56: NHS Hull CCG | E56: 96647 | F56: 299668.0312 | G56: 322.5135481 | H56: -0.05226378346 | J56: 101888.8105 | K56: 300221.8125 | L56: 339.3784403 | M56: 0.001847982408 | O56: -0.05144638002 | P56: -0.04969346962 | Q56: 0.06340372651 | R56: 0.0614422 | S56: 102774.78 | T56: 0 | U56: 0.06340372651 | V56: 0.0614422 | W56: 102774.78 | X56: 102775 | Y56: 342.3302229 | Z56: 0.06340600329 | AA56: 0.06144447258 | AC56: 108808.2422 | AD56: 362.4261717 | AE56: -0.05544839301 | AF56: -0.05544839301
A57: 03H | B57: NHS North East Lincolnshire CCG | E57: 48469 | F57: 169562.0781 | G57: 285.8481126 | H57: -0.07304259631 | J57: 52226.08303 | K57: 169500.1562 | L57: 308.1181999 | M57: -0.0003651870494 | O57: -0.07193882469 | P57: -0.07227774061 | Q57: 0.06105457505 | R57: 0.0614422 | S57: 51428.2542 | T57: 0 | U57: 0.06105457505 | V57: 0.0614422 | W57: 51428.2542 | X57: 51429 | Y57: 303.4156495 | Z57: 0.06106996224 | AA57: 0.06145759281 | AC57: 55772.83967 | AD57: 329.0429986 | AE57: -0.07788449894 | AF57: -0.07788449894
A58: 03J | B58: NHS North Kirklees CCG | E58: 47124 | F58: 194611.9688 | G58: 242.1433805 | H58: -0.0614881576 | J58: 50247.62597 | K58: 195498.4375 | L58: 257.0231589 | M58: 0.004555057717 | O58: -0.06216464779 | P58: -0.05789275363 | Q58: 0.06627713048 | R58: 0.0614422 | S58: 50247.2435 | T58: 0 | U58: 0.06627713048 | V58: 0.0614422 | W58: 50247.2435 | X58: 50247 | Y58: 257.019957 | Z58: 0.06627196333 | AA58: 0.06143705628 | AC58: 53660.02244 | AD58: 274.4780118 | AE58: -0.06360456594 | AF58: -0.06360456594
A59: 03K | B59: NHS North Lincolnshire CCG | E59: 45472 | F59: 177652.9844 | G59: 255.9596742 | H59: -0.11770199 | J59: 51613.11289 | K59: 178117.2188 | L59: 289.7704851 | M59: 0.002613152696 | O59: -0.1189835788 | P59: -0.1166813484 | Q59: 0.06421591055 | R59: 0.0614422 | S59: 48392.02588 | T59: 0 | U59: 0.06421591055 | V59: 0.0614422 | W59: 48392.02588 | X59: 48392 | Y59: 271.6862544 | Z59: 0.06421534131 | AA59: 0.06144163225 | AC59: 55118.24175 | AD59: 309.4492612 | AE59: -0.1220329519 | AF59: -0.1220329519
A60: 03L | B60: NHS Rotherham CCG | E60: 73529 | F60: 263993.0938 | G60: 278.5262257 | H60: -0.07034865042 | J60: 79074.40298 | K60: 264819.25 | L60: 298.5976396 | M60: 0.003129461602 | O60: -0.07012892631 | P60: -0.06721893049 | Q60: 0.06476394261 | R60: 0.0614422 | S60: 78291.02794 | T60: 0 | U60: 0.06476394261 | V60: 0.0614422 | W60: 78291.02794 | X60: 78291 | Y60: 295.6393842 | Z60: 0.06476356268 | AA60: 0.06144182125 | AC60: 84444.47187 | AD60: 318.8758818 | AE60: -0.07287003798 | AF60: -0.07287003798
A61: 03M | B61: NHS Scarborough and Ryedale CCG | E61: 31831 | F61: 120626.7188 | G61: 263.8801779 | H61: 0.006532051713 | J61: 31592.13074 | K61: 120801.6562 | L61: 261.5206755 | M61: 0.001450238403 | O61: 0.007561036748 | P61: 0.009022240457 | Q61: 0.06298154424 | R61: 0.0614422 | S61: 33835.76553 | T61: 0 | U61: 0.06298154424 | V61: 0.0614422 | W61: 33835.76553 | X61: 33836 | Y61: 280.0954974 | Z61: 0.06298891018 | AA61: 0.06144955527 | AC61: 33737.60275 | AD61: 279.2809619 | AE61: 0.002916545349 | AF61: 0.002916545349
A62: 03N | B62: NHS Sheffield CCG | E62: 213273 | F62: 604647.125 | G62: 352.7230862 | H62: 0.05237069629 | J62: 202619.7973 | K62: 607792.6875 | L62: 333.3699162 | M62: 0.005202311183 | O62: 0.05257730411 | P62: 0.05805313879 | Q62: 0.06696415263 | R62: 0.0614422 | S62: 227554.6457 | T62: 0 | U62: 0.06696415263 | V62: 0.0614422 | W62: 227554.6457 | X62: 227555 | Y62: 374.3957515 | Z62: 0.06696581377 | AA62: 0.06144385255 | AC62: 216380.0311 | AD62: 356.0095992 | AE62: 0.0516451027 | AF62: 0.0516451027
A63: 03Q | B63: NHS Vale of York CCG | E63: 85155 | F63: 358916.4375 | G63: 237.2557819 | H63: -0.02844969414 | J63: 87726.13676 | K63: 360500 | L63: 243.345733 | M63: 0.004412064577 | O63: -0.02930867415 | P63: -0.02502592134 | Q63: 0.06612535153 | R63: 0.0614422 | S63: 90785.90431 | T63: 0 | U63: 0.06612535153 | V63: 0.0614422 | W63: 90785.90431 | X63: 90786 | Y63: 251.8335645 | Z63: 0.06612647525 | AA63: 0.06144331878 | AC63: 93683.7587 | AD63: 259.8717301 | AE63: -0.03093128134 | AF63: -0.03093128134
A64: 03R | B64: NHS Wakefield CCG | E64: 97896 | F64: 375745.5312 | G64: 260.5380287 | H64: -0.03508905257 | J64: 101524.4257 | K64: 377694.125 | L64: 268.8006483 | M64: 0.005185939919 | O64: -0.03573943555 | P64: -0.0307388382 | Q64: 0.06694677548 | R64: 0.0614422 | S64: 104449.8215 | T64: 0 | U64: 0.06694677548 | V64: 0.0614422 | W64: 104449.8215 | X64: 104450 | Y64: 276.5465309 | Z64: 0.06694859851 | AA64: 0.06144401363 | AC64: 108419.1114 | AD64: 287.0553293 | AE64: -0.03660896474 | AF64: -0.03660896474
A65: 03T | B65: NHS Lincolnshire East CCG | E65: 64097 | F65: 251486.8125 | G65: 254.8722112 | H65: -0.1017533331 | J65: 71388.42762 | K65: 252526.2969 | L65: 282.6970043 | M65: 0.004133355402 | O65: -0.1021373893 | P65: -0.09842620402 | Q65: 0.06582951785 | R65: 0.0614422 | S65: 68316.47461 | T65: 0 | U65: 0.06582951785 | V65: 0.0614422 | W65: 68316.47461 | X65: 68316 | Y65: 270.5302412 | Z65: 0.06582211336 | AA65: 0.06143482599 | AC65: 76236.52966 | AD65: 301.8954089 | AE65: -0.1038941528 | AF65: -0.1038941528
A66: 03V | B66: NHS Corby CCG | E66: 18451 | F66: 79913.375 | G66: 230.8875079 | H66: -0.05622880201 | J66: 19672.87367 | K66: 81145.17188 | L66: 242.4404708 | M66: 0.01541415157 | O66: -0.06210956741 | P66: -0.04765278212 | Q66: 0.07780343096 | R66: 0.0614422 | S66: 19886.5511 | T66: 0 | U66: 0.07780343096 | V66: 0.0614422 | W66: 19886.5511 | X66: 19887 | Y66: 245.0792763 | Z66: 0.07782776001 | AA66: 0.06146615974 | AC66: 21008.88992 | AD66: 258.9049901 | AE66: -0.05340072336 | AF66: -0.05340072336
A67: 03W | B67: NHS East Leicestershire and Rutland CCG | E67: 87674 | F67: 333199 | G67: 263.1280406 | H67: -0.01998557153 | J67: 89605.52368 | K67: 335015.1875 | L67: 267.4670493 | M67: 0.005450759156 | O67: -0.02155585506 | P67: -0.01622259168 | Q67: 0.06722786579 | R67: 0.0614422 | S67: 93568.13591 | T67: 0 | U67: 0.06722786579 | V67: 0.0614422 | W67: 93568.13591 | X67: 93568 | Y67: 279.2948006 | Z67: 0.06722631567 | AA67: 0.06144065828 | AC67: 95690.77779 | AD67: 285.6311635 | AE67: -0.02218372382 | AF67: -0.02218372382
A68: 04C | B68: NHS Leicester City CCG | E68: 111581 | F68: 409607.5625 | G68: 272.4095212 | H68: -0.07470309405 | J68: 120725.5272 | K68: 412727.875 | L68: 292.5063571 | M68: 0.007617809791 | O68: -0.07574642573 | P68: -0.0687056378 | Q68: 0.06952806478 | R68: 0.0614422 | S68: 119339.011 | T68: 0 | U68: 0.06952806478 | V68: 0.0614422 | W68: 119339.011 | X68: 119339 | Y68: 289.1469349 | Z68: 0.06952796623 | AA68: 0.06144210219 | AC68: 128924.1904 | AD68: 312.3709306 | AE68: -0.07434749331 | AF68: -0.07434749331
A69: 04D | B69: NHS Lincolnshire West CCG | E69: 69076 | F69: 238697.6562 | G69: 289.3870057 | H69: -0.04229348493 | J69: 72211.19275 | K69: 239817.1719 | L69: 301.10935 | M69: 0.004690098942 | O69: -0.04341699158 | P69: -0.03893052263 | Q69: 0.06642046894 | R69: 0.0614422 | S69: 73664.06031 | T69: 0 | U69: 0.06642046894 | V69: 0.0614422 | W69: 73664.06031 | X69: 73664 | Y69: 307.1673284 | Z69: 0.06641959581 | AA69: 0.06144133094 | AC69: 77115.17008 | AD69: 321.5581665 | AE69: -0.04475345224 | AF69: -0.04475345224
A70: 04E | B70: NHS Mansfield and Ashfield CCG | E70: 53864 | F70: 195172.625 | G70: 275.9813268 | H70: -0.06146751398 | J70: 57484.835 | K70: 196347.5 | L70: 292.7709037 | M70: 0.006019671048 | O70: -0.06298765586 | P70: -0.05734714979 | Q70: 0.06783173288 | R70: 0.0614422 | S70: 57517.68846 | T70: 0 | U70: 0.06783173288 | V70: 0.0614422 | W70: 57517.68846 | X70: 57518 | Y70: 292.9398133 | Z70: 0.06783751671 | AA70: 0.06144794922 | AC70: 61388.72188 | AD70: 312.6534429 | AE70: -0.06305265471 | AF70: -0.06305265471
A71: 04F | B71: NHS Milton Keynes CCG | E71: 76553 | F71: 297252.1875 | G71: 257.5355312 | H71: -0.02859321986 | J71: 79085.96991 | K71: 300121.75 | L71: 263.5129574 | M71: 0.009653629546 | O71: -0.03202805647 | P71: -0.02268361391 | Q71: 0.07168896978 | R71: 0.0614422 | S71: 82041.0057 | T71: 0 | U71: 0.07168896978 | V71: 0.0614422 | W71: 82041.0057 | X71: 82041 | Y71: 273.3590618 | Z71: 0.07168889528 | AA71: 0.0614421262 | AC71: 84456.82433 | AD71: 281.4085428 | AE71: -0.02860425254 | AF71: -0.02860425254
A72: 04G | B72: NHS Nene CCG | E72: 186509 | F72: 691032.875 | G72: 269.8988814 | H72: -0.02947461616 | J72: 192605.7262 | K72: 695931.1875 | L72: 276.7597281 | M72: 0.007088392864 | O72: -0.03165391981 | P72: -0.02478990237 | Q72: 0.06896611932 | R72: 0.0614422 | S72: 199371.8019 | T72: 0 | U72: 0.06896611932 | V72: 0.0614422 | W72: 199371.8019 | X72: 199372 | Y72: 286.4823471 | Z72: 0.06896718121 | AA72: 0.06144325442 | AC72: 205685.8884 | AD72: 295.5549229 | AE72: -0.0306967507 | AF72: -0.0306967507
A73: 04H | B73: NHS Newark & Sherwood CCG | E73: 32888 | F73: 136000.9688 | G73: 241.8218069 | H73: -0.04076326726 | J73: 34370.82302 | K73: 136950.875 | L73: 250.9719125 | M73: 0.006984555027 | O73: -0.043141912 | P73: -0.03645868404 | Q73: 0.06885590145 | R73: 0.0614422 | S73: 35152.53289 | T73: 0 | U73: 0.06885590145 | V73: =MAX(R73,NewMinGrowthPerHead(P73,$P$2,$L$1,$U$1,$T$2,AD73,G73,T73, $P$1)) -> 0.0614422 | W73: 35152.53289 | X73: 35153 | Y73: =X73/K73*1000 -> 256.6832815 | Z73: =X73/E73-1 -> 0.0688701046 | AA73: =Y73/G73-1 -> 0.06145630463 | AC73: 36705.00046 | AD73: =AC73/K73*1000 -> 268.0158156 | AE73: -0.04228307977 | AF73: -0.04228307977
A74: 04K | B74: NHS Nottingham City CCG | E74: 131341 | F74: 381504.375 | G74: =E74/F74*1000 -> 344.2712813 | H74: 0.007398067066 | J74: 130437.9366 | K74: 383184.875 | L74: =J74/K74*1000 -> 340.4047109 | M74: =K74/F74-1 -> 0.004404929826 | O74: =E74/J74-1 -> 0.006923318694 | P74: =G74/L74-1 -> 0.01135874525 | Q74: =(1+M74)*(1+R74)-1 -> 0.0661177784 | R74: =MinGrowthPerHead(P74,0,1,$Q$1,$Q$2,$R$1,$R$2) -> 0.0614422 | S74: =(1+IF($S$2=1,Q74,0))*$E74 -> 140024.9751 | T74: =MinMaxRamp(P74,0,1,$P$2,$T$2) -> 0 | U74: =(1+M74)*(1+V74)-1 -> 0.0661177784 | V74: 0.0614422 | W74: =(1+IF($S$2=1,U74,0))*$E74 -> 140024.9751 | X74: =IF(ROUND(W74,0)/E74>$X$1,ROUND(W74,0),ROUNDUP(W74,0)) -> 140025 | Y74: 365.4241311 | Z74: 0.06611796773 | AA74: 0.0614423885 | AC74: 139296.185 | AD74: 363.522138 | AE74: =X74/AC74-1 -> 0.00523212447 | AF74: 0.00523212447
A75: 04L | B75: NHS Nottingham North and East CCG | E75: 45768 | F75: 153479.5469 | G75: 298.2026005 | H75: 0.04814256747 | J75: 43722.75426 | K75: 154496.7812 | L75: 283.0010691 | M75: 0.006627817163 | O75: 0.04677760525 | P75: 0.05371545583 | Q75: 0.06847724483 | R75: 0.0614422 | S75: 48902.06654 | T75: 0 | U75: 0.06847724483 | V75: 0.0614422 | W75: 48902.06654 | X75: 48902 | Y75: 316.5243936 | Z75: 0.06847579095 | AA75: 0.06144075569 | AC75: 46692.03628 | AD75: 302.2201233 | AE75: 0.04733063497 | AF75: 0.04733063497
A76: 04M | B76: NHS Nottingham West CCG | E76: 28566 | F76: 94623.32812 | G76: 301.8917276 | H76: 0.01357990634 | J76: 28193.24805 | K76: 95121.66406 | L76: 296.3914511 | M76: 0.005266523038 | O76: 0.01322132001 | P76: 0.01855747344 | Q76: 0.0670323098 | R76: 0.0614422 | S76: 30480.84496 | T76: 0 | U76: 0.0670323098 | V76: 0.0614422 | W76: 30480.84496 | X76: 30481 | Y76: 320.4422494 | Z76: 0.06703773717 | AA76: 0.06144759894 | AC76: 30107.89651 | AD76: 316.5198676 | AE76: 0.01239221375 | AF76: 0.01239221375
A77: 04N | B77: NHS Rushcliffe CCG | E77: 35211 | F77: 128001.9531 | G77: 275.0817401 | H77: 0.02784078791 | J77: 34349.52554 | K77: 128916.7656 | L77: 266.447311 | M77: 0.007146863604 | O77: 0.02507966104 | P77: 0.03240576556 | Q77: 0.06902818263 | R77: 0.0614422 | S77: 37641.55134 | T77: 0 | U77: 0.06902818263 | V77: 0.0614422 | W77: 37641.55134 | X77: 37642 | Y77: 291.9868476 | Z77: 0.06904092471 | AA77: 0.06145485166 | AC77: 36682.25664 | AD77: 284.5421731 | AE77: 0.02616369468 | AF77: 0.02616369468
A78: 04Q | B78: NHS South West Lincolnshire CCG | E78: 33184 | F78: 134597.2812 | G78: 246.5428699 | H78: -0.0506346474 | J78: 35074.36432 | K78: 135580.4688 | L78: 258.6977656 | M78: 0.007304660918 | O78: -0.0538958968 | P78: -0.04698492713 | Q78: 0.06919567535 | R78: 0.0614422 | S78: 35480.18929 | T78: 0 | U78: 0.06919567535 | V78: 0.0614422 | W78: 35480.18929 | X78: 35480 | Y78: 261.6896101 | Z78: 0.06918997107 | AA78: 0.06143653708 | AC78: 37456.32037 | AD78: 276.2663437 | AE78: -0.0527633348 | AF78: -0.0527633348
A79: 04V | B79: NHS West Leicestershire CCG | E79: 99536 | F79: 396364.25 | G79: 251.122547 | H79: -0.04254335229 | J79: 104195.2491 | K79: 399689.625 | L79: 260.6904023 | M79: 0.00838969458 | O79: -0.04471652197 | P79: -0.03670198536 | Q79: 0.07034737587 | R79: 0.0614422 | S79: 106538.0964 | T79: 0 | U79: 0.07034737587 | V79: 0.0614422 | W79: 106538.0964 | X79: 106538 | Y79: 266.5518276 | Z79: 0.07034640733 | AA79: 0.06144123952 | AC79: 111271.3148 | AD79: 278.3943036 | AE79: -0.04253849971 | AF79: -0.04253849971
A80: 04Y | B80: NHS Cannock Chase CCG | E80: 37633 | F80: 133391.125 | G80: 282.1252164 | H80: 0.01677401817 | J80: 36999.8415 | K80: 133519.9062 | L80: 277.1110506 | M80: 0.0009654409167 | O80: 0.01711246525 | P80: 0.01809442724 | Q80: 0.06246695973 | R80: 0.0614422 | S80: 39983.8191 | T80: 0 | U80: 0.06246695973 | V80: 0.0614422 | W80: 39983.8191 | X80: 39984 | Y80: 299.4609652 | Z80: 0.0624717668 | AA80: 0.06144700243 | AC80: 39512.55978 | AD80: 295.9301043 | AE80: 0.01193140166 | AF80: 0.01193140166
A81: 05A | B81: NHS Coventry and Rugby CCG | E81: 155658 | F81: 521674.4062 | G81: 298.3815156 | H81: 0.02663009829 | J81: 151794.1329 | K81: 528344.125 | L81: 287.3016388 | M81: 0.01278521367 | O81: 0.0254546535 | P81: 0.03856531035 | Q81: 0.07501296533 | R81: 0.0614422 | S81: 167334.3682 | T81: 0 | U81: 0.07501296533 | V81: 0.0614422 | W81: 167334.3682 | X81: 167334 | Y81: 316.7140356 | Z81: 0.07501060016 | AA81: 0.06143986469 | AC81: 162102.7147 | AD81: 306.8127515 | AE81: 0.03227142287 | AF81: 0.03227142287
A82: 05C | B82: NHS Dudley CCG | E82: 86442 | F82: 320331.8125 | G82: 269.8514372 | H82: -0.04716283423 | J82: 90572.81807 | K82: 321186.375 | L82: 281.9945836 | M82: 0.002667741594 | O82: -0.04560770169 | P82: -0.04306162966 | Q82: 0.06427385351 | R82: 0.0614422 | S82: 91997.96044 | T82: 0 | U82: 0.06427385351 | V82: 0.0614422 | W82: 91997.96044 | X82: 91998 | Y82: 286.4318264 | Z82: 0.0642743111 | AA82: 0.06144265638 | AC82: 96723.76268 | AD82: 301.1452858 | AE82: -0.04885834202 | AF82: -0.04885834202
A83: 05D | B83: NHS East Staffordshire CCG | E83: 32081 | F83: 142623.875 | G83: 224.9342896 | H83: -0.06897853243 | J83: 34523.38281 | K83: 143146.2188 | L83: 241.1756532 | M83: 0.003662386469 | O83: -0.07074575574 | P83: -0.06734246756 | Q83: 0.06532961155 | R83: 0.0614422 | S83: 34176.83927 | T83: 0 | U83: 0.06532961155 | V83: 0.0614422 | W83: 34176.83927 | X83: 34177 | Y83: 238.75587 | Z83: 0.06533462174 | AA83: 0.06144719191 | AC83: 36867.92083 | AD83: 257.5542767 | AE83: -0.07298813618 | AF83: -0.07298813618
A84: 05F | B84: NHS Herefordshire CCG | E84: 48890 | F84: 188340.4375 | G84: 259.5831286 | H84: -0.02744224315 | J84: 50333.20895 | K84: 189233.0781 | L84: 265.9852571 | M84: 0.004739505954 | O84: -0.02867309627 | P84: -0.02406948663 | Q84: 0.06647291163 | R84: 0.0614422 | S84: 52139.86065 | T84: 0 | U84: 0.06647291163 | V84: 0.0614422 | W84: 52139.86065 | X84: 52140 | Y84: 275.5332235 | Z84: 0.06647576191 | AA84: 0.06144503684 | AC84: 53751.41749 | AD84: 284.0487404 | AE84: -0.02997906962 | AF84: -0.02997906962
A85: 05G | B85: NHS North Staffordshire CCG | E85: 74553 | F85: 218799.0938 | G85: 340.7372431 | H85: 0.05094821223 | J85: 70918.36417 | K85: 219545.2812 | L85: 323.0238599 | M85: 0.003410377471 | O85: 0.05125098229 | P85: 0.05483614495 | Q85: 0.06506211857 | R85: 0.0614422 | S85: 79403.57613 | T85: 0 | U85: 0.06506211857 | V85: 0.0614422 | W85: 79403.57613 | X85: 79404 | Y85: 361.6748196 | Z85: 0.06506780411 | AA85: 0.06144786622 | AC85: 75734.54346 | AD85: 344.9609257 | AE85: 0.04845155693 | AF85: 0.04845155693
A86: 05H | B86: NHS Warwickshire North CCG | E86: 56861 | F86: 192349.4375 | G86: 295.6130298 | H86: -0.01646769962 | J86: 57791.18701 | K86: 193056.6562 | L86: 299.3483267 | M86: 0.003676739372 | O86: -0.01609565501 | P86: -0.01247809517 | Q86: 0.06534484633 | R86: 0.0614422 | S86: 60576.57331 | T86: 0 | U86: 0.06534484633 | V86: 0.0614422 | W86: 60576.57331 | X86: 60577 | Y86: 313.7783549 | Z86: 0.06535235047 | AA86: 0.06144967665 | AC86: 61715.87874 | AD86: 319.6775493 | AE86: -0.01845357734 | AF86: -0.01845357734
A87: 05J | B87: NHS Redditch and Bromsgrove CCG | E87: 50201 | F87: 178487.7656 | G87: 281.2573726 | H87: 0.01507766321 | J87: 49515.20063 | K87: 179143.1562 | L87: 276.40018 | M87: 0.003671907835 | O87: 0.01385027953 | P87: 0.01757304432 | Q87: 0.06533971793 | R87: 0.0614422 | S87: 53481.11918 | T87: 0 | U87: 0.06533971793 | V87: 0.0614422 | W87: 53481.11918 | X87: 53481 | Y87: 298.5377791 | Z87: 0.06533734388 | AA87: 0.06143983463 | AC87: 52877.85692 | AD87: 295.1709573 | AE87: 0.011406345 | AF87: 0.011406345
A88: 05L | B88: NHS Sandwell and West Birmingham CCG | E88: 176107 | F88: 575628.9375 | G88: 305.9384067 | H88: -0.03055337059 | J88: 181854.3105 | K88: 579789.375 | L88: 313.6558177 | M88: 0.007227637857 | O88: -0.03160392797 | P88: -0.02460471186 | Q88: 0.06911391983 | R88: 0.0614422 | S88: 188278.4451 | T88: 0 | U88: 0.06911391983 | V88: 0.0614422 | W88: 188278.4451 | X88: 188278 | Y88: 324.7351678 | Z88: 0.06911139251 | AA88: 0.06143969081 | AC88: 194204.327 | AD88: 334.9566849 | AE88: -0.03051593677 | AF88: -0.03051593677
A89: 05N | B89: NHS Shropshire CCG | E89: 81180 | F89: 311223.875 | G89: 260.841171 | H89: -0.01773589036 | J89: 82886.35817 | K89: 312527.375 | L89: 265.2131135 | M89: 0.004188303356 | O89: -0.02058671903 | P89: -0.0164846391 | Q89: 0.06588784193 | R89: 0.0614422 | S89: 86528.77501 | T89: 0 | U89: 0.06588784193 | V89: 0.0614422 | W89: 86528.77501 | X89: 86529 | Y89: 276.8685463 | Z89: 0.06589061345 | AA89: 0.06144495996 | AC89: 88515.30302 | AD89: 283.2241592 | AE89: -0.02244022165 | AF89: -0.02244022165
A90: 05Q | B90: NHS South East Staffordshire and Seisdon Peninsula CCG | E90: 58014 | F90: 218123.3281 | G90: 265.9688008 | H90: 0.01106894928 | J90: 57414.44709 | K90: 218447.4062 | L90: 262.8296123 | M90: 0.001485756374 | O90: 0.01044254436 | P90: 0.01194381581 | Q90: 0.06301924451 | R90: 0.0614422 | S90: 61669.99845 | T90: 0 | U90: 0.06301924451 | V90: 0.0614422 | W90: 61669.99845 | X90: 61670 | Y90: 282.3105161 | Z90: 0.06301927121 | AA90: 0.06144222666 | AC90: 61313.55381 | AD90: 280.6787907 | AE90: 0.00581349742 | AF90: 0.00581349742
A91: 05R | B91: NHS South Warwickshire CCG | E91: 79564 | F91: 288329.125 | G91: 275.9485362 | H91: 0.0689214411 | J91: 74413.13031 | K91: 289400.875 | L91: 257.1282147 | M91: 0.003717106276 | O91: 0.06921990341 | P91: 0.07319430742 | Q91: 0.06538769346 | R91: 0.0614422 | S91: 84766.50644 | T91: 0 | U91: 0.06538769346 | V91: 0.0614422 | W91: 84766.50644 | X91: 84767 | Y91: 292.9051268 | Z91: 0.06539389674 | AA91: 0.0614483803 | AC91: 79466.64474 | AD91: 274.590202 | AE91: 0.06669911989 | AF91: 0.06669911989
A92: 05T | B92: NHS South Worcestershire CCG | E92: 84843 | F92: 313593.1875 | G92: 270.5511579 | H92: -0.01542726394 | J92: 86404.17152 | K92: 315466.2812 | L92: 273.8935241 | M92: 0.005973005233 | O92: -0.0180682424 | P92: -0.01220315887 | Q92: 0.06778219982 | R92: 0.0614422 | S92: 90593.84518 | T92: 0 | U92: 0.06778219982 | V92: 0.0614422 | W92: 90593.84518 | X92: 90594 | Y92: 287.1749071 | Z92: 0.06778402461 | AA92: 0.06144401396 | AC92: 92272.01669 | AD92: 292.4940704 | AE92: -0.01818554256 | AF92: -0.01818554256
A93: 05V | B93: NHS Stafford and Surrounds CCG | E93: 47372 | F93: 149500.5 | G93: 316.8685055 | H93: 0.07273433295 | J93: 44176.76452 | K93: 150004.2344 | L93: 294.5034499 | M93: 0.003369449433 | O93: 0.07232841766 | P93: 0.07594157404 | Q93: 0.06501867582 | R93: 0.0614422 | S93: 50452.06471 | T93: 0 | U93: 0.06501867582 | V93: 0.0614422 | W93: 50452.06471 | X93: 50452 | Y93: 336.3371721 | Z93: 0.0650173098 | AA93: 0.06144083857 | AC93: 47176.8791 | AD93: 314.5036492 | AE93: 0.06942216106 | AF93: 0.06942216106
A94: 05W | B94: NHS Stoke on Trent CCG | E94: 101370 | F94: 292240 | G94: 346.8724336 | H94: 0.009274885646 | J94: 100396.9723 | K94: 293148.125 | L94: 342.4786437 | M94: 0.003107463044 | O94: 0.009691803727 | P94: 0.01282938369 | Q94: 0.06474059241 | R94: 0.0614422 | S94: 107932.7539 | T94: 0 | U94: 0.06474059241 | V94: 0.0614422 | W94: 107932.7539 | X94: 107933 | Y94: 368.1858787 | Z94: 0.06474302062 | AA94: 0.06144462069 | AC94: 107215.0908 | AD94: 365.7369149 | AE94: 0.006695971113 | AF94: 0.006695971113
A95: 05X | B95: NHS Telford and Wrekin CCG | E95: 52714 | F95: 187726.6094 | G95: 280.8019608 | H95: 0.01475148811 | J95: 52086.42271 | K95: 188812.2188 | L95: 275.8636229 | M95: 0.005782927517 | O95: 0.01204876929 | P95: 0.01790137396 | Q95: 0.06758044331 | R95: 0.0614422 | S95: 56276.43549 | T95: 0 | U95: 0.06758044331 | V95: 0.0614422 | W95: 56276.43549 | X95: 56276 | Y95: 298.0527445 | Z95: 0.06757218196 | AA95: 0.06143398616 | AC95: 55623.6948 | AD95: 294.5979617 | AE95: 0.01172711031 | AF95: 0.01172711031
A96: 05Y | B96: NHS Walsall CCG | E96: 79622 | F96: 287643.6875 | G96: 276.8077433 | H96: -0.04459299181 | J96: 83312.80548 | K96: 289358.9375 | L96: 287.9220051 | M96: 0.005963106699 | O96: -0.04430057854 | P96: -0.03860164092 | Q96: 0.06777169309 | R96: 0.0614422 | S96: 85018.11775 | T96: 0 | U96: 0.06777169309 | V96: 0.0614422 | W96: 85018.11775 | X96: 85018 | Y96: 293.8150131 | Z96: 0.06777021426 | AA96: 0.06144072993 | AC96: 88970.71105 | AD96: 307.4752479 | AE96: -0.04442710423 | AF96: -0.04442710423
A97: 06A | B97: NHS Wolverhampton CCG | E97: 93595 | F97: 282238.0625 | G97: 331.6172141 | H97: 0.03812365553 | J97: 90130.62142 | K97: 283758.125 | L97: 317.6318614 | M97: 0.005385745943 | O97: 0.0384373094 | P97: 0.04403006892 | Q97: 0.06715885802 | R97: 0.0614422 | S97: 99880.73332 | T97: 0 | U97: 0.06715885802 | V97: 0.0614422 | W97: 99880.73332 | X97: 99881 | Y97: 351.9934451 | Z97: 0.06716170736 | AA97: 0.06144503407 | AC97: 96251.53575 | AD97: 339.2027479 | AE97: 0.03770811783 | AF97: 0.03770811783
A98: 06D | B98: NHS Wyre Forest CCG | E98: 29609 | F98: 116725.7969 | G98: 253.6628645 | H98: -0.06855143778 | J98: 31805.49116 | K98: 117143.3125 | L98: 271.509235 | M98: 0.003576892479 | O98: -0.06906012398 | P98: -0.06573025213 | Q98: 0.06523886462 | R98: 0.0614422 | S98: 31540.65754 | T98: 0 | U98: 0.06523886462 | V98: 0.0614422 | W98: 31540.65754 | X98: 31541 | Y98: 269.2513924 | Z98: 0.06525043061 | AA98: 0.06145372477 | AC98: 33965.45282 | AD98: 289.9478604 | AE98: -0.07137996468 | AF98: -0.07137996468
A99: 06F | B99: NHS Bedfordshire CCG | E99: 129385 | F99: 486320.9688 | G99: 266.0485735 | H99: 0.00178681372 | J99: 129392.6322 | K99: 492199.875 | L99: 262.8863573 | M99: 0.01208853129 | O99: -5.898470367e-05 | P99: 0.01202883355 | Q99: 0.07427347725 | R99: 0.0614422 | S99: 138994.8739 | T99: 0 | U99: 0.07427347725 | V99: 0.0614422 | W99: 138994.8739 | X99: 138995 | Y99: 282.3954395 | Z99: 0.07427445222 | AA99: 0.06144316332 | AC99: 138179.8923 | AD99: 280.7393893 | AE99: 0.005898887777 | AF99: 0.005898887777
A100: 06H | B100: NHS Cambridgeshire and Peterborough CCG | E100: 250153 | F100: 973472.4375 | G100: 256.969782 | H100: -0.01328426079 | J100: 253906.0121 | K100: 978624.0625 | L100: 259.4520428 | M100: 0.005292009102 | O100: -0.01478110769 | P100: -0.00956732034 | Q100: 0.06705936178 | R100: 0.0614422 | S100: 266928.1005 | T100: 0 | U100: 0.06705936178 | V100: 0.0614422 | W100: 266928.1005 | X100: 266928 | Y100: 272.758468 | Z100: 0.06705895992 | AA100: 0.06144180025 | AC100: 271149.1746 | AD100: 277.071845 | AE100: -0.01556772053 | AF100: -0.01556772053
A101: 06K | B101: NHS East and North Hertfordshire CCG | E101: 164018 | F101: 603318.875 | G101: 271.8595535 | H101: 0.01693082754 | J101: 160937.7083 | K101: 608245.0625 | L101: 264.5935302 | M101: 0.008165147328 | O101: 0.01913965188 | P101: 0.02746107729 | Q101: 0.07010903194 | R101: 0.0614422 | S101: 175517.1432 | T101: 0 | U101: 0.07010903194 | V101: 0.0614422 | W101: 175517.1432 | X101: 175517 | Y101: 288.5629672 | Z101: 0.07010815886 | AA101: 0.06144133399 | AC101: 171867.2449 | AD101: 282.562499 | AE101: 0.02123589704 | AF101: 0.02123589704
A102: 06L | B102: NHS Ipswich and East Suffolk CCG | E102: 104931 | F102: 409731.9062 | G102: 256.0967267 | H102: -3.552813485e-05 | J102: 105091.9825 | K102: 411776.5312 | L102: 255.2160567 | M102: 0.004990153241 | O102: -0.001531825172 | P102: 0.003450684026 | Q102: 0.06673895923 | R102: 0.0614422 | S102: 111933.9857 | T102: 0 | U102: 0.06673895923 | V102: 0.0614422 | W102: 111933.9857 | X102: 111934 | Y102: 271.8319076 | Z102: 0.06673909521 | AA102: 0.06144233531 | AC102: 112228.9468 | AD102: 272.5481864 | AE102: -0.002628081192 | AF102: -0.002628081192
A103: 06M | B103: NHS Great Yarmouth and Waveney CCG | E103: 63239 | F103: 240583.375 | G103: 262.8568994 | H103: -0.06369272237 | J103: 67573.4533 | K103: 241371.125 | L103: 279.9566572 | M103: 0.003274332651 | O103: -0.06414432134 | P103: -0.06108001854 | Q103: 0.06491771485 | R103: 0.0614422 | S103: 67344.33137 | T103: 0 | U103: 0.06491771485 | V103: 0.0614422 | W103: 67344.33137 | X103: 67344 | Y103: 279.0060327 | Z103: 0.0649124749 | AA103: 0.06143697715 | AC103: 72162.47435 | AD103: 298.9689606 | AE103: -0.06677257666 | AF103: -0.06677257666
A104: 06N | B104: NHS Herts Valleys CCG | E104: 190789 | F104: 651355.75 | G104: 292.9105946 | H104: 0.009614008333 | J104: 188371.7406 | K104: 656279.25 | L104: 287.0298591 | M104: 0.007558849369 | O104: 0.01283238859 | P104: 0.02048823605 | Q104: 0.0694654817 | R104: 0.0614422 | S104: 204042.2498 | T104: 0 | U104: 0.0694654817 | V104: 0.0614422 | W104: 204042.2498 | X104: 204042 | Y104: 310.9072853 | Z104: 0.06946417246 | AA104: 0.06144090058 | AC104: 201164.3661 | AD104: 306.5225148 | AE104: 0.01430488869 | AF104: 0.01430488869
A105: 06P | B105: NHS Luton CCG | E105: 67342 | F105: 236174.5938 | G105: 285.1365125 | H105: -0.04584562082 | J105: 70442.2912 | K105: 238103.2969 | L105: 295.8476095 | M105: 0.008166429311 | O105: -0.04401178818 | P105: -0.03620477802 | Q105: 0.07011039269 | R105: 0.0614422 | S105: 72063.37406 | T105: 0 | U105: 0.07011039269 | V105: =MAX(R105,NewMinGrowthPerHead(P105,$P$2,$L$1,$U$1,$T$2,AD105,G105,T105, $P$1)) -> 0.0614422 | W105: 72063.37406 | X105: 72063 | Y105: =X105/K105*1000 -> 302.6543561 | Z105: =X105/E105-1 -> 0.07010483799 | AA105: =Y105/G105-1 -> 0.06143669029 | AC105: 75226.13961 | AD105: =AC105/K105*1000 -> 315.9390928 | AE105: -0.0420484106 | AF105: -0.0420484106
A106: 06Q | B106: NHS Mid Essex CCG | E106: 104922 | F106: 393605.25 | G106: 266.5665664 | H106: -0.008115849933 | J106: 105597.2692 | K106: 395722.8125 | L106: 266.8465549 | M106: 0.005379914267 | O106: -0.006394760275 | P106: -0.00104924927 | Q106: 0.06715266804 | R106: 0.0614422 | S106: 111967.7922 | T106: 0 | U106: 0.06715266804 | V106: 0.0614422 | W106: 111967.7922 | X106: 111968 | Y106: 282.9455277 | Z106: 0.06715464821 | AA106: 0.06144416958 | AC106: 112768.5483 | AD106: 284.9685303 | AE106: -0.007099038687 | AF106: -0.007099038687
A107: 06T | B107: NHS North East Essex CCG | E107: 97505 | F107: 355431.3125 | G107: 274.3286722 | H107: -0.02203174728 | J107: 99739.99689 | K107: 359002.8125 | L107: 277.8251128 | M107: 0.01004835498 | O107: -0.02240823104 | P107: -0.01258504192 | Q107: 0.07210794802 | R107: 0.0614422 | S107: 104535.8855 | T107: 0 | U107: 0.07210794802 | V107: 0.0614422 | W107: 104535.8855 | X107: 104536 | Y107: 291.1843483 | Z107: 0.07210912261 | AA107: 0.0614433629 | AC107: 106513.4992 | AD107: 296.6926596 | AE107: -0.01856571479 | AF107: -0.01856571479
A108: 06V | B108: NHS North Norfolk CCG | E108: 50366 | F108: 174474.5469 | G108: 288.6724792 | H108: -0.02137784259 | J108: 51511.02921 | K108: 175179.875 | L108: 294.0465006 | M108: 0.00404258465 | O108: -0.0222288164 | P108: -0.01827609362 | Q108: 0.06573316994 | R108: 0.0614422 | S108: 53676.71684 | T108: 0 | U108: 0.06573316994 | V108: 0.0614422 | W108: 53676.71684 | X108: 53677 | Y108: 306.4107678 | Z108: 0.06573879204 | AA108: 0.06144779946 | AC108: 55009.22541 | AD108: 314.0156676 | AE108: -0.02421821787 | AF108: -0.02421821787
A109: 06W | B109: NHS Norwich CCG | E109: 57868 | F109: 237093.5156 | G109: 244.0724701 | H109: -0.04277949896 | J109: 60484.15861 | K109: 238141.7188 | L109: 253.9838837 | M109: 0.004421053533 | O109: -0.04325361663 | P109: -0.03902378965 | Q109: 0.06613489279 | R109: 0.0614422 | S109: 61695.09398 | T109: 0 | U109: 0.06613489279 | V109: 0.0614422 | W109: 61695.09398 | X109: 61695 | Y109: 259.068425 | Z109: 0.06613326882 | AA109: 0.06144058318 | AC109: 64591.73434 | AD109: 271.2323346 | AE109: -0.04484682707 | AF109: -0.04484682707
A110: 06Y | B110: NHS South Norfolk CCG | E110: 59403 | F110: 230298.2812 | G110: 257.9393979 | H110: -0.0152852767 | J110: 60539.3987 | K110: 232384.4688 | L110: 260.5139622 | M110: 0.009058632521 | O110: -0.01877122545 | P110: -0.009882634567 | Q110: 0.07105741483 | R110: 0.0614422 | S110: 63624.02361 | T110: 0 | U110: 0.07105741483 | V110: 0.0614422 | W110: 63624.02361 | X110: 63624 | Y110: 273.7876603 | Z110: 0.07105701732 | AA110: 0.06144180606 | AC110: 64650.72588 | AD110: 278.2058811 | AE110: -0.01588111908 | AF110: -0.01588111908
A111: 07G | B111: NHS Thurrock CCG | E111: 47937 | F111: 178554.9375 | G111: 268.4719934 | H111: -0.02621435725 | J111: 49223.77609 | K111: 180604.5625 | L111: 272.5500143 | M111: 0.01147896008 | O111: -0.02614135267 | P111: -0.01496246813 | Q111: 0.07362645264 | R111: 0.0614422 | S111: 51466.43126 | T111: 0 | U111: 0.07362645264 | V111: 0.0614422 | W111: 51466.43126 | X111: 51466 | Y111: 284.9651154 | Z111: 0.07361745624 | AA111: 0.0614333057 | AC111: 52566.64128 | AD111: 291.0593207 | AE111: -0.0209380179 | AF111: -0.0209380179
A112: 07H | B112: NHS West Essex CCG | E112: 91640 | F112: 316014.2812 | G112: 289.9868944 | H112: 0.0323394098 | J112: 88659.3128 | K112: 318751.0938 | L112: 278.1459093 | M112: 0.008660407654 | O112: 0.03361956126 | P112: 0.04257112802 | Q112: 0.07063472215 | R112: 0.0614422 | S112: 98112.96594 | T112: 0 | U112: 0.07063472215 | V112: 0.0614422 | W112: 98112.96594 | X112: 98113 | Y112: 307.804434 | Z112: 0.07063509385 | AA112: 0.0614425685 | AC112: 94680.30822 | AD112: 297.0352418 | AE112: 0.03625560423 | AF112: 0.03625560423
A113: 07J | B113: NHS West Norfolk CCG | E113: 43243 | F113: 176762.8125 | G113: 244.6385605 | H113: -0.137747324 | J113: 50214.84545 | K113: 177701.8125 | L113: 282.5792531 | M113: 0.005312203323 | O113: -0.1388403248 | P113: -0.1342656695 | Q113: 0.06708079678 | R113: 0.0614422 | S113: 46143.7749 | T113: 0 | U113: 0.06708079678 | V113: 0.0614422 | W113: 46143.7749 | X113: 46144 | Y113: 259.6709586 | Z113: 0.06708600236 | AA113: 0.06144737807 | AC113: 53625.01574 | AD113: 301.7696611 | AE113: -0.13950608 | AF113: -0.13950608
A114: 07K | B114: NHS West Suffolk CCG | E114: 67777 | F114: 252258.1562 | G114: 268.6811043 | H114: -0.01798090084 | J114: 69121.80962 | K114: 253729.0469 | L114: 272.4237153 | M114: 0.005830894219 | O114: -0.01945564834 | P114: -0.01373819795 | Q114: 0.06763135719 | R114: 0.0614422 | S114: 72360.8505 | T114: 0 | U114: 0.06763135719 | V114: 0.0614422 | W114: 72360.8505 | X114: 72361 | Y114: 285.1900517 | Z114: 0.06763356301 | AA114: 0.06144439303 | AC114: 73815.98202 | AD114: 290.9244445 | AE114: -0.0197109349 | AF114: -0.0197109349
A115: 07L | B115: NHS Barking and Dagenham CCG | E115: 74429 | F115: 227890.2969 | G115: 326.6001274 | H115: -0.04314089111 | J115: 77906.26013 | K115: 231530.3125 | L115: 336.4840624 | M115: 0.01597266612 | O115: -0.04463389876 | P115: -0.029374155 | Q115: 0.07839626187 | R115: 0.0614422 | S115: 80263.95537 | T115: 0 | U115: 0.07839626187 | V115: 0.0614422 | W115: 80263.95537 | X115: 80264 | Y115: 346.6673505 | Z115: 0.07839686144 | AA115: 0.06144279014 | AC115: 83196.99857 | AD115: 359.3352321 | AE115: -0.03525365849 | AF115: -0.03525365849
A116: 07M | B116: NHS Barnet CCG | E116: 142236 | F116: 428645.75 | G116: 331.8264558 | H116: 0.03667971972 | J116: 137146.9314 | K116: 433326.5312 | L116: 316.4978868 | M116: 0.01091992922 | O116: 0.03710668922 | P116: 0.04843182086 | Q116: 0.07303307369 | R116: 0.0614422 | S116: 152623.9323 | T116: 0 | U116: 0.07303307369 | V116: 0.0614422 | W116: 152623.9323 | X116: 152624 | Y116: 352.2147595 | Z116: 0.07303354987 | AA116: 0.06144267104 | AC116: 146460.7984 | AD116: 337.9917634 | AE116: 0.04208089576 | AF116: 0.04208089576
A117: 07N | B117: NHS Bexley CCG | E117: 82736 | F117: 243943.6875 | G117: 339.1602416 | H117: 0.05329569853 | J117: 78243.16472 | K117: 246476.6406 | L117: 317.4465723 | M117: 0.01038335179 | O117: 0.05742144121 | P117: 0.06840102003 | Q117: 0.07246352777 | R117: 0.0614422 | S117: 88731.34243 | T117: 0 | U117: 0.07246352777 | V117: 0.0614422 | W117: 88731.34243 | X117: 88731 | Y117: 359.9976037 | Z117: 0.0724593889 | AA117: 0.06143810366 | AC117: 83556.78289 | AD117: 339.0048756 | AE117: 0.06192456109 | AF117: 0.06192456109
A118: 07P | B118: NHS Brent CCG | E118: 125466 | F118: 383764.3438 | G118: 326.9350111 | H118: -0.01446017333 | J118: 127087.9088 | K118: 385367 | L118: 329.7840989 | M118: 0.004176146836 | O118: -0.01276210194 | P118: -0.008639251511 | Q118: 0.06587493849 | R118: 0.0614422 | S118: 133731.065 | T118: 0 | U118: 0.06587493849 | V118: 0.0614422 | W118: 133731.065 | X118: 133731 | Y118: 347.0224487 | Z118: 0.06587442016 | AA118: 0.06144168383 | AC118: 135718.6515 | AD118: 352.1802633 | AE118: -0.01464538235 | AF118: -0.01464538235
A119: 07Q | B119: NHS Bromley CCG | E119: 122835 | F119: 353043.375 | G119: 347.931752 | H119: 0.07292948293 | J119: 114147.0171 | K119: 356784.1875 | L119: 319.9329486 | M119: 0.01059590057 | O119: 0.07611221999 | P119: 0.08751459808 | Q119: 0.07268913602 | R119: 0.0614422 | S119: 131763.77 | T119: 0 | U119: 0.07268913602 | V119: 0.0614422 | W119: 131763.77 | X119: 131764 | Y119: 369.3100889 | Z119: 0.07269100826 | AA119: 0.06144405262 | AC119: 121898.9232 | AD119: 341.6601057 | AE119: 0.08092833415 | AF119: 0.08092833415
A120: 07R | B120: NHS Camden CCG | E120: 106916 | F120: 287746.6562 | G120: 371.5629623 | H120: -0.007759598648 | J120: 107797.6119 | K120: 290829.9062 | L120: 370.6551821 | M120: 0.01071515492 | O120: -0.008178398945 | P120: 0.002449123165 | Q120: 0.07281571761 | R120: 0.0614422 | S120: 114701.1653 | T120: 0 | U120: 0.07281571761 | V120: 0.0614422 | W120: 114701.1653 | X120: 114701 | Y120: 394.3920399 | Z120: 0.07281417187 | AA120: 0.06144067065 | AC120: 115118.3197 | AD120: 395.8269671 | AE120: -0.003625137353 | AF120: -0.003625137353
A121: 07T | B121: NHS City and Hackney CCG | E121: 115839 | F121: 323519.0625 | G121: 358.059272 | H121: -0.001074559606 | J121: 116029.6464 | K121: 327826.5 | L121: 353.9361413 | M121: 0.01331432363 | O121: -0.001643083787 | P121: 0.0116493633 | Q121: 0.07557458497 | R121: 0.0614422 | S121: 124593.4843 | T121: 0 | U121: 0.07557458497 | V121: 0.0614422 | W121: 124593.4843 | X121: 124593 | Y121: 380.057744 | Z121: 0.07557040375 | AA121: 0.06143807372 | AC121: 123909.4049 | AD121: 377.9725095 | AE121: 0.005516894548 | AF121: 0.005516894548
A122: 07V | B122: NHS Croydon CCG | E122: 143113 | F122: 415648.125 | G122: 344.3128728 | H122: -0.008958522146 | J122: 144315.7651 | K122: 418991.6875 | L122: 344.4358668 | M122: 0.008044214081 | O122: -0.008334259792 | P122: -0.0003570882804 | Q122: 0.06998066829 | R122: 0.0614422 | S122: 153128.1434 | T122: 0 | U122: 0.06998066829 | V122: 0.0614422 | W122: 153128.1434 | X122: 153128 | Y122: 365.467871 | Z122: 0.06997966642 | AA122: 0.06144120612 | AC122: 154116.479 | AD122: 367.8270562 | AE122: -0.006413843541 | AF122: -0.006413843541
A123: 07W | B123: NHS Ealing CCG | E123: 135810 | F123: 438184.875 | G123: 309.9376719 | H123: 0.001127626556 | J123: 135264.2887 | K123: 438781.7188 | L123: 308.272389 | M123: 0.001362082044 | O123: 0.004034407973 | P123: 0.005401985211 | Q123: 0.06288797136 | R123: 0.0614422 | S123: 144350.8154 | T123: 0 | U123: 0.06288797136 | V123: 0.0614422 | W123: 144350.8154 | X123: 144351 | Y123: 328.981345 | Z123: 0.06288933068 | AA123: 0.06144355747 | AC123: 144450.3024 | AD123: 329.2076588 | AE123: -0.000687450091 | AF123: -0.000687450091
A124: 07X | B124: NHS Enfield CCG | E124: 126692 | F124: 343347.5625 | G124: 368.9905327 | H124: 0.06018081817 | J124: 119269.9529 | K124: 346657 | L124: 344.0575351 | M124: 0.00963873888 | O124: 0.06222897627 | P124: 0.072467524 | Q124: 0.0716731642 | R124: 0.0614422 | S124: 135772.4165 | T124: 0 | U124: 0.0716731642 | V124: 0.0614422 | W124: 135772.4165 | X124: 135772 | Y124: 391.6609213 | Z124: 0.07166987655 | AA124: 0.06143894374 | AC124: 127369.7658 | AD124: 367.4230313 | AE124: 0.06596725829 | AF124: 0.06596725829
A125: 07Y | B125: NHS Hounslow CCG | E125: 91677 | F125: 318917.875 | G125: 287.4627206 | H125: -0.0001721918893 | J125: 91589.82642 | K125: 320845.8125 | L125: 285.4636802 | M125: 0.006045247542 | O125: 0.0009517823924 | P125: 0.007002783695 | Q125: 0.06785888085 | R125: 0.0614422 | S125: 97898.09862 | T125: 0 | U125: 0.06785888085 | V125: 0.0614422 | W125: 97898.09862 | X125: 97898 | Y125: 305.1247552 | Z125: 0.06785780512 | AA125: 0.06144113073 | AC125: 97809.83769 | AD125: 304.8499743 | AE125: 0.0009013644799 | AF125: 0.0009013644799
A126: 08A | B126: NHS Greenwich CCG | E126: 114827 | F126: 300540.5 | G126: 382.0683069 | H126: 0.01935248273 | J126: 112672.825 | K126: 304522.375 | L126: 369.9985099 | M126: 0.0132490463 | O126: 0.01911885153 | P126: 0.03262120438 | Q126: 0.07550529685 | R126: 0.0614422 | S126: 123497.0467 | T126: 0 | U126: 0.07550529685 | V126: 0.0614422 | W126: 123497.0467 | X126: 123497 | Y126: 405.5432708 | Z126: 0.07550488996 | AA126: 0.06144179843 | AC126: 120324.6163 | AD126: 395.1256992 | AE126: 0.02636520906 | AF126: 0.02636520906
A127: 08C | B127: NHS Hammersmith and Fulham CCG | E127: 72114 | F127: 239545.8438 | G127: 301.0446722 | H127: 0.001202665199 | J127: 71769.16822 | K127: 239128.8906 | L127: 300.1275506 | M127: -0.001740598453 | O127: 0.004804734226 | P127: 0.003055772661 | Q127: 0.05959465535 | R127: 0.0614422 | S127: 76411.60898 | T127: 0 | U127: 0.05959465535 | V127: 0.0614422 | W127: 76411.60898 | X127: 76412 | Y127: 319.5431543 | Z127: 0.05960007765 | AA127: 0.06144763176 | AC127: 76643.12696 | AD127: 320.5096915 | AE127: -0.003015625446 | AF127: -0.003015625446
A128: 08D | B128: NHS Haringey CCG | E128: 117825 | F128: 321680.5625 | G128: 366.2795137 | H128: 0.008529738656 | J128: 116787.6508 | K128: 324594.0625 | L128: 359.7960168 | M128: 0.00905712169 | O128: 0.008882353787 | P128: 0.01801992404 | Q128: 0.07105581117 | R128: 0.0614422 | S128: 126197.151 | T128: 0 | U128: 0.07105581117 | V128: 0.0614422 | W128: 126197.151 | X128: 126197 | Y128: 388.7840678 | Z128: 0.07105453002 | AA128: 0.06144093035 | AC128: 124718.8865 | AD128: 384.2303385 | AE128: 0.01185156106 | AF128: 0.01185156106
A129: 08E | B129: NHS Harrow CCG | E129: 82152 | F129: 268365.625 | G129: 306.1196828 | H129: -0.004852462939 | J129: 82241.59709 | K129: 269424.5 | L129: 305.2491406 | M129: 0.003945643187 | O129: -0.001089437604 | P129: 0.002851907051 | Q129: 0.06563027219 | R129: 0.0614422 | S129: 87543.65812 | T129: 0 | U129: 0.06563027219 | V129: 0.0614422 | W129: 87543.65812 | X129: 87544 | Y129: 324.9296185 | Z129: 0.06563443373 | AA129: 0.06144634519 | AC129: 87826.75519 | AD129: 325.9790969 | AE129: -0.003219465265 | AF129: -0.003219465265
A130: 08F | B130: NHS Havering CCG | E130: 88407 | F130: 281514.6562 | G130: 314.0404879 | H130: -0.02726818451 | J130: 90695.22557 | K130: 284984.5 | L130: 318.2461698 | M130: 0.01232562381 | O130: -0.02522983494 | P130: -0.01321518458 | Q130: 0.07452513725 | R130: 0.0614422 | S130: 94995.54381 | T130: 0 | U130: 0.07452513725 | V130: 0.0614422 | W130: 94995.54381 | X130: 94996 | Y130: 333.3374271 | Z130: 0.07453029737 | AA130: 0.06144729729 | AC130: 96854.48307 | AD130: 339.858775 | AE130: -0.01918840524 | AF130: -0.01918840524
A131: 08G | B131: NHS Hillingdon CCG | E131: 91974 | F131: 316898.25 | G131: 290.2319593 | H131: -0.01081612309 | J131: 92836.35566 | K131: 320584.9375 | L131: 289.5842718 | M131: 0.01163366317 | O131: -0.009288986599 | P131: 0.00223661163 | Q131: 0.07379066103 | R131: 0.0614422 | S131: 98760.82226 | T131: 0 | U131: 0.07379066103 | V131: 0.0614422 | W131: 98760.82226 | X131: 98761 | Y131: 308.0650038 | Z131: 0.07379259356 | AA131: 0.0614441103 | AC131: 99141.02072 | AD131: 309.2504018 | AE131: -0.003833133066 | AF131: -0.003833133066
A132: 08H | B132: NHS Islington CCG | E132: 105836 | F132: 255947.1875 | G132: 413.507181 | H132: 0.00810001901 | J132: 104895.1333 | K132: 259082.2812 | L132: 404.8718915 | M132: 0.01224898691 | O132: 0.008969593828 | P132: 0.02132844918 | Q132: 0.07444379162 | R132: 0.0614422 | S132: 113714.8331 | T132: 0 | U132: 0.07444379162 | V132: 0.0614422 | W132: 113714.8331 | X132: 113715 | Y132: 438.914616 | Z132: 0.07444536831 | AA132: 0.06144375761 | AC132: 112018.7292 | AD132: 432.3673877 | AE132: 0.0151427432 | AF132: 0.0151427432
A133: 08J | B133: NHS Kingston CCG | E133: 54341 | F133: 212189.8125 | G133: 256.096178 | H133: 0.001973683668 | J133: 54220.99487 | K133: 214617.5625 | L133: 252.6400647 | M133: 0.01144140697 | O133: 0.002213259535 | P133: 0.01367998931 | Q133: 0.07358659219 | R133: 0.0614422 | S133: 58339.76901 | T133: 0 | U133: 0.07358659219 | V133: 0.0614422 | W133: 58339.76901 | X133: 58340 | Y133: 271.8323669 | Z133: 0.07359084301 | AA133: 0.06144640274 | AC133: 57903.22915 | AD133: 269.7972546 | AE133: 0.007543117253 | AF133: 0.007543117253
A134: 08K | B134: NHS Lambeth CCG | E134: 166707 | F134: 416706.75 | G134: 400.0583144 | H134: 0.04384205379 | J134: 159432.5469 | K134: 419431.375 | L134: 380.1159294 | M134: 0.006538470999 | O134: 0.04562715226 | P134: 0.05246395507 | Q134: 0.06838240904 | R134: 0.0614422 | S134: 178106.8263 | T134: 0 | U134: 0.06838240904 | V134: 0.0614422 | W134: 178106.8263 | X134: 178107 | Y134: 424.6391916 | Z134: 0.0683834512 | AA134: 0.06144323539 | AC134: 170259.8656 | AD134: 405.9302087 | AE134: 0.04608916132 | AF134: 0.04608916132
A135: 08L | B135: NHS Lewisham CCG | E135: 125608 | F135: 334478.8438 | G135: 375.5334675 | H135: 0.04220135436 | J135: 120418.4859 | K135: 338397.0625 | L135: 355.8496785 | M135: 0.01171439935 | O135: 0.04309565985 | P135: 0.05531489897 | Q135: 0.07387635782 | R135: 0.0614422 | S135: 134887.4616 | T135: 0 | U135: 0.07387635782 | V135: 0.0614422 | W135: 134887.4616 | X135: 134887 | Y135: 398.605706 | Z135: 0.07387268327 | AA135: 0.061438568 | AC135: 128596.2974 | AD135: 380.015998 | AE135: 0.04891822465 | AF135: 0.04891822465
A136: 08M | B136: NHS Newham CCG | E136: 130571 | F136: 405949.8125 | G136: 321.6432081 | H136: 0.02465732687 | J136: 127668.351 | K136: 410601.9375 | L136: 310.9297335 | M136: 0.01145985256 | O136: 0.02273585393 | P136: 0.03445625603 | Q136: 0.07360617112 | R136: 0.0614422 | S136: 140181.8314 | T136: 0 | U136: 0.07360617112 | V136: 0.0614422 | W136: 140181.8314 | X136: 140182 | Y136: 341.4060851 | Z136: 0.07360746261 | AA136: 0.06144347686 | AC136: 136338.5125 | AD136: 332.0454679 | AE136: 0.02819076914 | AF136: 0.02819076914
A137: 08N | B137: NHS Redbridge CCG | E137: 98018 | F137: 324502.875 | G137: 302.0558755 | H137: -0.007278243558 | J137: 98731.32309 | K137: 328112.0938 | L137: 300.9072965 | M137: 0.0111223013 | O137: -0.007224891445 | P137: 0.00381705244 | Q137: 0.07324787997 | R137: 0.0614422 | S137: 105197.6107 | T137: 0 | U137: 0.07324787997 | V137: =MAX(R137,NewMinGrowthPerHead(P137,$P$2,$L$1,$U$1,$T$2,AD137,G137,T137, $P$1)) -> 0.0614422 | W137: 105197.6107 | X137: 105198 | Y137: =X137/K137*1000 -> 320.6160395 | Z137: =X137/E137-1 -> 0.0732518517 | AA137: =Y137/G137-1 -> 0.06144612805 | AC137: 105436.3248 | AD137: =AC137/K137*1000 -> 321.3423912 | AE137: -0.002260367082 | AF137: -0.002260367082
A138: 08P | B138: NHS Richmond CCG | E138: 55468 | F138: 219498.4375 | G138: =E138/F138*1000 -> 252.7033934 | H138: -0.02164089605 | J138: 56636.74338 | K138: 221206 | L138: =J138/K138*1000 -> 256.0361988 | M138: =K138/F138-1 -> 0.007779383395 | O138: =E138/J138-1 -> -0.02063578009 | P138: =G138/L138-1 -> -0.01301693033 | Q138: =(1+M138)*(1+R138)-1 -> 0.06969956583 | R138: =MinGrowthPerHead(P138,0,1,$Q$1,$Q$2,$R$1,$R$2) -> 0.0614422 | S138: =(1+IF($S$2=1,Q138,0))*$E138 -> 59334.09552 | T138: =MinMaxRamp(P138,0,1,$P$2,$T$2) -> 0 | U138: =(1+M138)*(1+V138)-1 -> 0.06969956583 | V138: 0.0614422 | W138: =(1+IF($S$2=1,U138,0))*$E138 -> 59334.09552 | X138: =IF(ROUND(W138,0)/E138>$X$1,ROUND(W138,0),ROUNDUP(W138,0)) -> 59334 | Y138: 268.229614 | Z138: 0.0696978438 | AA138: 0.06144049127 | AC138: 60483.035 | AD138: 273.4240256 | AE138: =X138/AC138-1 -> -0.01899764132 | AF138: -0.01899764132
A139: 08Q | B139: NHS Southwark CCG | E139: 135625 | F139: 334416.6875 | G139: 405.5569147 | H139: 0.08351099541 | J139: 125126.3801 | K139: 337654.8125 | L139: 370.5748458 | M139: 0.009682904954 | O139: 0.08390412884 | P139: 0.09439946949 | Q139: 0.07172004394 | R139: 0.0614422 | S139: 145352.031 | T139: 0 | U139: 0.07172004394 | V139: 0.0614422 | W139: 145352.031 | X139: 145352 | Y139: 430.4751321 | Z139: 0.07171981567 | AA139: 0.06144197392 | AC139: 133623.9122 | AD139: 395.741175 | AE139: 0.08776937879 | AF139: 0.08776937879
A140: 08R | B140: NHS Merton CCG | E140: 66286 | F140: 226818.9688 | G140: 292.2418719 | H140: -0.04721604067 | J140: 69435.56171 | K140: 228194.5625 | L140: 304.2822798 | M140: 0.006064720943 | O140: -0.04535949064 | P140: -0.03956986235 | Q140: 0.06787955074 | R140: 0.0614422 | S140: 70785.4639 | T140: 0 | U140: 0.06787955074 | V140: 0.0614422 | W140: 70785.4639 | X140: 70785 | Y140: 310.1958225 | Z140: 0.06787255227 | AA140: 0.06143524372 | AC140: 74151.04151 | AD140: 324.946575 | AE140: -0.0453943929 | AF140: -0.0453943929
A141: 08T | B141: NHS Sutton CCG | E141: 60364 | F141: 198247.3125 | G141: 304.4883648 | H141: -0.004436961846 | J141: 60536.85784 | K141: 200119.25 | L141: 302.5039212 | M141: 0.009442435695 | O141: -0.00285541484 | P141: 0.006560058784 | Q141: 0.07146479972 | R141: 0.0614422 | S141: 64677.90117 | T141: 0 | U141: 0.07146479972 | V141: 0.0614422 | W141: 64677.90117 | X141: 64678 | Y141: 323.1972936 | Z141: 0.07146643695 | AA141: 0.06144382192 | AC141: 64648.01246 | AD141: 323.0474453 | AE141: 0.0004638586098 | AF141: 0.0004638586098
A142: 08V | B142: NHS Tower Hamlets CCG | E142: 114991 | F142: 331104.6875 | G142: 347.2949926 | H142: 0.06877315784 | J142: 107969.1699 | K142: 336755.5625 | L142: 320.6158471 | M142: 0.0170667321 | O142: 0.06503551042 | P142: 0.08321218616 | Q142: 0.07955754967 | R142: 0.0614422 | S142: 124139.4022 | T142: 0 | U142: 0.07955754967 | V142: 0.0614422 | W142: 124139.4022 | X142: 124139 | Y142: 368.6323667 | Z142: 0.07955405206 | AA142: 0.06143876108 | AC142: 115301.5286 | AD142: 342.3893809 | AE142: 0.07664661138 | AF142: 0.07664661138
A143: 08W | B143: NHS Waltham Forest CCG | E143: 112345 | F143: 314321.0938 | G143: 357.4211284 | H143: 0.05319781003 | J143: 106599.6274 | K143: 316882.375 | L143: 336.401251 | M143: 0.008148613952 | O143: 0.05389674203 | P143: 0.06248453973 | Q143: 0.07009148272 | R143: 0.0614422 | S143: 120219.4276 | T143: 0 | U143: 0.07009148272 | V143: 0.0614422 | W143: 120219.4276 | X143: 120219 | Y143: 379.3805193 | Z143: 0.07008767635 | AA143: 0.0614384244 | AC143: 113838.9782 | AD143: 359.2467968 | AE143: 0.05604426456 | AF143: 0.05604426456
A144: 08X | B144: NHS Wandsworth CCG | E144: 120346 | F144: 406574.1875 | G144: 296.0000996 | H144: -0.03382435888 | J144: 124371.8005 | K144: 408998 | L144: 304.0890189 | M144: 0.005961550375 | O144: -0.03236907826 | P144: -0.02660049778 | Q144: 0.06777004115 | R144: 0.0614422 | S144: 128501.8534 | T144: 0 | U144: 0.06777004115 | V144: 0.0614422 | W144: 128501.8534 | X144: 128502 | Y144: 314.1873554 | Z144: 0.06777125954 | AA144: 0.06144341117 | AC144: 132818.088 | AD144: 324.7401894 | AE144: -0.03249623646 | AF144: -0.03249623646
A145: 08Y | B145: NHS West London CCG | E145: 87941 | F145: 250446.0938 | G145: 351.1374391 | H145: 0.003221160458 | J145: 87430.21985 | K145: 250522.5625 | L145: 348.9914001 | M145: 0.0003053301765 | O145: 0.005842146416 | P145: 0.006149260376 | Q145: 0.06176629033 | R145: 0.0614422 | S145: 93372.78934 | T145: 0 | U145: 0.06176629033 | V145: 0.0614422 | W145: 93372.78934 | X145: 93373 | Y145: 372.7129368 | Z145: 0.06176868582 | AA145: 0.06144459476 | AC145: 93367.74561 | AD145: 372.691963 | AE145: 5.627633376e-05 | AF145: 5.627633376e-05
A146: 09A | B146: NHS Central London (Westminster) CCG | E146: 70725 | F146: 231308.875 | G146: 305.759993 | H146: -0.004417795307 | J146: 71029.1085 | K146: 232909.4062 | L146: 304.9645338 | M146: 0.00691945456 | O146: -0.004281463059 | P146: 0.002608366112 | Q146: 0.06878680107 | R146: 0.0614422 | S146: 75589.94651 | T146: 0 | U146: 0.06878680107 | V146: 0.0614422 | W146: 75589.94651 | X146: 75590 | Y146: 324.5467893 | Z146: 0.06878755744 | AA146: 0.06144295117 | AC146: 75852.80861 | AD146: 325.675162 | AE146: -0.003464718255 | AF146: -0.003464718255
A147: 09C | B147: NHS Ashford CCG | E147: 34688 | F147: 134913.2812 | G147: 257.1133077 | H147: -0.08664389423 | J147: 38012.79419 | K147: 136241.8438 | L147: 279.009687 | M147: 0.009847529374 | O147: -0.08746513527 | P147: -0.07847892139 | Q147: 0.07189478324 | R147: 0.0614422 | S147: 37181.88624 | T147: 0 | U147: 0.07189478324 | V147: 0.0614422 | W147: 37181.88624 | X147: 37182 | Y147: 272.91175 | Z147: 0.07189806273 | AA147: 0.06144544751 | AC147: 40594.3037 | AD147: 297.9576801 | AE147: -0.08405868283 | AF147: -0.08405868283
A148: 09D | B148: NHS Brighton and Hove CCG | E148: 95822 | F148: 319712.5625 | G148: 299.7129648 | H148: 0.07151837657 | J148: 89417.17124 | K148: 321566 | L148: 278.0678655 | M148: 0.005797199477 | O148: 0.07162862197 | P148: 0.07784106685 | Q148: 0.06759559217 | R148: 0.0614422 | S148: 102299.1448 | T148: 0 | U148: 0.06759559217 | V148: 0.0614422 | W148: 102299.1448 | X148: 102299 | Y148: 318.1275384 | Z148: 0.06759408069 | AA148: 0.06144069724 | AC148: 95489.63403 | AD148: 296.951898 | AE148: 0.0713100017 | AF148: 0.0713100017
A149: 09E | B149: NHS Canterbury and Coastal CCG | E149: 62594 | F149: 227708.875 | G149: 274.8860799 | H149: -0.04470678143 | J149: 65513.97003 | K149: 229538.9375 | L149: 285.4154974 | M149: 0.008036851879 | O149: -0.04457018903 | P149: -0.03689154116 | Q149: 0.06997285374 | R149: 0.0614422 | S149: 66973.88081 | T149: 0 | U149: 0.06997285374 | V149: 0.0614422 | W149: 66973.88081 | X149: 66974 | Y149: 291.7762046 | Z149: 0.06997475796 | AA149: 0.06144408904 | AC149: 69963.12828 | AD149: 304.7985193 | AE149: -0.04272433714 | AF149: -0.04272433714
A150: 09F | B150: NHS Eastbourne, Hailsham and Seaford CCG | E150: 64498 | F150: 198129.1094 | G150: 325.5352038 | H150: 0.04091347495 | J150: 62067.48095 | K150: 199789.375 | L150: 310.6645734 | M150: 0.008379715783 | O150: 0.03915929911 | P150: 0.04786715869 | Q150: 0.07033678396 | R150: 0.0614422 | S150: 69034.58189 | T150: 0 | U150: 0.07033678396 | V150: 0.0614422 | W150: 69034.58189 | X150: 69035 | Y150: 345.5388956 | Z150: 0.07034326646 | AA150: 0.06144862863 | AC150: 66282.58263 | AD150: 331.7623003 | AE150: 0.04152549983 | AF150: 0.04152549983
A151: 09G | B151: NHS Coastal West Sussex CCG | E151: 149986 | F151: 519346.125 | G151: 288.7977647 | H151: -0.03249974552 | J151: 155016.3286 | K151: 523524.9688 | L151: 296.1011182 | M151: 0.008046355886 | O151: -0.03245031465 | P151: -0.02466506554 | Q151: 0.06998294169 | R151: 0.0614422 | S151: 160482.4615 | T151: 0 | U151: 0.06998294169 | V151: 0.0614422 | W151: 160482.4615 | X151: 160482 | Y151: 306.5412532 | Z151: 0.06997986479 | AA151: 0.06143914765 | AC151: 165543.7349 | AD151: 316.2098176 | AE151: -0.03057642076 | AF151: -0.03057642076
A152: 09H | B152: NHS Crawley CCG | E152: 41284 | F152: 134315.8281 | G152: 307.3651153 | H152: 0.05940475456 | J152: 38943.51964 | K152: 135115.5156 | L152: 288.2238909 | M152: 0.005953784533 | O152: 0.06009935364 | P152: 0.06641095677 | Q152: 0.06776179815 | R152: 0.0614422 | S152: 44081.47807 | T152: 0 | U152: 0.06776179815 | V152: 0.0614422 | W152: 44081.47807 | X152: 44081 | Y152: 326.2467659 | Z152: 0.067750218 | AA152: 0.06143068839 | AC152: 41588.23621 | AD152: 307.7976353 | AE152: 0.05993915639 | AF152: 0.05993915639
A153: 09J | B153: NHS Dartford, Gravesham and Swanley CCG | E153: 83791 | F153: 271700.1875 | G153: 308.3950761 | H153: -0.07464850199 | J153: 90377.17977 | K153: 274235.25 | L153: 329.5607686 | M153: 0.009330367135 | O153: -0.07287436707 | P153: -0.06422394454 | Q153: 0.07134584542 | R153: 0.0614422 | S153: 89769.13973 | T153: 0 | U153: 0.07134584542 | V153: 0.0614422 | W153: 89769.13973 | X153: 89769 | Y153: 327.3430385 | Z153: 0.07134417778 | AA153: 0.06144054777 | AC153: 96514.83828 | AD153: 351.9417663 | AE153: -0.06989431259 | AF153: -0.06989431259
A154: 09L | B154: NHS East Surrey CCG | E154: 55239 | F154: 183940.0312 | G154: 300.3098326 | H154: 0.03122789614 | J154: 53484.74906 | K154: 185280.125 | L154: 288.6696512 | M154: 0.007285492673 | O154: 0.03279908703 | P154: 0.04032353721 | Q154: 0.06917532937 | R154: 0.0614422 | S154: 59060.17602 | T154: 0 | U154: 0.06917532937 | V154: 0.0614422 | W154: 59060.17602 | X154: 59060 | Y154: 318.7605794 | Z154: 0.06917214287 | AA154: 0.06143903655 | AC154: 57116.98372 | AD154: 308.2736679 | AE154: 0.03401818782 | AF154: 0.03401818782
A155: 09N | B155: NHS Guildford and Waverley CCG | E155: 54533 | F155: 226834.0312 | G155: 240.409253 | H155: 0.07563906856 | J155: 50486.54339 | K155: 227948 | L155: 221.4827215 | M155: 0.004910941907 | O155: 0.08014921072 | P155: 0.08545376075 | Q155: 0.06665488098 | R155: 0.0614422 | S155: 58167.89062 | T155: 0 | U155: 0.06665488098 | V155: 0.0614422 | W155: 58167.89062 | X155: 58168 | Y155: 255.1810062 | Z155: 0.06665688666 | AA155: 0.06144419587 | AC155: 53915.16512 | AD155: 236.5239665 | AE155: 0.07888012338 | AF155: 0.07888012338
A156: 09P | B156: NHS Hastings and Rother CCG | E156: 53023 | F156: 189923.25 | G156: 279.1811956 | H156: -0.04458336428 | J156: 55523.61793 | K156: 191177.5625 | L156: 290.4295735 | M156: 0.006604312532 | O156: -0.04503701351 | P156: -0.0387301395 | Q156: 0.06845229602 | R156: 0.0614422 | S156: 56652.54609 | T156: 0 | U156: 0.06845229602 | V156: 0.0614422 | W156: 56652.54609 | X156: 56653 | Y156: 296.3370767 | Z156: 0.06846085661 | AA156: 0.06145070442 | AC156: 59294.31543 | AD156: 310.1531093 | AE156: -0.04454584575 | AF156: -0.04454584575
A157: 09W | B157: NHS Medway CCG | E157: 86696 | F157: 302095.9375 | G157: 286.9816811 | H157: -0.04728392745 | J157: 90782.40958 | K157: 304682.5625 | L157: 297.9573522 | M157: 0.008562263437 | O157: -0.04501323112 | P157: -0.03683638282 | Q157: 0.07053054774 | R157: 0.0614422 | S157: 92810.71637 | T157: 0 | U157: 0.07053054774 | V157: 0.0614422 | W157: 92810.71637 | X157: 92811 | Y157: 304.6153979 | Z157: 0.07053381932 | AA157: 0.06144544381 | AC157: 96947.58789 | AD157: 318.1921115 | AE157: -0.04266829097 | AF157: -0.04266829097
A158: 09X | B158: NHS Horsham and Mid Sussex CCG | E158: 68009 | F158: 242897.75 | G158: 279.9902428 | H158: 0.05340619692 | J158: 64593.37693 | K158: 244893.8438 | L158: 263.7607215 | M158: 0.008217835488 | O158: 0.0528788435 | P158: 0.06153122862 | Q158: 0.07016495738 | R158: 0.0614422 | S158: 72780.84859 | T158: 0 | U158: 0.07016495738 | V158: 0.0614422 | W158: 72780.84859 | X158: 72781 | Y158: 297.1940776 | Z158: 0.07016718376 | AA158: 0.06144440823 | AC158: 68980.01624 | AD158: 281.6731331 | AE158: 0.05510268005 | AF158: 0.05510268005
A159: 09Y | B159: NHS North West Surrey CCG | E159: 101787 | F159: 374092.875 | G159: 272.0901862 | H159: 0.06593165692 | J159: 95205.27822 | K159: 375978.375 | L159: 253.2200907 | M159: 0.005040192225 | O159: 0.06913190006 | P159: 0.07452053035 | Q159: 0.06679207272 | R159: 0.0614422 | S159: 108585.5647 | T159: 0 | U159: 0.06679207272 | V159: 0.0614422 | W159: 108585.5647 | X159: 108586 | Y159: 288.8091636 | Z159: 0.06679634924 | AA159: 0.06144645507 | AC159: 101670.8206 | AD159: 270.4166712 | AE159: 0.0680153791 | AF159: 0.0680153791
A160: 10A | B160: NHS South Kent Coast CCG | E160: 63975 | F160: 207538.2344 | G160: 308.256453 | H160: -0.05093646121 | J160: 67347.68352 | K160: 208628.875 | L160: 322.8109413 | M160: 0.005255131076 | O160: -0.05007868641 | P160: -0.0450867254 | Q160: 0.06702021789 | R160: 0.0614422 | S160: 68262.61844 | T160: 0 | U160: 0.06702021789 | V160: 0.0614422 | W160: 68262.61844 | X160: 68263 | Y160: 327.1982366 | Z160: 0.0670261821 | AA160: 0.06144813303 | AC160: 71921.37219 | AD160: 344.7335475 | AE160: -0.05086627346 | AF160: -0.05086627346
A161: 10C | B161: NHS Surrey Heath CCG | E161: 28631 | F161: 97135.19531 | G161: 294.7541301 | H161: -0.02227204843 | J161: 29202.28089 | K161: 97507.04688 | L161: 299.4889275 | M161: 0.003828185667 | O161: -0.01956288603 | P161: -0.01580959073 | Q161: 0.06550559782 | R161: 0.0614422 | S161: 30506.49077 | T161: 0 | U161: 0.06550559782 | V161: 0.0614422 | W161: 30506.49077 | X161: 30506 | Y161: 312.8594392 | Z161: 0.06548845657 | AA161: 0.06142512412 | AC161: 31185.45439 | AD161: 319.8276985 | AE161: -0.02178754175 | AF161: -0.02178754175
A162: 10D | B162: NHS Swale CCG | E162: 34478 | F162: 114335.75 | G162: 301.5504774 | H162: -0.03368196857 | J162: 35664.48828 | K162: 115515.5312 | L162: 308.7419319 | M162: 0.01031856834 | O162: -0.03326805837 | P162: -0.02329276877 | Q162: 0.07239476388 | R162: 0.0614422 | S162: 36974.02667 | T162: 0 | U162: 0.07239476388 | V162: 0.0614422 | W162: 36974.02667 | X162: 36974 | Y162: 320.0781713 | Z162: 0.07239399037 | AA162: 0.06144143439 | AC162: 38086.52059 | AD162: 329.7090891 | AE162: -0.02921034982 | AF162: -0.02921034982
A163: 10E | B163: NHS Thanet CCG | E163: 47705 | F163: 146794.5625 | G163: 324.9779773 | H163: -0.08219956103 | J163: 51999.74166 | K163: 148125.1719 | L163: 351.0527009 | M163: 0.009064432308 | O163: -0.08259159609 | P163: -0.07427580972 | Q163: 0.07106357097 | R163: 0.0614422 | S163: 51095.08765 | T163: 0 | U163: 0.07106357097 | V163: 0.0614422 | W163: 51095.08765 | X163: 51095 | Y163: 344.9447474 | Z163: 0.07106173357 | AA163: 0.06144037911 | AC163: 55531.1271 | AD163: 374.89325 | AE163: -0.07988541435 | AF163: -0.07988541435
A164: 10J | B164: NHS North Hampshire CCG | E164: 56689 | F164: 227382.6875 | G164: 249.3109771 | H164: 0.006748338027 | J164: 56297.29068 | K164: 228530.7031 | L164: 246.3445389 | M164: 0.005048826002 | O164: 0.006957871548 | P164: 0.01204182663 | Q164: 0.06680123698 | R164: 0.0614422 | S164: 60475.89532 | T164: 0 | U164: 0.06680123698 | V164: 0.0614422 | W164: 60475.89532 | X164: 60476 | Y164: 264.6296501 | Z164: 0.06680308349 | AA164: 0.06144403724 | AC164: 60120.52953 | AD164: 263.0741896 | AE164: 0.005912630353 | AF164: 0.005912630353
A165: 10K | B165: NHS Fareham and Gosport CCG | E165: 57739 | F165: 205878.6875 | G165: 280.4515645 | H165: 0.09504498279 | J165: 52737.71029 | K165: 206927.4688 | L165: 254.8608486 | M165: 0.005094171052 | O165: 0.09483327372 | P165: 0.1004105417 | Q165: 0.06684936813 | R165: 0.0614422 | S165: 61598.81567 | T165: 0 | U165: 0.06684936813 | V165: 0.0614422 | W165: 61598.81567 | X165: 61599 | Y165: 297.6840164 | Z165: 0.06685256066 | AA165: 0.06144537635 | AC165: 56319.21235 | AD165: 272.1688555 | AE165: 0.09374754067 | AF165: 0.09374754067
A166: 10L | B166: NHS Isle of Wight CCG | E166: 36866 | F166: 145043.375 | G166: 254.1722433 | H166: -0.00915522118 | J166: 37215.39618 | K166: 145597.1562 | L166: 255.6052408 | M166: 0.003818038914 | O166: -0.009388484802 | P166: -0.005606291489 | Q166: 0.06549482762 | R166: 0.0614422 | S166: 39280.53232 | T166: 0 | U166: 0.06549482762 | V166: 0.0614422 | W166: 39280.53232 | X166: 39281 | Y166: 269.7923573 | Z166: 0.0655075137 | AA166: 0.06145483782 | AC166: 39742.75312 | AD166: 272.9638006 | AE166: -0.01161854899 | AF166: -0.01161854899
A167: 10Q | B167: NHS Oxfordshire CCG | E167: 232350 | F167: 747848.3125 | G167: 310.6913476 | H167: 0.08599502162 | J167: 214149.659 | K167: 750273.75 | L167: 285.4286972 | M167: 0.003243221198 | O167: 0.08498888613 | P167: 0.08850774508 | Q167: 0.06488469184 | R167: 0.0614422 | S167: 247425.9581 | T167: 0 | U167: 0.06488469184 | V167: 0.0614422 | W167: 247425.9581 | X167: 247426 | Y167: 329.7809633 | Z167: 0.06488487196 | AA167: 0.06144237953 | AC167: 228692.9041 | AD167: 304.8126155 | AE167: 0.08191376106 | AF167: 0.08191376106
A168: 10R | B168: NHS Portsmouth CCG | E168: 63645 | F168: 231311.25 | G168: 275.1487444 | H168: 0.02063446598 | J168: 62302.3577 | K168: 232324.75 | L168: 268.1692661 | M168: 0.004381542186 | O168: 0.02155042519 | P168: 0.02602639147 | Q168: 0.06609295378 | R168: 0.0614422 | S168: 67851.48604 | T168: 0 | U168: 0.06609295378 | V168: 0.0614422 | W168: 67851.48604 | X168: 67851 | Y168: 292.0523965 | Z168: 0.06608531699 | AA168: 0.06143459653 | AC168: 66533.41023 | AD168: 286.3810689 | AE168: 0.0198034305 | AF168: 0.0198034305
A169: 10V | B169: NHS South Eastern Hampshire CCG | E169: 61436 | F169: 216374.5938 | G169: 283.9335198 | H169: 0.0805048155 | J169: 56802.9299 | K169: 217457.1406 | L169: 261.2143696 | M169: 0.005003114535 | O169: 0.0815639283 | P169: 0.08697511651 | Q169: 0.0667527169 | R169: 0.0614422 | S169: 65537.01992 | T169: 0 | U169: 0.0667527169 | V169: =MAX(R169,NewMinGrowthPerHead(P169,$P$2,$L$1,$U$1,$T$2,AD169,G169,T169, $P$1)) -> 0.0614422 | W169: 65537.01992 | X169: 65537 | Y169: =X169/K169*1000 -> 301.3789283 | Z169: =X169/E169-1 -> 0.06675239273 | AA169: =Y169/G169-1 -> 0.06144187745 | AC169: 60660.50751 | AD169: =AC169/K169*1000 -> 278.9538543 | AE169: 0.08038990582 | AF169: 0.08038990582
A170: 10X | B170: NHS Southampton CCG | E170: 91490 | F170: 288342.1875 | G170: 317.2966148 | H170: 0.1069339122 | J170: 82691.08151 | K170: 289813.3125 | L170: 285.3253386 | M170: 0.005102010957 | O170: 0.1064071038 | P170: 0.112052005 | Q170: 0.06685768973 | R170: 0.0614422 | S170: 97606.81003 | T170: 0 | U170: 0.06685768973 | V170: 0.0614422 | W170: 97606.81003 | X170: 97607 | Y170: 336.7926724 | Z170: 0.06685976609 | AA170: 0.06144426582 | AC170: 88306.76481 | AD170: 304.7022376 | AE170: 0.1053173583 | AF170: 0.1053173583
A171: 11A | B171: NHS West Hampshire CCG | E171: 170976 | F171: 566415.25 | G171: 301.8562795 | H171: 0.07511454849 | J171: 159212.4723 | K171: 569597.25 | L171: 279.5176281 | M171: 0.005617786597 | O171: 0.07388571707 | P171: 0.07991857786 | Q171: 0.06740515577 | R171: 0.0614422 | S171: 182500.6639 | T171: 0 | U171: 0.06740515577 | V171: 0.0614422 | W171: 182500.6639 | X171: 182501 | Y171: 320.4035834 | Z171: 0.06740712147 | AA171: 0.06144415472 | AC171: 170024.8454 | AD171: 298.5001163 | AE171: 0.0733784206 | AF171: 0.0733784206
A172: 11E | B172: NHS Bath and North East Somerset CCG | E172: 50475 | F172: 209078.4688 | G172: 241.4165375 | H172: -0.04508693651 | J172: 52803.40812 | K172: 210293.5781 | L172: 251.0937737 | M172: 0.005811738446 | O172: -0.0440957924 | P172: -0.03854032716 | Q172: 0.06761102444 | R172: 0.0614422 | S172: 53887.66646 | T172: 0 | U172: 0.06761102444 | V172: 0.0614422 | W172: 53887.66646 | X172: 53888 | Y172: 256.2512868 | Z172: 0.06761763249 | AA172: 0.06144876987 | AC172: 56389.37183 | AD172: 268.1459526 | AE172: -0.0443589235 | AF172: -0.0443589235
A173: 11J | B173: NHS Dorset CCG | E173: 209862 | F173: 804863.5625 | G173: 260.7423292 | H173: -0.0121746735 | J173: 212506.7465 | K173: 808390.5625 | L173: 262.8763327 | M173: 0.004382109173 | O173: -0.01244547054 | P173: -0.008117898776 | Q173: 0.0660935556 | R173: 0.0614422 | S173: 223732.5258 | T173: 0 | U173: 0.0660935556 | V173: 0.0614422 | W173: 223732.5258 | X173: 223733 | Y173: 276.7634982 | Z173: 0.06609581535 | AA173: 0.06144444989 | AC173: 226938.4187 | AD173: 280.7286839 | AE173: -0.01412461909 | AF173: -0.01412461909
A174: 11M | B174: NHS Gloucestershire CCG | E174: 171294 | F174: 651781.125 | G174: 262.8090833 | H174: -0.01298136437 | J174: 174006.9325 | K174: 656479.25 | L174: 265.0608263 | M174: 0.007208132945 | O174: -0.01559094481 | P174: -0.008495193468 | Q174: 0.06909321649 | R174: 0.0614422 | S174: 183129.2534 | T174: 0 | U174: 0.06909321649 | V174: 0.0614422 | W174: 183129.2534 | X174: 183129 | Y174: 278.9562656 | Z174: 0.06909173701 | AA174: 0.06144073111 | AC174: 185824.0209 | AD174: 283.06153 | AE174: -0.01450308163 | AF174: -0.01450308163
A175: 11N | B175: NHS Kernow CCG | E175: 161877 | F175: 579195.75 | G175: 279.4858215 | H175: 0.02986387363 | J175: 157685.4715 | K175: 583022.5625 | L175: 270.4620398 | M175: 0.006607114261 | O175: 0.02658157711 | P175: 0.03336431888 | Q175: 0.0684552699 | R175: 0.0614422 | S175: 172958.3337 | T175: 0 | U175: 0.0684552699 | V175: 0.0614422 | W175: 172958.3337 | X175: 172958 | Y175: 296.6574728 | Z175: 0.0684532083 | AA175: 0.06144015193 | AC175: 168394.1435 | AD175: 288.8295485 | AE175: 0.02710222827 | AF175: 0.02710222827
A176: 11X | B176: NHS Somerset CCG | E176: 147412 | F176: 578764.8125 | G176: 254.7010406 | H176: -0.06358166984 | J176: 157933.3868 | K176: 582469.875 | L176: 271.1443004 | M176: 0.006401672009 | O176: -0.06661914236 | P176: -0.06064394425 | Q176: 0.06823720482 | R176: 0.0614422 | S176: 157470.9828 | T176: 0 | U176: 0.06823720482 | V176: 0.0614422 | W176: 157470.9828 | X176: 157471 | Y176: 270.3504623 | Z176: 0.06823732125 | AA176: 0.06144231569 | AC176: 168658.8951 | AD176: 289.5581426 | AE176: -0.06633445035 | AF176: -0.06633445035
A177: 12D | B177: NHS Swindon CCG | E177: 60385 | F177: 239149.6562 | G177: 252.4987949 | H177: -0.04798727866 | J177: 63581.51323 | K177: 240568.4688 | L177: 264.2969528 | M177: 0.005932739031 | O177: -0.05027425525 | P177: -0.04463978026 | Q177: 0.06773945957 | R177: 0.0614422 | S177: 64475.44727 | T177: 0 | U177: 0.06773945957 | V177: 0.0614422 | W177: 64475.44727 | X177: 64475 | Y177: 268.0110171 | Z177: 0.06773205266 | AA177: 0.06143483678 | AC177: 67899.43525 | AD177: 282.2457806 | AE177: -0.05043392833 | AF177: -0.05043392833
A178: 12F | B178: NHS Wirral CCG | E178: 104361 | F178: 336757.8125 | G178: 309.8992692 | H178: 0.001308511518 | J178: 104117.1641 | K178: 337197.9688 | L178: 308.7716231 | M178: 0.001307040947 | O178: 0.002341937584 | P178: 0.003652039539 | Q178: 0.06282954842 | R178: 0.0614422 | S178: 110917.9545 | T178: 0 | U178: 0.06282954842 | V178: 0.0614422 | W178: 110917.9545 | X178: 110918 | Y178: 328.940297 | Z178: 0.06282998438 | AA178: 0.06144263539 | AC178: 111187.9269 | AD178: 329.7407967 | AE178: -0.002427663432 | AF178: -0.002427663432
A179: 13T | B179: NHS Newcastle Gateshead CCG | E179: 157230 | F179: 527745.75 | G179: 297.9275532 | H179: -0.02157042097 | J179: 160660.0477 | K179: 529457.6875 | L179: 303.4426574 | M179: 0.003243867904 | O179: -0.02134972416 | P179: -0.01817511194 | Q179: 0.06488537828 | R179: 0.0614422 | S179: 167431.928 | T179: 0 | U179: 0.06488537828 | V179: 0.0614422 | W179: 167431.928 | X179: 167432 | Y179: 316.2330134 | Z179: 0.06488583604 | AA179: 0.06144265627 | AC179: 171570.7279 | AD179: 324.0499325 | AE179: -0.02412257599 | AF179: -0.02412257599
A180: 14L | B180: NHS Manchester CCG | E180: 254666 | F180: 647873.9375 | G180: 393.0795565 | H180: 0.05482462317 | J180: 241633.5362 | K180: 653890.9375 | L180: 369.5318628 | M180: 0.009287300587 | O180: 0.05393483046 | P180: 0.06372304003 | Q180: 0.07130013277 | R180: 0.0614422 | S180: 272823.7196 | T180: 0 | U180: 0.07130013277 | V180: 0.0614422 | W180: 272823.7196 | X180: 272824 | Y180: 417.231658 | Z180: 0.07130123377 | AA180: 0.06144329087 | AC180: 258043.2552 | AD180: 394.6273613 | AE180: 0.05728010505 | AF180: 0.05728010505
A181: 14Y | B181: NHS Buckinghamshire CCG | E181: 159172 | F181: 563792.625 | G181: 282.3236647 | H181: 0.08391977752 | J181: 146704.116 | K181: 568164.25 | L181: 258.2072279 | M181: 0.00775395918 | O181: 0.08498659977 | P181: 0.09339954157 | Q181: 0.06967257949 | R181: 0.0614422 | S181: 170261.9238 | T181: 0 | U181: 0.06967257949 | V181: 0.0614422 | W181: 170261.9238 | X181: 170262 | Y181: 299.6703858 | Z181: 0.06967305808 | AA181: 0.0614426749 | AC181: 156667.0266 | AD181: 275.7424928 | AE181: 0.08677622634 | AF181: 0.08677622634
A182: 15A | B182: NHS Berkshire West CCG | E182: 126116 | F182: 547396.375 | G182: 230.3924647 | H182: -0.007508528162 | J182: 127105.6962 | K182: 550345.9375 | L182: 230.9559998 | M182: 0.005388348617 | O182: -0.00778640344 | P182: -0.00244001068 | Q182: 0.06716162061 | R182: 0.0614422 | S182: 134586.1549 | T182: 0 | U182: 0.06716162061 | V182: 0.0614422 | W182: 134586.1549 | X182: 134586 | Y182: 244.548003 | Z182: 0.06716039202 | AA182: 0.06144097799 | AC182: 135737.6469 | AD182: 246.6405903 | AE182: -0.00848435878 | AF182: -0.00848435878
A183: 15C | B183: NHS Bristol, North Somerset and South Gloucestershire CCG | E183: 329430 | F183: 1017741.5 | G183: 323.6873017 | H183: 0.04889445888 | J183: 314096.9743 | K183: 1026830 | L183: 305.889947 | M183: 0.008930067213 | O183: 0.04881621598 | P183: 0.05818221529 | Q183: 0.07092095019 | R183: 0.0614422 | S183: 352793.4886 | T183: 0 | U183: 0.07092095019 | V183: 0.0614422 | W183: 352793.4886 | X183: 352793 | Y183: 343.5748858 | Z183: 0.07091946696 | AA183: 0.0614407299 | AC183: 335427.801 | AD183: 326.6634214 | AE183: 0.05177030325 | AF183: 0.05177030325
A184: 15D | B184: NHS East Berkshire CCG | E184: 118689 | F184: 462630.3438 | G184: 256.5525621 | H184: 0.00230181274 | J184: 118319.1443 | K184: 465062.5 | L184: 254.415577 | M184: 0.0052572346 | O184: 0.00312591599 | P184: 0.008399584263 | Q184: 0.06702245066 | R184: 0.0614422 | S184: 126643.8276 | T184: 0 | U184: 0.06702245066 | V184: 0.0614422 | W184: 126643.8276 | X184: 126644 | Y184: 272.3160865 | Z184: 0.0670239028 | AA184: 0.06144364455 | AC184: 126354.3862 | AD184: 271.6933449 | AE184: 0.002292075578 | AF184: 0.002292075578
A185: 15E | B185: NHS Birmingham and Solihull CCG | E185: 460551 | F185: 1320167.625 | G185: 348.8579717 | H185: 0.04398914987 | J185: 441572.9016 | K185: 1329445 | L185: 332.1483037 | M185: 0.007027421991 | O185: 0.04297840369 | P185: 0.05030785306 | Q185: 0.06890140226 | R185: 0.0614422 | S185: 492283.6097 | T185: 0 | U185: 0.06890140226 | V185: 0.0614422 | W185: 492283.6097 | X185: 492284 | Y185: 370.2928666 | Z185: 0.0689022497 | AA185: 0.06144304152 | AC185: 471560.822 | AD185: 354.705025 | AE185: 0.04394592818 | AF185: 0.04394592818
A186: 15F | B186: NHS Leeds CCG | E186: 261098 | F186: 884667.0625 | G186: 295.1370194 | H186: 0.01609797588 | J186: 256783.6259 | K186: 888936.5 | L186: 288.8661068 | M186: 0.004826038722 | O186: 0.01680159341 | P186: 0.02170871727 | Q186: 0.06656476116 | R186: 0.0614422 | S186: 278477.926 | T186: 0 | U186: 0.06656476116 | V186: 0.0614422 | W186: 278477.926 | X186: 278478 | Y186: 313.2709704 | Z186: 0.06656504454 | AA186: 0.06144248202 | AC186: 274222.2117 | AD186: 308.4834651 | AE186: 0.01551948778 | AF186: 0.01551948778
A187: 15M | B187: NHS Derby and Derbyshire CCG | E187: 265677 | F187: 1053807.5 | G187: 252.1115099 | H187: -0.02637691262 | J187: 273222.173 | K187: 1058006.75 | L187: 258.2423723 | M187: 0.00398483594 | O187: -0.02761552228 | P187: -0.02374072966 | Q187: 0.06567187303 | R187: 0.0614422 | S187: 283124.5062 | T187: 0 | U187: 0.06567187303 | V187: 0.0614422 | W187: 283124.5062 | X187: 283125 | Y187: 267.6022625 | Z187: 0.06567373164 | AA187: 0.06144405123 | AC187: 291777.1268 | AD187: 275.7800239 | AE187: -0.0296532044 | AF187: -0.0296532044
A188: 99A | B188: NHS Liverpool CCG | E188: 200642 | F188: 536622.875 | G188: 373.8975906 | H188: 0.02772912832 | J188: 195221.4471 | K188: 540072.5 | L188: 361.4726674 | M188: 0.006428397224 | O188: 0.02776617493 | P188: 0.03437306416 | Q188: 0.06826557209 | R188: 0.0614422 | S188: 214338.9409 | T188: 0 | U188: 0.06826557209 | V188: 0.0614422 | W188: 214338.9409 | X188: 214339 | Y188: 396.8707905 | Z188: 0.06826586657 | AA188: 0.0614424926 | AC188: 208479.2472 | AD188: 386.020853 | AE188: 0.02810712779 | AF188: 0.02810712779
A189: 99C | B189: NHS North Tyneside CCG | E189: 64261 | F189: 219720.4375 | G189: 292.4671038 | H189: -0.05882287867 | J189: 68328.34621 | K189: 220334 | L189: 310.1125846 | M189: 0.002792468953 | O189: -0.05952648409 | P189: -0.056900241 | Q189: 0.06440624439 | R189: 0.0614422 | S189: 68399.80967 | T189: 0 | U189: 0.06440624439 | V189: 0.0614422 | W189: 68399.80967 | X189: 68400 | Y189: 310.4377899 | Z189: 0.06440920621 | AA189: 0.06144515357 | AC189: 72968.63324 | AD189: 331.1728251 | AE189: -0.06261091979 | AF189: -0.06261091979
A190: 99D | B190: NHS South Lincolnshire CCG | E190: 38085 | F190: 168384.8125 | G190: 226.1783556 | H190: -0.06899698725 | J190: 40959.93838 | K190: 169595.8125 | L190: 241.5150338 | M190: 0.007191860014 | O190: -0.07018903088 | P190: -0.06350196055 | Q190: 0.06907594372 | R190: 0.0614422 | S190: 40715.75732 | T190: 0 | U190: 0.06907594372 | V190: 0.0614422 | W190: 40715.75732 | X190: 40716 | Y190: 240.0766823 | Z190: 0.06908231587 | AA190: 0.06144852666 | AC190: 43741.59316 | AD190: 257.9167051 | AE190: -0.06916970646 | AF190: -0.06916970646
A191: 99E | B191: NHS Basildon and Brentwood CCG | E191: 82596 | F191: 281462.125 | G191: 293.4533376 | H191: -0.02051956921 | J191: 84147.39076 | K191: 283903.5 | L191: 296.3943409 | M191: 0.008673902395 | O191: -0.01843658787 | P191: -0.009922602641 | Q191: 0.07064904604 | R191: 0.0614422 | S191: 88431.32861 | T191: 0 | U191: 0.07064904604 | V191: 0.0614422 | W191: 88431.32861 | X191: 88431 | Y191: 311.4825988 | Z191: 0.07064506756 | AA191: 0.06143825573 | AC191: 89861.97435 | AD191: 316.5229536 | AE191: -0.01592413658 | AF191: -0.01592413658
A192: 99F | B192: NHS Castle Point and Rochford CCG | E192: 49111 | F192: 186162.3125 | G192: 263.8074234 | H192: 0.02620661445 | J192: 47699.85909 | K192: 187122.9688 | L192: 254.9118337 | M192: 0.00516031541 | O192: 0.02958375424 | P192: 0.03489673115 | Q192: 0.06691957654 | R192: 0.0614422 | S192: 52397.48732 | T192: 0 | U192: 0.06691957654 | V192: 0.0614422 | W192: 52397.48732 | X192: 52397 | Y192: 280.0137276 | Z192: 0.06690965364 | AA192: 0.06143232804 | AC192: 50939.23264 | AD192: 272.2233031 | AE192: 0.02861777225 | AF192: 0.02861777225
A193: 99G | B193: NHS Southend CCG | E193: 52273 | F193: 189659.2812 | G193: 275.6153016 | H193: -0.02803517214 | J193: 53726.83211 | K193: 191002.9062 | L193: 281.2880346 | M193: 0.0070844147 | O193: -0.02705970278 | P193: -0.02016699023 | Q193: 0.06896189672 | R193: 0.0614422 | S193: 55877.84523 | T193: 0 | U193: 0.06896189672 | V193: 0.0614422 | W193: 55877.84523 | X193: 55878 | Y193: 292.5505224 | Z193: 0.06896485757 | AA193: 0.06144514002 | AC193: 57375.50701 | AD193: 300.3907539 | AE193: -0.02610010946 | AF193: -0.02610010946
A194: 99H | B194: NHS Surrey Downs CCG | E194: 82029 | F194: 309493.5 | G194: 265.042723 | H194: -0.02830947908 | J194: 84154.46358 | K194: 311412.7812 | L194: 270.2344562 | M194: 0.006201362064 | O194: -0.02525669454 | P194: -0.01921195838 | Q194: 0.06802458739 | R194: 0.0614422 | S194: 87608.98888 | T194: 0 | U194: 0.06802458739 | V194: 0.0614422 | W194: 87608.98888 | X194: 87609 | Y194: 281.3275667 | Z194: 0.06802472296 | AA194: 0.06144233474 | AC194: 89869.5275 | AD194: 288.5865093 | AE194: -0.02515343698 | AF194: -0.02515343698
A195: 99J | B195: NHS West Kent CCG | E195: 145630 | F195: 496486.1875 | G195: 293.3213525 | H195: -0.01437565504 | J195: 147444.7323 | K195: 500118.6875 | L195: 294.8194818 | M195: 0.007316417035 | O195: -0.01230788142 | P195: -0.005081513974 | Q195: 0.06920815379 | R195: 0.0614422 | S195: 155708.7834 | T195: 0 | U195: 0.06920815379 | V195: 0.0614422 | W195: 155708.7834 | X195: 155709 | Y195: 311.3440947 | Z195: 0.06920964087 | AA195: 0.06144367628 | AC195: 157457.9393 | AD195: 314.8411433 | AE195: -0.01110734301 | AF195: -0.01110734301
A196: 99K | B196: NHS High Weald Lewes Havens CCG | E196: 49954 | F196: 171932.0312 | G196: 290.5450464 | H196: 0.04676735938 | J196: 47724.64886 | K196: 173388.3438 | L196: 275.2471581 | M196: 0.008470280316 | O196: 0.04671278241 | P196: 0.05557873308 | Q196: 0.07043291297 | R196: 0.0614422 | S196: 53472.40573 | T196: 0 | U196: 0.07043291297 | V196: 0.0614422 | W196: 53472.40573 | X196: 53472 | Y196: 308.3944332 | Z196: 0.07042479081 | AA196: 0.06143414605 | AC196: 50965.70593 | AD196: 293.9396318 | AE196: 0.04917608869 | AF196: 0.04917608869
A197: 99M | B197: NHS North East Hampshire and Farnham CCG | E197: 54515 | F197: 227991 | G197: 239.1103158 | H197: -0.07302517902 | J197: 58649.8108 | K197: 228523.125 | L197: 256.647159 | M197: 0.002333973709 | O197: -0.07049998527 | P197: -0.06833055667 | Q197: 0.06391957819 | R197: 0.0614422 | S197: 57999.5758 | T197: 0 | U197: 0.06391957819 | V197: 0.0614422 | W197: 57999.5758 | X197: 58000 | Y197: 253.8036358 | Z197: 0.06392735944 | AA197: 0.06144996313 | AC197: 62632.81304 | AD197: 274.0764771 | AE197: -0.07396782639 | AF197: -0.07396782639
A198: 99N | B198: NHS Wiltshire CCG | E198: 129648 | F198: 495483.4688 | G198: 261.6595874 | H198: -0.008859144693 | J198: 131199.3431 | K198: 501744.0312 | L198: 261.4866046 | M198: 0.01263526009 | O198: -0.01182432062 | P198: 0.0006615361045 | Q198: 0.07485379827 | R198: 0.0614422 | S198: 139352.6452 | T198: 0 | U198: 0.07485379827 | V198: 0.0614422 | W198: 139352.6452 | X198: 139353 | Y198: 277.7372352 | Z198: 0.07485653462 | AA198: 0.0614449022 | AC198: 140109.2999 | AD198: 279.2445772 | AE198: -0.005397927592 | AF198: -0.005397927592
A199: 99P | B199: NHS Northern, Eastern and Western Devon CCG | E199: 272702 | F199: 936391.5 | G199: 291.2264795 | H199: 0.0004729356509 | J199: 272954.8348 | K199: 941125.25 | L199: 290.030296 | M199: 0.005055310733 | O199: -0.0009262881355 | P199: 0.004124339923 | Q199: 0.06680812015 | R199: 0.0614422 | S199: 290920.708 | T199: 0 | U199: 0.06680812015 | V199: 0.0614422 | W199: 290920.708 | X199: 290921 | Y199: 309.1203854 | Z199: 0.06680919099 | AA199: 0.06144326545 | AC199: 291491.6332 | AD199: 309.7267162 | AE199: -0.001957631621 | AF199: -0.001957631621
A200: 99Q | B200: NHS South Devon and Torbay CCG | E200: 89886 | F200: 295595.9375 | G200: 304.0840167 | H200: 0.02238084469 | J200: 88087.26326 | K200: 297486.0625 | L200: 296.1055134 | M200: 0.006394286119 | O200: 0.02041994124 | P200: 0.0269447983 | Q200: 0.06822936513 | R200: 0.0614422 | S200: 96018.86471 | T200: 0 | U200: 0.06822936513 | V200: 0.0614422 | W200: 96018.86471 | X200: 96019 | Y200: 322.7680625 | Z200: 0.06823087021 | AA200: 0.06144369552 | AC200: 94069.40988 | AD200: 316.2145113 | AE200: 0.02072501703 | AF200: 0.02072501703

Sheet Specialised 2021-22
A1: NHS England - 2019-20 to 2023-24 Allocations | E1: 2020-21 | J1: 2021-22 | L1: 0.06952413773 | P1: -0.1361223878 | Q1: 10 | R1: 0.06345896 | T1: -10 | U1: 0.06345896 | X1: 1.06345896 | AF1: -0.1410267235
A2: Minimum allocations for specialist services | P2: -0.1361223878 | Q2: 10 | R2: 0 | S2: 1 | T2: -10 | U2: 0.06345896 | AF2: 0.1414099486
A3: 2019-20 minimum allocation calculations | U3: 0 | AF3: 40
L4: 332.7663838 | X4: 0.3456559256 | AF4: 72
B5: England | E5: 18710918 | F5: 59802739.78 | G5: 312.8772706 | J5: 18710917.91 | K5: 60137620.02 | L5: 311.1349918 | M5: 0.005599747363 | X5: 20011778 | AC5: 20011778.35 | AE5: -1.727262411e-08
E6: Baseline | J6: Opening Target | O6: Distance from Target | Q6: Minimum per capita growth | T6: Per capita pace of change | AC6: Closing target
A7: CCG | B7: Clinical Commissioning Group | E7: Baseline £000 | F7: Estimated Population | G7: Allocation per capita £ | H7: Closing DfT | J7: Opening Target £000 | K7: Estimated Population | L7: Opening Target per capita £ | M7: population growth rate % | O7: DFT (total allocation) | P7: DFT (per capita) | Q7: Apply minimum per capita growth [programme] | R7: Apply minimum per capita growth [per capita] | S7: Allocation after min per capita growth £000 | T7: First Transition position | U7: Growth on per capita parameters [programme] | V7: Growth on per capita parameters [per capita] | W7: Allocation after per capita p-o-c | X7: Minimum allocation £000 | Y7: Minimum allocation per head £ | Z7: Growth after rounding | AA7: Per capita growth after rounding | AC7: Target allocations from the fair shares formula £000 | AD7: Target per head | AE7: DFT (total allocation) | AF7: DFT (per capita)
A9: 00C | B9: NHS Darlington CCG | E9: 31199 | F9: 108449.6406 | G9: =E9/F9*1000 -> 287.6819123 | H9: -0.0391534905 | J9: 32476.39714 | K9: 108477.0781 | L9: =J9/K9*1000 -> 299.3848811 | M9: =K9/F9-1 -> 0.0002529976111 | O9: =E9/J9-1 -> -0.03933309261 | P9: =G9/L9-1 -> -0.03909004617 | Q9: =(1+M9)*(1+R9)-1 -> 0.06372801258 | R9: =MinGrowthPerHead(P9,0,1,$Q$1,$Q$2,$R$1,$R$2) -> 0.06345896 | S9: =(1+IF($S$2=1,Q9,0))*$E9 -> 33187.25026 | T9: =MinMaxRamp(P9,0,1,$P$2,$T$2) -> 0 | U9: =(1+M9)*(1+V9)-1 -> 0.06372801258 | V9: =MAX(R9,NewMinGrowthPerHead(P9,$P$2,$L$1,$U$1,$T$2,AD9,G9,T9, $P$1)) -> 0.06345896 | W9: =(1+IF($S$2=1,U9,0))*$E9 -> 33187.25026 | X9: =IF(ROUND(W9,0)/E9>$X$1,ROUND(W9,0),ROUNDUP(W9,0)) -> 33187 | Y9: =X9/K9*1000 -> 305.9356002 | Z9: =X9/E9-1 -> 0.06371999103 | AA9: =Y9/G9-1 -> 0.06345094048 | AC9: 34734.29064 | AD9: =AC9/K9*1000 -> 320.1993568 | AE9: =X9/AC9-1 -> -0.04454648748 | AF9: =Y9/AD9-1 -> -0.04454648748
A10: 00D | B10: NHS Durham Dales, Easington and Sedgefield CCG | E10: 79494 | F10: 294087.8125 | G10: =E10/F10*1000 -> 270.3070193 | H10: -0.08112508277 | J10: 86568.18826 | K10: 295084.125 | L10: =J10/K10*1000 -> 293.3678261 | M10: =K10/F10-1 -> 0.003387806151 | O10: =E10/J10-1 -> -0.08171810455 | P10: =G10/L10-1 -> -0.07860714349 | Q10: =(1+M10)*(1+R10)-1 -> 0.06706175281 | R10: =MinGrowthPerHead(P10,0,1,$Q$1,$Q$2,$R$1,$R$2) -> 0.06345896 | S10: =(1+IF($S$2=1,Q10,0))*$E10 -> 84825.00698 | T10: =MinMaxRamp(P10,0,1,$P$2,$T$2) -> 0 | U10: =(1+M10)*(1+V10)-1 -> 0.06706175281 | V10: 0.06345896 | W10: =(1+IF($S$2=1,U10,0))*$E10 -> 84825.00698 | X10: =IF(ROUND(W10,0)/E10>$X$1,ROUND(W10,0),ROUNDUP(W10,0)) -> 84825 | Y10: 287.4603979 | Z10: 0.06706166503 | AA10: 0.06345887252 | AC10: 92586.7669 | AD10: 313.7639712 | AE10: =X10/AC10-1 -> -0.08383235706 | AF10: -0.08383235706
A11: 00J | B11: NHS North Durham CCG | E11: 68786 | F11: 260704.7812 | G11: 263.846331 | H11: -0.07388743151 | J11: 74268.45232 | K11: 261174 | L11: 284.3638812 | M11: 0.001799808764 | O11: -0.07381939637 | P11: -0.0721524484 | Q11: 0.06537298276 | R11: 0.06345896 | S11: 73282.74599 | T11: 0 | U11: 0.06537298276 | V11: 0.06345896 | W11: 73282.74599 | X11: 73283 | Y11: 280.5907173 | Z11: 0.06537667549 | AA11: 0.0634626461 | AC11: 79431.90243 | AD11: 304.1340349 | AE11: -0.07741099281 | AF11: -0.07741099281
A12: 00K | B12: NHS Hartlepool and Stockton-on-Tees CCG | E12: 83693 | F12: 298891.875 | G12: 280.0109571 | H12: -0.07628050441 | J12: 90630.80172 | K12: 299587.75 | L12: 302.5183831 | M12: 0.00232818306 | O12: -0.07655015279 | P12: -0.0744001925 | Q12: 0.06593488714 | R12: 0.06345896 | S12: 89211.28851 | T12: 0 | U12: 0.06593488714 | V12: 0.06345896 | W12: 89211.28851 | X12: 89211 | Y12: 297.7791982 | Z12: 0.06593143991 | AA12: 0.06345552078 | AC12: 96931.83006 | AD12: 323.5507128 | AE12: -0.07965216436 | AF12: -0.07965216436
A13: 00L | B13: NHS Northumberland CCG | E13: 96139 | F13: 325564.0625 | G13: 295.2997922 | H13: -0.05429131042 | J13: 101757.4848 | K13: 325652.125 | L13: 312.4729641 | M13: 0.0002704920787 | O13: -0.05521446186 | P13: -0.05495890486 | Q13: 0.06374661722 | R13: 0.06345896 | S13: 102267.536 | T13: 0 | U13: 0.06374661722 | V13: 0.06345896 | W13: 102267.536 | X13: 102268 | Y13: 314.0406346 | Z13: 0.06375144322 | AA13: 0.06346378469 | AC13: 108832.0861 | AD13: 334.1973775 | AE13: -0.06031388701 | AF13: -0.06031388701
A14: 00M | B14: NHS South Tees CCG | E14: 104932 | F14: 297414.375 | G14: 352.8141503 | H14: -0.04347713596 | J14: 109558.2063 | K14: 297457.0312 | L14: 368.3160751 | M14: 0.0001434236324 | O14: -0.04222601327 | P14: -0.04208864585 | Q14: 0.06361148515 | R14: 0.06345896 | S14: 111606.8804 | T14: 0 | U14: 0.06361148515 | V14: 0.06345896 | W14: 111606.8804 | X14: 111607 | Y14: 375.2037716 | Z14: 0.06361262532 | AA14: 0.06346010001 | AC14: 117175.1461 | AD14: 393.9229327 | AE14: -0.04751985622 | AF14: -0.04751985622
A15: 00N | B15: NHS South Tyneside CCG | E15: 49079 | F15: 157527.4219 | G15: 311.5584539 | H15: -0.06653051712 | J15: 52610.24382 | K15: 157706.6562 | L15: 333.5955823 | M15: 0.001137797933 | O15: -0.06712084115 | P15: -0.06605941318 | Q15: 0.06466896141 | R15: 0.06345896 | S15: 52252.88796 | T15: 0 | U15: 0.06466896141 | V15: 0.06345896 | W15: 52252.88796 | X15: 52253 | Y15: 331.3303398 | Z15: 0.06467124432 | AA15: 0.06346124032 | AC15: 56267.92566 | AD15: 356.7885275 | AE15: -0.07135371722 | AF15: -0.07135371722
A16: 00P | B16: NHS Sunderland CCG | E16: 84845 | F16: 284521.125 | G16: 298.2028136 | H16: -0.04715447631 | J16: 88968.33758 | K16: 284736.6562 | L16: 312.4583212 | M16: 0.0007575228377 | O16: -0.04634612376 | P16: -0.04562370917 | Q16: 0.06426455445 | R16: 0.06345896 | S16: 90297.52612 | T16: 0 | U16: 0.06426455445 | V16: 0.06345896 | W16: 90297.52612 | X16: 90298 | Y16: 317.1281183 | Z16: 0.06427013967 | AA16: 0.06346454099 | AC16: 95153.78454 | AD16: 334.1817165 | AE16: -0.05103091341 | AF16: -0.05103091341
A17: 00Q | B17: NHS Blackburn with Darwen CCG | E17: 54574 | F17: 175171.625 | G17: 311.5458911 | H17: -0.103787825 | J17: 60802.28736 | K17: 175123.5469 | L17: 347.1965275 | M17: -0.0002744629731 | O17: -0.1024350831 | P17: -0.1026814314 | Q17: 0.06316707989 | R17: 0.06345896 | S17: 58021.28022 | T17: 0 | U17: 0.06316707989 | V17: 0.06345896 | W17: 58021.28022 | X17: 58022 | Y17: 331.3203794 | Z17: 0.06318026899 | AA17: 0.06347215272 | AC17: 65029.51396 | AD17: 371.3350667 | AE17: -0.1077589779 | AF17: -0.1077589779
A18: 00R | B18: NHS Blackpool CCG | E18: 69052 | F18: 172778.25 | G18: 399.6567855 | H18: -0.03533274967 | J18: 71335.07989 | K18: 172451.375 | L18: 413.6532973 | M18: -0.001891875858 | O18: -0.03200500918 | P18: -0.03383633554 | Q18: 0.06144702767 | R18: 0.06345896 | S18: 73295.04015 | T18: 0 | U18: 0.06144702767 | V18: 0.06345896 | W18: 73295.04015 | X18: 73296 | Y18: 425.0241554 | Z18: 0.061460928 | AA18: 0.06347288668 | AC18: 76294.58981 | AD18: 442.4121861 | AE18: -0.03930278429 | AF18: -0.03930278429
A19: 00T | B19: NHS Bolton CCG | E19: 104114 | F19: 311766.75 | G19: 333.9483765 | H19: 0.02314731783 | J19: 101630.7922 | K19: 312848.8125 | L19: 324.8559308 | M19: 0.003470743753 | O19: 0.0244336166 | P19: 0.02798916318 | Q19: 0.06714995354 | R19: 0.06345896 | S19: 111105.2503 | T19: 0 | U19: 0.06714995354 | V19: 0.06345896 | W19: 111105.2503 | X19: 111105 | Y19: 355.1395932 | Z19: 0.0671475498 | AA19: 0.06345656457 | AC19: 108696.5854 | AD19: 347.4412593 | AE19: 0.02215722426 | AF19: 0.02215722426
A20: 00V | B20: NHS Bury CCG | E20: 71651 | F20: 205557.6562 | G20: 348.5688702 | H20: 0.07365778567 | J20: 66633.21198 | K20: 206201.6875 | L20: 323.1458132 | M20: 0.003133092981 | O20: 0.07530460967 | P20: 0.078673639 | Q20: 0.0667908758 | R20: 0.06345896 | S20: 76436.63304 | T20: 0 | U20: 0.0667908758 | V20: 0.06345896 | W20: 76436.63304 | X20: 76437 | Y20: 370.6904678 | Z20: 0.06679599726 | AA20: 0.06346406547 | AC20: 71265.82859 | AD20: 345.6122472 | AE20: 0.07256172439 | AF20: 0.07256172439
A21: 00X | B21: NHS Chorley and South Ribble CCG | E21: 56473 | F21: 186178.5312 | G21: 303.3271324 | H21: -0.02881243637 | J21: 58290.87072 | K21: 187455.0625 | L21: 310.9591704 | M21: 0.006856490066 | O21: -0.03118619947 | P21: -0.02454353728 | Q21: 0.07075055579 | R21: 0.06345896 | S21: 60468.49614 | T21: 0 | U21: 0.07075055579 | V21: 0.06345896 | W21: 60468.49614 | X21: 60468 | Y21: 322.5733101 | Z21: 0.0707417704 | AA21: 0.06345023444 | AC21: 62343.49325 | AD21: 332.5783386 | AE21: -0.03008322358 | AF21: -0.03008322358
A22: 00Y | B22: NHS Oldham CCG | E22: 85119 | F22: 258134.7344 | G22: 329.7464024 | H22: 0.05478938817 | J22: 80634.05974 | K22: 259393.0625 | L22: 310.856655 | M22: 0.004874695101 | O22: 0.05562091596 | P22: 0.06076674606 | Q22: 0.06864299818 | R22: 0.06345896 | S22: 90961.82336 | T22: 0 | U22: 0.06864299818 | V22: 0.06345896 | W22: 90961.82336 | X22: 90962 | Y22: 350.6724471 | Z22: 0.06864507337 | AA22: 0.06346102512 | AC22: 86240.07321 | AD22: 332.4686959 | AE22: 0.05475327895 | AF22: 0.05475327895
A23: 01A | B23: NHS East Lancashire CCG | E23: 119834 | F23: 382833.375 | G23: 313.018686 | H23: -0.07561697593 | J23: 129508.5339 | K23: 383179.6562 | L23: 337.9838459 | M23: 0.0009045221044 | O23: -0.07470190274 | P23: -0.07386495016 | Q23: 0.06442088214 | R23: 0.06345896 | S23: 127553.812 | T23: 0 | U23: 0.06442088214 | V23: 0.06345896 | W23: 127553.812 | X23: 127554 | Y23: 332.8830169 | Z23: 0.06442245106 | AA23: 0.0634605275 | AC23: 138512.5031 | AD23: 361.4818814 | AE23: -0.07911562357 | AF23: -0.07911562357
A24: 01C | B24: NHS Eastern Cheshire CCG | E24: 64208 | F24: 209983.75 | G24: 305.7760422 | H24: 0.05478743825 | J24: 60872.33398 | K24: 210671.9062 | L24: 288.943766 | M24: 0.003277188116 | O24: 0.05479773496 | P24: 0.05825450556 | Q24: 0.06694411507 | R24: 0.06345896 | S24: 68506.34774 | T24: 0 | U24: 0.06694411507 | V24: 0.06345896 | W24: 68506.34774 | X24: 68506 | Y24: 325.1786212 | Z24: 0.06693869923 | AA24: 0.06345356185 | AC24: 65104.43051 | AD24: 309.0323322 | AE24: 0.05224789567 | AF24: 0.05224789567
A25: 01D | B25: NHS Heywood, Middleton and Rochdale CCG | E25: 88224 | F25: 235364.3906 | G25: 374.8400502 | H25: 0.04479449859 | J25: 84390.12306 | K25: 236209.7969 | L25: 357.2676671 | M25: 0.003591903804 | O25: 0.04543039869 | P25: 0.04918548411 | Q25: 0.06727880228 | R25: 0.06345896 | S25: 94159.60505 | T25: 0 | U25: 0.06727880228 | V25: 0.06345896 | W25: 94159.60505 | X25: 94160 | Y25: 398.628682 | Z25: 0.06728327893 | AA25: 0.06346342062 | AC25: 90257.2736 | AD25: 382.1063935 | AE25: 0.0432400209 | AF25: 0.0432400209
A26: 01E | B26: NHS Greater Preston CCG | E26: 68865 | F26: 209231.7188 | G26: 329.1326975 | H26: 0.002234189294 | J26: 68593.12329 | K26: 209111.4844 | L26: 328.0217894 | M26: -0.0005746469786 | O26: 0.00396361467 | P26: 0.003386690012 | Q26: 0.06284784652 | R26: 0.06345896 | S26: 73193.01695 | T26: 0 | U26: 0.06284784652 | V26: 0.06345896 | W26: 73193.01695 | X26: 73194 | Y26: 350.0238173 | Z26: 0.06286212154 | AA26: 0.06347324323 | AC26: 73362.00104 | AD26: 350.8272215 | AE26: -0.002290028061 | AF26: -0.002290028061
A27: 01F | B27: NHS Halton CCG | E27: 42564 | F27: 131833.6406 | G27: 322.8614472 | H27: 0.01089687119 | J27: 42113.83154 | K27: 132053.2031 | L27: 318.9156382 | M27: 0.001665451238 | O27: 0.01068932554 | P27: 0.01237257933 | Q27: 0.06523009904 | R27: 0.06345896 | S27: 45340.45394 | T27: 0 | U27: 0.06523009904 | V27: 0.06345896 | W27: 45340.45394 | X27: 45340 | Y27: 343.3464613 | Z27: 0.06521943426 | AA27: 0.06344831295 | AC27: 45041.75937 | AD27: 341.0879729 | AE27: 0.006621424979 | AF27: 0.006621424979
A28: 01G | B28: NHS Salford CCG | E28: 101995 | F28: 278114.5 | G28: 366.7374409 | H28: 0.01831790263 | J28: 100172.5274 | K28: 280451.75 | L28: 357.1827504 | M28: 0.008403912777 | O28: 0.01819333719 | P28: 0.02675014518 | Q28: 0.07239617634 | R28: 0.06345896 | S28: 109379.048 | T28: 0 | U28: 0.07239617634 | V28: 0.06345896 | W28: 109379.048 | X28: 109379 | Y28: 390.0100463 | Z28: 0.07239570567 | AA28: 0.06345849325 | AC28: 107136.936 | AD28: 382.0155732 | AE28: 0.02092708694 | AF28: 0.02092708694
A29: 01H | B29: NHS Cumbria CCG | E29: 97432 | F29: 323354.9062 | G29: 301.3159786 | H29: -0.01104806006 | J29: 98453.0639 | K29: 322940.9375 | L29: 304.8639936 | M29: -0.001280230304 | O29: -0.01037107287 | P29: -0.01163802581 | Q29: 0.06209748761 | R29: 0.06345896 | S29: 103482.2824 | T29: 0 | U29: 0.06209748761 | V29: 0.06345896 | W29: 103482.2824 | X29: 103483 | Y29: 320.4393992 | Z29: 0.06210485262 | AA29: 0.06346633444 | AC29: 105297.9283 | AD29: 326.0593999 | AE29: -0.01723612519 | AF29: -0.01723612519
A30: 01J | B30: NHS Knowsley CCG | E30: 60530 | F30: 166135.6719 | G30: 364.3407783 | H30: -0.01239810422 | J30: 61229.23207 | K30: 166636.7812 | L30: 367.4412793 | M30: 0.003016265979 | O30: -0.01141990599 | P30: -0.00843808548 | Q30: 0.06666663508 | R30: 0.06345896 | S30: 64565.33142 | T30: 0 | U30: 0.06666663508 | V30: 0.06345896 | W30: 64565.33142 | X30: 64565 | Y30: 387.4594763 | Z30: 0.06666115976 | AA30: 0.06345350114 | AC30: 65486.14164 | AD30: 392.9873174 | AE30: -0.01406620721 | AF30: -0.01406620721
A31: 01K | B31: NHS Morecambe Bay CCG | E31: 99793 | F31: 347573.9375 | G31: 287.1130117 | H31: -0.042967505 | J31: 104146.193 | K31: 348167.625 | L31: 299.1265859 | M31: 0.001708089808 | O31: -0.04179886819 | P31: -0.04016217461 | Q31: 0.06527544341 | R31: 0.06345896 | S31: 106307.0323 | T31: 0 | U31: 0.06527544341 | V31: 0.06345896 | W31: 106307.0323 | X31: 106307 | Y31: 305.332812 | Z31: 0.0652751195 | AA31: 0.06345863664 | AC31: 111386.8673 | AD31: 319.9231039 | AE31: -0.04560562106 | AF31: -0.04560562106
A32: 01R | B32: NHS South Cheshire CCG | E32: 53862 | F32: 186706.9688 | G32: 288.4841437 | H32: 0.05396411635 | J32: 51098.51953 | K32: 187151.7188 | L32: 273.0325955 | M32: 0.002382074986 | O32: 0.05408141958 | P32: 0.05659232057 | Q32: 0.06599219899 | R32: 0.06345896 | S32: 57416.47182 | T32: 0 | U32: 0.06599219899 | V32: 0.06345896 | W32: 57416.47182 | X32: 57416 | Y32: 306.7885264 | Z32: 0.06598343916 | AA32: 0.06345022099 | AC32: 54651.10003 | AD32: 292.0149513 | AE32: 0.0505918447 | AF32: 0.0505918447
A33: 01T | B33: NHS South Sefton CCG | E33: 59228 | F33: 155277.4375 | G33: 381.433394 | H33: 0.009023014334 | J33: 58620.20766 | K33: 155438.5156 | L33: 377.127943 | M33: 0.001037356924 | O33: 0.01036830749 | P33: 0.01141642005 | Q33: 0.06456214652 | R33: 0.06345896 | S33: 63051.88681 | T33: 0 | U33: 0.06456214652 | V33: 0.06345896 | W33: 63051.88681 | X33: 63052 | Y33: 405.6394887 | Z33: 0.06456405754 | AA33: 0.06346086904 | AC33: 62695.72705 | AD33: 403.3474381 | AE33: 0.005682571431 | AF33: 0.005682571431
A34: 01V | B34: NHS Southport and Formby CCG | E34: 41591 | F34: 125542.4844 | G34: 331.2902418 | H34: -0.0181748618 | J34: 42328.48672 | K34: 125805.1562 | L34: 336.4606665 | M34: 0.002092294703 | O34: -0.01742294074 | P34: -0.01536709996 | Q34: 0.06568402955 | R34: 0.06345896 | S34: 44322.86447 | T34: 0 | U34: 0.06568402955 | V34: 0.06345896 | W34: 44322.86447 | X34: 44323 | Y34: 352.3146532 | Z34: 0.06568728812 | AA34: 0.06346221176 | AC34: 45271.33826 | AD34: 359.8528042 | AE34: -0.02094787325 | AF34: -0.02094787325
A35: 01W | B35: NHS Stockport CCG | E35: 104249 | F35: 314968.75 | G35: 330.9820419 | H35: 0.1102957204 | J35: 93785.47285 | K35: 316512.0625 | L35: 296.3093163 | M35: 0.004899890862 | O35: 0.1115687413 | P35: 0.1170153068 | Q35: 0.06866979284 | R35: 0.06345896 | S35: 111407.7572 | T35: 0 | U35: 0.06866979284 | V35: 0.06345896 | W35: 111407.7572 | X35: 111408 | Y35: 351.986585 | Z35: 0.06867212156 | AA35: 0.06346127736 | AC35: 100305.827 | AD35: 316.909966 | AE35: 0.110683231 | AF35: 0.110683231
A36: 01X | B36: NHS St Helens CCG | E36: 62403 | F36: 198715.8594 | G36: 314.0313018 | H36: 0.01120121585 | J36: 61653.72729 | K36: 199263.5469 | L36: 309.4079587 | M36: 0.002756133817 | O36: 0.01215291829 | P36: 0.01494254718 | Q36: 0.0663899952 | R36: 0.06345896 | S36: 66545.93487 | T36: 0 | U36: 0.0663899952 | V36: 0.06345896 | W36: 66545.93487 | X36: 66546 | Y36: 333.9597284 | Z36: 0.06639103889 | AA36: 0.06346000082 | AC36: 65940.14952 | AD36: 330.9192803 | AE36: 0.009187884578 | AF36: 0.009187884578
A37: 01Y | B37: NHS Tameside and Glossop CCG | E37: 83997 | F37: 249223.8125 | G37: 337.0344076 | H37: 0.04756213787 | J37: 80109.98907 | K37: 249879.5625 | L37: 320.5944026 | M37: 0.002631169122 | O37: 0.04852092695 | P37: 0.05127976284 | Q37: 0.06625710038 | R37: 0.06345896 | S37: 89562.39766 | T37: 0 | U37: 0.06625710038 | V37: 0.06345896 | W37: 89562.39766 | X37: 89562 | Y37: 358.4206692 | Z37: 0.06625236616 | AA37: 0.0634542382 | AC37: 85679.56699 | AD37: 342.883452 | AE37: 0.04531340611 | AF37: 0.04531340611
A38: 02A | B38: NHS Trafford CCG | E38: 84729 | F38: 245133.5625 | G38: 345.6442241 | H38: 0.1407438328 | J38: 74281.26095 | K38: 246695.3125 | L38: 301.1052792 | M38: 0.006371016617 | O38: 0.1406510729 | P38: 0.1479181798 | Q38: 0.07023427471 | R38: 0.06345896 | S38: 90679.87986 | T38: 0 | U38: 0.07023427471 | V38: 0.06345896 | W38: 90679.87986 | X38: 90680 | Y38: 367.578934 | Z38: 0.07023569262 | AA38: 0.06346036894 | AC38: 79445.60157 | AD38: 322.0393641 | AE38: 0.1414099486 | AF38: 0.1414099486
A39: 02D | B39: NHS Vale Royal CCG | E39: 26621 | F39: 107566.4219 | G39: 247.4842942 | H39: -0.004066318209 | J39: 26696.5006 | K39: 107859.3906 | L39: 247.5120659 | M39: 0.002723607841 | O39: -0.00282810859 | P39: -0.0001122034086 | Q39: 0.06635540516 | R39: 0.06345896 | S39: 28387.44724 | T39: 0 | U39: 0.06635540516 | V39: 0.06345896 | W39: 28387.44724 | X39: 28387 | Y39: 263.1852436 | Z39: 0.06633860486 | AA39: 0.06344220533 | AC39: 28552.55179 | AD39: 264.7201289 | AE39: -0.00579814332 | AF39: -0.00579814332
A40: 02E | B40: NHS Warrington CCG | E40: 64013 | F40: 220369.6406 | G40: 290.4801216 | H40: 0.04096473048 | J40: 61570.9143 | K40: 221421.6875 | L40: 278.0708385 | M40: 0.004774010032 | O40: 0.0396629761 | P40: 0.04462633758 | Q40: 0.06853592374 | R40: 0.06345896 | S40: 68400.19009 | T40: 0 | U40: 0.06853592374 | V40: 0.06345896 | W40: 68400.19009 | X40: 68400 | Y40: 308.9128295 | Z40: 0.06853295424 | AA40: 0.06345600461 | AC40: 65851.57902 | AD40: 297.4034737 | AE40: 0.03869946651 | AF40: 0.03869946651
A41: 02F | B41: NHS West Cheshire CCG | E41: 78879 | F41: 265597.6875 | G41: 296.9867725 | H41: 0.02963397154 | J41: 76604.05042 | K41: 266357.6875 | L41: 287.5984213 | M41: 0.002861470697 | O41: 0.02969751033 | P41: 0.03264395958 | Q41: 0.06650201665 | R41: 0.06345896 | S41: 84124.61257 | T41: 0 | U41: 0.06650201665 | V41: =MAX(R41,NewMinGrowthPerHead(P41,$P$2,$L$1,$U$1,$T$2,AD41,G41,T41, $P$1)) -> 0.06345896 | W41: 84124.61257 | X41: 84125 | Y41: =X41/K41*1000 -> 315.8346988 | Z41: =X41/E41-1 -> 0.06650692833 | AA41: =Y41/G41-1 -> 0.06346385767 | AC41: 81929.88097 | AD41: =AC41/K41*1000 -> 307.5934535 | AE41: 0.0267926549 | AF41: 0.0267926549
A42: 02G | B42: NHS West Lancashire CCG | E42: 39526 | F42: 113877.375 | G42: 347.0926512 | H42: 0.01625460205 | J42: 38827.35665 | K42: 114012.5312 | L42: 340.553413 | M42: 0.001186857793 | O42: 0.01799358532 | P42: 0.01920179894 | Q42: 0.06472113455 | R42: 0.06345896 | S42: 42084.16756 | T42: 0 | U42: 0.06472113455 | V42: 0.06345896 | W42: 42084.16756 | X42: 42084 | Y42: 369.1173202 | Z42: 0.06471689521 | AA42: 0.06345472568 | AC42: 41526.79514 | AD42: 364.2300954 | AE42: 0.0134179597 | AF42: 0.0134179597
A43: 02H | B43: NHS Wigan Borough CCG | E43: 107869 | F43: 329583.8125 | G43: 327.2885254 | H43: 0.02762950374 | J43: 104895.7288 | K43: 330294.3125 | L43: 317.5826069 | M43: 0.002155749078 | O43: 0.02834501667 | P43: 0.03056187049 | Q43: 0.06575151067 | R43: 0.06345896 | S43: 114961.5497 | T43: 0 | U43: 0.06575151067 | V43: 0.06345896 | W43: 114961.5497 | X43: 114962 | Y43: 348.0592782 | Z43: 0.06575568514 | AA43: 0.06346312548 | AC43: 112188.5139 | AD43: 339.6622638 | AE43: 0.02472165811 | AF43: 0.02472165811
A44: 02M | B44: NHS Fylde & Wyre CCG | E44: 51756 | F44: 178955.0312 | G44: 289.2123213 | H44: -0.04887889039 | J44: 54471.58594 | K44: 179679.0625 | L44: 303.1604528 | M44: 0.004045883734 | O44: -0.04985325637 | P44: -0.04600907311 | Q44: 0.06776159131 | R44: 0.06345896 | S44: 55263.06892 | T44: 0 | U44: 0.06776159131 | V44: 0.06345896 | W44: 55263.06892 | X44: 55263 | Y44: 307.5650509 | Z44: 0.06776025968 | AA44: 0.06345763374 | AC44: 58258.67598 | AD44: 324.2374218 | AE44: -0.05142025511 | AF44: -0.05142025511
A45: 02N | B45: NHS Airedale, Wharfedale and Craven CCG | E45: 41015 | F45: 160223.2188 | G45: 255.9866187 | H45: -0.03488353973 | J45: 42523.38326 | K45: 160710.5312 | L45: 264.5961215 | M45: 0.003041459932 | O45: -0.03547185431 | P45: -0.0325382806 | Q45: 0.06669342782 | R45: 0.06345896 | S45: 43750.43094 | T45: 0 | U45: 0.06669342782 | V45: 0.06345896 | W45: 43750.43094 | X45: 43750 | Y45: 272.2285818 | Z45: 0.06668292088 | AA45: 0.06344848493 | AC45: 45479.78481 | AD45: 282.9919387 | AE45: -0.03803414675 | AF45: -0.03803414675
A46: 02P | B46: NHS Barnsley CCG | E46: 80467 | F46: 264060.1562 | G46: 304.7298053 | H46: -0.05290214803 | J46: 85109.16403 | K46: 265800.3438 | L46: 320.199601 | M46: 0.006590117664 | O46: -0.05454364498 | P46: -0.04831297636 | Q46: 0.07046727968 | R46: 0.06345896 | S46: 86137.29059 | T46: 0 | U46: 0.07046727968 | V46: 0.06345896 | W46: 86137.29059 | X46: 86137 | Y46: 324.0665485 | Z46: 0.07046366834 | AA46: 0.0634553723 | AC46: 91026.30527 | AD46: 342.4612022 | AE46: -0.05371310254 | AF46: -0.05371310254
A47: 02Q | B47: NHS Bassetlaw CCG | E47: 32129 | F47: 118099.2578 | G47: 272.0508206 | H47: -0.08188906883 | J47: 35026.43585 | K47: 118456.6719 | L47: 295.6898527 | M47: 0.003026387033 | O47: -0.08272140121 | P47: -0.07994536115 | Q47: 0.06667739841 | R47: 0.06345896 | S47: 34271.27813 | T47: 0 | U47: 0.06667739841 | V47: 0.06345896 | W47: 34271.27813 | X47: 34271 | Y47: 289.3125348 | Z47: 0.06666874164 | AA47: 0.06345032935 | AC47: 37461.6186 | AD47: 316.2474347 | AE47: -0.08517033493 | AF47: -0.08517033493
A48: 02R | B48: NHS Bradford Districts CCG | E48: 81639 | F48: 334984.2188 | G48: 243.7099882 | H48: -0.09123772038 | J48: 89842.14971 | K48: 335719.3125 | L48: 267.610907 | M48: 0.002194413076 | O48: -0.0913062492 | P48: -0.08931219975 | Q48: 0.06579262825 | R48: 0.06345896 | S48: 87010.24438 | T48: 0 | U48: 0.06579262825 | V48: 0.06345896 | W48: 87010.24438 | X48: 87010 | Y48: 259.1748427 | Z48: 0.06578963486 | AA48: 0.06345597316 | AC48: 96088.3477 | AD48: 286.2163245 | AE48: -0.09447917377 | AF48: -0.09447917377
A49: 02T | B49: NHS Calderdale CCG | E49: 62138 | F49: 222195.1562 | G49: 279.6550611 | H49: -0.06370892501 | J49: 66397.98758 | K49: 222935.9062 | L49: 297.8344256 | M49: 0.003333781044 | O49: -0.06415838396 | P49: -0.06103849292 | Q49: 0.06700429932 | R49: 0.06345896 | S49: 66301.51315 | T49: 0 | U49: 0.06700429932 | V49: 0.06345896 | W49: 66301.51315 | X49: 66302 | Y49: 297.4038643 | Z49: 0.06701213428 | AA49: 0.06346676893 | AC49: 71014.25041 | AD49: 318.5411072 | AE49: -0.06635640575 | AF49: -0.06635640575
A50: 02W | B50: NHS Bradford City CCG | E50: 36861 | F50: 140252.5469 | G50: 262.8187567 | H50: -0.1327740766 | J50: 42445.70342 | K50: 140106.9844 | L50: 302.9520877 | M50: -0.001037859941 | O50: -0.1315728794 | P50: -0.1324741852 | Q50: 0.06235523855 | R50: 0.06345896 | S50: 39159.47645 | T50: 0 | U50: 0.06235523855 | V50: 0.06345896 | W50: 39159.47645 | X50: 39160 | Y50: 279.5006985 | Z50: 0.06236944196 | AA50: 0.06347317817 | AC50: 45396.70435 | AD50: 324.0145704 | AE50: -0.1373823153 | AF50: -0.1373823153
A51: 02X | B51: NHS Doncaster CCG | E51: 92803 | F51: 322119.4688 | G51: 288.101183 | H51: -0.08425325545 | J51: 101353.1403 | K51: 322742.1875 | L51: 314.0374709 | M51: 0.001933191907 | O51: -0.08435989534 | P51: -0.0825897873 | Q51: 0.06551483025 | R51: 0.06345896 | S51: 98882.97279 | T51: 0 | U51: 0.06551483025 | V51: 0.06345896 | W51: 98882.97279 | X51: 98883 | Y51: 306.3838687 | Z51: 0.06551512343 | AA51: 0.06345925261 | AC51: 108399.63 | AD51: 335.8706553 | AE51: -0.08779208929 | AF51: -0.08779208929
A52: 02Y | B52: NHS East Riding of Yorkshire CCG | E52: 89966 | F52: 305466.3438 | G52: 294.5201717 | H52: -0.04176704559 | J52: 93983.71436 | K52: 306030.75 | L52: 307.1054604 | M52: 0.001847687189 | O52: -0.04274904851 | P52: -0.04098034819 | Q52: 0.0654238995 | R52: 0.06345896 | S52: 95851.92654 | T52: 0 | U52: 0.0654238995 | V52: 0.06345896 | W52: 95851.92654 | X52: 95852 | Y52: 313.2103555 | Z52: 0.065424716 | AA52: 0.063459775 | AC52: 100517.8511 | AD52: 328.4567027 | AE52: -0.04641813386 | AF52: -0.04641813386
A53: 03A | B53: NHS Greater Huddersfield CCG | E53: 56066 | F53: 251006.7812 | G53: 223.3644833 | H53: -0.0822926034 | J53: 61107.71512 | K53: 251959.5156 | L53: 242.529896 | M53: 0.003795651935 | O53: -0.08250537773 | P53: -0.07902288749 | Q53: 0.06749548006 | R53: 0.06345896 | S53: 59850.20159 | T53: 0 | U53: 0.06749548006 | V53: 0.06345896 | W53: 59850.20159 | X53: 59850 | Y53: 237.538161 | Z53: 0.06749188456 | AA53: 0.0634553781 | AC53: 65356.17632 | AD53: 259.3915779 | AE53: -0.08424875245 | AF53: -0.08424875245
A54: 03D | B54: NHS Hambleton, Richmondshire and Whitby CCG | E54: 45236 | F54: 144107.0938 | G54: 313.9054353 | H54: 0.04751560729 | J54: 43209.94456 | K54: 144141.25 | L54: 299.7750093 | M54: 0.0002370199073 | O54: 0.04688863789 | P54: 0.04713677134 | Q54: 0.06371102094 | R54: 0.06345896 | S54: 48118.03174 | T54: 0 | U54: 0.06371102094 | V54: 0.06345896 | W54: 48118.03174 | X54: 48118 | Y54: 333.8253276 | Z54: 0.06371031921 | AA54: 0.06345825844 | AC54: 46214.07869 | AD54: 320.6166083 | AE54: 0.04119786353 | AF54: 0.04119786353
A55: 03E | B55: NHS Harrogate and Rural District CCG | E55: 42546 | F55: 163361.4375 | G55: 260.4409012 | H55: -0.02520377866 | J55: 43710.051 | K55: 163420 | L55: 267.470634 | M55: 0.0003584842353 | O55: -0.02663119757 | P55: -0.02628226019 | Q55: 0.06384019327 | R55: 0.06345896 | S55: 45262.14486 | T55: 0 | U55: 0.06384019327 | V55: 0.06345896 | W55: 45262.14486 | X55: 45262 | Y55: 276.9673235 | Z55: 0.06383678842 | AA55: 0.06345555637 | AC55: 46748.95461 | AD55: 286.0662992 | AE55: -0.03180722697 | AF55: -0.03180722697
A56: 03F | B56: NHS Hull CCG | E56: 102775 | F56: 300221.8125 | G56: 342.3302229 | H56: -0.05544839301 | J56: 108767.4614 | K56: 300771.9062 | L56: 361.6277289 | M56: 0.001832291083 | O56: -0.05509424689 | P56: -0.0533629045 | Q56: 0.06540752637 | R56: 0.06345896 | S56: 109497.2585 | T56: 0 | U56: 0.06540752637 | V56: 0.06345896 | W56: 109497.2585 | X56: 109497 | Y56: 364.0532833 | Z56: 0.06540501095 | AA56: 0.06345644918 | AC56: 116329.4253 | AD56: 386.7695849 | AE56: -0.05873342291 | AF56: -0.05873342291
A57: 03H | B57: NHS North East Lincolnshire CCG | E57: 51429 | F57: 169500.1562 | G57: 303.4156495 | H57: -0.07788449894 | J57: 55725.51948 | K57: 169391.1875 | L57: 328.9753163 | M57: -0.0006428828882 | O57: -0.07710147029 | P57: -0.07769478596 | Q57: 0.06277528043 | R57: 0.06345896 | S57: 54657.4699 | T57: 0 | U57: 0.06277528043 | V57: 0.06345896 | W57: 54657.4699 | X57: 54658 | Y57: 322.6732205 | Z57: 0.0627855879 | AA57: 0.0634692741 | AC57: 59599.78818 | AD57: 351.8470415 | AE57: -0.08291620369 | AF57: -0.08291620369
A58: 03J | B58: NHS North Kirklees CCG | E58: 50247 | F58: 195498.4375 | G58: 257.019957 | H58: -0.06360456594 | J58: 53689.70864 | K58: 196266.0469 | L58: 273.5557652 | M58: 0.003926422046 | O58: -0.06412231928 | P58: -0.06044766852 | Q58: 0.06763454871 | R58: 0.06345896 | S58: 53645.43317 | T58: 0 | U58: 0.06763454871 | V58: 0.06345896 | W58: 53645.43317 | X58: 53645 | Y58: 273.3279691 | Z58: 0.06762592792 | AA58: 0.06345037293 | AC58: 57422.43934 | AD58: 292.5744939 | AE58: -0.06578333106 | AF58: -0.06578333106
A59: 03K | B59: NHS North Lincolnshire CCG | E59: 48392 | F59: 178117.2188 | G59: 271.6862544 | H59: -0.1220329519 | J59: 55188.46839 | K59: 178564.7188 | L59: 309.0670362 | M59: 0.002512390454 | O59: -0.1231501541 | P59: -0.120947165 | Q59: 0.06613078414 | R59: 0.06345896 | S59: 51592.20091 | T59: 0 | U59: 0.06613078414 | V59: 0.06345896 | W59: 51592.20091 | X59: 51592 | Y59: 288.9260564 | Z59: 0.0661266325 | AA59: 0.06345481877 | AC59: 59025.39907 | AD59: 330.5546554 | AE59: -0.1259356003 | AF59: -0.1259356003
A60: 03L | B60: NHS Rotherham CCG | E60: 78291 | F60: 264819.25 | G60: 295.6393842 | H60: -0.07287003798 | J60: 84438.0619 | K60: 265637.2812 | L60: 317.8697715 | M60: 0.00308901732 | O60: -0.07279965651 | P60: -0.06993551859 | Q60: 0.06674400315 | R60: 0.06345896 | S60: 83516.45475 | T60: 0 | U60: 0.06674400315 | V60: 0.06345896 | W60: 83516.45475 | X60: 83516 | Y60: 314.3986402 | Z60: 0.06673819468 | AA60: 0.06345316942 | AC60: 90308.54535 | AD60: 339.9693933 | AE60: -0.07521486834 | AF60: -0.07521486834
A61: 03M | B61: NHS Scarborough and Ryedale CCG | E61: 33836 | F61: 120801.6562 | G61: 280.0954974 | H61: 0.002916545349 | J61: 33720.58389 | K61: 120953.375 | L61: 278.7899377 | M61: 0.001255932698 | O61: 0.003422719909 | P61: 0.004682951313 | Q61: 0.06479459288 | R61: 0.06345896 | S61: 36028.38984 | T61: 0 | U61: 0.06479459288 | V61: 0.06345896 | W61: 36028.38984 | X61: 36028 | Y61: 297.8668433 | Z61: 0.06478307129 | AA61: 0.06344745286 | AC61: 36064.9784 | AD61: 298.1725678 | AE61: -0.001025327232 | AF61: -0.001025327232
A62: 03N | B62: NHS Sheffield CCG | E62: 227555 | F62: 607792.6875 | G62: 374.3957515 | H62: 0.0516451027 | J62: 216308.5984 | K62: 610593 | L62: 354.2598727 | M62: 0.004607348126 | O62: 0.05199239254 | P62: 0.05683928771 | Q62: 0.06835868565 | R62: 0.06345896 | S62: 243110.3607 | T62: 0 | U62: 0.06835868565 | V62: 0.06345896 | W62: 243110.3607 | X62: 243110 | Y62: 398.1539258 | Z62: 0.06835710048 | AA62: 0.0634573821 | AC62: 231347.2672 | AD62: 378.8894849 | AE62: 0.05084448548 | AF62: 0.05084448548
A63: 03Q | B63: NHS Vale of York CCG | E63: 90786 | F63: 360500 | G63: 251.8335645 | H63: -0.03093128134 | J63: 93762.89845 | K63: 361942.9062 | L63: 259.054389 | M63: 0.00400251387 | O63: -0.03174921528 | P63: -0.02787377809 | Q63: 0.06771546924 | R63: 0.06345896 | S63: 96933.61659 | T63: 0 | U63: 0.06771546924 | V63: 0.06345896 | W63: 96933.61659 | X63: 96934 | Y63: 267.8157199 | Z63: 0.06771969246 | AA63: 0.06346316639 | AC63: 100281.6831 | AD63: 277.0649221 | AE63: -0.03338279743 | AF63: -0.03338279743
A64: 03R | B64: NHS Wakefield CCG | E64: 104450 | F64: 377694.125 | G64: 276.5465309 | H64: -0.03660896474 | J64: 108496.4031 | K64: 379592.1875 | L64: 285.8235935 | M64: 0.005025395881 | O64: -0.03729527421 | P64: -0.03245730185 | Q64: 0.06880326228 | R64: 0.06345896 | S64: 111636.5007 | T64: 0 | U64: 0.06880326228 | V64: 0.06345896 | W64: 111636.5007 | X64: 111637 | Y64: 294.0972014 | Z64: 0.06880804213 | AA64: 0.06346371595 | AC64: 116039.522 | AD64: 305.6952324 | AE64: -0.03793984931 | AF64: -0.03793984931
A65: 03T | B65: NHS Lincolnshire East CCG | E65: 68316 | F65: 252526.2969 | G65: 270.5302412 | H65: -0.1038941528 | J65: 76278.43196 | K65: 253605.7031 | L65: 300.7756964 | M65: 0.004274431073 | O65: -0.1043864137 | P65: -0.1005581752 | Q65: 0.06800464202 | R65: 0.06345896 | S65: 72961.80512 | T65: 0 | U65: 0.06800464202 | V65: 0.06345896 | W65: 72961.80512 | X65: 72962 | Y65: 287.6985774 | Z65: 0.06800749458 | AA65: 0.06346180042 | AC65: 81581.62417 | AD65: 321.6868673 | AE65: -0.1056564423 | AF65: -0.1056564423
A66: 03V | B66: NHS Corby CCG | E66: 19887 | F66: 81145.17188 | G66: 245.0792763 | H66: -0.05340072336 | J66: 21132.432 | K66: 82345.01562 | L66: 256.6328008 | M66: 0.01478638497 | O66: -0.05893462693 | P66: -0.04501967204 | Q66: 0.07918367358 | R66: 0.06345896 | S66: 21461.72572 | T66: 0 | U66: 0.07918367358 | V66: 0.06345896 | W66: 21461.72572 | X66: 21462 | Y66: 260.6350832 | Z66: 0.07919746568 | AA66: 0.06347255113 | AC66: 22601.64611 | AD66: 274.474975 | AE66: -0.0504231463 | AF66: -0.0504231463
A67: 03W | B67: NHS East Leicestershire and Rutland CCG | E67: 93568 | F67: 335015.1875 | G67: 279.2948006 | H67: -0.02218372382 | J67: 95868.61296 | K67: 336898.3438 | L67: 284.5624348 | M67: 0.005621107103 | O67: -0.02399756178 | P67: -0.01851134754 | Q67: 0.06943677671 | R67: 0.06345896 | S67: 100065.0603 | T67: 0 | U67: 0.06943677671 | V67: 0.06345896 | W67: 100065.0603 | X67: 100065 | Y67: 297.0183792 | Z67: 0.06943613201 | AA67: 0.0634583189 | AC67: 102533.7956 | AD67: 304.3463927 | AE67: -0.02407787207 | AF67: -0.02407787207
A68: 04C | B68: NHS Leicester City CCG | E68: 119339 | F68: 412727.875 | G68: 289.1469349 | H68: -0.07434749331 | J68: 129086.6313 | K68: 415521.0625 | L68: 310.662065 | M68: 0.006767625036 | O68: -0.07551232251 | P68: -0.06925573656 | Q68: 0.07065605148 | R68: 0.06345896 | S68: 127771.0225 | T68: 0 | U68: 0.07065605148 | V68: 0.06345896 | W68: 127771.0225 | X68: 127771 | Y68: 307.4958444 | Z68: 0.07065586271 | AA68: 0.0634587725 | AC68: 138061.2681 | AD68: 332.2605772 | AE68: -0.07453406895 | AF68: -0.07453406895
A69: 04D | B69: NHS Lincolnshire West CCG | E69: 73664 | F69: 239817.1719 | G69: 307.1673284 | H69: -0.04475345224 | J69: 77190.93512 | K69: 240844.4375 | L69: 320.5012162 | M69: 0.004283536566 | O69: -0.04569105321 | P69: -0.04160323594 | Q69: 0.06801432534 | R69: 0.06345896 | S69: 78674.20726 | T69: 0 | U69: 0.06801432534 | V69: 0.06345896 | W69: 78674.20726 | X69: 78674 | Y69: 326.6589871 | Z69: 0.06801151173 | AA69: 0.06345615839 | AC69: 82557.56833 | AD69: 342.7837869 | AE69: -0.04704073058 | AF69: -0.04704073058
A70: 04E | B70: NHS Mansfield and Ashfield CCG | E70: 57518 | F70: 196347.5 | G70: 292.9398133 | H70: -0.06305265471 | J70: 61477.40437 | K70: 197463.0625 | L70: 311.3362246 | M70: 0.005681572213 | O70: -0.06440422155 | P70: -0.05908856657 | Q70: 0.06950107888 | R70: 0.06345896 | S70: 61515.56305 | T70: 0 | U70: 0.06950107888 | V70: 0.06345896 | W70: 61515.56305 | X70: 61516 | Y70: 311.531682 | Z70: 0.06950867555 | AA70: 0.06346651375 | AC70: 65751.5679 | AD70: 332.9816071 | AE70: -0.06441774752 | AF70: -0.06441774752
A71: 04F | B71: NHS Milton Keynes CCG | E71: 82041 | F71: 300121.75 | G71: 273.3590618 | H71: -0.02860425254 | J71: 84721.92761 | K71: 302910.25 | L71: 279.6931685 | M71: 0.009291229309 | O71: -0.03164384572 | P71: -0.02264662664 | Q71: 0.07333980106 | R71: 0.06345896 | S71: 88057.87062 | T71: 0 | U71: 0.07333980106 | V71: 0.06345896 | W71: 88057.87062 | X71: 88058 | Y71: 290.7065707 | Z71: 0.07334137809 | AA71: 0.06346052252 | AC71: 90612.14657 | AD71: 299.1385949 | AE71: -0.02818768417 | AF71: -0.02818768417
A72: 04G | B72: NHS Nene CCG | E72: 199372 | F72: 695931.1875 | G72: 286.4823471 | H72: -0.0306967507 | J72: 206102.6562 | K72: 700670.125 | L72: 294.1507691 | M72: 0.006809491492 | O72: -0.03265681439 | P72: -0.0260696992 | Q72: 0.07070057474 | R72: 0.06345896 | S72: 213467.715 | T72: 0 | U72: 0.07070057474 | V72: 0.06345896 | W72: 213467.715 | X72: 213468 | Y72: 304.6626257 | Z72: 0.07070200429 | AA72: 0.06346037989 | AC72: 220431.7656 | AD72: 314.6013477 | AE72: -0.03159147967 | AF72: -0.03159147967
A73: 04H | B73: NHS Newark & Sherwood CCG | E73: 35153 | F73: 136950.875 | G73: 256.6832815 | H73: -0.04228307977 | J73: 36787.79178 | K73: 137881.5625 | L73: 266.8071866 | M73: 0.006795776223 | O73: -0.04443843179 | P73: -0.03794464921 | Q73: 0.07068598911 | R73: 0.06345896 | S73: 37637.82458 | T73: 0 | U73: 0.07068598911 | V73: =MAX(R73,NewMinGrowthPerHead(P73,$P$2,$L$1,$U$1,$T$2,AD73,G73,T73, $P$1)) -> 0.06345896 | W73: 37637.82458 | X73: 37638 | Y73: =X73/K73*1000 -> 272.9734079 | Z73: =X73/E73-1 -> 0.07069097943 | AA73: =Y73/G73-1 -> 0.06346391663 | AC73: 39345.43128 | AD73: =AC73/K73*1000 -> 285.3567262 | AE73: -0.04339592228 | AF73: -0.04339592228
A74: 04K | B74: NHS Nottingham City CCG | E74: 140025 | F74: 383184.875 | G74: =E74/F74*1000 -> 365.4241311 | H74: 0.00523212447 | J74: 139360.3788 | K74: 384540.0625 | L74: =J74/K74*1000 -> 362.4079579 | M74: =K74/F74-1 -> 0.003536641419 | O74: =E74/J74-1 -> 0.004769082982 | P74: =G74/L74-1 -> 0.008322590937 | Q74: =(1+M74)*(1+R74)-1 -> 0.06722003301 | R74: =MinGrowthPerHead(P74,0,1,$Q$1,$Q$2,$R$1,$R$2) -> 0.06345896 | S74: =(1+IF($S$2=1,Q74,0))*$E74 -> 149437.4851 | T74: =MinMaxRamp(P74,0,1,$P$2,$T$2) -> 0 | U74: =(1+M74)*(1+V74)-1 -> 0.06722003301 | V74: 0.06345896 | W74: =(1+IF($S$2=1,U74,0))*$E74 -> 149437.4851 | X74: =IF(ROUND(W74,0)/E74>$X$1,ROUND(W74,0),ROUNDUP(W74,0)) -> 149437 | Y74: 388.6123049 | Z74: 0.06721656847 | AA74: 0.06345550767 | AC74: 149049.289 | AD74: 387.6040587 | AE74: =X74/AC74-1 -> 0.00260122705 | AF74: 0.00260122705
A75: 04L | B75: NHS Nottingham North and East CCG | E75: 48902 | F75: 154496.7812 | G75: 316.5243936 | H75: 0.04733063497 | J75: 46753.67561 | K75: 155536.7344 | L75: 300.5957133 | M75: 0.006731228422 | O75: 0.04594985013 | P75: 0.05299037749 | Q75: 0.07061734518 | R75: 0.06345896 | S75: 52355.32941 | T75: 0 | U75: 0.07061734518 | V75: 0.06345896 | W75: 52355.32941 | X75: 52355 | Y75: 336.6085845 | Z75: 0.07061060897 | AA75: 0.06345226884 | AC75: 50004.1846 | AD75: 321.4943711 | AE75: 0.04701237354 | AF75: 0.04701237354
A76: 04M | B76: NHS Nottingham West CCG | E76: 30481 | F76: 95121.66406 | G76: 320.4422494 | H76: 0.01239221375 | J76: 30126.15485 | K76: 95606.65625 | L76: 315.1052033 | M76: 0.005098651209 | O76: 0.01177864046 | P76: 0.01693734684 | Q76: 0.06888116631 | R76: 0.06345896 | S76: 32580.56683 | T76: 0 | U76: 0.06888116631 | V76: 0.06345896 | W76: 32580.56683 | X76: 32581 | Y76: 340.781712 | Z76: 0.06889537745 | AA76: 0.06347309905 | AC76: 32220.64979 | AD76: 337.0126208 | AE76: 0.01118382806 | AF76: 0.01118382806
A77: 04N | B77: NHS Rushcliffe CCG | E77: 37642 | F77: 128916.7656 | G77: 291.9868476 | H77: 0.02616369468 | J77: 36789.89627 | K77: 129817.625 | L77: 283.396775 | M77: 0.006987914804 | O77: 0.02316135185 | P77: 0.03031111621 | Q77: 0.07089032061 | R77: 0.06345896 | S77: 40310.45345 | T77: 0 | U77: 0.07089032061 | V77: 0.06345896 | W77: 40310.45345 | X77: 40310 | Y77: 310.5125363 | Z77: 0.07087827427 | AA77: 0.06344699725 | AC77: 39347.68208 | AD77: 303.0996915 | AE77: 0.02445678795 | AF77: 0.02445678795
A78: 04Q | B78: NHS South West Lincolnshire CCG | E78: 35480 | F78: 135580.4688 | G78: 261.6896101 | H78: -0.0527633348 | J78: 37568.20836 | K78: 136527.4062 | L78: 275.1697215 | M78: 0.006984320889 | O78: -0.05558445431 | P78: -0.04898835308 | Q78: 0.07088649863 | R78: 0.06345896 | S78: 37995.05297 | T78: 0 | U78: 0.07088649863 | V78: 0.06345896 | W78: 37995.05297 | X78: 37995 | Y78: 278.2957726 | Z78: 0.07088500564 | AA78: 0.06345747736 | AC78: 40180.10565 | AD78: 294.3006592 | AE78: -0.0543827752 | AF78: -0.0543827752
A79: 04V | B79: NHS West Leicestershire CCG | E79: 106538 | F79: 399689.625 | G79: 266.5518276 | H79: -0.04253849971 | J79: 111563.4814 | K79: 402919.5625 | L79: 276.8877261 | M79: 0.00808111419 | O79: -0.04504593598 | P79: -0.03732884314 | Q79: 0.07205289329 | R79: 0.06345896 | S79: 114214.3711 | T79: 0 | U79: 0.07205289329 | V79: 0.06345896 | W79: 114214.3711 | X79: 114214 | Y79: 283.4660082 | Z79: 0.0720494096 | AA79: 0.06345550424 | AC79: 119319.8363 | AD79: 296.1381065 | AE79: -0.04279117748 | AF79: -0.04279117748
A80: 04Y | B80: NHS Cannock Chase CCG | E80: 39984 | F80: 133519.9062 | G80: 299.4609652 | H80: 0.01193140166 | J80: 39529.39728 | K80: 133701.5938 | L80: 295.6538974 | M80: 0.001360752154 | O80: 0.01150037065 | P80: 0.01287677196 | Q80: 0.06490606407 | R80: 0.06345896 | S80: 42579.20407 | T80: 0 | U80: 0.06490606407 | V80: 0.06345896 | W80: 42579.20407 | X80: 42579 | Y80: 318.4629203 | Z80: 0.06490096038 | AA80: 0.06345386325 | AC80: 42277.64454 | AD80: 316.2089797 | AE80: 0.007128009681 | AF80: 0.007128009681
A81: 05A | B81: NHS Coventry and Rugby CCG | E81: 167334 | F81: 528344.125 | G81: 316.7140356 | H81: 0.03227142287 | J81: 162252.2915 | K81: 534572.25 | L81: 303.5179837 | M81: 0.01178800843 | O81: 0.03131979526 | P81: 0.0434770017 | Q81: 0.07599502319 | R81: 0.06345896 | S81: 180050.5512 | T81: 0 | U81: 0.07599502319 | V81: 0.06345896 | W81: 180050.5512 | X81: 180051 | Y81: 336.8132184 | Z81: 0.07599770519 | AA81: 0.06346161075 | AC81: 173532.7421 | AD81: 324.6198098 | AE81: 0.0375621212 | AF81: 0.0375621212
A82: 05C | B82: NHS Dudley CCG | E82: 91998 | F82: 321186.375 | G82: 286.4318264 | H82: -0.04885834202 | J82: 96577.72807 | K82: 322034.875 | L82: 299.8983513 | M82: 0.00264176835 | O82: -0.04742012635 | P82: -0.04490363099 | Q82: 0.06626837222 | R82: 0.06345896 | S82: 98094.55771 | T82: 0 | U82: 0.06626837222 | V82: 0.06345896 | W82: 98094.55771 | X82: 98095 | Y82: 304.6098656 | Z82: 0.06627317985 | AA82: 0.06346375496 | AC82: 103292.2113 | AD82: 320.7485256 | AE82: -0.0503156169 | AF82: -0.0503156169
A83: 05D | B83: NHS East Staffordshire CCG | E83: 34177 | F83: 143146.2188 | G83: 238.75587 | H83: -0.07298813618 | J83: 36940.84472 | K83: 143672.5 | L83: 257.1184097 | M83: 0.003676529178 | O83: -0.07481812462 | P83: -0.07141666646 | Q83: 0.0673687979 | R83: 0.06345896 | S83: 36479.46341 | T83: 0 | U83: 0.0673687979 | V83: 0.06345896 | W83: 36479.46341 | X83: 36479 | Y83: 253.9038438 | Z83: 0.0673552389 | AA83: 0.06344545067 | AC83: 39509.1251 | AD83: 274.9943455 | AE83: -0.07669431031 | AF83: -0.07669431031
A84: 05F | B84: NHS Herefordshire CCG | E84: 52140 | F84: 189233.0781 | G84: 275.5332235 | H84: -0.02997906962 | J84: 53849.15607 | K84: 190084.8125 | L84: 283.2901554 | M84: 0.004500980396 | O84: -0.0317397002 | P84: -0.02738157957 | Q84: 0.06824556793 | R84: 0.06345896 | S84: 55698.32391 | T84: 0 | U84: 0.06824556793 | V84: 0.06345896 | W84: 55698.32391 | X84: 55698 | Y84: 293.0165712 | Z84: 0.06823935558 | AA84: 0.06345277549 | AC84: 57592.97221 | AD84: 302.9856592 | AE84: -0.03290283762 | AF84: -0.03290283762
A85: 05G | B85: NHS North Staffordshire CCG | E85: 79404 | F85: 219545.2812 | G85: 361.6748196 | H85: 0.04845155693 | J85: 75697.13694 | K85: 220264.125 | L85: 343.6653016 | M85: 0.003274239127 | O85: 0.04896966001 | P85: 0.05240423751 | Q85: 0.06694097894 | R85: 0.06345896 | S85: 84719.38149 | T85: 0 | U85: 0.06694097894 | V85: 0.06345896 | W85: 84719.38149 | X85: 84719 | Y85: 384.6245956 | Z85: 0.0669361745 | AA85: 0.06345417124 | AC85: 80959.91511 | AD85: 367.5583353 | AE85: 0.04643143314 | AF85: 0.04643143314
A86: 05H | B86: NHS Warwickshire North CCG | E86: 60577 | F86: 193056.6562 | G86: 313.7783549 | H86: -0.01845357734 | J86: 61710.01235 | K86: 193794.2656 | L86: 318.4305384 | M86: 0.003820688648 | O86: -0.01836026772 | P86: -0.01460972794 | Q86: 0.06752210558 | R86: 0.06345896 | S86: 64667.28659 | T86: 0 | U86: 0.06752210558 | V86: 0.06345896 | W86: 64667.28659 | X86: 64667 | Y86: 333.6889241 | Z86: 0.06751737458 | AA86: 0.06345424701 | AC86: 66000.34775 | AD86: 340.569147 | AE86: -0.02020213213 | AF86: -0.02020213213
A87: 05J | B87: NHS Redditch and Bromsgrove CCG | E87: 53481 | F87: 179143.1562 | G87: 298.5377791 | H87: 0.011406345 | J87: 52927.40402 | K87: 179792.7812 | L87: 294.3800282 | M87: 0.003626289799 | O87: 0.01045953402 | P87: 0.01412375312 | Q87: 0.06731537038 | R87: 0.06345896 | S87: 57081.09332 | T87: 0 | U87: 0.06731537038 | V87: 0.06345896 | W87: 57081.09332 | X87: 57081 | Y87: 317.482157 | Z87: 0.0673136254 | AA87: 0.06345722133 | AC87: 56607.13614 | AD87: 314.8465458 | AE87: 0.00837109751 | AF87: 0.00837109751
A88: 05L | B88: NHS Sandwell and West Birmingham CCG | E88: 188278 | F88: 579789.375 | G88: 324.7351678 | H88: -0.03051593677 | J88: 194414.7871 | K88: 583751.6875 | L88: 333.0436405 | M88: 0.006834055039 | O88: -0.031565434 | P88: -0.02494709888 | Q88: 0.07072669706 | R88: 0.06345896 | S88: 201594.2811 | T88: 0 | U88: 0.07072669706 | V88: 0.06345896 | W88: 201594.2811 | X88: 201594 | Y88: 345.3420424 | Z88: 0.07072520422 | AA88: 0.06345747729 | AC88: 207931.3076 | AD88: 356.1982124 | AE88: -0.03047789024 | AF88: -0.03047789024
A89: 05N | B89: NHS Shropshire CCG | E89: 86529 | F89: 312527.375 | G89: 276.8685463 | H89: -0.02244022165 | J89: 88774.54646 | K89: 313786.3438 | L89: 282.9139898 | M89: 0.004028347117 | O89: -0.02529493589 | P89: -0.02136848555 | Q89: 0.06774294184 | R89: 0.06345896 | S89: 92390.72901 | T89: 0 | U89: 0.06774294184 | V89: 0.06345896 | W89: 92390.72901 | X89: 92391 | Y89: 294.4391999 | Z89: 0.06774607357 | AA89: 0.06346207917 | AC89: 94946.52026 | AD89: 302.583341 | AE89: -0.02691536508 | AF89: -0.02691536508
A90: 05Q | B90: NHS South East Staffordshire and Seisdon Peninsula CCG | E90: 61670 | F90: 218447.4062 | G90: 282.3105161 | H90: 0.00581349742 | J90: 61349.848 | K90: 218756.5625 | L90: 280.4480345 | M90: 0.0014152434 | O90: 0.005218464501 | P90: 0.006641093298 | Q90: 0.06496401327 | R90: 0.06345896 | S90: 65676.3307 | T90: 0 | U90: 0.06496401327 | V90: 0.06345896 | W90: 65676.3307 | X90: 65676 | Y90: 300.2241361 | Z90: 0.06495865088 | AA90: 0.06345360519 | AC90: 65615.14328 | AD90: 299.9459423 | AE90: 0.0009274798357 | AF90: 0.0009274798357
A91: 05R | B91: NHS South Warwickshire CCG | E91: 84767 | F91: 289400.875 | G91: 292.9051268 | H91: 0.06669911989 | J91: 79447.78403 | K91: 290531.75 | L91: 273.4564606 | M91: 0.003907641952 | O91: 0.06695235153 | P91: 0.0711216193 | Q91: 0.06761457685 | R91: 0.06345896 | S91: 90498.48484 | T91: 0 | U91: 0.06761457685 | V91: 0.06345896 | W91: 90498.48484 | X91: 90498 | Y91: 311.4909128 | Z91: 0.06760885722 | AA91: 0.06345326264 | AC91: 84971.32271 | AD91: 292.4682852 | AE91: 0.06504167652 | AF91: 0.06504167652
A92: 05T | B92: NHS South Worcestershire CCG | E92: 90594 | F92: 315466.2812 | G92: 287.1749071 | H92: -0.01818554256 | J92: 92485.70744 | K92: 317283.6875 | L92: 291.4921601 | M92: 0.005761015861 | O92: -0.02045405171 | P92: -0.01481087196 | Q92: 0.06958556394 | R92: 0.06345896 | S92: 96898.03458 | T92: 0 | U92: 0.06958556394 | V92: 0.06345896 | W92: 96898.03458 | X92: 96898 | Y92: 305.398619 | Z92: 0.06958518224 | AA92: 0.06345858049 | AC92: 98915.6965 | AD92: 311.7579012 | AE92: -0.02039814282 | AF92: -0.02039814282
A93: 05V | B93: NHS Stafford and Surrounds CCG | E93: 50452 | F93: 150004.2344 | G93: 336.3371721 | H93: 0.06942216106 | J93: 47175.2596 | K93: 150473.5312 | L93: 313.5120125 | M93: 0.003128557517 | O93: 0.06945887364 | P93: 0.07280473724 | Q93: 0.06678605252 | R93: 0.06345896 | S93: 53821.48992 | T93: 0 | U93: 0.06678605252 | V93: 0.06345896 | W93: 53821.48992 | X93: 53821 | Y93: 357.6775234 | Z93: 0.06677634187 | AA93: 0.06344927963 | AC93: 50455.07885 | AD93: 335.3086648 | AE93: 0.06671124546 | AF93: 0.06671124546
A94: 05W | B94: NHS Stoke on Trent CCG | E94: 107933 | F94: 293148.125 | G94: 368.1858787 | H94: 0.006695971113 | J94: 107146.1457 | K94: 293995 | L94: 364.4488705 | M94: 0.002888897891 | O94: 0.007343748209 | P94: 0.01025386144 | Q94: 0.06653118435 | R94: 0.06345896 | S94: 115113.9103 | T94: 0 | U94: 0.06653118435 | V94: 0.06345896 | W94: 115113.9103 | X94: 115114 | Y94: 391.5508767 | Z94: 0.06653201523 | AA94: 0.06345978849 | AC94: 114595.3891 | AD94: 389.786864 | AE94: 0.004525582838 | AF94: 0.004525582838
A95: 05X | B95: NHS Telford and Wrekin CCG | E95: 56276 | F95: 188812.2188 | G95: 298.0527445 | H95: 0.01172711031 | J95: 55761.74586 | K95: 189833.4062 | L95: 293.7404272 | M95: 0.005408482072 | O95: 0.009222346525 | P95: 0.01468070749 | Q95: 0.06921065872 | R95: 0.06345896 | S95: 60170.89903 | T95: 0 | U95: 0.06921065872 | V95: 0.06345896 | W95: 60170.89903 | X95: 60171 | Y95: 316.9673936 | Z95: 0.06921245291 | AA95: 0.06346074454 | AC95: 59638.53316 | AD95: 314.1624772 | AE95: 0.008928235088 | AF95: 0.008928235088
A96: 05Y | B96: NHS Walsall CCG | E96: 85018 | F96: 289358.9375 | G96: 293.8150131 | H96: -0.04442710423 | J96: 88959.75322 | K96: 291028.75 | L96: 305.6734196 | M96: 0.005770730686 | O96: -0.04430939922 | P96: -0.03879436614 | Q96: 0.06959589525 | R96: 0.06345896 | S96: 90934.90382 | T96: 0 | U96: 0.06959589525 | V96: 0.06345896 | W96: 90934.90382 | X96: 90935 | Y96: 312.4605387 | Z96: 0.06959702651 | AA96: 0.06346008477 | AC96: 95144.60335 | AD96: 326.9251005 | AE96: -0.04424426827 | AF96: -0.04424426827
A97: 06A | B97: NHS Wolverhampton CCG | E97: 99881 | F97: 283758.125 | G97: 351.9934451 | H97: 0.03770811783 | J97: 96274.80783 | K97: 285175.6562 | L97: 337.5982687 | M97: 0.004995561801 | O97: 0.03745727726 | P97: 0.0426399592 | Q97: 0.06877153496 | R97: 0.06345896 | S97: 106749.9697 | T97: 0 | U97: 0.06877153496 | V97: 0.06345896 | W97: 106749.9697 | X97: 106750 | Y97: 374.3306894 | Z97: 0.06877183849 | AA97: 0.06345926202 | AC97: 102968.2308 | AD97: 361.0694972 | AE97: 0.03672753373 | AF97: 0.03672753373
A98: 06D | B98: NHS Wyre Forest CCG | E98: 31541 | F98: 117143.3125 | G98: 269.2513924 | H98: -0.07137996468 | J98: 33971.65759 | K98: 117548.75 | L98: 289.0005856 | M98: 0.003461038376 | O98: -0.07154957288 | P98: -0.06833617033 | Q98: 0.06713963227 | R98: 0.06345896 | S98: 33658.65114 | T98: 0 | U98: 0.06713963227 | V98: 0.06345896 | W98: 33658.65114 | X98: 33659 | Y98: 286.3407735 | Z98: 0.06715069275 | AA98: 0.06346998233 | AC98: 36333.50779 | AD98: 309.0931022 | AE98: -0.07360995275 | AF98: -0.07360995275
A99: 06F | B99: NHS Bedfordshire CCG | E99: 138995 | F99: 492199.875 | G99: 282.3954395 | H99: 0.005898887777 | J99: 138427.5597 | K99: 497931.125 | L99: 278.0054364 | M99: 0.01164415168 | O99: 0.004099186053 | P99: 0.01579106927 | Q99: 0.07584203743 | R99: 0.06345896 | S99: 149536.664 | T99: 0 | U99: 0.07584203743 | V99: 0.06345896 | W99: 149536.664 | X99: 149537 | Y99: 300.3166352 | Z99: 0.07584445484 | AA99: 0.06346134958 | AC99: 148051.6164 | AD99: 297.3335246 | AE99: 0.0100328766 | AF99: 0.0100328766
A100: 06H | B100: NHS Cambridgeshire and Peterborough CCG | E100: 266928 | F100: 978624.0625 | G100: 272.758468 | H100: -0.01556772053 | J100: 271576.9893 | K100: 983454 | L100: 276.1461027 | M100: 0.004935437095 | O100: -0.01711849481 | P100: -0.01226754497 | Q100: 0.0687075948 | R100: 0.06345896 | S100: 285267.9809 | T100: 0 | U100: 0.0687075948 | V100: 0.06345896 | W100: 285267.9809 | X100: 285268 | Y100: 290.0674561 | Z100: 0.06870766649 | AA100: 0.06345903133 | AC100: 290458.1453 | AD100: 295.3449224 | AE100: -0.01786882334 | AF100: -0.01786882334
A101: 06K | B101: NHS East and North Hertfordshire CCG | E101: 175517 | F101: 608245.0625 | G101: 288.5629672 | H101: 0.02123589704 | J101: 171527.3368 | K101: 613067.4375 | L101: 279.7854302 | M101: 0.007928342205 | O101: 0.02325963499 | P101: 0.03137238754 | Q101: 0.07189042656 | R101: 0.06345896 | S101: 188134.992 | T101: 0 | U101: 0.07189042656 | V101: 0.06345896 | W101: 188134.992 | X101: 188135 | Y101: 306.874886 | Z101: 0.07189047215 | AA101: 0.06345900523 | AC101: 183452.6269 | AD101: 299.237271 | AE101: 0.02552360867 | AF101: 0.02552360867
A102: 06L | B102: NHS Ipswich and East Suffolk CCG | E102: 111934 | F102: 411776.5312 | G102: 271.8319076 | H102: -0.002628081192 | J102: 112416.5669 | K102: 413861.6875 | L102: 271.6283489 | M102: 0.005063805467 | O102: -0.004292666694 | P102: 0.0007494015437 | Q102: 0.0688441093 | R102: 0.06345896 | S102: 119639.9965 | T102: 0 | U102: 0.0688441093 | V102: 0.06345896 | W102: 119639.9965 | X102: 119640 | Y102: 289.0820861 | Z102: 0.0688441403 | AA102: 0.06345899085 | AC102: 120232.2317 | AD102: 290.5130756 | AE102: -0.004925731814 | AF102: -0.004925731814
A103: 06M | B103: NHS Great Yarmouth and Waveney CCG | E103: 67344 | F103: 241371.125 | G103: 279.0060327 | H103: -0.06677257666 | J103: 72211.97695 | K103: 242140.625 | L103: 298.2233029 | M103: 0.00318803668 | O103: -0.06741232071 | P103: -0.06443919698 | Q103: 0.06684930617 | R103: 0.06345896 | S103: 71845.89967 | T103: 0 | U103: 0.06684930617 | V103: 0.06345896 | W103: 71845.89967 | X103: 71846 | Y103: 296.7118797 | Z103: 0.06685079591 | AA103: 0.06346044501 | AC103: 77232.45238 | AD103: 318.9570209 | AE103: -0.06974338136 | AF103: -0.06974338136
A104: 06N | B104: NHS Herts Valleys CCG | E104: 204042 | F104: 656279.25 | G104: 310.9072853 | H104: 0.01430488869 | J104: 200581.0889 | K104: 661256.5 | L104: 303.3332586 | M104: 0.007584042921 | O104: 0.01725442355 | P104: 0.02496932476 | Q104: 0.0715242784 | R104: 0.06345896 | S104: 218635.9568 | T104: 0 | U104: 0.0715242784 | V104: 0.06345896 | W104: 218635.9568 | X104: 218636 | Y104: 330.6372036 | Z104: 0.07152449006 | AA104: 0.06345917007 | AC104: 214526.3162 | AD104: 324.4222419 | AE104: 0.01915701479 | AF104: 0.01915701479
A105: 06P | B105: NHS Luton CCG | E105: 72063 | F105: 238103.2969 | G105: 302.6543561 | H105: -0.0420484106 | J105: 75055.50173 | K105: 239908.1094 | L105: 312.8510409 | M105: 0.007579955942 | O105: -0.03987051796 | P105: -0.03259277879 | Q105: 0.07151993206 | R105: 0.06345896 | S105: 77216.94086 | T105: 0 | U105: 0.07151993206 | V105: =MAX(R105,NewMinGrowthPerHead(P105,$P$2,$L$1,$U$1,$T$2,AD105,G105,T105, $P$1)) -> 0.06345896 | W105: 77216.94086 | X105: 77217 | Y105: =X105/K105*1000 -> 321.8607333 | Z105: =X105/E105-1 -> 0.07152075267 | AA105: =Y105/G105-1 -> 0.06345977444 | AC105: 80273.67077 | AD105: =AC105/K105*1000 -> 334.6017397 | AE105: -0.03807812374 | AF105: -0.03807812374
A106: 06Q | B106: NHS Mid Essex CCG | E106: 111968 | F106: 395722.8125 | G106: 282.9455277 | H106: -0.007099038687 | J106: 112588.6369 | K106: 397889.4375 | L106: 282.9646286 | M106: 0.005475107655 | O106: -0.005512429261 | P106: -6.750274966e-05 | Q106: 0.06928151229 | R106: 0.06345896 | S106: 119725.3124 | T106: 0 | U106: 0.06928151229 | V106: 0.06345896 | W106: 119725.3124 | X106: 119725 | Y106: 300.9001715 | Z106: 0.06927872249 | AA106: 0.06345618539 | AC106: 120416.2648 | AD106: 302.6375004 | AE106: -0.005740626449 | AF106: -0.005740626449
A107: 06T | B107: NHS North East Essex CCG | E107: 104536 | F107: 359002.8125 | G107: 291.1843483 | H107: -0.01856571479 | J107: 106579.8896 | K107: 362455.7812 | L107: 294.0493574 | M107: 0.009618222002 | O107: -0.01917706584 | P107: -0.009743293118 | Q107: 0.07368754437 | R107: 0.06345896 | S107: 112239.0011 | T107: 0 | U107: 0.07368754437 | V107: 0.06345896 | W107: 112239.0011 | X107: 112239 | Y107: 309.6626011 | Z107: 0.07368753348 | AA107: 0.06345894922 | AC107: 113989.7645 | AD107: 314.4928854 | AE107: -0.01535896217 | AF107: -0.01535896217
A108: 06V | B108: NHS North Norfolk CCG | E108: 53677 | F108: 175179.875 | G108: 306.4107678 | H108: -0.02421821787 | J108: 55073.07371 | K108: 175923.0938 | L108: 313.051985 | M108: 0.004242603495 | O108: -0.02534947877 | P108: -0.02121442306 | Q108: 0.0679707947 | R108: 0.06345896 | S108: 57325.46835 | T108: 0 | U108: 0.0679707947 | V108: 0.06345896 | W108: 57325.46835 | X108: 57325 | Y108: 325.8526142 | Z108: 0.06796206942 | AA108: 0.06345027158 | AC108: 58901.98167 | AD108: 334.8166544 | AE108: -0.02677298165 | AF108: -0.02677298165
A109: 06W | B109: NHS Norwich CCG | E109: 61695 | F109: 238141.7188 | G109: 259.068425 | H109: -0.04484682707 | J109: 64625.46456 | K109: 239075.6562 | L109: 270.3138646 | M109: 0.003921771897 | O109: -0.04534535394 | P109: -0.04160141618 | Q109: 0.06762960346 | R109: 0.06345896 | S109: 65867.40839 | T109: 0 | U109: 0.06762960346 | V109: 0.06345896 | W109: 65867.40839 | X109: 65867 | Y109: 275.5069296 | Z109: 0.06762298403 | AA109: 0.06345236643 | AC109: 69118.49426 | AD109: 289.1072029 | AE109: -0.04704231911 | AF109: -0.04704231911
A110: 06Y | B110: NHS South Norfolk CCG | E110: 63624 | F110: 232384.4688 | G110: 273.7876603 | H110: -0.01588111908 | J110: 64901.79632 | K110: 234526.75 | L110: 276.7351542 | M110: 0.009218693751 | O110: -0.01968815032 | P110: -0.0106509556 | Q110: 0.07326266247 | R110: 0.06345896 | S110: 68285.26364 | T110: 0 | U110: 0.07326266247 | V110: 0.06345896 | W110: 68285.26364 | X110: 68285 | Y110: 291.1608164 | Z110: 0.0732585188 | AA110: 0.06345485418 | AC110: 69414.03775 | AD110: 295.9749272 | AE110: -0.01626526543 | AF110: -0.01626526543
A111: 07G | B111: NHS Thurrock CCG | E111: 51466 | F111: 180604.5625 | G111: 284.9651154 | H111: -0.0209380179 | J111: 52579.71765 | K111: 182607.1094 | L111: 287.9390503 | M111: 0.0110880193 | O111: -0.02118150691 | P111: -0.01032834857 | Q111: 0.07525061348 | R111: 0.06345896 | S111: 55338.84807 | T111: 0 | U111: 0.07525061348 | V111: 0.06345896 | W111: 55338.84807 | X111: 55339 | Y111: 303.0495373 | Z111: 0.07525356546 | AA111: 0.06346187961 | AC111: 56235.27718 | AD111: 307.9577645 | AE111: -0.01593798821 | AF111: -0.01593798821
A112: 07H | B112: NHS West Essex CCG | E112: 98113 | F112: 318751.0938 | G112: 307.804434 | H112: 0.03625560423 | J112: 94562.25965 | K112: 321457 | L112: 294.1676792 | M112: 0.008489088518 | O112: 0.03754923335 | P112: 0.04635708063 | Q112: 0.07248675725 | R112: 0.06345896 | S112: 105224.8932 | T112: 0 | U112: 0.07248675725 | V112: 0.06345896 | W112: 105224.8932 | X112: 105225 | Y112: 327.3377155 | Z112: 0.07248784565 | AA112: 0.06346003924 | AC112: 101136.6192 | AD112: 314.6194334 | AE112: 0.04042433712 | AF112: 0.04042433712
A113: 07J | B113: NHS West Norfolk CCG | E113: 46144 | F113: 177701.8125 | G113: 259.6709586 | H113: -0.13950608 | J113: 53687.16061 | K113: 178607.3281 | L113: 300.58767 | M113: 0.005095702808 | O113: -0.1405021335 | P113: -0.1361223878 | Q113: 0.06887803081 | R113: 0.06345896 | S113: 49322.30785 | T113: 0 | U113: 0.06887803081 | V113: 0.06345896 | W113: 49322.30785 | X113: 49322 | Y113: 276.147684 | Z113: 0.06887135922 | AA113: 0.06345232224 | AC113: 57419.71415 | AD113: 321.4857686 | AE113: -0.1410267235 | AF113: -0.1410267235
A114: 07K | B114: NHS West Suffolk CCG | E114: 72361 | F114: 253729.0469 | G114: 285.1900517 | H114: -0.0197109349 | J114: 73924.73793 | K114: 255215.7812 | L114: 289.655826 | M114: 0.005859535569 | O114: -0.02115310751 | P114: -0.01541751932 | Q114: 0.0696903356 | R114: 0.06345896 | S114: 77403.86237 | T114: 0 | U114: 0.0696903356 | V114: 0.06345896 | W114: 77403.86237 | X114: 77404 | Y114: 303.2884551 | Z114: 0.06969223753 | AA114: 0.06346085085 | AC114: 79064.29159 | AD114: 309.7938976 | AE114: -0.02099925967 | AF114: -0.02099925967
A115: 07L | B115: NHS Barking and Dagenham CCG | E115: 80264 | F115: 231530.3125 | G115: 346.6673505 | H115: -0.03525365849 | J115: 83306.09245 | K115: 235011.3438 | L115: 354.4768994 | M115: 0.01503488339 | O115: -0.03651704648 | P115: -0.02203119262 | Q115: 0.07944794146 | R115: 0.06345896 | S115: 86640.80957 | T115: 0 | U115: 0.07944794146 | V115: 0.06345896 | W115: 86640.80957 | X115: 86641 | Y115: 368.6673103 | Z115: 0.07945031396 | AA115: 0.06346129737 | AC115: 89097.8767 | AD115: 379.1216001 | AE115: -0.02757503081 | AF115: -0.02757503081
A116: 07M | B116: NHS Barnet CCG | E116: 152624 | F116: 433326.5312 | G116: 352.2147595 | H116: 0.04208089576 | J116: 146353.5326 | K116: 437661.9688 | L116: 334.3985611 | M116: 0.01000501282 | O116: 0.04284466027 | P116: 0.05327833446 | Q116: 0.07409888053 | R116: 0.06345896 | S116: 163933.2675 | T116: 0 | U116: 0.07409888053 | V116: 0.06345896 | W116: 163933.2675 | X116: 163933 | Y116: 374.5653306 | Z116: 0.07409712758 | AA116: 0.06345722442 | AC116: 156528.6358 | AD116: 357.6473328 | AE116: 0.04730357605 | AF116: 0.04730357605
A117: 07N | B117: NHS Bexley CCG | E117: 88731 | F117: 246476.6406 | G117: 359.9976037 | H117: 0.06192456109 | J117: 83236.95598 | K117: 248993.375 | L117: 334.2938581 | M117: 0.01021084338 | O117: 0.0660048647 | P117: 0.07688967342 | Q117: 0.07431777288 | R117: 0.06345896 | S117: 95325.29031 | T117: 0 | U117: 0.07431777288 | V117: 0.06345896 | W117: 95325.29031 | X117: 95325 | Y117: 382.8415113 | Z117: 0.07431450113 | AA117: 0.06345572132 | AC117: 89023.93357 | AD117: 357.5353504 | AE117: 0.0707794654 | AF117: 0.0707794654
A118: 07P | B118: NHS Brent CCG | E118: 133731 | F118: 385367 | G118: 347.0224487 | H118: -0.01464538235 | J118: 135475.5083 | K118: 386772.1562 | L118: 350.2721335 | M118: 0.003646280688 | O118: -0.01287692787 | P118: -0.00927760008 | Q118: 0.06733662987 | R118: 0.06345896 | S118: 142735.9948 | T118: 0 | U118: 0.06733662987 | V118: 0.06345896 | W118: 142735.9948 | X118: 142736 | Y118: 369.0441457 | Z118: 0.06733666839 | AA118: 0.06345899838 | AC118: 144894.3263 | AD118: 374.6245016 | AE118: -0.0148958645 | AF118: -0.0148958645
A119: 07Q | B119: NHS Bromley CCG | E119: 131764 | F119: 356784.1875 | G119: 369.3100889 | H119: 0.08092833415 | J119: 121526.5695 | K119: 360567.5312 | L119: 337.0424649 | M119: 0.01060401184 | O119: 0.08424026563 | P119: 0.09573756225 | Q119: 0.07473589141 | R119: 0.06345896 | S119: 141611.5 | T119: 0 | U119: 0.07473589141 | V119: 0.06345896 | W119: 141611.5 | X119: 141611 | Y119: 392.7447364 | Z119: 0.07473209678 | AA119: 0.06345520519 | AC119: 129975.5995 | AD119: 360.4750517 | AE119: 0.08951988364 | AF119: 0.08951988364
A120: 07R | B120: NHS Camden CCG | E120: 114701 | F120: 290829.9062 | G120: 394.3920399 | H120: -0.003625137353 | J120: 115099.0723 | K120: 293392.75 | L120: 392.3037371 | M120: 0.00881217404 | O120: -0.003458518444 | P120: 0.00532317853 | Q120: 0.07283034544 | R120: 0.06345896 | S120: 123054.7135 | T120: 0 | U120: 0.07283034544 | V120: 0.06345896 | W120: 123054.7135 | X120: 123055 | Y120: 419.4207253 | Z120: 0.07283284365 | AA120: 0.06346143639 | AC120: 123101.236 | AD120: 419.5783162 | AE120: -0.0003755934392 | AF120: -0.0003755934392
A121: 07T | B121: NHS City and Hackney CCG | E121: 124593 | F121: 327826.5 | G121: 380.057744 | H121: 0.005516894548 | J121: 123951.209 | K121: 331951.25 | L121: 373.4018445 | M121: 0.01258211279 | O121: 0.005177770887 | P121: 0.01782503098 | Q121: 0.07683952059 | R121: 0.06345896 | S121: 134166.6664 | T121: 0 | U121: 0.07683952059 | V121: 0.06345896 | W121: 134166.6664 | X121: 134167 | Y121: 404.1768181 | Z121: 0.0768421982 | AA121: 0.06346160434 | AC121: 132568.81 | AD121: 399.3622858 | AE121: 0.01205555088 | AF121: 0.01205555088
A122: 07V | B122: NHS Croydon CCG | E122: 153128 | F122: 418991.6875 | G122: 365.467871 | H122: -0.006413843541 | J122: 154034.2252 | K122: 422190.9062 | L122: 364.8449621 | M122: 0.007635518425 | O122: -0.005883271593 | P122: 0.001707325004 | Q122: 0.07157902048 | R122: 0.06345896 | S122: 164088.7522 | T122: 0 | U122: 0.07157902048 | V122: 0.06345896 | W122: 164088.7522 | X122: 164089 | Y122: 388.6606688 | Z122: 0.07158063842 | AA122: 0.06346056568 | AC122: 164743.3219 | AD122: 390.2104935 | AE122: -0.003971765653 | AF122: -0.003971765653
A123: 07W | B123: NHS Ealing CCG | E123: 144351 | F123: 438781.7188 | G123: 328.981345 | H123: -0.000687450091 | J123: 144017.2923 | K123: 439261.75 | L123: 327.8621284 | M123: 0.001094009229 | O123: 0.002317136426 | P123: 0.003413680624 | Q123: 0.06462239392 | R123: 0.06345896 | S123: 153679.3072 | T123: 0 | U123: 0.06462239392 | V123: 0.06345896 | W123: 153679.3072 | X123: 153679 | Y123: 349.8574597 | Z123: 0.06462026588 | AA123: 0.06345683429 | AC123: 154029.9703 | AD123: 350.6564602 | AE123: -0.002278584805 | AF123: -0.002278584805
A124: 07X | B124: NHS Enfield CCG | E124: 135772 | F124: 346657 | G124: 391.6609213 | H124: 0.06596725829 | J124: 127150.6769 | K124: 349809.375 | L124: 363.485618 | M124: 0.009093642996 | O124: 0.0678039893 | P124: 0.07751421757 | Q124: 0.07312967612 | R124: 0.06345896 | S124: 145700.9624 | T124: 0 | U124: 0.07312967612 | V124: 0.06345896 | W124: 145700.9624 | X124: 145701 | Y124: 416.5154236 | Z124: 0.07312995316 | AA124: 0.06345923454 | AC124: 135990.718 | AD124: 388.7566422 | AE124: 0.07140400539 | AF124: 0.07140400539
A125: 07Y | B125: NHS Hounslow CCG | E125: 97898 | F125: 320845.8125 | G125: 305.1247552 | H125: 0.0009013644799 | J125: 97666.6496 | K125: 322603.25 | L125: 302.7453989 | M125: 0.005477514219 | O125: 0.002368775869 | P125: 0.007859265091 | Q125: 0.06928407157 | R125: 0.06345896 | S125: 104680.772 | T125: 0 | U125: 0.06928407157 | V125: 0.06345896 | W125: 104680.772 | X125: 104681 | Y125: 324.4883615 | Z125: 0.06928640013 | AA125: 0.06346127587 | AC125: 104456.8392 | AD125: 323.7935117 | AE125: 0.002145965803 | AF125: 0.002145965803
A126: 08A | B126: NHS Greenwich CCG | E126: 123497 | F126: 304522.375 | G126: 405.5432708 | H126: 0.02636520906 | J126: 120332.0792 | K126: 308253.9688 | L126: 390.3666826 | M126: 0.01225392305 | O126: 0.0263015552 | P126: 0.03887777548 | Q126: 0.07649050426 | R126: 0.06345896 | S126: 132943.3478 | T126: 0 | U126: 0.07649050426 | V126: 0.06345896 | W126: 132943.3478 | X126: 132943 | Y126: 431.2774967 | Z126: 0.07648768796 | AA126: 0.06345617779 | AC126: 128698.0632 | AD126: 417.5065896 | AE126: 0.03298368811 | AF126: 0.03298368811
A127: 08C | B127: NHS Hammersmith and Fulham CCG | E127: 76412 | F127: 239128.8906 | G127: 319.5431543 | H127: -0.003015625446 | J127: 76355.83373 | K127: 238742.6094 | L127: 319.8249107 | M127: -0.001615368386 | O127: 0.0007355858227 | P127: -0.000880970805 | Q127: 0.06174108202 | R127: 0.06345896 | S127: 81129.75956 | T127: 0 | U127: 0.06174108202 | V127: 0.06345896 | W127: 81129.75956 | X127: 81130 | Y127: 339.8220377 | Z127: 0.06174422866 | AA127: 0.06346211173 | AC127: 81664.40723 | AD127: 342.0604619 | AE127: -0.00654394307 | AF127: -0.00654394307
A128: 08D | B128: NHS Haringey CCG | E128: 126197 | F128: 324594.0625 | G128: 388.7840678 | H128: 0.01185156106 | J128: 124623.8005 | K128: 327288.625 | L128: 380.7764492 | M128: 0.008301330219 | O128: 0.01262358804 | P128: 0.02102971084 | Q128: 0.072287084 | R128: 0.06345896 | S128: 135319.4131 | T128: 0 | U128: 0.072287084 | V128: 0.06345896 | W128: 135319.4131 | X128: 135319 | Y128: 413.4546381 | Z128: 0.07228381023 | AA128: 0.06345571318 | AC128: 133288.1628 | AD128: 407.2496035 | AE128: 0.01523644116 | AF128: 0.01523644116
A129: 08E | B129: NHS Harrow CCG | E129: 87544 | F129: 269424.5 | G129: 324.9296185 | H129: -0.003219465265 | J129: 87520.47397 | K129: 270413.25 | L129: 323.6545324 | M129: 0.003669859274 | O129: 0.0002688059616 | P129: 0.003939651716 | Q129: 0.06736170473 | R129: 0.06345896 | S129: 93441.11308 | T129: 0 | U129: 0.06736170473 | V129: 0.06345896 | W129: 93441.11308 | X129: 93441 | Y129: 345.548896 | Z129: 0.06736041305 | AA129: 0.06345767305 | AC129: 93605.25946 | AD129: 346.1563347 | AE129: -0.001754810171 | AF129: -0.001754810171
A130: 08F | B130: NHS Havering CCG | E130: 94996 | F130: 284984.5 | G130: 333.3374271 | H130: -0.01918840524 | J130: 96705.88823 | K130: 288470.5938 | L130: 335.2365556 | M130: 0.01223257318 | O130: -0.01768132492 | P130: -0.005665039847 | Q130: 0.07646779955 | R130: 0.06345896 | S130: 102260.1351 | T130: 0 | U130: 0.07646779955 | V130: 0.06345896 | W130: 102260.1351 | X130: 102260 | Y130: 354.4902053 | Z130: 0.07646637753 | AA130: 0.06345755517 | AC130: 103429.2817 | AD130: 358.543588 | AE130: -0.0113051324 | AF130: -0.0113051324
A131: 08G | B131: NHS Hillingdon CCG | E131: 98761 | F131: 320584.9375 | G131: 308.0650038 | H131: -0.003833133066 | J131: 98978.81469 | K131: 324011.6875 | L131: 305.4791494 | M131: 0.01068905491 | O131: -0.002200619328 | P131: 0.00846491304 | Q131: 0.07482633122 | R131: 0.06345896 | S131: 106150.9233 | T131: 0 | U131: 0.07482633122 | V131: 0.06345896 | W131: 106150.9233 | X131: 106151 | Y131: 327.6147253 | Z131: 0.07482710787 | AA131: 0.06345972844 | AC131: 105860.2314 | AD131: 326.7173239 | AE131: 0.002746721395 | AF131: 0.002746721395
A132: 08H | B132: NHS Islington CCG | E132: 113715 | F132: 259082.2812 | G132: 438.914616 | H132: 0.0151427432 | J132: 111937.2478 | K132: 261858.0312 | L132: 427.4730365 | M132: 0.01071377783 | O132: 0.01588168625 | P132: 0.02676561694 | Q132: 0.07485262302 | R132: 0.06345896 | S132: 122226.866 | T132: 0 | U132: 0.07485262302 | V132: 0.06345896 | W132: 122226.866 | X132: 122227 | Y132: 466.7681927 | Z132: 0.07485380117 | AA132: 0.06346012566 | AC132: 119719.5884 | AD132: 457.1927308 | AE132: 0.02094403809 | AF132: 0.02094403809
A133: 08J | B133: NHS Kingston CCG | E133: 58340 | F133: 214617.5625 | G133: 271.8323669 | H133: 0.007543117253 | J133: 57888.40397 | K133: 216840.5625 | L133: 266.9629856 | M133: 0.01035795941 | O133: 0.007801148416 | P133: 0.0182399118 | Q133: 0.07447422474 | R133: 0.06345896 | S133: 62684.82627 | T133: 0 | U133: 0.07447422474 | V133: 0.06345896 | W133: 62684.82627 | X133: 62685 | Y133: 289.0833674 | Z133: 0.07447720261 | AA133: 0.06346190734 | AC133: 61913.04534 | AD133: 285.523357 | AE133: 0.01246836844 | AF133: 0.01246836844
A134: 08K | B134: NHS Lambeth CCG | E134: 178107 | F134: 419431.375 | G134: 424.6391916 | H134: 0.04608916132 | J134: 169952.0774 | K134: 421847.875 | L134: 402.8752721 | M134: 0.005761371571 | O134: 0.04798365934 | P134: 0.0540214826 | Q134: 0.06958594222 | R134: 0.06345896 | S134: 190500.7434 | T134: 0 | U134: 0.06958594222 | V134: 0.06345896 | W134: 190500.7434 | X134: 190501 | Y134: 451.5869613 | Z134: 0.06958738287 | AA134: 0.06346039239 | AC134: 181767.8491 | AD134: 430.884828 | AE134: 0.0480456307 | AF134: 0.0480456307
A135: 08L | B135: NHS Lewisham CCG | E135: 134887 | F135: 338397.0625 | G135: 398.605706 | H135: 0.04891822465 | J135: 128529.6537 | K135: 342115.7188 | L135: 375.6905825 | M135: 0.0109890323 | O135: 0.04946209805 | P135: 0.06099467094 | Q135: 0.07514534486 | R135: 0.06345896 | S135: 145023.1301 | T135: 0 | U135: 0.07514534486 | V135: 0.06345896 | W135: 145023.1301 | X135: 145023 | Y135: 423.9004292 | Z135: 0.07514438011 | AA135: 0.06345800574 | AC135: 137465.567 | AD135: 401.8101463 | AE135: 0.05497691642 | AF135: 0.05497691642
A136: 08M | B136: NHS Newham CCG | E136: 140182 | F136: 410601.9375 | G136: 341.4060851 | H136: 0.02819076914 | J136: 136555.0764 | K136: 414677.0625 | L136: 329.3046293 | M136: 0.009924758331 | O136: 0.02656015241 | P136: 0.03674851384 | Q136: 0.07401353317 | R136: 0.06345896 | S136: 150557.3651 | T136: 0 | U136: 0.07401353317 | V136: 0.06345896 | W136: 150557.3651 | X136: 150557 | Y136: 363.0704797 | Z136: 0.07401092865 | AA136: 0.06345638107 | AC136: 146048.9503 | AD136: 352.1992497 | AE136: 0.03086670391 | AF136: 0.03086670391
A137: 08N | B137: NHS Redbridge CCG | E137: 105198 | F137: 328112.0938 | G137: 320.6160395 | H137: -0.002260367082 | J137: 105412.0245 | K137: 331471.375 | L137: 318.0124512 | M137: 0.01023821223 | O137: -0.002030361013 | P137: 0.008187063947 | Q137: 0.07434687853 | R137: 0.06345896 | S137: 113019.1429 | T137: 0 | U137: 0.07434687853 | V137: =MAX(R137,NewMinGrowthPerHead(P137,$P$2,$L$1,$U$1,$T$2,AD137,G137,T137, $P$1)) -> 0.06345896 | W137: 113019.1429 | X137: 113019 | Y137: =X137/K137*1000 -> 340.9615687 | Z137: =X137/E137-1 -> 0.07434551988 | AA137: =Y137/G137-1 -> 0.06345761512 | AC137: 112740.7046 | AD137: =AC137/K137*1000 -> 340.1219927 | AE137: 0.002468455642 | AF137: 0.002468455642
A138: 08P | B138: NHS Richmond CCG | E138: 59334 | F138: 221206 | G138: =E138/F138*1000 -> 268.229614 | H138: -0.01899764132 | J138: 60411.61846 | K138: 222806.0781 | L138: =J138/K138*1000 -> 271.1399032 | M138: =K138/F138-1 -> 0.007233430038 | O138: =E138/J138-1 -> -0.01783793396 | P138: =G138/L138-1 -> -0.01073353337 | Q138: =(1+M138)*(1+R138)-1 -> 0.07115141599 | R138: =MinGrowthPerHead(P138,0,1,$Q$1,$Q$2,$R$1,$R$2) -> 0.06345896 | S138: =(1+IF($S$2=1,Q138,0))*$E138 -> 63555.69812 | T138: =MinMaxRamp(P138,0,1,$P$2,$T$2) -> 0 | U138: =(1+M138)*(1+V138)-1 -> 0.07115141599 | V138: 0.06345896 | W138: =(1+IF($S$2=1,U138,0))*$E138 -> 63555.69812 | X138: =IF(ROUND(W138,0)/E138>$X$1,ROUND(W138,0),ROUNDUP(W138,0)) -> 63556 | Y138: 285.2525413 | Z138: 0.07115650386 | AA138: 0.06346401134 | AC138: 64611.68414 | AD138: 289.9906712 | AE138: =X138/AC138-1 -> -0.01633890459 | AF138: -0.01633890459
A139: 08Q | B139: NHS Southwark CCG | E139: 145352 | F139: 337654.8125 | G139: 430.4751321 | H139: 0.08776937879 | J139: 133507.4965 | K139: 340549.5 | L139: 392.0355089 | M139: 0.008572919422 | O139: 0.08871789063 | P139: 0.09805138138 | Q139: 0.07257590797 | R139: 0.06345896 | S139: 155901.0534 | T139: 0 | U139: 0.07257590797 | V139: 0.06345896 | W139: 155901.0534 | X139: 155901 | Y139: 457.7924795 | Z139: 0.07257554076 | AA139: 0.0634585959 | AC139: 142789.4901 | AD139: 419.2914396 | AE139: 0.09182405435 | AF139: 0.09182405435
A140: 08R | B140: NHS Merton CCG | E140: 70785 | F140: 228194.5625 | G140: 310.1958225 | H140: -0.0453943929 | J140: 74003.0976 | K140: 229528.4062 | L140: 322.4136777 | M140: 0.005845203915 | O140: -0.04348598509 | P140: -0.03789496563 | Q140: 0.06967509448 | R140: 0.06345896 | S140: 75716.95156 | T140: 0 | U140: 0.06967509448 | V140: 0.06345896 | W140: 75716.95156 | X140: 75717 | Y140: 329.8807378 | Z140: 0.06967577877 | AA140: 0.06345964031 | AC140: 79148.09915 | AD140: 344.8292106 | AE140: -0.04335036704 | AF140: -0.04335036704
A141: 08T | B141: NHS Sutton CCG | E141: 64678 | F141: 200119.25 | G141: 323.1972936 | H141: 0.0004638586098 | J141: 64569.65593 | K141: 201969.25 | L141: 319.7004293 | M141: 0.009244487974 | O141: 0.001677940934 | P141: 0.01093794061 | Q141: 0.07329009357 | R141: 0.06345896 | S141: 69418.25667 | T141: 0 | U141: 0.07329009357 | V141: 0.06345896 | W141: 69418.25667 | X141: 69418 | Y141: 343.7057869 | Z141: 0.07328612511 | AA141: 0.0634550279 | AC141: 69058.80558 | AD141: 341.927326 | AE141: 0.005201283367 | AF141: 0.005201283367
A142: 08V | B142: NHS Tower Hamlets CCG | E142: 124139 | F142: 336755.5625 | G142: 368.6323667 | H142: 0.07664661138 | J142: 115669.7311 | K142: 341834.9062 | L142: 338.3789339 | M142: 0.01508317699 | O142: 0.07321940471 | P142: 0.08940696294 | Q142: 0.07949929971 | R142: 0.06345896 | S142: 134007.9636 | T142: 0 | U142: 0.07949929971 | V142: 0.06345896 | W142: 134007.9636 | X142: 134008 | Y142: 392.0254999 | Z142: 0.0794995932 | AA142: 0.06345924913 | AC142: 123711.5695 | AD142: 361.9044375 | AE142: 0.08322932595 | AF142: 0.08322932595
A143: 08W | B143: NHS Waltham Forest CCG | E143: 120219 | F143: 316882.375 | G143: 379.3805193 | H143: 0.05604426456 | J143: 113766.1661 | K143: 319246.5625 | L143: 356.3583119 | M143: 0.007460773102 | O143: 0.05672014922 | P143: 0.06460409848 | Q143: 0.071393186 | R143: 0.06345896 | S143: 128801.8174 | T143: 0 | U143: 0.071393186 | V143: 0.06345896 | W143: 128801.8174 | X143: 128802 | Y143: 403.4561844 | Z143: 0.07139470466 | AA143: 0.06346046741 | AC143: 121675.6607 | AD143: 381.1338162 | AE143: 0.05856832235 | AF143: 0.05856832235
A144: 08X | B144: NHS Wandsworth CCG | E144: 128502 | F144: 408998 | G144: 314.1873554 | H144: -0.03249623646 | J144: 132599.9176 | K144: 411126.6875 | L144: 322.5281201 | M144: 0.005204640365 | O144: -0.03090437541 | P144: -0.0258605812 | Q144: 0.06899388143 | R144: 0.06345896 | S144: 137367.8518 | T144: 0 | U144: 0.06899388143 | V144: 0.06345896 | W144: 137367.8518 | X144: 137368 | Y144: 334.1257189 | Z144: 0.0689950351 | AA144: 0.06346010769 | AC144: 141818.8126 | AD144: 344.9516095 | AE144: -0.0313837952 | AF144: -0.0313837952
A145: 08Y | B145: NHS West London CCG | E145: 93373 | F145: 250522.5625 | G145: 372.7129368 | H145: 5.627633376e-05 | J145: 93096.41262 | K145: 250546.5156 | L145: 371.5733679 | M145: 9.561264567e-05 | O145: 0.002970977889 | P145: 0.003066874598 | Q145: 0.06356064012 | R145: 0.06345896 | S145: 99307.84765 | T145: 0 | U145: 0.06356064012 | V145: 0.06345896 | W145: 99307.84765 | X145: 99308 | Y145: 396.3655202 | Z145: 0.06356227175 | AA145: 0.06346059147 | AC145: 99568.86043 | AD145: 397.4066859 | AE145: -0.002619899716 | AF145: -0.002619899716
